Workbook

Sheet Disclaimer
A2: DISCLAIMER
A4: This Legacy Cost Model (Model) is designed to assist Cemetery Operators in New South Wales estimate their perpetual maintenance liability from past interments and to estimate any funding shortfall. Use of the Model for any other purpose is at the user’s own risk, and is not endorsed by IPART.
A6: IPART does not guarantee or warrant, and accepts no liability whatsoever arising from or connected to, the accuracy, reliability, currency or completeness of the Model.
A8: By using the Model, you acknowledge that:
A10: • The Model is general in nature and may not be sufficient or appropriate for your purposes. The Model does not take into account the circumstances of individual Cemetery Operators and events may have occurred since we published the Model that may impact the Model outputs.
A11: • The Model may contain forward looking statement, forecasts, estimates, projections and opinions (Forward Statements). IPART makes no representation or warranty as to the accuracy of such Forward Statements.
A12: • The Model is not intended as a substitute for advice from a qualified professional.
A14: IPART recommends that users exercise care and use their own skill and judgment in using the Model and that users carefully evaluate the accuracy, currency, completeness and relevance of the estimates produced by the Model. Users should take steps to independently verify the estimates produced by the Model and, where appropriate, seek professional advice.

Sheet Background
A2: BACKGROUND: PERPETUAL MAINTENANCE OBLIGATIONS
A4: Cemetery operators are expected to provide maintenance to the sold plots in perpetuity at a standard of care that meets the customer and community expectations. These perpetual maintenance costs include both ground maintenance and administration activities.
A6: Standards of maintenance also do not stay constant over time. Apart from being influenced by evolving community expectations and technology, there is commonly a reduction in the maintenance standard after a cemetery closes, i.e. when bodily interment rights are no longer readily available. Despite the reductions in costs, a reasonable standard of maintenance must still be achieved to meet customer and community expectations.
A8: The CCNSW Voluntary Code of Practice for Cemetery Maintenance defines three stages of a cemetery (or for different areas within a cemetery) as follows: • Active cemetery area refers to part or all of the cemetery where interment activities regularly occur, and therefore have higher levels of visitation. • Transitional cemetery area refers to part or all of the cemetery where there are occasional interment activities, such as second interments and interment via a pre-existing interment right, and as such have some visitation, though not as much as an ‘active’ cemetery area would. • Perpetual cemetery area refers to part or all of the cemetery where interment activities rarely occur, and as such have typically low levels of visitation and activity.
A10: To obtain revenue to pay for these costs, a cemetery operator charges customers for interment rights, and also for interring bodies or ashes. However, while the cemetery operator only receives revenue at the time of the sale of each of these services, the costs that such revenue must cover are ongoing into perpetuity – hence the term ‘perpetual maintenance’.
A12: In many businesses, it is sustainable to pay current costs from current revenue, but because cemeteries will eventually exhaust the area available for burial, their revenue opportunities from interment rights decline to zero over time, while the costs continue.
A14: There is currently no legal obligation requiring cemetery operators (public or private) to set aside funds for the future costs of perpetual maintenance. CCNSW’s Voluntary Code of Practice for Cemetery Maintenance 2020 states that during the ‘active’ phase of a cemetery, “perpetual care funds should be accumulated to cater for the majority of perpetual needs”, but as the Code is voluntary, there is no requirement to hold funds for this purpose. IPART’s Interim Report recommended that there should be such a requirement so that all operators could make adequate financial provision for the perpetual maintenance of the cemeteries.

Sheet Contents
B2: Legacy Cost Model
B4: Overview of the model and introduction to the model sheets
B7: Model overview
B9: The model calculates the total legacy maintenance cost obligation for a cemetery operator, and also calculates the legacy maintenance obligation in respect of each cemetery under the operator's control where data is inputted at a cemetery level. Legacy maintenance costs refer to the future maintenance costs in relation to sold perpetual (bodily) interment rights as at the model projection date. Section 1.06 below outlines what cost items are typically considered to be perpetual maintenance costs.
B11: A user can enter cemetery-specific data into the model to calculate an Operator Estimate of the legacy cost obligation. However, if this information is not available, assumptions have been built into the model to calculate a Model Estimate of the legacy cost obligation. Refer to Section 1.06 below for further information.
B13: Model contents
B15: Worksheet section | C15: Worksheet Name | E15: Description
B17: Introduction
C18: Background | E18: Background context in relation to legacy perpetual maintenance costs
C19: Contents | E19: Overview of the model and introduction to the model sheets
B21: Model Inputs
C22: Inputs | E22: Data inputs on various cemetery features and costs, to be used for modelling
C23: Key Assumptions | E23: Key assumptions used in calculating legacy cost obligation, based on a combination of user inputs and model inputs
B25: Outputs
C26: Legacy Cost Results & Charts | E26: Charts describing the legacy cost obligation by each cemetery and the underlying operator.
E27: Shows either operator estimate or model estimate, based on basis specified on Inputs sheet.
B29: Calculations
C30: Calculations | E30: Calculations and projection of legacy cost obligation
B50: Worksheet coding
B52: Introduction | D52: Sheets that provide an overview of the model
B53: Model Inputs | D53: Sheets with key data inputs and supporting intermediate workings
B54: Outputs | D54: Sheets that show the key results and charts
B55: Calculations | D55: Sheets with projection of legacy cost
B57: Model structure
B59: Inputs | D59: Cemetery data and statistics required to calculate legacy cost obligation
B61: Key Assumptions | D61: Used to fill in gaps in cemetery data, and to project forward costs and determine the legacy cost obligation
B63: Legacy Cost Results & Charts | D63: Legacy cost obligation result, both total obligation for the cemetery operator and obligation for each cemetery
B65: Calculations | D65: Calculations and projections of legacy cost
B68: Cell colour conventions on input worksheets ("Inputs" and "Key Assumptions" worksheets)
B70: User input | D70: Cells with this colour coding can be adjusted by the user.
B71: Model generated or default values | D71: Cells with this colour coding are automatically populated by the model, or default values, and should not be adjusted by the user.
B72: Redundant cells | D72: Cells with this colour coding are redundant, based on the selected options.
B74: Definition of key inputs and user instruction
B76: Area | C76: Description & Instruction
B77: List of existing cemeteries | C77: The model calculates total legacy maintenance obligation for a cemetery operator. The operator may enter details separately by cemetery in order to determine the legacy maintenance obligation in relation to each cemetery, and these are added to determine the total obligation for the operator. Where details are not able to be populated by cemetery, the totals for the operator across all of their cemeteries may be entered in a single column in the Inputs. If the total number of cemeteries exceeds 9, input the largest 9 cemeteries of the operator and group the rest of the cemeteries as "Other Cemeteries".
B78: Inputs tab - All inputs | C78: Input Operator's own data / estimates for each of the largest 9 cemeteries. In cases where there are more than 9 cemeteries, input the aggregate figures for the rest of the cemeteries. In addition, input current balance of perpetual maintenance reserve (where applicable) in total for the operator.
B79: Cemetery features - plot mix | C79: Lawn: A cemetery that has predominantly lawn graves Monumental: A cemetery that has predominantly monumental graves Mixed: A cemetery that has a balanced mix of lawn graves and monumental graves
B80: Non-financial data: Developed land for plots sold | C80: Input the size of the land that has been developed in relation to sold plots ONLY.
B81: Non-financial data: Sold plots | C81: Number of plots that have been sold for perpetual interment right
B82: Annual perpetual maintenance - Operator | C82: Input the perpetual ground maintenance cost and the associated admin / overhead related to maintenance for sold interment plots ONLY. This should represent only essential grounds maintenance and administration costs if no other activities were performed than meeting the perpetual care obligations.
B83: Cost inflation | C83: Input the historically observed or expected cost inflation (p.a.) by the user
B84: Risk margin | C84: Input a percentage loading to be added to the legacy cost obligation. This represents the conservatism in estimating the liability.
B85: Perpetual Ground Maintenance Costs | C85: Refers to future maintenance costs in relation to sold perpetual interment rights at a particular point in time (ie, where revenue has already been received for these rights). Some of the key ground maintenance activities include (but are not limited to): • mowing, weeding, whipper snippering, edging, and irrigation of the grass areas • maintenance and irrigation of plants • maintenance related to gardens and furniture, including garden planting, tending and maintenance • litter control, such as rubbish removal, dead flower removal, and leaf blowing (in particular for crypts) • pest control • cleaning and maintenance of roadways, fencing, walks and buildings necessitated by natural growth and ordinary wear • repairs • managing safety aspects of monuments, particularly where the rights holder cannot be located • security to manage opening hours for a cemetery and prevent vandalism • travel to/from cemetery site including transportation of maintenance machinery and equipment • ad-hoc maintenance work to prepare for visits / events
B86: Perpetual Administration Costs | C86: Refers to future administration costs in relation to sold perpetual interment rights, such as genealogy searches and other requests from the families of the interred, as well as the maintenance of systems, databases, and other functions that are required for ongoing perpetual care such as IT, finance, premises and utility costs.
B87: Specify model output (operator vs model estimates) | C87: Select whether to show results based on Operator Estimate or Model Estimate. • Operator Estimate produces outputs using operator's data inputs • Model Estimate produces outputs using the model inputs and assumptions, based on operator data for developed land area and sold plot numbers
B88: Assumptions - Discount Rate | C88: Select whether to input a Single Discount Rate (per annum) which applies for all years, or to input a yield curve of spot discount rates applicable for the next 50 years. The model default is to use a Single Discount Rate.
B89: Assumptions - Step down decreases in perpetual maintenance costs | C89: Where future decreases in perpetual maintenance costs are expected (such as due to reductions in visitation activity and maintenance levels), the model allows the user to input up to 3 future points of time (in number of years from the calculation date, up to a maximum of 50 years) and the assumed percentage decrease in costs at that date. Separate assumptions may be made for changes in grounds maintenance versus administration. These assumptions can be set at overall operator level, or at cemetery level if desired. The model also allows for periodic decreases at a regular basis (same rate of decrease every x years, until the date 50 years from the calculation date). The model assumes no further decreases beyond 50 years into the future, beyond which a steady state is assumed.

Sheet Inputs
B2: Inputs
B5: Colour conventions:
B6: Cells with this colour coding can be adjusted by the user.
B7: Cells with this colour coding are automatically populated by the model, or default values, and should not be adjusted by the user.
B11: Operator name | D11: ABC Cemetery
B13: Data as at | D13: 2019-06-30
B15: Outputs as at | D15: 2020-06-30
B18: Global assumptions (for all cemeteries)
B19: Cost Inflation | D19: 0.02 | E19: =MAX(D19,mininflation) -> 0.02
B20: Risk margin | D20: 0
B22: Specify model output (operator vs model estimates) | D22: Operator Estimate | E22: <User to select from dropdown>
B23: Operator estimate produces outputs using operator's data inputs
B24: Model estimate produces outputs using the model inputs and assumptions, based on operator data for developed land area and sold plot numbers
B26: Current perpetual maintenance assets held
B27: Operator total ($) | D27: 10000000
D29: 1 | E29: =D29+1 -> 2 | F29: 3 | G29: 4 | H29: 5 | I29: 6 | J29: 7 | K29: 8 | L29: 9 | M29: 10
B30: List of existing cemeteries | D30: Cemetery A | E30: Cemetery B | F30: Cemetery C | G30: Cemetery D | H30: Cemetery E | I30: Cemetery F | J30: Cemetery G | K30: Cemetery H | L30: Cemetery I | M30: Other Cemeteries (grouped)
B32: Cemetery features | C32: Plot mix | D32: Lawn | E32: Mixed | F32: Mixed | G32: Mixed | H32: Monumental | I32: Monumental | J32: Monumental | K32: Monumental | L32: Lawn | M32: Monumental
C33: Location | D33: Metropolitan | E33: Metropolitan | F33: Metropolitan | G33: Metropolitan | H33: Metropolitan | I33: Metropolitan | J33: Metropolitan | K33: Metropolitan | L33: Metropolitan | M33: Rural
B34: Non-financial data | C34: Developed land for plots sold (Ha) | D34: 22 | E34: 3 | F34: 1 | G34: 2 | H34: 10 | I34: 5 | J34: 22 | K34: 3 | L34: 3 | M34: 3
C35: Sold plots (number) | D35: 8000 | E35: 3000 | F35: 500 | G35: 600 | H35: 18000 | I35: 8000 | J35: 8000 | K35: 3000 | L35: 3000 | M35: 3000
B36: Annual perpetual maintenance - Operator | C36: Ground maintenance ($) | D36: 100000 | E36: 30000 | F36: 20000 | G36: 25000 | H36: 320000 | I36: 100000 | J36: 100000 | K36: 30000 | L36: 30000 | M36: 30000
C37: Admin / overhead related to maintenance ($) | D37: 10000 | E37: 3000 | F37: 2000 | G37: 2500 | H37: 7000 | I37: 15000 | J37: 10000 | K37: 3000 | L37: 3000 | M37: 3000
B39: Non-financial data - Based on operator inputs
B40: Density | D40: =IFERROR(D35/D34,0) -> 363.6363636 | E40: 1000 | F40: 500 | G40: 300 | H40: 1800 | I40: 1600 | J40: 363.6363636 | K40: 1000 | L40: 1000 | M40: 1000
B42: Non-financial data - Operator estimates complemented by model assumptions
B43: Developed land for plots sold | D43: =IFERROR(IF(OR(D34=0,D34=""),IF(D35/D45=0,0,D35/D45),D34),0) -> 22 | E43: 3 | F43: 1 | G43: 2 | H43: 10 | I43: 5 | J43: 22 | K43: 3 | L43: 3 | M43: 3
B44: Sold plots | D44: =IF(OR(D35=0,D35=""),D43*D45,D35) -> 8000 | E44: 3000 | F44: 500 | G44: 600 | H44: 18000 | I44: 8000 | J44: 8000 | K44: 3000 | L44: 3000 | M44: 3000
B45: Density | D45: =IFERROR(IF(OR(D40=0,D40=""),VLOOKUP(D32,densitytable,MATCH(D33,'Key Assumptions'!$C$11:$D$11)+1,FALSE),D40),0) -> 363.6363636 | E45: =IFERROR(IF(OR(E40=0,E40=""),VLOOKUP(E32,densitytable,MATCH(E33,'Key Assumptions'!$C$11:$D$11)+1,FALSE),E40),0) -> 1000 | F45: =IFERROR(IF(OR(F40=0,F40=""),VLOOKUP(F32,densitytable,MATCH(F33,'Key Assumptions'!$C$11:$D$11)+1,FALSE),F40),0) -> 500 | G45: =IFERROR(IF(OR(G40=0,G40=""),VLOOKUP(G32,densitytable,MATCH(G33,'Key Assumptions'!$C$11:$D$11)+1,FALSE),G40),0) -> 300 | H45: =IFERROR(IF(OR(H40=0,H40=""),VLOOKUP(H32,densitytable,MATCH(H33,'Key Assumptions'!$C$11:$D$11)+1,FALSE),H40),0) -> 1800 | I45: =IFERROR(IF(OR(I40=0,I40=""),VLOOKUP(I32,densitytable,MATCH(I33,'Key Assumptions'!$C$11:$D$11)+1,FALSE),I40),0) -> 1600 | J45: =IFERROR(IF(OR(J40=0,J40=""),VLOOKUP(J32,densitytable,MATCH(J33,'Key Assumptions'!$C$11:$D$11)+1,FALSE),J40),0) -> 363.6363636 | K45: =IFERROR(IF(OR(K40=0,K40=""),VLOOKUP(K32,densitytable,MATCH(K33,'Key Assumptions'!$C$11:$D$11)+1,FALSE),K40),0) -> 1000 | L45: =IFERROR(IF(OR(L40=0,L40=""),VLOOKUP(L32,densitytable,MATCH(L33,'Key Assumptions'!$C$11:$D$11)+1,FALSE),L40),0) -> 1000 | M45: =IFERROR(IF(OR(M40=0,M40=""),VLOOKUP(M32,densitytable,MATCH(M33,'Key Assumptions'!$C$11:$D$11)+1,FALSE),M40),0) -> 1000
B47: Annual perpetual maintenance - Operator estimates used in the model
B48: Ground maintenance | D48: =IF(OR(D36=0,D36="",D37=0,D37=""),0,D36) -> 100000 | E48: 30000 | F48: 20000 | G48: 25000 | H48: 320000 | I48: 100000 | J48: 100000 | K48: 30000 | L48: 30000 | M48: 30000
B49: Admin / overhead related to maintenance | D49: =IF(OR(D36=0,D36="",D37=0,D37=""),0,D37) -> 10000 | E49: 3000 | F49: 2000 | G49: 2500 | H49: 7000 | I49: 15000 | J49: 10000 | K49: 3000 | L49: 3000 | M49: 3000
B51: Annual perpetual maintenance - Model
B52: Ground maintenance | D52: =IFERROR(D43*VLOOKUP(D32,groundmainttable,2,FALSE),0) -> 198000 | E52: 33000 | F52: 11000 | G52: 22000 | H52: 130000 | I52: 65000 | J52: 286000 | K52: 39000 | L52: 27000 | M52: 39000
B53: Admin / overhead related to maintenance | D53: =D44*benchmarkadmin -> 40000 | E53: 15000 | F53: 2500 | G53: 3000 | H53: 90000 | I53: 40000 | J53: 40000 | K53: 15000 | L53: 15000 | M53: 15000

Sheet Key Assumptions
B2: Key Assumptions
B5: Colour conventions:
B6: Cells with this colour coding can be adjusted by the user.
B7: Cells with this colour coding are automatically populated by the model, or default values, and should not be adjusted by the user.
B8: Cells with this colour coding are redundant, based on the selected options.
B11: Density of sold plots on developed land (per HA) | C11: Metropolitan | D11: Rural
B12: Lawn | C12: 2000 | D12: 2000
B13: Mixed | C13: 2000 | D13: 2000
B14: Monumental | C14: 2000 | D14: 2000
B16: Cost per HA - Ground maintenance
B17: Lawn | C17: 9000 | E17: The data in this section are default values used by the model if the "Model Estimate" option is selected in the "Specific Model Output" section of the "Inputs" worksheet.
B18: Mixed | C18: 11000
B19: Monumental | C19: 13000
B21: Admin cost related to maintenance per plot | C21: 5
B23: Minimum inflation rate | C23: 0.02 | D23: p.a.
B25: Step Change Structure (by cemetery vs operator level) | C25: Overall Operator Level | D25: =IF(ISTEXT(Inputs!D30),Inputs!D30,"") -> Cemetery A | E25: =IF(ISTEXT(Inputs!E30),Inputs!E30,"") -> Cemetery B | F25: =IF(ISTEXT(Inputs!F30),Inputs!F30,"") -> Cemetery C | G25: =IF(ISTEXT(Inputs!G30),Inputs!G30,"") -> Cemetery D | H25: =IF(ISTEXT(Inputs!H30),Inputs!H30,"") -> Cemetery E | I25: =IF(ISTEXT(Inputs!I30),Inputs!I30,"") -> Cemetery F | J25: =IF(ISTEXT(Inputs!J30),Inputs!J30,"") -> Cemetery G | K25: =IF(ISTEXT(Inputs!K30),Inputs!K30,"") -> Cemetery H | L25: =IF(ISTEXT(Inputs!L30),Inputs!L30,"") -> Cemetery I | M25: =IF(ISTEXT(Inputs!M30),Inputs!M30,"") -> Other Cemeteries (grouped)
B26: Ground maintenance cost over time
B28: Initial step down (# of years from projection starting time) | C28: 25
B29: (%) Decrease at Initial step down | C29: 0
B30: Second step down (# of years from projection starting time)
B31: (%) Decrease at second step down
B32: Third step down (# of years from projection starting time)
B33: (%) Decrease at third step down
B34: Step down frequency thereafter | C34: 5
B35: Decrease thereafter | C35: 0
B37: Initial step down (# of years from projection starting time) | D37: =IF(D28="",$C$28,D28) -> 25 | E37: =IF(E28="",$C$28,E28) -> 25 | F37: 25 | G37: 25 | H37: 25 | I37: 25 | J37: 25 | K37: 25 | L37: 25 | M37: 25
B38: (%) Decrease at Initial step down | D38: =IF(D29="",$C$29,D29) -> 0 | E38: =IF(E29="",$C$29,E29) -> 0 | F38: 0 | G38: 0 | H38: 0 | I38: 0 | J38: 0 | K38: 0 | L38: 0 | M38: 0
B39: Second step down (# of years from projection starting time) | D39: =IF(D30="",IF($C30="",$C$28,$C30),D30) -> 25 | E39: =IF(E30="",IF($C30="",$C$28,$C30),E30) -> 25 | F39: 25 | G39: 25 | H39: 25 | I39: 25 | J39: 25 | K39: 25 | L39: 25 | M39: 25
B40: (%) Decrease at second step down | D40: =IF(D31="",IF($C31="",$C$29,$C31),D31) -> 0 | E40: =IF(E31="",IF($C31="",$C$29,$C31),E31) -> 0 | F40: 0 | G40: 0 | H40: 0 | I40: 0 | J40: 0 | K40: 0 | L40: 0 | M40: 0
B41: Third step down (# of years from projection starting time) | D41: =IF(D32="",IF($C32="",$C$28,$C32),D32) -> 25 | E41: =IF(E32="",IF($C32="",$C$28,$C32),E32) -> 25 | F41: 25 | G41: 25 | H41: 25 | I41: 25 | J41: 25 | K41: 25 | L41: 25 | M41: 25
B42: (%) Decrease at third step down | D42: =IF(D33="",IF($C33="",$C$29,$C33),D33) -> 0 | E42: =IF(E33="",IF($C33="",$C$29,$C33),E33) -> 0 | F42: 0 | G42: 0 | H42: 0 | I42: 0 | J42: 0 | K42: 0 | L42: 0 | M42: 0
B43: Step down frequency thereafter | D43: =IF(D34="",IF($C34="",99,$C34),D34) -> 5 | E43: =IF(E34="",IF($C34="",99,$C34),E34) -> 5 | F43: 5 | G43: 5 | H43: 5 | I43: 5 | J43: 5 | K43: 5 | L43: 5 | M43: 5
B44: Decrease thereafter | D44: =IF(D35="",IF($C35="",0,$C35),D35) -> 0 | E44: =IF(E35="",IF($C35="",0,$C35),E35) -> 0 | F44: 0 | G44: 0 | H44: 0 | I44: 0 | J44: 0 | K44: 0 | L44: 0 | M44: 0
B46: Administration cost over time
B48: Initial step down (# of years from projection starting time) | C48: 25
B49: (%) Decrease at Initial step down | C49: 0
B50: Second step down (# of years from projection starting time)
B51: (%) Decrease at second step down
B52: Third step down (# of years from projection starting time)
B53: (%) Decrease at third step down
B54: Step down frequency thereafter | C54: 5
B55: Decrease thereafter | C55: 0
B57: Initial step down (# of years from projection starting time) | D57: =IF(D48="",$C$48,D48) -> 25 | E57: =IF(E48="",$C$48,E48) -> 25 | F57: 25 | G57: 25 | H57: 25 | I57: 25 | J57: 25 | K57: 25 | L57: 25 | M57: 25
B58: (%) Decrease at Initial step down | D58: =IF(D49="",$C$49,D49) -> 0 | E58: =IF(E49="",$C$49,E49) -> 0 | F58: 0 | G58: 0 | H58: 0 | I58: 0 | J58: 0 | K58: 0 | L58: 0 | M58: 0
B59: Second step down (# of years from projection starting time) | D59: =IF(D50="",IF($C50="",$C$48,$C50),D50) -> 25 | E59: =IF(E50="",IF($C50="",$C$48,$C50),E50) -> 25 | F59: 25 | G59: 25 | H59: 25 | I59: 25 | J59: 25 | K59: 25 | L59: 25 | M59: 25
B60: (%) Decrease at second step down | D60: =IF(D51="",IF($C51="",$C$49,$C51),D51) -> 0 | E60: =IF(E51="",IF($C51="",$C$49,$C51),E51) -> 0 | F60: 0 | G60: 0 | H60: 0 | I60: 0 | J60: 0 | K60: 0 | L60: 0 | M60: 0
B61: Third step down (# of years from projection starting time) | D61: =IF(D52="",IF($C52="",$C$48,$C52),D52) -> 25 | E61: 25 | F61: 25 | G61: 25 | H61: 25 | I61: 25 | J61: 25 | K61: 25 | L61: 25 | M61: 25
B62: (%) Decrease at third step down | D62: =IF(D53="",IF($C53="",$C$49,$C53),D53) -> 0 | E62: 0 | F62: 0 | G62: 0 | H62: 0 | I62: 0 | J62: 0 | K62: 0 | L62: 0 | M62: 0
B63: Step down frequency thereafter | D63: =IF(D54="",IF($C54="",99,$C54),D54) -> 5 | E63: =IF(E54="",IF($C54="",99,$C54),E54) -> 5 | F63: 5 | G63: 5 | H63: 5 | I63: 5 | J63: 5 | K63: 5 | L63: 5 | M63: 5
B64: Decrease thereafter | D64: =IF(D55="",IF($C55="",0,$C55),D55) -> 0 | E64: =IF(E55="",IF($C55="",0,$C55),E55) -> 0 | F64: 0 | G64: 0 | H64: 0 | I64: 0 | J64: 0 | K64: 0 | L64: 0 | M64: 0
B67: Term structure of discount rate (single discount rate vs yield curve) | C67: Single Discount Rate | D67: <User to select from dropdown>
C69: Single Discount Rate Inputs | F69: Yield Curve Inputs | I69: ="Rates selected for analysis - "&C67 -> Rates selected for analysis - Single Discount Rate
C70: Tenor | F70: Tenor
C72: Best Estimate Spot Rate (compounded annually p.a.) | D72: Best Estimate Discount Factor | F72: Best Estimate Spot Rate (compounded annually p.a.) | G72: Best Estimate Discount Factor | I72: Best Estimate Spot Rate (compounded annually p.a.) | J72: Best Estimate Discount Factor
B73: 0.5 | C73: 0.04 | D73: =(1+$C$73)^(-$B73) -> 0.9805806757 | F73: 0.04 | G73: =(1+F73)^(-$B73) -> 0.9805806757 | I73: =IF($C$67="Single Discount Rate",$C$73,F73) -> 0.04 | J73: =IF($C$67="Single Discount Rate",D73,G73) -> 0.9805806757
B74: =B73+1 -> 1.5 | D74: 0.9428660343 | F74: 0.04 | G74: 0.9428660343 | I74: 0.04 | J74: 0.9428660343
B75: 2.5 | D75: 0.9066019561 | F75: 0.04 | G75: 0.9066019561 | I75: 0.04 | J75: 0.9066019561
B76: 3.5 | D76: 0.8717326501 | F76: 0.04 | G76: 0.8717326501 | I76: 0.04 | J76: 0.8717326501
B77: 4.5 | D77: 0.8382044712 | F77: 0.04 | G77: 0.8382044712 | I77: 0.04 | J77: 0.8382044712
B78: 5.5 | D78: 0.8059658377 | F78: 0.04 | G78: 0.8059658377 | I78: 0.04 | J78: 0.8059658377
B79: 6.5 | D79: 0.7749671516 | F79: 0.04 | G79: 0.7749671516 | I79: 0.04 | J79: 0.7749671516
B80: 7.5 | D80: 0.7451607227 | F80: 0.04 | G80: 0.7451607227 | I80: 0.04 | J80: 0.7451607227
B81: 8.5 | D81: 0.7165006949 | F81: 0.04 | G81: 0.7165006949 | I81: 0.04 | J81: 0.7165006949
B82: 9.5 | D82: 0.6889429759 | F82: 0.04 | G82: 0.6889429759 | I82: 0.04 | J82: 0.6889429759
B83: 10.5 | D83: 0.6624451691 | F83: 0.04 | G83: 0.6624451691 | I83: 0.04 | J83: 0.6624451691
B84: 11.5 | D84: 0.6369665088 | F84: 0.04 | G84: 0.6369665088 | I84: 0.04 | J84: 0.6369665088
B85: 12.5 | D85: 0.6124677969 | F85: 0.04 | G85: 0.6124677969 | I85: 0.04 | J85: 0.6124677969
B86: 13.5 | D86: 0.5889113432 | F86: 0.04 | G86: 0.5889113432 | I86: 0.04 | J86: 0.5889113432
B87: 14.5 | D87: 0.5662609069 | F87: 0.04 | G87: 0.5662609069 | I87: 0.04 | J87: 0.5662609069
B88: 15.5 | D88: 0.5444816413 | F88: 0.04 | G88: 0.5444816413 | I88: 0.04 | J88: 0.5444816413
B89: 16.5 | D89: 0.5235400397 | F89: 0.04 | G89: 0.5235400397 | I89: 0.04 | J89: 0.5235400397
B90: 17.5 | D90: 0.5034038843 | F90: 0.04 | G90: 0.5034038843 | I90: 0.04 | J90: 0.5034038843
B91: 18.5 | D91: 0.4840421964 | F91: 0.04 | G91: 0.4840421964 | I91: 0.04 | J91: 0.4840421964
B92: 19.5 | D92: 0.4654251889 | F92: 0.04 | G92: 0.4654251889 | I92: 0.04 | J92: 0.4654251889
B93: 20.5 | D93: 0.4475242201 | F93: 0.04 | G93: 0.4475242201 | I93: 0.04 | J93: 0.4475242201
B94: 21.5 | D94: 0.4303117501 | F94: 0.04 | G94: 0.4303117501 | I94: 0.04 | J94: 0.4303117501
B95: 22.5 | D95: 0.4137612982 | F95: 0.04 | G95: 0.4137612982 | I95: 0.04 | J95: 0.4137612982
B96: 23.5 | D96: 0.3978474021 | F96: 0.04 | G96: 0.3978474021 | I96: 0.04 | J96: 0.3978474021
B97: 24.5 | D97: 0.3825455789 | F97: 0.04 | G97: 0.3825455789 | I97: 0.04 | J97: 0.3825455789
B98: 25.5 | D98: 0.3678322874 | F98: 0.04 | G98: 0.3678322874 | I98: 0.04 | J98: 0.3678322874
B99: 26.5 | D99: 0.3536848917 | F99: 0.04 | G99: 0.3536848917 | I99: 0.04 | J99: 0.3536848917
B100: 27.5 | D100: 0.3400816267 | F100: 0.04 | G100: 0.3400816267 | I100: 0.04 | J100: 0.3400816267
B101: 28.5 | D101: 0.3270015641 | F101: 0.04 | G101: 0.3270015641 | I101: 0.04 | J101: 0.3270015641
B102: 29.5 | D102: 0.3144245809 | F102: 0.04 | G102: 0.3144245809 | I102: 0.04 | J102: 0.3144245809
B103: 30.5 | D103: 0.3023313278 | F103: 0.04 | G103: 0.3023313278 | I103: 0.04 | J103: 0.3023313278
B104: 31.5 | D104: 0.2907031998 | F104: 0.04 | G104: 0.2907031998 | I104: 0.04 | J104: 0.2907031998
B105: 32.5 | D105: =(1+$C$73)^(-$B105) -> 0.2795223075 | F105: 0.04 | G105: =(1+F105)^(-$B105) -> 0.2795223075 | I105: =IF($C$67="Single Discount Rate",$C$73,F105) -> 0.04 | J105: =IF($C$67="Single Discount Rate",D105,G105) -> 0.2795223075
B106: 33.5 | D106: 0.2687714495 | F106: 0.04 | G106: 0.2687714495 | I106: 0.04 | J106: 0.2687714495
B107: 34.5 | D107: 0.2584340861 | F107: 0.04 | G107: 0.2584340861 | I107: 0.04 | J107: 0.2584340861
B108: 35.5 | D108: 0.2484943135 | F108: 0.04 | G108: 0.2484943135 | I108: 0.04 | J108: 0.2484943135
B109: 36.5 | D109: 0.2389368399 | F109: 0.04 | G109: 0.2389368399 | I109: 0.04 | J109: 0.2389368399
B110: 37.5 | D110: 0.2297469615 | F110: 0.04 | G110: 0.2297469615 | I110: 0.04 | J110: 0.2297469615
B111: 38.5 | D111: 0.2209105399 | F111: 0.04 | G111: 0.2209105399 | I111: 0.04 | J111: 0.2209105399
B112: 39.5 | D112: 0.2124139806 | F112: 0.04 | G112: 0.2124139806 | I112: 0.04 | J112: 0.2124139806
B113: 40.5 | D113: 0.2042442122 | F113: 0.04 | G113: 0.2042442122 | I113: 0.04 | J113: 0.2042442122
B114: 41.5 | D114: 0.1963886655 | F114: 0.04 | G114: 0.1963886655 | I114: 0.04 | J114: 0.1963886655
B115: 42.5 | D115: 0.1888352553 | F115: 0.04 | G115: 0.1888352553 | I115: 0.04 | J115: 0.1888352553
B116: 43.5 | D116: 0.1815723609 | F116: 0.04 | G116: 0.1815723609 | I116: 0.04 | J116: 0.1815723609
B117: 44.5 | D117: 0.1745888085 | F117: 0.04 | G117: 0.1745888085 | I117: 0.04 | J117: 0.1745888085
B118: 45.5 | D118: 0.1678738544 | F118: 0.04 | G118: 0.1678738544 | I118: 0.04 | J118: 0.1678738544
B119: 46.5 | D119: 0.1614171677 | F119: 0.04 | G119: 0.1614171677 | I119: 0.04 | J119: 0.1614171677
B120: 47.5 | D120: 0.1552088151 | F120: 0.04 | G120: 0.1552088151 | I120: 0.04 | J120: 0.1552088151
B121: 48.5 | D121: 0.1492392452 | F121: 0.04 | G121: 0.1492392452 | I121: 0.04 | J121: 0.1492392452
B122: 49.5 | D122: 0.1434992743 | F122: 0.04 | G122: 0.1434992743 | I122: 0.04 | J122: 0.1434992743
B123: 50.5 | D123: 0.1379800714 | F123: 0.04 | G123: 0.1379800714 | I123: 0.04 | J123: 0.1379800714
B183: 0.5
B184: =B183+1 -> 1.5
B185: 2.5
B186: 3.5
B187: 4.5
B188: 5.5
B189: 6.5
B190: 7.5
B191: 8.5
B192: 9.5
B193: 10.5
B194: 11.5
B195: 12.5
B196: 13.5
B197: 14.5
B198: 15.5
B199: 16.5
B200: 17.5
B201: 18.5
B202: 19.5
B203: 20.5
B204: 21.5
B205: 22.5
B206: 23.5
B207: 24.5
B208: 25.5
B209: 26.5
B210: 27.5
B211: 28.5
B212: 29.5
B213: 30.5
B214: 31.5
B215: 32.5
B216: 33.5
B217: 34.5
B218: 35.5
B219: 36.5
B220: 37.5
B221: 38.5
B222: 39.5
B223: 40.5
B224: 41.5
B225: 42.5
B226: 43.5
B227: 44.5
B228: 45.5
B229: 46.5
B230: 47.5
B231: 48.5
B232: 49.5
B233: 50.5

Sheet Legacy Cost Results & Charts
B2: Legacy Cost Results and Charts | D2: There are no input cells on this worksheet.
B5: ="Results for "&Inputs!$D$11 -> Results for ABC Cemetery
B7: ="Total Legacy Cost Obligation per plot - " & Inputs!D22 -> Total Legacy Cost Obligation per plot - Operator Estimate | D7: =IF(Inputs!D35=0,"Unavailable as number of gravesites is not provided",Calculations!M8/SUM(Inputs!D44:M44)) -> 784.5984807
B9: ="Total Legacy Cost Obligation per HA - " & Inputs!D22 -> Total Legacy Cost Obligation per HA - Operator Estimate | D9: =IF(Inputs!D34=0,"Unavailable as land size is not provided",Calculations!M8/SUM(Inputs!D43:M43)) -> 584207.7877
B13: ="Charts for "&Inputs!D11 -> Charts for ABC Cemetery

Sheet Calculations
B2: ="Legacy Cost Analysis for "&Inputs!D11 -> Legacy Cost Analysis for ABC Cemetery | C2: There are no inputs cells on this worksheet.
N6: Current Perp Maint. Fund | O6: Surplus (Short fall)
C7: =Inputs!D30 -> Cemetery A | D7: =Inputs!E30 -> Cemetery B | E7: =Inputs!F30 -> Cemetery C | F7: =Inputs!G30 -> Cemetery D | G7: =Inputs!H30 -> Cemetery E | H7: =Inputs!I30 -> Cemetery F | I7: =Inputs!J30 -> Cemetery G | J7: =Inputs!K30 -> Cemetery H | K7: =Inputs!L30 -> Cemetery I | L7: =Inputs!M30 -> Other Cemeteries (grouped) | M7: =Inputs!D11 -> ABC Cemetery
B8: Legacy Cost Obligation Total | C8: =SUM(C9:C11) -> 5637760.986 | D8: =SUM(D9:D11) -> 1691328.296 | E8: 1127552.197 | F8: 1409440.247 | G8: 16759525.84 | H8: 5894022.849 | I8: 5637760.986 | J8: 1691328.296 | K8: 1691328.296 | L8: 1691328.296 | M8: =SUM(C8:L8) -> 43231376.29 | N8: =Inputs!D27 -> 10000000 | O8: =N8-M8 -> -33231376.29
B9: Legacy Cost Obligation ground maintenance | C9: =IF(Inputs!$D$22="Operator Estimate",SUMPRODUCT('Key Assumptions'!$J$73:$J$123,Calculations!C22:C72),SUMPRODUCT('Key Assumptions'!$J$73:$J$123,Calculations!F22:F72)) -> 5125237.26 | D9: =IF(Inputs!$D$22="Operator Estimate",SUMPRODUCT('Key Assumptions'!$J$73:$J$123,Calculations!J22:J72),SUMPRODUCT('Key Assumptions'!$J$73:$J$123,Calculations!M22:M72)) -> 1537571.178 | E9: =IF(Inputs!$D$22="Operator Estimate",SUMPRODUCT('Key Assumptions'!$J$73:$J$123,Calculations!Q22:Q72),SUMPRODUCT('Key Assumptions'!$J$73:$J$123,Calculations!T22:T72)) -> 1025047.452 | F9: =IF(Inputs!$D$22="Operator Estimate",SUMPRODUCT('Key Assumptions'!$J$73:$J$123,Calculations!X22:X72),SUMPRODUCT('Key Assumptions'!$J$73:$J$123,Calculations!AA22:AA72)) -> 1281309.315 | G9: =IF(Inputs!$D$22="Operator Estimate",SUMPRODUCT('Key Assumptions'!$J$73:$J$123,Calculations!AE22:AE72),SUMPRODUCT('Key Assumptions'!$J$73:$J$123,Calculations!AH22:AH72)) -> 16400759.23 | H9: =IF(Inputs!$D$22="Operator Estimate",SUMPRODUCT('Key Assumptions'!$J$73:$J$123,Calculations!AL22:AL72),SUMPRODUCT('Key Assumptions'!$J$73:$J$123,Calculations!AO22:AO72)) -> 5125237.26 | I9: =IF(Inputs!$D$22="Operator Estimate",SUMPRODUCT('Key Assumptions'!$J$73:$J$123,Calculations!AS22:AS72),SUMPRODUCT('Key Assumptions'!$J$73:$J$123,Calculations!AV22:AV72)) -> 5125237.26 | J9: =IF(Inputs!$D$22="Operator Estimate",SUMPRODUCT('Key Assumptions'!$J$73:$J$123,Calculations!AZ22:AZ72),SUMPRODUCT('Key Assumptions'!$J$73:$J$123,Calculations!BC22:BC72)) -> 1537571.178 | K9: =IF(Inputs!$D$22="Operator Estimate",SUMPRODUCT('Key Assumptions'!$J$73:$J$123,Calculations!BG22:BG72),SUMPRODUCT('Key Assumptions'!$J$73:$J$123,Calculations!BJ22:BJ72)) -> 1537571.178 | L9: =IF(Inputs!$D$22="Operator Estimate",SUMPRODUCT('Key Assumptions'!$J$73:$J$123,Calculations!BN22:BN72),SUMPRODUCT('Key Assumptions'!$J$73:$J$123,Calculations!BQ22:BQ72)) -> 1537571.178 | M9: =SUM(C9:L9) -> 40233112.49
B10: Legacy Cost Obligation admin | C10: =IF(Inputs!$D$22="Operator Estimate",SUMPRODUCT('Key Assumptions'!$J$73:$J$123,Calculations!D22:D72),SUMPRODUCT('Key Assumptions'!$J$73:$J$123,Calculations!G22:G72)) -> 512523.726 | D10: =IF(Inputs!$D$22="Operator Estimate",SUMPRODUCT('Key Assumptions'!$J$73:$J$123,Calculations!K22:K72),SUMPRODUCT('Key Assumptions'!$J$73:$J$123,Calculations!N22:N72)) -> 153757.1178 | E10: =IF(Inputs!$D$22="Operator Estimate",SUMPRODUCT('Key Assumptions'!$J$73:$J$123,Calculations!R22:R72),SUMPRODUCT('Key Assumptions'!$J$73:$J$123,Calculations!U22:U72)) -> 102504.7452 | F10: =IF(Inputs!$D$22="Operator Estimate",SUMPRODUCT('Key Assumptions'!$J$73:$J$123,Calculations!Y22:Y72),SUMPRODUCT('Key Assumptions'!$J$73:$J$123,Calculations!AB22:AB72)) -> 128130.9315 | G10: =IF(Inputs!$D$22="Operator Estimate",SUMPRODUCT('Key Assumptions'!$J$73:$J$123,Calculations!AF22:AF72),SUMPRODUCT('Key Assumptions'!$J$73:$J$123,Calculations!AI22:AI72)) -> 358766.6082 | H10: =IF(Inputs!$D$22="Operator Estimate",SUMPRODUCT('Key Assumptions'!$J$73:$J$123,Calculations!AM22:AM72),SUMPRODUCT('Key Assumptions'!$J$73:$J$123,Calculations!AP22:AP72)) -> 768785.589 | I10: =IF(Inputs!$D$22="Operator Estimate",SUMPRODUCT('Key Assumptions'!$J$73:$J$123,Calculations!AT22:AT72),SUMPRODUCT('Key Assumptions'!$J$73:$J$123,Calculations!AW22:AW72)) -> 512523.726 | J10: =IF(Inputs!$D$22="Operator Estimate",SUMPRODUCT('Key Assumptions'!$J$73:$J$123,Calculations!BA22:BA72),SUMPRODUCT('Key Assumptions'!$J$73:$J$123,Calculations!BD22:BD72)) -> 153757.1178 | K10: =IF(Inputs!$D$22="Operator Estimate",SUMPRODUCT('Key Assumptions'!$J$73:$J$123,Calculations!BH22:BH72),SUMPRODUCT('Key Assumptions'!$J$73:$J$123,Calculations!BK22:BK72)) -> 153757.1178 | L10: =IF(Inputs!$D$22="Operator Estimate",SUMPRODUCT('Key Assumptions'!$J$73:$J$123,Calculations!BO22:BO72),SUMPRODUCT('Key Assumptions'!$J$73:$J$123,Calculations!BR22:BR72)) -> 153757.1178 | M10: =SUM(C10:L10) -> 2998263.797
B11: Risk margin | C11: =SUM(C9:C10)*RM -> 0 | D11: 0 | E11: 0 | F11: 0 | G11: 0 | H11: 0 | I11: 0 | J11: 0 | K11: 0 | L11: 0 | M11: 0
B14: ="Total Legacy Cost Obligation per plot - "&Inputs!$D$22 -> Total Legacy Cost Obligation per plot - Operator Estimate | C14: =IFERROR(C8/Inputs!D44,"") -> 704.7201233 | D14: =IFERROR(D8/Inputs!E44,"") -> 563.7760986 | E14: =IFERROR(E8/Inputs!F44,"") -> 2255.104394 | F14: =IFERROR(F8/Inputs!G44,"") -> 2349.067078 | G14: =IFERROR(G8/Inputs!H44,"") -> 931.0847689 | H14: =IFERROR(H8/Inputs!I44,"") -> 736.7528561 | I14: =IFERROR(I8/Inputs!J44,"") -> 704.7201233 | J14: =IFERROR(J8/Inputs!K44,"") -> 563.7760986 | K14: =IFERROR(K8/Inputs!L44,"") -> 563.7760986 | L14: =IFERROR(L8/Inputs!M44,"") -> 563.7760986 | M14: =IFERROR(M8/SUM(Inputs!D44:M44),"") -> 784.5984807
B15: ="Total Legacy Cost Obligation per HA - "&Inputs!$D$22 -> Total Legacy Cost Obligation per HA - Operator Estimate | C15: =IFERROR(C8/Inputs!D43,"") -> 256261.863 | D15: =IFERROR(D8/Inputs!E43,"") -> 563776.0986 | E15: =IFERROR(E8/Inputs!F43,"") -> 1127552.197 | F15: =IFERROR(F8/Inputs!G43,"") -> 704720.1233 | G15: =IFERROR(G8/Inputs!H43,"") -> 1675952.584 | H15: =IFERROR(H8/Inputs!I43,"") -> 1178804.57 | I15: =IFERROR(I8/Inputs!J43,"") -> 256261.863 | J15: =IFERROR(J8/Inputs!K43,"") -> 563776.0986 | K15: =IFERROR(K8/Inputs!L43,"") -> 563776.0986 | L15: =IFERROR(L8/Inputs!M43,"") -> 563776.0986 | M15: =IFERROR(M8/SUM(Inputs!D43:M43),"") -> 584207.7877
C17: 1 | J17: 2 | Q17: 3 | X17: 4 | AE17: 5 | AL17: 6 | AS17: 7 | AZ17: 8 | BG17: 9 | BN17: 10
C18: =C7 -> Cemetery A | D18: =C18 -> Cemetery A | E18: =D18 -> Cemetery A | F18: Cemetery A | G18: Cemetery A | H18: Cemetery A | J18: =D7 -> Cemetery B | K18: =J18 -> Cemetery B | L18: =K18 -> Cemetery B | M18: Cemetery B | N18: Cemetery B | O18: Cemetery B | Q18: =E7 -> Cemetery C | R18: =Q18 -> Cemetery C | S18: Cemetery C | T18: Cemetery C | U18: Cemetery C | V18: =U18 -> Cemetery C | X18: =F7 -> Cemetery D | Y18: =X18 -> Cemetery D | Z18: =Y18 -> Cemetery D | AA18: Cemetery D | AB18: Cemetery D | AC18: Cemetery D | AE18: =G7 -> Cemetery E | AF18: =AE18 -> Cemetery E | AG18: Cemetery E | AH18: Cemetery E | AI18: Cemetery E | AJ18: Cemetery E | AL18: =H7 -> Cemetery F | AM18: =AL18 -> Cemetery F | AN18: Cemetery F | AO18: Cemetery F | AP18: Cemetery F | AQ18: Cemetery F | AS18: =I7 -> Cemetery G | AT18: =AS18 -> Cemetery G | AU18: Cemetery G | AV18: Cemetery G | AW18: Cemetery G | AX18: Cemetery G | AZ18: =J7 -> Cemetery H | BA18: =AZ18 -> Cemetery H | BB18: Cemetery H | BC18: Cemetery H | BD18: Cemetery H | BE18: Cemetery H | BG18: =K7 -> Cemetery I | BH18: =BG18 -> Cemetery I | BI18: Cemetery I | BJ18: Cemetery I | BK18: Cemetery I | BL18: Cemetery I | BN18: =L7 -> Other Cemeteries (grouped) | BO18: =BN18 -> Other Cemeteries (grouped) | BP18: Other Cemeteries (grouped) | BQ18: Other Cemeteries (grouped) | BR18: Other Cemeteries (grouped) | BS18: Other Cemeteries (grouped)
C20: Valuation under Operator Estimates | F20: Valuation under Model Estimates | J20: Valuation under Operator Estimates | M20: Valuation under Model Estimates | Q20: Valuation under Operator Estimates | T20: Valuation under Model Estimates | X20: Valuation under Operator Estimates | AA20: Valuation under Model Estimates | AE20: Valuation under Operator Estimates | AH20: Valuation under Model Estimates | AL20: Valuation under Operator Estimates | AO20: Valuation under Model Estimates | AS20: Valuation under Operator Estimates | AV20: Valuation under Model Estimates | AZ20: Valuation under Operator Estimates | BC20: Valuation under Model Estimates | BG20: Valuation under Operator Estimates | BJ20: Valuation under Model Estimates | BN20: Valuation under Operator Estimates | BQ20: Valuation under Model Estimates
B21: Year | C21: Total ground maintenance (p.a.) | D21: Total admin cost related to maintenance (p.a.) | E21: Total perpetual maintenance cost (p.a.) | F21: Total ground maintenance (p.a.) | G21: Total admin cost related to maintenance (p.a.) | H21: Total perpetual maintenance cost (p.a.) | J21: Total ground maintenance (p.a.) | K21: Total admin cost related to maintenance (p.a.) | L21: Total perpetual maintenance cost (p.a.) | M21: Total ground maintenance (p.a.) | N21: Total admin cost related to maintenance (p.a.) | O21: Total perpetual maintenance cost (p.a.) | Q21: Total ground maintenance (p.a.) | R21: Total admin cost related to maintenance (p.a.) | S21: Total perpetual maintenance cost (p.a.) | T21: Total ground maintenance (p.a.) | U21: Total admin cost related to maintenance (p.a.) | V21: Total perpetual maintenance cost (p.a.) | X21: Total ground maintenance (p.a.) | Y21: Total admin cost related to maintenance (p.a.) | Z21: Total perpetual maintenance cost (p.a.) | AA21: Total ground maintenance (p.a.) | AB21: Total admin cost related to maintenance (p.a.) | AC21: Total perpetual maintenance cost (p.a.) | AE21: Total ground maintenance (p.a.) | AF21: Total admin cost related to maintenance (p.a.) | AG21: Total perpetual maintenance cost (p.a.) | AH21: Total ground maintenance (p.a.) | AI21: Total admin cost related to maintenance (p.a.) | AJ21: Total perpetual maintenance cost (p.a.) | AL21: Total ground maintenance (p.a.) | AM21: Total admin cost related to maintenance (p.a.) | AN21: Total perpetual maintenance cost (p.a.) | AO21: Total ground maintenance (p.a.) | AP21: Total admin cost related to maintenance (p.a.) | AQ21: Total perpetual maintenance cost (p.a.) | AS21: Total ground maintenance (p.a.) | AT21: Total admin cost related to maintenance (p.a.) | AU21: Total perpetual maintenance cost (p.a.) | AV21: Total ground maintenance (p.a.) | AW21: Total admin cost related to maintenance (p.a.) | AX21: Total perpetual maintenance cost (p.a.) | AZ21: Total ground maintenance (p.a.) | BA21: Total admin cost related to maintenance (p.a.) | BB21: Total perpetual maintenance cost (p.a.) | BC21: Total ground maintenance (p.a.) | BD21: Total admin cost related to maintenance (p.a.) | BE21: Total perpetual maintenance cost (p.a.) | BG21: Total ground maintenance (p.a.) | BH21: Total admin cost related to maintenance (p.a.) | BI21: Total perpetual maintenance cost (p.a.) | BJ21: Total ground maintenance (p.a.) | BK21: Total admin cost related to maintenance (p.a.) | BL21: Total perpetual maintenance cost (p.a.) | BN21: Total ground maintenance (p.a.) | BO21: Total admin cost related to maintenance (p.a.) | BP21: Total perpetual maintenance cost (p.a.) | BQ21: Total ground maintenance (p.a.) | BR21: Total admin cost related to maintenance (p.a.) | BS21: Total perpetual maintenance cost (p.a.)
B22: 1 | C22: =Inputs!D48*(1+costinflation)^(YEAR(Inputs!D15)-YEAR(Inputs!D13)) -> 102000 | D22: =Inputs!D49*(1+costinflation)^(YEAR(Inputs!D15)-YEAR(Inputs!D13)) -> 10200 | E22: =SUM(C22:D22) -> 112200 | F22: =Inputs!D52*(1+costinflation)^(YEAR(Inputs!D15)-YEAR(Inputs!D13)) -> 201960 | G22: =Inputs!D53*(1+costinflation)^(YEAR(Inputs!D15)-YEAR(Inputs!D13)) -> 40800 | H22: =SUM(F22:G22) -> 242760 | J22: =Inputs!E48*(1+costinflation)^(YEAR(Inputs!D15)-YEAR(Inputs!D13)) -> 30600 | K22: =Inputs!E49*(1+costinflation)^(YEAR(Inputs!D15)-YEAR(Inputs!D13)) -> 3060 | L22: =SUM(J22:K22) -> 33660 | M22: =Inputs!E52*(1+costinflation)^(YEAR(Inputs!D15)-YEAR(Inputs!D13)) -> 33660 | N22: =Inputs!E53*(1+costinflation)^(YEAR(Inputs!D15)-YEAR(Inputs!D13)) -> 15300 | O22: =SUM(M22:N22) -> 48960 | Q22: =Inputs!F48*(1+costinflation)^(YEAR(Inputs!D15)-YEAR(Inputs!D13)) -> 20400 | R22: =Inputs!F49*(1+costinflation)^(YEAR(Inputs!D15)-YEAR(Inputs!D13)) -> 2040 | S22: =SUM(Q22:R22) -> 22440 | T22: =Inputs!F52*(1+costinflation)^(YEAR(Inputs!D15)-YEAR(Inputs!D13)) -> 11220 | U22: =Inputs!F53*(1+costinflation)^(YEAR(Inputs!D15)-YEAR(Inputs!D13)) -> 2550 | V22: =SUM(T22:U22) -> 13770 | X22: =Inputs!G48*(1+costinflation)^(YEAR(Inputs!D15)-YEAR(Inputs!D13)) -> 25500 | Y22: =Inputs!G49*(1+costinflation)^(YEAR(Inputs!D15)-YEAR(Inputs!D13)) -> 2550 | Z22: =SUM(X22:Y22) -> 28050 | AA22: =Inputs!G52*(1+costinflation)^(YEAR(Inputs!D15)-YEAR(Inputs!D13)) -> 22440 | AB22: =Inputs!G53*(1+costinflation)^(YEAR(Inputs!D15)-YEAR(Inputs!D13)) -> 3060 | AC22: =SUM(AA22:AB22) -> 25500 | AE22: =Inputs!H48*(1+costinflation)^(YEAR(Inputs!D15)-YEAR(Inputs!D13)) -> 326400 | AF22: =Inputs!H49*(1+costinflation)^(YEAR(Inputs!D15)-YEAR(Inputs!D13)) -> 7140 | AG22: =SUM(AE22:AF22) -> 333540 | AH22: =Inputs!H52*(1+costinflation)^(YEAR(Inputs!D15)-YEAR(Inputs!D13)) -> 132600 | AI22: =Inputs!H53*(1+costinflation)^(YEAR(Inputs!D15)-YEAR(Inputs!D13)) -> 91800 | AJ22: =SUM(AH22:AI22) -> 224400 | AL22: =Inputs!I48*(1+costinflation)^(YEAR(Inputs!D15)-YEAR(Inputs!D13)) -> 102000 | AM22: =Inputs!I49*(1+costinflation)^(YEAR(Inputs!D15)-YEAR(Inputs!D13)) -> 15300 | AN22: =SUM(AL22:AM22) -> 117300 | AO22: =Inputs!I52*(1+costinflation)^(YEAR(Inputs!D15)-YEAR(Inputs!D13)) -> 66300 | AP22: =Inputs!I53*(1+costinflation)^(YEAR(Inputs!D15)-YEAR(Inputs!D13)) -> 40800 | AQ22: =SUM(AO22:AP22) -> 107100 | AS22: =Inputs!J48*(1+costinflation)^(YEAR(Inputs!D15)-YEAR(Inputs!D13)) -> 102000 | AT22: =Inputs!J49*(1+costinflation)^(YEAR(Inputs!D15)-YEAR(Inputs!D13)) -> 10200 | AU22: =SUM(AS22:AT22) -> 112200 | AV22: =Inputs!J52*(1+costinflation)^(YEAR(Inputs!D15)-YEAR(Inputs!D13)) -> 291720 | AW22: =Inputs!J53*(1+costinflation)^(YEAR(Inputs!D15)-YEAR(Inputs!D13)) -> 40800 | AX22: =SUM(AV22:AW22) -> 332520 | AZ22: =Inputs!K48*(1+costinflation)^(YEAR(Inputs!D15)-YEAR(Inputs!D13)) -> 30600 | BA22: =Inputs!K49*(1+costinflation)^(YEAR(Inputs!D15)-YEAR(Inputs!D13)) -> 3060 | BB22: =SUM(AZ22:BA22) -> 33660 | BC22: =Inputs!K52*(1+costinflation)^(YEAR(Inputs!D15)-YEAR(Inputs!D13)) -> 39780 | BD22: =Inputs!K53*(1+costinflation)^(YEAR(Inputs!D15)-YEAR(Inputs!D13)) -> 15300 | BE22: =SUM(BC22:BD22) -> 55080 | BG22: =Inputs!L48*(1+costinflation)^(YEAR(Inputs!D15)-YEAR(Inputs!D13)) -> 30600 | BH22: =Inputs!L49*(1+costinflation)^(YEAR(Inputs!D15)-YEAR(Inputs!D13)) -> 3060 | BI22: =SUM(BG22:BH22) -> 33660 | BJ22: =Inputs!L52*(1+costinflation)^(YEAR(Inputs!D15)-YEAR(Inputs!D13)) -> 27540 | BK22: =Inputs!L53*(1+costinflation)^(YEAR(Inputs!D15)-YEAR(Inputs!D13)) -> 15300 | BL22: =SUM(BJ22:BK22) -> 42840 | BN22: =Inputs!M48*(1+costinflation)^(YEAR(Inputs!D15)-YEAR(Inputs!D13)) -> 30600 | BO22: =Inputs!M49*(1+costinflation)^(YEAR(Inputs!D15)-YEAR(Inputs!D13)) -> 3060 | BP22: =SUM(BN22:BO22) -> 33660 | BQ22: =Inputs!M52*(1+costinflation)^(YEAR(Inputs!D15)-YEAR(Inputs!D13)) -> 39780 | BR22: =Inputs!M53*(1+costinflation)^(YEAR(Inputs!D15)-YEAR(Inputs!D13)) -> 15300 | BS22: =SUM(BQ22:BR22) -> 55080
B23: =B22+1 -> 2 | C23: =IF(C22=0,C22,C22*(1+costinflation)*(1-IF($B23<='Key Assumptions'!$D$37,0, IF($B23-1='Key Assumptions'!$D$37,'Key Assumptions'!$D$38, IF($B23-1='Key Assumptions'!$D$39,'Key Assumptions'!$D$40, IF($B23-1='Key Assumptions'!$D$41,'Key Assumptions'!$D$42, IF(AND($B23-1>'Key Assumptions'!$D$41,MOD($B23-1,'Key Assumptions'!$D$43)=0),'Key Assumptions'!$D$44,0))))))) -> 104040 | D23: =IF(D22=0,D22,D22*(1+costinflation)*(1-IF($B23<='Key Assumptions'!$D$57,0, IF($B23-1='Key Assumptions'!$D$57,'Key Assumptions'!$D$58, IF($B23-1='Key Assumptions'!$D$59,'Key Assumptions'!$D$60, IF($B23-1='Key Assumptions'!$D$61,'Key Assumptions'!$D$62, IF(AND($B23-1>'Key Assumptions'!$D$61,MOD($B23-1,'Key Assumptions'!$D$63)=0),'Key Assumptions'!$D$64,0))))))) -> 10404 | E23: =SUM(C23:D23) -> 114444 | F23: =IF(F22=0,F22,F22*(1+costinflation)*(1-IF($B23<='Key Assumptions'!$D$37,0, IF($B23-1='Key Assumptions'!$D$37,'Key Assumptions'!$D$38, IF($B23-1='Key Assumptions'!$D$39,'Key Assumptions'!$D$40, IF($B23-1='Key Assumptions'!$D$41,'Key Assumptions'!$D$42, IF(AND($B23-1>'Key Assumptions'!$D$41,MOD($B23-1,'Key Assumptions'!$D$43)=0),'Key Assumptions'!$D$44,0))))))) -> 205999.2 | G23: =IF(G22=0,G22,G22*(1+costinflation)*(1-IF($B23<='Key Assumptions'!$D$57,0, IF($B23-1='Key Assumptions'!$D$57,'Key Assumptions'!$D$58, IF($B23-1='Key Assumptions'!$D$59,'Key Assumptions'!$D$60, IF($B23-1='Key Assumptions'!$D$61,'Key Assumptions'!$D$62, IF(AND($B23-1>'Key Assumptions'!$D$61,MOD($B23-1,'Key Assumptions'!$D$63)=0),'Key Assumptions'!$D$64,0))))))) -> 41616 | H23: =SUM(F23:G23) -> 247615.2 | J23: =IF(J22=0,J22,J22*(1+costinflation)*(1-IF($B23<='Key Assumptions'!$E$37,0, IF($B23-1='Key Assumptions'!$E$37,'Key Assumptions'!$E$38, IF($B23-1='Key Assumptions'!$E$39,'Key Assumptions'!$E$40, IF($B23-1='Key Assumptions'!$E$41,'Key Assumptions'!$E$42, IF(AND($B23-1>'Key Assumptions'!$E$41,MOD($B23-1,'Key Assumptions'!$E$43)=0),'Key Assumptions'!$E$44,0))))))) -> 31212 | K23: =IF(K22=0,K22,K22*(1+costinflation)*(1-IF($B23<='Key Assumptions'!$E$57,0, IF($B23-1='Key Assumptions'!$E$57,'Key Assumptions'!$E$58, IF($B23-1='Key Assumptions'!$E$59,'Key Assumptions'!$E$60, IF($B23-1='Key Assumptions'!$E$61,'Key Assumptions'!$E$62, IF(AND($B23-1>'Key Assumptions'!$E$61,MOD($B23-1,'Key Assumptions'!$E$63)=0),'Key Assumptions'!$E$64,0))))))) -> 3121.2 | L23: =SUM(J23:K23) -> 34333.2 | M23: =IF(M22=0,M22,M22*(1+costinflation)*(1-IF($B23<='Key Assumptions'!$E$37,0, IF($B23-1='Key Assumptions'!$E$37,'Key Assumptions'!$E$38, IF($B23-1='Key Assumptions'!$E$39,'Key Assumptions'!$E$40, IF($B23-1='Key Assumptions'!$E$41,'Key Assumptions'!$E$42, IF(AND($B23-1>'Key Assumptions'!$E$41,MOD($B23-1,'Key Assumptions'!$E$43)=0),'Key Assumptions'!$E$44,0))))))) -> 34333.2 | N23: =IF(N22=0,N22,N22*(1+costinflation)*(1-IF($B23<='Key Assumptions'!$E$57,0, IF($B23-1='Key Assumptions'!$E$57,'Key Assumptions'!$E$58, IF($B23-1='Key Assumptions'!$E$59,'Key Assumptions'!$E$60, IF($B23-1='Key Assumptions'!$E$61,'Key Assumptions'!$E$62, IF(AND($B23-1>'Key Assumptions'!$E$61,MOD($B23-1,'Key Assumptions'!$E$63)=0),'Key Assumptions'!$E$64,0))))))) -> 15606 | O23: =SUM(M23:N23) -> 49939.2 | Q23: =IF(Q22=0,Q22,Q22*(1+costinflation)*(1-IF($B23<='Key Assumptions'!$F$37,0, IF($B23-1='Key Assumptions'!$F$37,'Key Assumptions'!$F$38, IF($B23-1='Key Assumptions'!$F$39,'Key Assumptions'!$F$40, IF($B23-1='Key Assumptions'!$F$41,'Key Assumptions'!$F$42, IF(AND($B23-1>'Key Assumptions'!$F$41,MOD($B23-1,'Key Assumptions'!$F$43)=0),'Key Assumptions'!$F$44,0))))))) -> 20808 | R23: =IF(R22=0,R22,R22*(1+costinflation)*(1-IF($B23<='Key Assumptions'!$F$57,0, IF($B23-1='Key Assumptions'!$F$57,'Key Assumptions'!$F$58, IF($B23-1='Key Assumptions'!$F$59,'Key Assumptions'!$F$60, IF($B23-1='Key Assumptions'!$F$61,'Key Assumptions'!$F$62, IF(AND($B23-1>'Key Assumptions'!$F$61,MOD($B23-1,'Key Assumptions'!$F$63)=0),'Key Assumptions'!$F$64,0))))))) -> 2080.8 | S23: =SUM(Q23:R23) -> 22888.8 | T23: =IF(T22=0,T22,T22*(1+costinflation)*(1-IF($B23<='Key Assumptions'!$F$37,0, IF($B23-1='Key Assumptions'!$F$37,'Key Assumptions'!$F$38, IF($B23-1='Key Assumptions'!$F$39,'Key Assumptions'!$F$40, IF($B23-1='Key Assumptions'!$F$41,'Key Assumptions'!$F$42, IF(AND($B23-1>'Key Assumptions'!$F$41,MOD($B23-1,'Key Assumptions'!$F$43)=0),'Key Assumptions'!$F$44,0))))))) -> 11444.4 | U23: =IF(U22=0,U22,U22*(1+costinflation)*(1-IF($B23<='Key Assumptions'!$F$57,0, IF($B23-1='Key Assumptions'!$F$57,'Key Assumptions'!$F$58, IF($B23-1='Key Assumptions'!$F$59,'Key Assumptions'!$F$60, IF($B23-1='Key Assumptions'!$F$61,'Key Assumptions'!$F$62, IF(AND($B23-1>'Key Assumptions'!$F$61,MOD($B23-1,'Key Assumptions'!$F$63)=0),'Key Assumptions'!$F$64,0))))))) -> 2601 | V23: =SUM(T23:U23) -> 14045.4 | X23: =IF(X22=0,X22,X22*(1+costinflation)*(1-IF($B23<='Key Assumptions'!$G$37,0, IF($B23-1='Key Assumptions'!$G$37,'Key Assumptions'!$G$38, IF($B23-1='Key Assumptions'!$G$39,'Key Assumptions'!$G$40, IF($B23-1='Key Assumptions'!$G$41,'Key Assumptions'!$G$42, IF(AND($B23-1>'Key Assumptions'!$G$41,MOD($B23-1,'Key Assumptions'!$G$43)=0),'Key Assumptions'!$G$44,0))))))) -> 26010 | Y23: =IF(Y22=0,Y22,Y22*(1+costinflation)*(1-IF($B23<='Key Assumptions'!$G$57,0, IF($B23-1='Key Assumptions'!$G$57,'Key Assumptions'!$G$58, IF($B23-1='Key Assumptions'!$G$59,'Key Assumptions'!$G$60, IF($B23-1='Key Assumptions'!$G$61,'Key Assumptions'!$G$62, IF(AND($B23-1>'Key Assumptions'!$G$61,MOD($B23-1,'Key Assumptions'!$G$63)=0),'Key Assumptions'!$G$64,0))))))) -> 2601 | Z23: =SUM(X23:Y23) -> 28611 | AA23: =IF(AA22=0,AA22,AA22*(1+costinflation)*(1-IF($B23<='Key Assumptions'!$G$37,0, IF($B23-1='Key Assumptions'!$G$37,'Key Assumptions'!$G$38, IF($B23-1='Key Assumptions'!$G$39,'Key Assumptions'!$G$40, IF($B23-1='Key Assumptions'!$G$41,'Key Assumptions'!$G$42, IF(AND($B23-1>'Key Assumptions'!$G$41,MOD($B23-1,'Key Assumptions'!$G$43)=0),'Key Assumptions'!$G$44,0))))))) -> 22888.8 | AB23: =IF(AB22=0,AB22,AB22*(1+costinflation)*(1-IF($B23<='Key Assumptions'!$G$57,0, IF($B23-1='Key Assumptions'!$G$57,'Key Assumptions'!$G$58, IF($B23-1='Key Assumptions'!$G$59,'Key Assumptions'!$G$60, IF($B23-1='Key Assumptions'!$G$61,'Key Assumptions'!$G$62, IF(AND($B23-1>'Key Assumptions'!$G$61,MOD($B23-1,'Key Assumptions'!$G$63)=0),'Key Assumptions'!$G$64,0))))))) -> 3121.2 | AC23: =SUM(AA23:AB23) -> 26010 | AE23: =IF(AE22=0,AE22,AE22*(1+costinflation)*(1-IF($B23<='Key Assumptions'!$H$37,0, IF($B23-1='Key Assumptions'!$H$37,'Key Assumptions'!$H$38, IF($B23-1='Key Assumptions'!$H$39,'Key Assumptions'!$H$40, IF($B23-1='Key Assumptions'!$H$41,'Key Assumptions'!$H$42, IF(AND($B23-1>'Key Assumptions'!$H$41,MOD($B23-1,'Key Assumptions'!$H$43)=0),'Key Assumptions'!$H$44,0))))))) -> 332928 | AF23: =IF(AF22=0,AF22,AF22*(1+costinflation)*(1-IF($B23<='Key Assumptions'!$H$57,0, IF($B23-1='Key Assumptions'!$H$57,'Key Assumptions'!$H$58, IF($B23-1='Key Assumptions'!$H$59,'Key Assumptions'!$H$60, IF($B23-1='Key Assumptions'!$H$61,'Key Assumptions'!$H$62, IF(AND($B23-1>'Key Assumptions'!$H$61,MOD($B23-1,'Key Assumptions'!$H$63)=0),'Key Assumptions'!$H$64,0))))))) -> 7282.8 | AG23: =SUM(AE23:AF23) -> 340210.8 | AH23: =IF(AH22=0,AH22,AH22*(1+costinflation)*(1-IF($B23<='Key Assumptions'!$H$37,0, IF($B23-1='Key Assumptions'!$H$37,'Key Assumptions'!$H$38, IF($B23-1='Key Assumptions'!$H$39,'Key Assumptions'!$H$40, IF($B23-1='Key Assumptions'!$H$41,'Key Assumptions'!$H$42, IF(AND($B23-1>'Key Assumptions'!$H$41,MOD($B23-1,'Key Assumptions'!$H$43)=0),'Key Assumptions'!$H$44,0))))))) -> 135252 | AI23: =IF(AI22=0,AI22,AI22*(1+costinflation)*(1-IF($B23<='Key Assumptions'!$H$57,0, IF($B23-1='Key Assumptions'!$H$57,'Key Assumptions'!$H$58, IF($B23-1='Key Assumptions'!$H$59,'Key Assumptions'!$H$60, IF($B23-1='Key Assumptions'!$H$61,'Key Assumptions'!$H$62, IF(AND($B23-1>'Key Assumptions'!$H$61,MOD($B23-1,'Key Assumptions'!$H$63)=0),'Key Assumptions'!$H$64,0))))))) -> 93636 | AJ23: =SUM(AH23:AI23) -> 228888 | AL23: =IF(AL22=0,AL22,AL22*(1+costinflation)*(1-IF($B23<='Key Assumptions'!$I$37,0, IF($B23-1='Key Assumptions'!$I$37,'Key Assumptions'!$I$38, IF($B23-1='Key Assumptions'!$I$39,'Key Assumptions'!$I$40, IF($B23-1='Key Assumptions'!$I$41,'Key Assumptions'!$I$42, IF(AND($B23-1>'Key Assumptions'!$I$41,MOD($B23-1,'Key Assumptions'!$I$43)=0),'Key Assumptions'!$I$44,0))))))) -> 104040 | AM23: =IF(AM22=0,AM22,AM22*(1+costinflation)*(1-IF($B23<='Key Assumptions'!$I$57,0, IF($B23-1='Key Assumptions'!$I$57,'Key Assumptions'!$I$58, IF($B23-1='Key Assumptions'!$I$59,'Key Assumptions'!$I$60, IF($B23-1='Key Assumptions'!$I$61,'Key Assumptions'!$I$62, IF(AND($B23-1>'Key Assumptions'!$I$61,MOD($B23-1,'Key Assumptions'!$I$63)=0),'Key Assumptions'!$I$64,0))))))) -> 15606 | AN23: =SUM(AL23:AM23) -> 119646 | AO23: =IF(AO22=0,AO22,AO22*(1+costinflation)*(1-IF($B23<='Key Assumptions'!$I$37,0, IF($B23-1='Key Assumptions'!$I$37,'Key Assumptions'!$I$38, IF($B23-1='Key Assumptions'!$I$39,'Key Assumptions'!$I$40, IF($B23-1='Key Assumptions'!$I$41,'Key Assumptions'!$I$42, IF(AND($B23-1>'Key Assumptions'!$I$41,MOD($B23-1,'Key Assumptions'!$I$43)=0),'Key Assumptions'!$I$44,0))))))) -> 67626 | AP23: =IF(AP22=0,AP22,AP22*(1+costinflation)*(1-IF($B23<='Key Assumptions'!$I$57,0, IF($B23-1='Key Assumptions'!$I$57,'Key Assumptions'!$I$58, IF($B23-1='Key Assumptions'!$I$59,'Key Assumptions'!$I$60, IF($B23-1='Key Assumptions'!$I$61,'Key Assumptions'!$I$62, IF(AND($B23-1>'Key Assumptions'!$I$61,MOD($B23-1,'Key Assumptions'!$I$63)=0),'Key Assumptions'!$I$64,0))))))) -> 41616 | AQ23: =SUM(AO23:AP23) -> 109242 | AS23: =IF(AS22=0,AS22,AS22*(1+costinflation)*(1-IF($B23<='Key Assumptions'!$J$37,0, IF($B23-1='Key Assumptions'!$J$37,'Key Assumptions'!$J$38, IF($B23-1='Key Assumptions'!$J$39,'Key Assumptions'!$J$40, IF($B23-1='Key Assumptions'!$J$41,'Key Assumptions'!$J$42, IF(AND($B23-1>'Key Assumptions'!$J$41,MOD($B23-1,'Key Assumptions'!$J$43)=0),'Key Assumptions'!$J$44,0))))))) -> 104040 | AT23: =IF(AT22=0,AT22,AT22*(1+costinflation)*(1-IF($B23<='Key Assumptions'!$J$57,0, IF($B23-1='Key Assumptions'!$J$57,'Key Assumptions'!$J$58, IF($B23-1='Key Assumptions'!$J$59,'Key Assumptions'!$J$60, IF($B23-1='Key Assumptions'!$J$61,'Key Assumptions'!$J$62, IF(AND($B23-1>'Key Assumptions'!$J$61,MOD($B23-1,'Key Assumptions'!$J$63)=0),'Key Assumptions'!$J$64,0))))))) -> 10404 | AU23: =SUM(AS23:AT23) -> 114444 | AV23: =IF(AV22=0,AV22,AV22*(1+costinflation)*(1-IF($B23<='Key Assumptions'!$J$37,0, IF($B23-1='Key Assumptions'!$J$37,'Key Assumptions'!$J$38, IF($B23-1='Key Assumptions'!$J$39,'Key Assumptions'!$J$40, IF($B23-1='Key Assumptions'!$J$41,'Key Assumptions'!$J$42, IF(AND($B23-1>'Key Assumptions'!$J$41,MOD($B23-1,'Key Assumptions'!$J$43)=0),'Key Assumptions'!$J$44,0))))))) -> 297554.4 | AW23: =IF(AW22=0,AW22,AW22*(1+costinflation)*(1-IF($B23<='Key Assumptions'!$J$57,0, IF($B23-1='Key Assumptions'!$J$57,'Key Assumptions'!$J$58, IF($B23-1='Key Assumptions'!$J$59,'Key Assumptions'!$J$60, IF($B23-1='Key Assumptions'!$J$61,'Key Assumptions'!$J$62, IF(AND($B23-1>'Key Assumptions'!$J$61,MOD($B23-1,'Key Assumptions'!$J$63)=0),'Key Assumptions'!$J$64,0))))))) -> 41616 | AX23: =SUM(AV23:AW23) -> 339170.4 | AZ23: =IF(AZ22=0,AZ22,AZ22*(1+costinflation)*(1-IF($B23<='Key Assumptions'!$K$37,0, IF($B23-1='Key Assumptions'!$K$37,'Key Assumptions'!$K$38, IF($B23-1='Key Assumptions'!$K$39,'Key Assumptions'!$K$40, IF($B23-1='Key Assumptions'!$K$41,'Key Assumptions'!$K$42, IF(AND($B23-1>'Key Assumptions'!$K$41,MOD($B23-1,'Key Assumptions'!$K$43)=0),'Key Assumptions'!$K$44,0))))))) -> 31212 | BA23: =IF(BA22=0,BA22,BA22*(1+costinflation)*(1-IF($B23<='Key Assumptions'!$K$57,0, IF($B23-1='Key Assumptions'!$K$57,'Key Assumptions'!$K$58, IF($B23-1='Key Assumptions'!$K$59,'Key Assumptions'!$K$60, IF($B23-1='Key Assumptions'!$K$61,'Key Assumptions'!$K$62, IF(AND($B23-1>'Key Assumptions'!$K$61,MOD($B23-1,'Key Assumptions'!$K$63)=0),'Key Assumptions'!$K$64,0))))))) -> 3121.2 | BB23: =SUM(AZ23:BA23) -> 34333.2 | BC23: =IF(BC22=0,BC22,BC22*(1+costinflation)*(1-IF($B23<='Key Assumptions'!$K$37,0, IF($B23-1='Key Assumptions'!$K$37,'Key Assumptions'!$K$38, IF($B23-1='Key Assumptions'!$K$39,'Key Assumptions'!$K$40, IF($B23-1='Key Assumptions'!$K$41,'Key Assumptions'!$K$42, IF(AND($B23-1>'Key Assumptions'!$K$41,MOD($B23-1,'Key Assumptions'!$K$43)=0),'Key Assumptions'!$K$44,0))))))) -> 40575.6 | BD23: =IF(BD22=0,BD22,BD22*(1+costinflation)*(1-IF($B23<='Key Assumptions'!$K$57,0, IF($B23-1='Key Assumptions'!$K$57,'Key Assumptions'!$K$58, IF($B23-1='Key Assumptions'!$K$59,'Key Assumptions'!$K$60, IF($B23-1='Key Assumptions'!$K$61,'Key Assumptions'!$K$62, IF(AND($B23-1>'Key Assumptions'!$K$61,MOD($B23-1,'Key Assumptions'!$K$63)=0),'Key Assumptions'!$K$64,0))))))) -> 15606 | BE23: =SUM(BC23:BD23) -> 56181.6 | BG23: =IF(BG22=0,BG22,BG22*(1+costinflation)*(1-IF($B23<='Key Assumptions'!$L$37,0, IF($B23-1='Key Assumptions'!$L$37,'Key Assumptions'!$L$38, IF($B23-1='Key Assumptions'!$L$39,'Key Assumptions'!$L$40, IF($B23-1='Key Assumptions'!$L$41,'Key Assumptions'!$L$42, IF(AND($B23-1>'Key Assumptions'!$L$41,MOD($B23-1,'Key Assumptions'!$L$43)=0),'Key Assumptions'!$L$44,0))))))) -> 31212 | BH23: =IF(BH22=0,BH22,BH22*(1+costinflation)*(1-IF($B23<='Key Assumptions'!$L$57,0, IF($B23-1='Key Assumptions'!$L$57,'Key Assumptions'!$L$58, IF($B23-1='Key Assumptions'!$L$59,'Key Assumptions'!$L$60, IF($B23-1='Key Assumptions'!$L$61,'Key Assumptions'!$L$62, IF(AND($B23-1>'Key Assumptions'!$L$61,MOD($B23-1,'Key Assumptions'!$L$63)=0),'Key Assumptions'!$L$64,0))))))) -> 3121.2 | BI23: =SUM(BG23:BH23) -> 34333.2 | BJ23: =IF(BJ22=0,BJ22,BJ22*(1+costinflation)*(1-IF($B23<='Key Assumptions'!$L$37,0, IF($B23-1='Key Assumptions'!$L$37,'Key Assumptions'!$L$38, IF($B23-1='Key Assumptions'!$L$39,'Key Assumptions'!$L$40, IF($B23-1='Key Assumptions'!$L$41,'Key Assumptions'!$L$42, IF(AND($B23-1>'Key Assumptions'!$L$41,MOD($B23-1,'Key Assumptions'!$L$43)=0),'Key Assumptions'!$L$44,0))))))) -> 28090.8 | BK23: =IF(BK22=0,BK22,BK22*(1+costinflation)*(1-IF($B23<='Key Assumptions'!$L$57,0, IF($B23-1='Key Assumptions'!$L$57,'Key Assumptions'!$L$58, IF($B23-1='Key Assumptions'!$L$59,'Key Assumptions'!$L$60, IF($B23-1='Key Assumptions'!$L$61,'Key Assumptions'!$L$62, IF(AND($B23-1>'Key Assumptions'!$L$61,MOD($B23-1,'Key Assumptions'!$L$63)=0),'Key Assumptions'!$L$64,0))))))) -> 15606 | BL23: =SUM(BJ23:BK23) -> 43696.8 | BN23: =IF(BN22=0,BN22,BN22*(1+costinflation)*(1-IF($B23<='Key Assumptions'!$M$37,0, IF($B23-1='Key Assumptions'!$M$37,'Key Assumptions'!$M$38, IF($B23-1='Key Assumptions'!$M$39,'Key Assumptions'!$M$40, IF($B23-1='Key Assumptions'!$M$41,'Key Assumptions'!$M$42, IF(AND($B23-1>'Key Assumptions'!$M$41,MOD($B23-1,'Key Assumptions'!$M$43)=0),'Key Assumptions'!$M$44,0))))))) -> 31212 | BO23: =IF(BO22=0,BO22,BO22*(1+costinflation)*(1-IF($B23<='Key Assumptions'!$M$57,0, IF($B23-1='Key Assumptions'!$M$57,'Key Assumptions'!$M$58, IF($B23-1='Key Assumptions'!$M$59,'Key Assumptions'!$M$60, IF($B23-1='Key Assumptions'!$M$61,'Key Assumptions'!$M$62, IF(AND($B23-1>'Key Assumptions'!$M$61,MOD($B23-1,'Key Assumptions'!$M$63)=0),'Key Assumptions'!$M$64,0))))))) -> 3121.2 | BP23: =SUM(BN23:BO23) -> 34333.2 | BQ23: =IF(BQ22=0,BQ22,BQ22*(1+costinflation)*(1-IF($B23<='Key Assumptions'!$M$37,0, IF($B23-1='Key Assumptions'!$M$37,'Key Assumptions'!$M$38, IF($B23-1='Key Assumptions'!$M$39,'Key Assumptions'!$M$40, IF($B23-1='Key Assumptions'!$M$41,'Key Assumptions'!$M$42, IF(AND($B23-1>'Key Assumptions'!$M$41,MOD($B23-1,'Key Assumptions'!$M$43)=0),'Key Assumptions'!$M$44,0))))))) -> 40575.6 | BR23: =IF(BR22=0,BR22,BR22*(1+costinflation)*(1-IF($B23<='Key Assumptions'!$M$57,0, IF($B23-1='Key Assumptions'!$M$57,'Key Assumptions'!$M$58, IF($B23-1='Key Assumptions'!$M$59,'Key Assumptions'!$M$60, IF($B23-1='Key Assumptions'!$M$61,'Key Assumptions'!$M$62, IF(AND($B23-1>'Key Assumptions'!$M$61,MOD($B23-1,'Key Assumptions'!$M$63)=0),'Key Assumptions'!$M$64,0))))))) -> 15606 | BS23: =SUM(BQ23:BR23) -> 56181.6
B24: 3 | C24: =IF(C23=0,C23,C23*(1+costinflation)*(1-IF($B24<='Key Assumptions'!$D$37,0, IF($B24-1='Key Assumptions'!$D$37,'Key Assumptions'!$D$38, IF($B24-1='Key Assumptions'!$D$39,'Key Assumptions'!$D$40, IF($B24-1='Key Assumptions'!$D$41,'Key Assumptions'!$D$42, IF(AND($B24-1>'Key Assumptions'!$D$41,MOD($B24-1,'Key Assumptions'!$D$43)=0),'Key Assumptions'!$D$44,0))))))) -> 106120.8 | D24: =IF(D23=0,D23,D23*(1+costinflation)*(1-IF($B24<='Key Assumptions'!$D$57,0, IF($B24-1='Key Assumptions'!$D$57,'Key Assumptions'!$D$58, IF($B24-1='Key Assumptions'!$D$59,'Key Assumptions'!$D$60, IF($B24-1='Key Assumptions'!$D$61,'Key Assumptions'!$D$62, IF(AND($B24-1>'Key Assumptions'!$D$61,MOD($B24-1,'Key Assumptions'!$D$63)=0),'Key Assumptions'!$D$64,0))))))) -> 10612.08 | E24: =SUM(C24:D24) -> 116732.88 | F24: =IF(F23=0,F23,F23*(1+costinflation)*(1-IF($B24<='Key Assumptions'!$D$37,0, IF($B24-1='Key Assumptions'!$D$37,'Key Assumptions'!$D$38, IF($B24-1='Key Assumptions'!$D$39,'Key Assumptions'!$D$40, IF($B24-1='Key Assumptions'!$D$41,'Key Assumptions'!$D$42, IF(AND($B24-1>'Key Assumptions'!$D$41,MOD($B24-1,'Key Assumptions'!$D$43)=0),'Key Assumptions'!$D$44,0))))))) -> 210119.184 | G24: =IF(G23=0,G23,G23*(1+costinflation)*(1-IF($B24<='Key Assumptions'!$D$57,0, IF($B24-1='Key Assumptions'!$D$57,'Key Assumptions'!$D$58, IF($B24-1='Key Assumptions'!$D$59,'Key Assumptions'!$D$60, IF($B24-1='Key Assumptions'!$D$61,'Key Assumptions'!$D$62, IF(AND($B24-1>'Key Assumptions'!$D$61,MOD($B24-1,'Key Assumptions'!$D$63)=0),'Key Assumptions'!$D$64,0))))))) -> 42448.32 | H24: =SUM(F24:G24) -> 252567.504 | J24: =IF(J23=0,J23,J23*(1+costinflation)*(1-IF($B24<='Key Assumptions'!$E$37,0, IF($B24-1='Key Assumptions'!$E$37,'Key Assumptions'!$E$38, IF($B24-1='Key Assumptions'!$E$39,'Key Assumptions'!$E$40, IF($B24-1='Key Assumptions'!$E$41,'Key Assumptions'!$E$42, IF(AND($B24-1>'Key Assumptions'!$E$41,MOD($B24-1,'Key Assumptions'!$E$43)=0),'Key Assumptions'!$E$44,0))))))) -> 31836.24 | K24: =IF(K23=0,K23,K23*(1+costinflation)*(1-IF($B24<='Key Assumptions'!$E$57,0, IF($B24-1='Key Assumptions'!$E$57,'Key Assumptions'!$E$58, IF($B24-1='Key Assumptions'!$E$59,'Key Assumptions'!$E$60, IF($B24-1='Key Assumptions'!$E$61,'Key Assumptions'!$E$62, IF(AND($B24-1>'Key Assumptions'!$E$61,MOD($B24-1,'Key Assumptions'!$E$63)=0),'Key Assumptions'!$E$64,0))))))) -> 3183.624 | L24: =SUM(J24:K24) -> 35019.864 | M24: =IF(M23=0,M23,M23*(1+costinflation)*(1-IF($B24<='Key Assumptions'!$E$37,0, IF($B24-1='Key Assumptions'!$E$37,'Key Assumptions'!$E$38, IF($B24-1='Key Assumptions'!$E$39,'Key Assumptions'!$E$40, IF($B24-1='Key Assumptions'!$E$41,'Key Assumptions'!$E$42, IF(AND($B24-1>'Key Assumptions'!$E$41,MOD($B24-1,'Key Assumptions'!$E$43)=0),'Key Assumptions'!$E$44,0))))))) -> 35019.864 | N24: =IF(N23=0,N23,N23*(1+costinflation)*(1-IF($B24<='Key Assumptions'!$E$57,0, IF($B24-1='Key Assumptions'!$E$57,'Key Assumptions'!$E$58, IF($B24-1='Key Assumptions'!$E$59,'Key Assumptions'!$E$60, IF($B24-1='Key Assumptions'!$E$61,'Key Assumptions'!$E$62, IF(AND($B24-1>'Key Assumptions'!$E$61,MOD($B24-1,'Key Assumptions'!$E$63)=0),'Key Assumptions'!$E$64,0))))))) -> 15918.12 | O24: =SUM(M24:N24) -> 50937.984 | Q24: =IF(Q23=0,Q23,Q23*(1+costinflation)*(1-IF($B24<='Key Assumptions'!$F$37,0, IF($B24-1='Key Assumptions'!$F$37,'Key Assumptions'!$F$38, IF($B24-1='Key Assumptions'!$F$39,'Key Assumptions'!$F$40, IF($B24-1='Key Assumptions'!$F$41,'Key Assumptions'!$F$42, IF(AND($B24-1>'Key Assumptions'!$F$41,MOD($B24-1,'Key Assumptions'!$F$43)=0),'Key Assumptions'!$F$44,0))))))) -> 21224.16 | R24: =IF(R23=0,R23,R23*(1+costinflation)*(1-IF($B24<='Key Assumptions'!$F$57,0, IF($B24-1='Key Assumptions'!$F$57,'Key Assumptions'!$F$58, IF($B24-1='Key Assumptions'!$F$59,'Key Assumptions'!$F$60, IF($B24-1='Key Assumptions'!$F$61,'Key Assumptions'!$F$62, IF(AND($B24-1>'Key Assumptions'!$F$61,MOD($B24-1,'Key Assumptions'!$F$63)=0),'Key Assumptions'!$F$64,0))))))) -> 2122.416 | S24: =SUM(Q24:R24) -> 23346.576 | T24: =IF(T23=0,T23,T23*(1+costinflation)*(1-IF($B24<='Key Assumptions'!$F$37,0, IF($B24-1='Key Assumptions'!$F$37,'Key Assumptions'!$F$38, IF($B24-1='Key Assumptions'!$F$39,'Key Assumptions'!$F$40, IF($B24-1='Key Assumptions'!$F$41,'Key Assumptions'!$F$42, IF(AND($B24-1>'Key Assumptions'!$F$41,MOD($B24-1,'Key Assumptions'!$F$43)=0),'Key Assumptions'!$F$44,0))))))) -> 11673.288 | U24: =IF(U23=0,U23,U23*(1+costinflation)*(1-IF($B24<='Key Assumptions'!$F$57,0, IF($B24-1='Key Assumptions'!$F$57,'Key Assumptions'!$F$58, IF($B24-1='Key Assumptions'!$F$59,'Key Assumptions'!$F$60, IF($B24-1='Key Assumptions'!$F$61,'Key Assumptions'!$F$62, IF(AND($B24-1>'Key Assumptions'!$F$61,MOD($B24-1,'Key Assumptions'!$F$63)=0),'Key Assumptions'!$F$64,0))))))) -> 2653.02 | V24: =SUM(T24:U24) -> 14326.308 | X24: =IF(X23=0,X23,X23*(1+costinflation)*(1-IF($B24<='Key Assumptions'!$G$37,0, IF($B24-1='Key Assumptions'!$G$37,'Key Assumptions'!$G$38, IF($B24-1='Key Assumptions'!$G$39,'Key Assumptions'!$G$40, IF($B24-1='Key Assumptions'!$G$41,'Key Assumptions'!$G$42, IF(AND($B24-1>'Key Assumptions'!$G$41,MOD($B24-1,'Key Assumptions'!$G$43)=0),'Key Assumptions'!$G$44,0))))))) -> 26530.2 | Y24: =IF(Y23=0,Y23,Y23*(1+costinflation)*(1-IF($B24<='Key Assumptions'!$G$57,0, IF($B24-1='Key Assumptions'!$G$57,'Key Assumptions'!$G$58, IF($B24-1='Key Assumptions'!$G$59,'Key Assumptions'!$G$60, IF($B24-1='Key Assumptions'!$G$61,'Key Assumptions'!$G$62, IF(AND($B24-1>'Key Assumptions'!$G$61,MOD($B24-1,'Key Assumptions'!$G$63)=0),'Key Assumptions'!$G$64,0))))))) -> 2653.02 | Z24: =SUM(X24:Y24) -> 29183.22 | AA24: =IF(AA23=0,AA23,AA23*(1+costinflation)*(1-IF($B24<='Key Assumptions'!$G$37,0, IF($B24-1='Key Assumptions'!$G$37,'Key Assumptions'!$G$38, IF($B24-1='Key Assumptions'!$G$39,'Key Assumptions'!$G$40, IF($B24-1='Key Assumptions'!$G$41,'Key Assumptions'!$G$42, IF(AND($B24-1>'Key Assumptions'!$G$41,MOD($B24-1,'Key Assumptions'!$G$43)=0),'Key Assumptions'!$G$44,0))))))) -> 23346.576 | AB24: =IF(AB23=0,AB23,AB23*(1+costinflation)*(1-IF($B24<='Key Assumptions'!$G$57,0, IF($B24-1='Key Assumptions'!$G$57,'Key Assumptions'!$G$58, IF($B24-1='Key Assumptions'!$G$59,'Key Assumptions'!$G$60, IF($B24-1='Key Assumptions'!$G$61,'Key Assumptions'!$G$62, IF(AND($B24-1>'Key Assumptions'!$G$61,MOD($B24-1,'Key Assumptions'!$G$63)=0),'Key Assumptions'!$G$64,0))))))) -> 3183.624 | AC24: =SUM(AA24:AB24) -> 26530.2 | AE24: =IF(AE23=0,AE23,AE23*(1+costinflation)*(1-IF($B24<='Key Assumptions'!$H$37,0, IF($B24-1='Key Assumptions'!$H$37,'Key Assumptions'!$H$38, IF($B24-1='Key Assumptions'!$H$39,'Key Assumptions'!$H$40, IF($B24-1='Key Assumptions'!$H$41,'Key Assumptions'!$H$42, IF(AND($B24-1>'Key Assumptions'!$H$41,MOD($B24-1,'Key Assumptions'!$H$43)=0),'Key Assumptions'!$H$44,0))))))) -> 339586.56 | AF24: =IF(AF23=0,AF23,AF23*(1+costinflation)*(1-IF($B24<='Key Assumptions'!$H$57,0, IF($B24-1='Key Assumptions'!$H$57,'Key Assumptions'!$H$58, IF($B24-1='Key Assumptions'!$H$59,'Key Assumptions'!$H$60, IF($B24-1='Key Assumptions'!$H$61,'Key Assumptions'!$H$62, IF(AND($B24-1>'Key Assumptions'!$H$61,MOD($B24-1,'Key Assumptions'!$H$63)=0),'Key Assumptions'!$H$64,0))))))) -> 7428.456 | AG24: =SUM(AE24:AF24) -> 347015.016 | AH24: =IF(AH23=0,AH23,AH23*(1+costinflation)*(1-IF($B24<='Key Assumptions'!$H$37,0, IF($B24-1='Key Assumptions'!$H$37,'Key Assumptions'!$H$38, IF($B24-1='Key Assumptions'!$H$39,'Key Assumptions'!$H$40, IF($B24-1='Key Assumptions'!$H$41,'Key Assumptions'!$H$42, IF(AND($B24-1>'Key Assumptions'!$H$41,MOD($B24-1,'Key Assumptions'!$H$43)=0),'Key Assumptions'!$H$44,0))))))) -> 137957.04 | AI24: =IF(AI23=0,AI23,AI23*(1+costinflation)*(1-IF($B24<='Key Assumptions'!$H$57,0, IF($B24-1='Key Assumptions'!$H$57,'Key Assumptions'!$H$58, IF($B24-1='Key Assumptions'!$H$59,'Key Assumptions'!$H$60, IF($B24-1='Key Assumptions'!$H$61,'Key Assumptions'!$H$62, IF(AND($B24-1>'Key Assumptions'!$H$61,MOD($B24-1,'Key Assumptions'!$H$63)=0),'Key Assumptions'!$H$64,0))))))) -> 95508.72 | AJ24: =SUM(AH24:AI24) -> 233465.76 | AL24: =IF(AL23=0,AL23,AL23*(1+costinflation)*(1-IF($B24<='Key Assumptions'!$I$37,0, IF($B24-1='Key Assumptions'!$I$37,'Key Assumptions'!$I$38, IF($B24-1='Key Assumptions'!$I$39,'Key Assumptions'!$I$40, IF($B24-1='Key Assumptions'!$I$41,'Key Assumptions'!$I$42, IF(AND($B24-1>'Key Assumptions'!$I$41,MOD($B24-1,'Key Assumptions'!$I$43)=0),'Key Assumptions'!$I$44,0))))))) -> 106120.8 | AM24: =IF(AM23=0,AM23,AM23*(1+costinflation)*(1-IF($B24<='Key Assumptions'!$I$57,0, IF($B24-1='Key Assumptions'!$I$57,'Key Assumptions'!$I$58, IF($B24-1='Key Assumptions'!$I$59,'Key Assumptions'!$I$60, IF($B24-1='Key Assumptions'!$I$61,'Key Assumptions'!$I$62, IF(AND($B24-1>'Key Assumptions'!$I$61,MOD($B24-1,'Key Assumptions'!$I$63)=0),'Key Assumptions'!$I$64,0))))))) -> 15918.12 | AN24: =SUM(AL24:AM24) -> 122038.92 | AO24: =IF(AO23=0,AO23,AO23*(1+costinflation)*(1-IF($B24<='Key Assumptions'!$I$37,0, IF($B24-1='Key Assumptions'!$I$37,'Key Assumptions'!$I$38, IF($B24-1='Key Assumptions'!$I$39,'Key Assumptions'!$I$40, IF($B24-1='Key Assumptions'!$I$41,'Key Assumptions'!$I$42, IF(AND($B24-1>'Key Assumptions'!$I$41,MOD($B24-1,'Key Assumptions'!$I$43)=0),'Key Assumptions'!$I$44,0))))))) -> 68978.52 | AP24: =IF(AP23=0,AP23,AP23*(1+costinflation)*(1-IF($B24<='Key Assumptions'!$I$57,0, IF($B24-1='Key Assumptions'!$I$57,'Key Assumptions'!$I$58, IF($B24-1='Key Assumptions'!$I$59,'Key Assumptions'!$I$60, IF($B24-1='Key Assumptions'!$I$61,'Key Assumptions'!$I$62, IF(AND($B24-1>'Key Assumptions'!$I$61,MOD($B24-1,'Key Assumptions'!$I$63)=0),'Key Assumptions'!$I$64,0))))))) -> 42448.32 | AQ24: =SUM(AO24:AP24) -> 111426.84 | AS24: =IF(AS23=0,AS23,AS23*(1+costinflation)*(1-IF($B24<='Key Assumptions'!$J$37,0, IF($B24-1='Key Assumptions'!$J$37,'Key Assumptions'!$J$38, IF($B24-1='Key Assumptions'!$J$39,'Key Assumptions'!$J$40, IF($B24-1='Key Assumptions'!$J$41,'Key Assumptions'!$J$42, IF(AND($B24-1>'Key Assumptions'!$J$41,MOD($B24-1,'Key Assumptions'!$J$43)=0),'Key Assumptions'!$J$44,0))))))) -> 106120.8 | AT24: =IF(AT23=0,AT23,AT23*(1+costinflation)*(1-IF($B24<='Key Assumptions'!$J$57,0, IF($B24-1='Key Assumptions'!$J$57,'Key Assumptions'!$J$58, IF($B24-1='Key Assumptions'!$J$59,'Key Assumptions'!$J$60, IF($B24-1='Key Assumptions'!$J$61,'Key Assumptions'!$J$62, IF(AND($B24-1>'Key Assumptions'!$J$61,MOD($B24-1,'Key Assumptions'!$J$63)=0),'Key Assumptions'!$J$64,0))))))) -> 10612.08 | AU24: =SUM(AS24:AT24) -> 116732.88 | AV24: =IF(AV23=0,AV23,AV23*(1+costinflation)*(1-IF($B24<='Key Assumptions'!$J$37,0, IF($B24-1='Key Assumptions'!$J$37,'Key Assumptions'!$J$38, IF($B24-1='Key Assumptions'!$J$39,'Key Assumptions'!$J$40, IF($B24-1='Key Assumptions'!$J$41,'Key Assumptions'!$J$42, IF(AND($B24-1>'Key Assumptions'!$J$41,MOD($B24-1,'Key Assumptions'!$J$43)=0),'Key Assumptions'!$J$44,0))))))) -> 303505.488 | AW24: =IF(AW23=0,AW23,AW23*(1+costinflation)*(1-IF($B24<='Key Assumptions'!$J$57,0, IF($B24-1='Key Assumptions'!$J$57,'Key Assumptions'!$J$58, IF($B24-1='Key Assumptions'!$J$59,'Key Assumptions'!$J$60, IF($B24-1='Key Assumptions'!$J$61,'Key Assumptions'!$J$62, IF(AND($B24-1>'Key Assumptions'!$J$61,MOD($B24-1,'Key Assumptions'!$J$63)=0),'Key Assumptions'!$J$64,0))))))) -> 42448.32 | AX24: =SUM(AV24:AW24) -> 345953.808 | AZ24: =IF(AZ23=0,AZ23,AZ23*(1+costinflation)*(1-IF($B24<='Key Assumptions'!$K$37,0, IF($B24-1='Key Assumptions'!$K$37,'Key Assumptions'!$K$38, IF($B24-1='Key Assumptions'!$K$39,'Key Assumptions'!$K$40, IF($B24-1='Key Assumptions'!$K$41,'Key Assumptions'!$K$42, IF(AND($B24-1>'Key Assumptions'!$K$41,MOD($B24-1,'Key Assumptions'!$K$43)=0),'Key Assumptions'!$K$44,0))))))) -> 31836.24 | BA24: =IF(BA23=0,BA23,BA23*(1+costinflation)*(1-IF($B24<='Key Assumptions'!$K$57,0, IF($B24-1='Key Assumptions'!$K$57,'Key Assumptions'!$K$58, IF($B24-1='Key Assumptions'!$K$59,'Key Assumptions'!$K$60, IF($B24-1='Key Assumptions'!$K$61,'Key Assumptions'!$K$62, IF(AND($B24-1>'Key Assumptions'!$K$61,MOD($B24-1,'Key Assumptions'!$K$63)=0),'Key Assumptions'!$K$64,0))))))) -> 3183.624 | BB24: =SUM(AZ24:BA24) -> 35019.864 | BC24: =IF(BC23=0,BC23,BC23*(1+costinflation)*(1-IF($B24<='Key Assumptions'!$K$37,0, IF($B24-1='Key Assumptions'!$K$37,'Key Assumptions'!$K$38, IF($B24-1='Key Assumptions'!$K$39,'Key Assumptions'!$K$40, IF($B24-1='Key Assumptions'!$K$41,'Key Assumptions'!$K$42, IF(AND($B24-1>'Key Assumptions'!$K$41,MOD($B24-1,'Key Assumptions'!$K$43)=0),'Key Assumptions'!$K$44,0))))))) -> 41387.112 | BD24: =IF(BD23=0,BD23,BD23*(1+costinflation)*(1-IF($B24<='Key Assumptions'!$K$57,0, IF($B24-1='Key Assumptions'!$K$57,'Key Assumptions'!$K$58, IF($B24-1='Key Assumptions'!$K$59,'Key Assumptions'!$K$60, IF($B24-1='Key Assumptions'!$K$61,'Key Assumptions'!$K$62, IF(AND($B24-1>'Key Assumptions'!$K$61,MOD($B24-1,'Key Assumptions'!$K$63)=0),'Key Assumptions'!$K$64,0))))))) -> 15918.12 | BE24: =SUM(BC24:BD24) -> 57305.232 | BG24: =IF(BG23=0,BG23,BG23*(1+costinflation)*(1-IF($B24<='Key Assumptions'!$L$37,0, IF($B24-1='Key Assumptions'!$L$37,'Key Assumptions'!$L$38, IF($B24-1='Key Assumptions'!$L$39,'Key Assumptions'!$L$40, IF($B24-1='Key Assumptions'!$L$41,'Key Assumptions'!$L$42, IF(AND($B24-1>'Key Assumptions'!$L$41,MOD($B24-1,'Key Assumptions'!$L$43)=0),'Key Assumptions'!$L$44,0))))))) -> 31836.24 | BH24: =IF(BH23=0,BH23,BH23*(1+costinflation)*(1-IF($B24<='Key Assumptions'!$L$57,0, IF($B24-1='Key Assumptions'!$L$57,'Key Assumptions'!$L$58, IF($B24-1='Key Assumptions'!$L$59,'Key Assumptions'!$L$60, IF($B24-1='Key Assumptions'!$L$61,'Key Assumptions'!$L$62, IF(AND($B24-1>'Key Assumptions'!$L$61,MOD($B24-1,'Key Assumptions'!$L$63)=0),'Key Assumptions'!$L$64,0))))))) -> 3183.624 | BI24: =SUM(BG24:BH24) -> 35019.864 | BJ24: =IF(BJ23=0,BJ23,BJ23*(1+costinflation)*(1-IF($B24<='Key Assumptions'!$L$37,0, IF($B24-1='Key Assumptions'!$L$37,'Key Assumptions'!$L$38, IF($B24-1='Key Assumptions'!$L$39,'Key Assumptions'!$L$40, IF($B24-1='Key Assumptions'!$L$41,'Key Assumptions'!$L$42, IF(AND($B24-1>'Key Assumptions'!$L$41,MOD($B24-1,'Key Assumptions'!$L$43)=0),'Key Assumptions'!$L$44,0))))))) -> 28652.616 | BK24: =IF(BK23=0,BK23,BK23*(1+costinflation)*(1-IF($B24<='Key Assumptions'!$L$57,0, IF($B24-1='Key Assumptions'!$L$57,'Key Assumptions'!$L$58, IF($B24-1='Key Assumptions'!$L$59,'Key Assumptions'!$L$60, IF($B24-1='Key Assumptions'!$L$61,'Key Assumptions'!$L$62, IF(AND($B24-1>'Key Assumptions'!$L$61,MOD($B24-1,'Key Assumptions'!$L$63)=0),'Key Assumptions'!$L$64,0))))))) -> 15918.12 | BL24: =SUM(BJ24:BK24) -> 44570.736 | BN24: =IF(BN23=0,BN23,BN23*(1+costinflation)*(1-IF($B24<='Key Assumptions'!$M$37,0, IF($B24-1='Key Assumptions'!$M$37,'Key Assumptions'!$M$38, IF($B24-1='Key Assumptions'!$M$39,'Key Assumptions'!$M$40, IF($B24-1='Key Assumptions'!$M$41,'Key Assumptions'!$M$42, IF(AND($B24-1>'Key Assumptions'!$M$41,MOD($B24-1,'Key Assumptions'!$M$43)=0),'Key Assumptions'!$M$44,0))))))) -> 31836.24 | BO24: =IF(BO23=0,BO23,BO23*(1+costinflation)*(1-IF($B24<='Key Assumptions'!$M$57,0, IF($B24-1='Key Assumptions'!$M$57,'Key Assumptions'!$M$58, IF($B24-1='Key Assumptions'!$M$59,'Key Assumptions'!$M$60, IF($B24-1='Key Assumptions'!$M$61,'Key Assumptions'!$M$62, IF(AND($B24-1>'Key Assumptions'!$M$61,MOD($B24-1,'Key Assumptions'!$M$63)=0),'Key Assumptions'!$M$64,0))))))) -> 3183.624 | BP24: =SUM(BN24:BO24) -> 35019.864 | BQ24: =IF(BQ23=0,BQ23,BQ23*(1+costinflation)*(1-IF($B24<='Key Assumptions'!$M$37,0, IF($B24-1='Key Assumptions'!$M$37,'Key Assumptions'!$M$38, IF($B24-1='Key Assumptions'!$M$39,'Key Assumptions'!$M$40, IF($B24-1='Key Assumptions'!$M$41,'Key Assumptions'!$M$42, IF(AND($B24-1>'Key Assumptions'!$M$41,MOD($B24-1,'Key Assumptions'!$M$43)=0),'Key Assumptions'!$M$44,0))))))) -> 41387.112 | BR24: =IF(BR23=0,BR23,BR23*(1+costinflation)*(1-IF($B24<='Key Assumptions'!$M$57,0, IF($B24-1='Key Assumptions'!$M$57,'Key Assumptions'!$M$58, IF($B24-1='Key Assumptions'!$M$59,'Key Assumptions'!$M$60, IF($B24-1='Key Assumptions'!$M$61,'Key Assumptions'!$M$62, IF(AND($B24-1>'Key Assumptions'!$M$61,MOD($B24-1,'Key Assumptions'!$M$63)=0),'Key Assumptions'!$M$64,0))))))) -> 15918.12 | BS24: =SUM(BQ24:BR24) -> 57305.232
B25: 4 | C25: =IF(C24=0,C24,C24*(1+costinflation)*(1-IF($B25<='Key Assumptions'!$D$37,0, IF($B25-1='Key Assumptions'!$D$37,'Key Assumptions'!$D$38, IF($B25-1='Key Assumptions'!$D$39,'Key Assumptions'!$D$40, IF($B25-1='Key Assumptions'!$D$41,'Key Assumptions'!$D$42, IF(AND($B25-1>'Key Assumptions'!$D$41,MOD($B25-1,'Key Assumptions'!$D$43)=0),'Key Assumptions'!$D$44,0))))))) -> 108243.216 | D25: =IF(D24=0,D24,D24*(1+costinflation)*(1-IF($B25<='Key Assumptions'!$D$57,0, IF($B25-1='Key Assumptions'!$D$57,'Key Assumptions'!$D$58, IF($B25-1='Key Assumptions'!$D$59,'Key Assumptions'!$D$60, IF($B25-1='Key Assumptions'!$D$61,'Key Assumptions'!$D$62, IF(AND($B25-1>'Key Assumptions'!$D$61,MOD($B25-1,'Key Assumptions'!$D$63)=0),'Key Assumptions'!$D$64,0))))))) -> 10824.3216 | E25: 119067.5376 | F25: =IF(F24=0,F24,F24*(1+costinflation)*(1-IF($B25<='Key Assumptions'!$D$37,0, IF($B25-1='Key Assumptions'!$D$37,'Key Assumptions'!$D$38, IF($B25-1='Key Assumptions'!$D$39,'Key Assumptions'!$D$40, IF($B25-1='Key Assumptions'!$D$41,'Key Assumptions'!$D$42, IF(AND($B25-1>'Key Assumptions'!$D$41,MOD($B25-1,'Key Assumptions'!$D$43)=0),'Key Assumptions'!$D$44,0))))))) -> 214321.5677 | G25: =IF(G24=0,G24,G24*(1+costinflation)*(1-IF($B25<='Key Assumptions'!$D$57,0, IF($B25-1='Key Assumptions'!$D$57,'Key Assumptions'!$D$58, IF($B25-1='Key Assumptions'!$D$59,'Key Assumptions'!$D$60, IF($B25-1='Key Assumptions'!$D$61,'Key Assumptions'!$D$62, IF(AND($B25-1>'Key Assumptions'!$D$61,MOD($B25-1,'Key Assumptions'!$D$63)=0),'Key Assumptions'!$D$64,0))))))) -> 43297.2864 | H25: 257618.8541 | J25: =IF(J24=0,J24,J24*(1+costinflation)*(1-IF($B25<='Key Assumptions'!$E$37,0, IF($B25-1='Key Assumptions'!$E$37,'Key Assumptions'!$E$38, IF($B25-1='Key Assumptions'!$E$39,'Key Assumptions'!$E$40, IF($B25-1='Key Assumptions'!$E$41,'Key Assumptions'!$E$42, IF(AND($B25-1>'Key Assumptions'!$E$41,MOD($B25-1,'Key Assumptions'!$E$43)=0),'Key Assumptions'!$E$44,0))))))) -> 32472.9648 | K25: =IF(K24=0,K24,K24*(1+costinflation)*(1-IF($B25<='Key Assumptions'!$E$57,0, IF($B25-1='Key Assumptions'!$E$57,'Key Assumptions'!$E$58, IF($B25-1='Key Assumptions'!$E$59,'Key Assumptions'!$E$60, IF($B25-1='Key Assumptions'!$E$61,'Key Assumptions'!$E$62, IF(AND($B25-1>'Key Assumptions'!$E$61,MOD($B25-1,'Key Assumptions'!$E$63)=0),'Key Assumptions'!$E$64,0))))))) -> 3247.29648 | L25: 35720.26128 | M25: =IF(M24=0,M24,M24*(1+costinflation)*(1-IF($B25<='Key Assumptions'!$E$37,0, IF($B25-1='Key Assumptions'!$E$37,'Key Assumptions'!$E$38, IF($B25-1='Key Assumptions'!$E$39,'Key Assumptions'!$E$40, IF($B25-1='Key Assumptions'!$E$41,'Key Assumptions'!$E$42, IF(AND($B25-1>'Key Assumptions'!$E$41,MOD($B25-1,'Key Assumptions'!$E$43)=0),'Key Assumptions'!$E$44,0))))))) -> 35720.26128 | N25: =IF(N24=0,N24,N24*(1+costinflation)*(1-IF($B25<='Key Assumptions'!$E$57,0, IF($B25-1='Key Assumptions'!$E$57,'Key Assumptions'!$E$58, IF($B25-1='Key Assumptions'!$E$59,'Key Assumptions'!$E$60, IF($B25-1='Key Assumptions'!$E$61,'Key Assumptions'!$E$62, IF(AND($B25-1>'Key Assumptions'!$E$61,MOD($B25-1,'Key Assumptions'!$E$63)=0),'Key Assumptions'!$E$64,0))))))) -> 16236.4824 | O25: 51956.74368 | Q25: =IF(Q24=0,Q24,Q24*(1+costinflation)*(1-IF($B25<='Key Assumptions'!$F$37,0, IF($B25-1='Key Assumptions'!$F$37,'Key Assumptions'!$F$38, IF($B25-1='Key Assumptions'!$F$39,'Key Assumptions'!$F$40, IF($B25-1='Key Assumptions'!$F$41,'Key Assumptions'!$F$42, IF(AND($B25-1>'Key Assumptions'!$F$41,MOD($B25-1,'Key Assumptions'!$F$43)=0),'Key Assumptions'!$F$44,0))))))) -> 21648.6432 | R25: =IF(R24=0,R24,R24*(1+costinflation)*(1-IF($B25<='Key Assumptions'!$F$57,0, IF($B25-1='Key Assumptions'!$F$57,'Key Assumptions'!$F$58, IF($B25-1='Key Assumptions'!$F$59,'Key Assumptions'!$F$60, IF($B25-1='Key Assumptions'!$F$61,'Key Assumptions'!$F$62, IF(AND($B25-1>'Key Assumptions'!$F$61,MOD($B25-1,'Key Assumptions'!$F$63)=0),'Key Assumptions'!$F$64,0))))))) -> 2164.86432 | S25: 23813.50752 | T25: =IF(T24=0,T24,T24*(1+costinflation)*(1-IF($B25<='Key Assumptions'!$F$37,0, IF($B25-1='Key Assumptions'!$F$37,'Key Assumptions'!$F$38, IF($B25-1='Key Assumptions'!$F$39,'Key Assumptions'!$F$40, IF($B25-1='Key Assumptions'!$F$41,'Key Assumptions'!$F$42, IF(AND($B25-1>'Key Assumptions'!$F$41,MOD($B25-1,'Key Assumptions'!$F$43)=0),'Key Assumptions'!$F$44,0))))))) -> 11906.75376 | U25: =IF(U24=0,U24,U24*(1+costinflation)*(1-IF($B25<='Key Assumptions'!$F$57,0, IF($B25-1='Key Assumptions'!$F$57,'Key Assumptions'!$F$58, IF($B25-1='Key Assumptions'!$F$59,'Key Assumptions'!$F$60, IF($B25-1='Key Assumptions'!$F$61,'Key Assumptions'!$F$62, IF(AND($B25-1>'Key Assumptions'!$F$61,MOD($B25-1,'Key Assumptions'!$F$63)=0),'Key Assumptions'!$F$64,0))))))) -> 2706.0804 | V25: 14612.83416 | X25: =IF(X24=0,X24,X24*(1+costinflation)*(1-IF($B25<='Key Assumptions'!$G$37,0, IF($B25-1='Key Assumptions'!$G$37,'Key Assumptions'!$G$38, IF($B25-1='Key Assumptions'!$G$39,'Key Assumptions'!$G$40, IF($B25-1='Key Assumptions'!$G$41,'Key Assumptions'!$G$42, IF(AND($B25-1>'Key Assumptions'!$G$41,MOD($B25-1,'Key Assumptions'!$G$43)=0),'Key Assumptions'!$G$44,0))))))) -> 27060.804 | Y25: =IF(Y24=0,Y24,Y24*(1+costinflation)*(1-IF($B25<='Key Assumptions'!$G$57,0, IF($B25-1='Key Assumptions'!$G$57,'Key Assumptions'!$G$58, IF($B25-1='Key Assumptions'!$G$59,'Key Assumptions'!$G$60, IF($B25-1='Key Assumptions'!$G$61,'Key Assumptions'!$G$62, IF(AND($B25-1>'Key Assumptions'!$G$61,MOD($B25-1,'Key Assumptions'!$G$63)=0),'Key Assumptions'!$G$64,0))))))) -> 2706.0804 | Z25: 29766.8844 | AA25: =IF(AA24=0,AA24,AA24*(1+costinflation)*(1-IF($B25<='Key Assumptions'!$G$37,0, IF($B25-1='Key Assumptions'!$G$37,'Key Assumptions'!$G$38, IF($B25-1='Key Assumptions'!$G$39,'Key Assumptions'!$G$40, IF($B25-1='Key Assumptions'!$G$41,'Key Assumptions'!$G$42, IF(AND($B25-1>'Key Assumptions'!$G$41,MOD($B25-1,'Key Assumptions'!$G$43)=0),'Key Assumptions'!$G$44,0))))))) -> 23813.50752 | AB25: =IF(AB24=0,AB24,AB24*(1+costinflation)*(1-IF($B25<='Key Assumptions'!$G$57,0, IF($B25-1='Key Assumptions'!$G$57,'Key Assumptions'!$G$58, IF($B25-1='Key Assumptions'!$G$59,'Key Assumptions'!$G$60, IF($B25-1='Key Assumptions'!$G$61,'Key Assumptions'!$G$62, IF(AND($B25-1>'Key Assumptions'!$G$61,MOD($B25-1,'Key Assumptions'!$G$63)=0),'Key Assumptions'!$G$64,0))))))) -> 3247.29648 | AC25: 27060.804 | AE25: =IF(AE24=0,AE24,AE24*(1+costinflation)*(1-IF($B25<='Key Assumptions'!$H$37,0, IF($B25-1='Key Assumptions'!$H$37,'Key Assumptions'!$H$38, IF($B25-1='Key Assumptions'!$H$39,'Key Assumptions'!$H$40, IF($B25-1='Key Assumptions'!$H$41,'Key Assumptions'!$H$42, IF(AND($B25-1>'Key Assumptions'!$H$41,MOD($B25-1,'Key Assumptions'!$H$43)=0),'Key Assumptions'!$H$44,0))))))) -> 346378.2912 | AF25: =IF(AF24=0,AF24,AF24*(1+costinflation)*(1-IF($B25<='Key Assumptions'!$H$57,0, IF($B25-1='Key Assumptions'!$H$57,'Key Assumptions'!$H$58, IF($B25-1='Key Assumptions'!$H$59,'Key Assumptions'!$H$60, IF($B25-1='Key Assumptions'!$H$61,'Key Assumptions'!$H$62, IF(AND($B25-1>'Key Assumptions'!$H$61,MOD($B25-1,'Key Assumptions'!$H$63)=0),'Key Assumptions'!$H$64,0))))))) -> 7577.02512 | AG25: 353955.3163 | AH25: =IF(AH24=0,AH24,AH24*(1+costinflation)*(1-IF($B25<='Key Assumptions'!$H$37,0, IF($B25-1='Key Assumptions'!$H$37,'Key Assumptions'!$H$38, IF($B25-1='Key Assumptions'!$H$39,'Key Assumptions'!$H$40, IF($B25-1='Key Assumptions'!$H$41,'Key Assumptions'!$H$42, IF(AND($B25-1>'Key Assumptions'!$H$41,MOD($B25-1,'Key Assumptions'!$H$43)=0),'Key Assumptions'!$H$44,0))))))) -> 140716.1808 | AI25: =IF(AI24=0,AI24,AI24*(1+costinflation)*(1-IF($B25<='Key Assumptions'!$H$57,0, IF($B25-1='Key Assumptions'!$H$57,'Key Assumptions'!$H$58, IF($B25-1='Key Assumptions'!$H$59,'Key Assumptions'!$H$60, IF($B25-1='Key Assumptions'!$H$61,'Key Assumptions'!$H$62, IF(AND($B25-1>'Key Assumptions'!$H$61,MOD($B25-1,'Key Assumptions'!$H$63)=0),'Key Assumptions'!$H$64,0))))))) -> 97418.8944 | AJ25: 238135.0752 | AL25: =IF(AL24=0,AL24,AL24*(1+costinflation)*(1-IF($B25<='Key Assumptions'!$I$37,0, IF($B25-1='Key Assumptions'!$I$37,'Key Assumptions'!$I$38, IF($B25-1='Key Assumptions'!$I$39,'Key Assumptions'!$I$40, IF($B25-1='Key Assumptions'!$I$41,'Key Assumptions'!$I$42, IF(AND($B25-1>'Key Assumptions'!$I$41,MOD($B25-1,'Key Assumptions'!$I$43)=0),'Key Assumptions'!$I$44,0))))))) -> 108243.216 | AM25: =IF(AM24=0,AM24,AM24*(1+costinflation)*(1-IF($B25<='Key Assumptions'!$I$57,0, IF($B25-1='Key Assumptions'!$I$57,'Key Assumptions'!$I$58, IF($B25-1='Key Assumptions'!$I$59,'Key Assumptions'!$I$60, IF($B25-1='Key Assumptions'!$I$61,'Key Assumptions'!$I$62, IF(AND($B25-1>'Key Assumptions'!$I$61,MOD($B25-1,'Key Assumptions'!$I$63)=0),'Key Assumptions'!$I$64,0))))))) -> 16236.4824 | AN25: 124479.6984 | AO25: =IF(AO24=0,AO24,AO24*(1+costinflation)*(1-IF($B25<='Key Assumptions'!$I$37,0, IF($B25-1='Key Assumptions'!$I$37,'Key Assumptions'!$I$38, IF($B25-1='Key Assumptions'!$I$39,'Key Assumptions'!$I$40, IF($B25-1='Key Assumptions'!$I$41,'Key Assumptions'!$I$42, IF(AND($B25-1>'Key Assumptions'!$I$41,MOD($B25-1,'Key Assumptions'!$I$43)=0),'Key Assumptions'!$I$44,0))))))) -> 70358.0904 | AP25: =IF(AP24=0,AP24,AP24*(1+costinflation)*(1-IF($B25<='Key Assumptions'!$I$57,0, IF($B25-1='Key Assumptions'!$I$57,'Key Assumptions'!$I$58, IF($B25-1='Key Assumptions'!$I$59,'Key Assumptions'!$I$60, IF($B25-1='Key Assumptions'!$I$61,'Key Assumptions'!$I$62, IF(AND($B25-1>'Key Assumptions'!$I$61,MOD($B25-1,'Key Assumptions'!$I$63)=0),'Key Assumptions'!$I$64,0))))))) -> 43297.2864 | AQ25: 113655.3768 | AS25: =IF(AS24=0,AS24,AS24*(1+costinflation)*(1-IF($B25<='Key Assumptions'!$J$37,0, IF($B25-1='Key Assumptions'!$J$37,'Key Assumptions'!$J$38, IF($B25-1='Key Assumptions'!$J$39,'Key Assumptions'!$J$40, IF($B25-1='Key Assumptions'!$J$41,'Key Assumptions'!$J$42, IF(AND($B25-1>'Key Assumptions'!$J$41,MOD($B25-1,'Key Assumptions'!$J$43)=0),'Key Assumptions'!$J$44,0))))))) -> 108243.216 | AT25: =IF(AT24=0,AT24,AT24*(1+costinflation)*(1-IF($B25<='Key Assumptions'!$J$57,0, IF($B25-1='Key Assumptions'!$J$57,'Key Assumptions'!$J$58, IF($B25-1='Key Assumptions'!$J$59,'Key Assumptions'!$J$60, IF($B25-1='Key Assumptions'!$J$61,'Key Assumptions'!$J$62, IF(AND($B25-1>'Key Assumptions'!$J$61,MOD($B25-1,'Key Assumptions'!$J$63)=0),'Key Assumptions'!$J$64,0))))))) -> 10824.3216 | AU25: 119067.5376 | AV25: =IF(AV24=0,AV24,AV24*(1+costinflation)*(1-IF($B25<='Key Assumptions'!$J$37,0, IF($B25-1='Key Assumptions'!$J$37,'Key Assumptions'!$J$38, IF($B25-1='Key Assumptions'!$J$39,'Key Assumptions'!$J$40, IF($B25-1='Key Assumptions'!$J$41,'Key Assumptions'!$J$42, IF(AND($B25-1>'Key Assumptions'!$J$41,MOD($B25-1,'Key Assumptions'!$J$43)=0),'Key Assumptions'!$J$44,0))))))) -> 309575.5978 | AW25: =IF(AW24=0,AW24,AW24*(1+costinflation)*(1-IF($B25<='Key Assumptions'!$J$57,0, IF($B25-1='Key Assumptions'!$J$57,'Key Assumptions'!$J$58, IF($B25-1='Key Assumptions'!$J$59,'Key Assumptions'!$J$60, IF($B25-1='Key Assumptions'!$J$61,'Key Assumptions'!$J$62, IF(AND($B25-1>'Key Assumptions'!$J$61,MOD($B25-1,'Key Assumptions'!$J$63)=0),'Key Assumptions'!$J$64,0))))))) -> 43297.2864 | AX25: 352872.8842 | AZ25: =IF(AZ24=0,AZ24,AZ24*(1+costinflation)*(1-IF($B25<='Key Assumptions'!$K$37,0, IF($B25-1='Key Assumptions'!$K$37,'Key Assumptions'!$K$38, IF($B25-1='Key Assumptions'!$K$39,'Key Assumptions'!$K$40, IF($B25-1='Key Assumptions'!$K$41,'Key Assumptions'!$K$42, IF(AND($B25-1>'Key Assumptions'!$K$41,MOD($B25-1,'Key Assumptions'!$K$43)=0),'Key Assumptions'!$K$44,0))))))) -> 32472.9648 | BA25: =IF(BA24=0,BA24,BA24*(1+costinflation)*(1-IF($B25<='Key Assumptions'!$K$57,0, IF($B25-1='Key Assumptions'!$K$57,'Key Assumptions'!$K$58, IF($B25-1='Key Assumptions'!$K$59,'Key Assumptions'!$K$60, IF($B25-1='Key Assumptions'!$K$61,'Key Assumptions'!$K$62, IF(AND($B25-1>'Key Assumptions'!$K$61,MOD($B25-1,'Key Assumptions'!$K$63)=0),'Key Assumptions'!$K$64,0))))))) -> 3247.29648 | BB25: 35720.26128 | BC25: =IF(BC24=0,BC24,BC24*(1+costinflation)*(1-IF($B25<='Key Assumptions'!$K$37,0, IF($B25-1='Key Assumptions'!$K$37,'Key Assumptions'!$K$38, IF($B25-1='Key Assumptions'!$K$39,'Key Assumptions'!$K$40, IF($B25-1='Key Assumptions'!$K$41,'Key Assumptions'!$K$42, IF(AND($B25-1>'Key Assumptions'!$K$41,MOD($B25-1,'Key Assumptions'!$K$43)=0),'Key Assumptions'!$K$44,0))))))) -> 42214.85424 | BD25: =IF(BD24=0,BD24,BD24*(1+costinflation)*(1-IF($B25<='Key Assumptions'!$K$57,0, IF($B25-1='Key Assumptions'!$K$57,'Key Assumptions'!$K$58, IF($B25-1='Key Assumptions'!$K$59,'Key Assumptions'!$K$60, IF($B25-1='Key Assumptions'!$K$61,'Key Assumptions'!$K$62, IF(AND($B25-1>'Key Assumptions'!$K$61,MOD($B25-1,'Key Assumptions'!$K$63)=0),'Key Assumptions'!$K$64,0))))))) -> 16236.4824 | BE25: 58451.33664 | BG25: =IF(BG24=0,BG24,BG24*(1+costinflation)*(1-IF($B25<='Key Assumptions'!$L$37,0, IF($B25-1='Key Assumptions'!$L$37,'Key Assumptions'!$L$38, IF($B25-1='Key Assumptions'!$L$39,'Key Assumptions'!$L$40, IF($B25-1='Key Assumptions'!$L$41,'Key Assumptions'!$L$42, IF(AND($B25-1>'Key Assumptions'!$L$41,MOD($B25-1,'Key Assumptions'!$L$43)=0),'Key Assumptions'!$L$44,0))))))) -> 32472.9648 | BH25: =IF(BH24=0,BH24,BH24*(1+costinflation)*(1-IF($B25<='Key Assumptions'!$L$57,0, IF($B25-1='Key Assumptions'!$L$57,'Key Assumptions'!$L$58, IF($B25-1='Key Assumptions'!$L$59,'Key Assumptions'!$L$60, IF($B25-1='Key Assumptions'!$L$61,'Key Assumptions'!$L$62, IF(AND($B25-1>'Key Assumptions'!$L$61,MOD($B25-1,'Key Assumptions'!$L$63)=0),'Key Assumptions'!$L$64,0))))))) -> 3247.29648 | BI25: 35720.26128 | BJ25: =IF(BJ24=0,BJ24,BJ24*(1+costinflation)*(1-IF($B25<='Key Assumptions'!$L$37,0, IF($B25-1='Key Assumptions'!$L$37,'Key Assumptions'!$L$38, IF($B25-1='Key Assumptions'!$L$39,'Key Assumptions'!$L$40, IF($B25-1='Key Assumptions'!$L$41,'Key Assumptions'!$L$42, IF(AND($B25-1>'Key Assumptions'!$L$41,MOD($B25-1,'Key Assumptions'!$L$43)=0),'Key Assumptions'!$L$44,0))))))) -> 29225.66832 | BK25: =IF(BK24=0,BK24,BK24*(1+costinflation)*(1-IF($B25<='Key Assumptions'!$L$57,0, IF($B25-1='Key Assumptions'!$L$57,'Key Assumptions'!$L$58, IF($B25-1='Key Assumptions'!$L$59,'Key Assumptions'!$L$60, IF($B25-1='Key Assumptions'!$L$61,'Key Assumptions'!$L$62, IF(AND($B25-1>'Key Assumptions'!$L$61,MOD($B25-1,'Key Assumptions'!$L$63)=0),'Key Assumptions'!$L$64,0))))))) -> 16236.4824 | BL25: 45462.15072 | BN25: =IF(BN24=0,BN24,BN24*(1+costinflation)*(1-IF($B25<='Key Assumptions'!$M$37,0, IF($B25-1='Key Assumptions'!$M$37,'Key Assumptions'!$M$38, IF($B25-1='Key Assumptions'!$M$39,'Key Assumptions'!$M$40, IF($B25-1='Key Assumptions'!$M$41,'Key Assumptions'!$M$42, IF(AND($B25-1>'Key Assumptions'!$M$41,MOD($B25-1,'Key Assumptions'!$M$43)=0),'Key Assumptions'!$M$44,0))))))) -> 32472.9648 | BO25: =IF(BO24=0,BO24,BO24*(1+costinflation)*(1-IF($B25<='Key Assumptions'!$M$57,0, IF($B25-1='Key Assumptions'!$M$57,'Key Assumptions'!$M$58, IF($B25-1='Key Assumptions'!$M$59,'Key Assumptions'!$M$60, IF($B25-1='Key Assumptions'!$M$61,'Key Assumptions'!$M$62, IF(AND($B25-1>'Key Assumptions'!$M$61,MOD($B25-1,'Key Assumptions'!$M$63)=0),'Key Assumptions'!$M$64,0))))))) -> 3247.29648 | BP25: 35720.26128 | BQ25: =IF(BQ24=0,BQ24,BQ24*(1+costinflation)*(1-IF($B25<='Key Assumptions'!$M$37,0, IF($B25-1='Key Assumptions'!$M$37,'Key Assumptions'!$M$38, IF($B25-1='Key Assumptions'!$M$39,'Key Assumptions'!$M$40, IF($B25-1='Key Assumptions'!$M$41,'Key Assumptions'!$M$42, IF(AND($B25-1>'Key Assumptions'!$M$41,MOD($B25-1,'Key Assumptions'!$M$43)=0),'Key Assumptions'!$M$44,0))))))) -> 42214.85424 | BR25: =IF(BR24=0,BR24,BR24*(1+costinflation)*(1-IF($B25<='Key Assumptions'!$M$57,0, IF($B25-1='Key Assumptions'!$M$57,'Key Assumptions'!$M$58, IF($B25-1='Key Assumptions'!$M$59,'Key Assumptions'!$M$60, IF($B25-1='Key Assumptions'!$M$61,'Key Assumptions'!$M$62, IF(AND($B25-1>'Key Assumptions'!$M$61,MOD($B25-1,'Key Assumptions'!$M$63)=0),'Key Assumptions'!$M$64,0))))))) -> 16236.4824 | BS25: 58451.33664
B26: 5 | C26: =IF(C25=0,C25,C25*(1+costinflation)*(1-IF($B26<='Key Assumptions'!$D$37,0, IF($B26-1='Key Assumptions'!$D$37,'Key Assumptions'!$D$38, IF($B26-1='Key Assumptions'!$D$39,'Key Assumptions'!$D$40, IF($B26-1='Key Assumptions'!$D$41,'Key Assumptions'!$D$42, IF(AND($B26-1>'Key Assumptions'!$D$41,MOD($B26-1,'Key Assumptions'!$D$43)=0),'Key Assumptions'!$D$44,0))))))) -> 110408.0803 | D26: =IF(D25=0,D25,D25*(1+costinflation)*(1-IF($B26<='Key Assumptions'!$D$57,0, IF($B26-1='Key Assumptions'!$D$57,'Key Assumptions'!$D$58, IF($B26-1='Key Assumptions'!$D$59,'Key Assumptions'!$D$60, IF($B26-1='Key Assumptions'!$D$61,'Key Assumptions'!$D$62, IF(AND($B26-1>'Key Assumptions'!$D$61,MOD($B26-1,'Key Assumptions'!$D$63)=0),'Key Assumptions'!$D$64,0))))))) -> 11040.80803 | E26: 121448.8884 | F26: =IF(F25=0,F25,F25*(1+costinflation)*(1-IF($B26<='Key Assumptions'!$D$37,0, IF($B26-1='Key Assumptions'!$D$37,'Key Assumptions'!$D$38, IF($B26-1='Key Assumptions'!$D$39,'Key Assumptions'!$D$40, IF($B26-1='Key Assumptions'!$D$41,'Key Assumptions'!$D$42, IF(AND($B26-1>'Key Assumptions'!$D$41,MOD($B26-1,'Key Assumptions'!$D$43)=0),'Key Assumptions'!$D$44,0))))))) -> 218607.999 | G26: =IF(G25=0,G25,G25*(1+costinflation)*(1-IF($B26<='Key Assumptions'!$D$57,0, IF($B26-1='Key Assumptions'!$D$57,'Key Assumptions'!$D$58, IF($B26-1='Key Assumptions'!$D$59,'Key Assumptions'!$D$60, IF($B26-1='Key Assumptions'!$D$61,'Key Assumptions'!$D$62, IF(AND($B26-1>'Key Assumptions'!$D$61,MOD($B26-1,'Key Assumptions'!$D$63)=0),'Key Assumptions'!$D$64,0))))))) -> 44163.23213 | H26: 262771.2312 | J26: =IF(J25=0,J25,J25*(1+costinflation)*(1-IF($B26<='Key Assumptions'!$E$37,0, IF($B26-1='Key Assumptions'!$E$37,'Key Assumptions'!$E$38, IF($B26-1='Key Assumptions'!$E$39,'Key Assumptions'!$E$40, IF($B26-1='Key Assumptions'!$E$41,'Key Assumptions'!$E$42, IF(AND($B26-1>'Key Assumptions'!$E$41,MOD($B26-1,'Key Assumptions'!$E$43)=0),'Key Assumptions'!$E$44,0))))))) -> 33122.4241 | K26: =IF(K25=0,K25,K25*(1+costinflation)*(1-IF($B26<='Key Assumptions'!$E$57,0, IF($B26-1='Key Assumptions'!$E$57,'Key Assumptions'!$E$58, IF($B26-1='Key Assumptions'!$E$59,'Key Assumptions'!$E$60, IF($B26-1='Key Assumptions'!$E$61,'Key Assumptions'!$E$62, IF(AND($B26-1>'Key Assumptions'!$E$61,MOD($B26-1,'Key Assumptions'!$E$63)=0),'Key Assumptions'!$E$64,0))))))) -> 3312.24241 | L26: 36434.66651 | M26: =IF(M25=0,M25,M25*(1+costinflation)*(1-IF($B26<='Key Assumptions'!$E$37,0, IF($B26-1='Key Assumptions'!$E$37,'Key Assumptions'!$E$38, IF($B26-1='Key Assumptions'!$E$39,'Key Assumptions'!$E$40, IF($B26-1='Key Assumptions'!$E$41,'Key Assumptions'!$E$42, IF(AND($B26-1>'Key Assumptions'!$E$41,MOD($B26-1,'Key Assumptions'!$E$43)=0),'Key Assumptions'!$E$44,0))))))) -> 36434.66651 | N26: =IF(N25=0,N25,N25*(1+costinflation)*(1-IF($B26<='Key Assumptions'!$E$57,0, IF($B26-1='Key Assumptions'!$E$57,'Key Assumptions'!$E$58, IF($B26-1='Key Assumptions'!$E$59,'Key Assumptions'!$E$60, IF($B26-1='Key Assumptions'!$E$61,'Key Assumptions'!$E$62, IF(AND($B26-1>'Key Assumptions'!$E$61,MOD($B26-1,'Key Assumptions'!$E$63)=0),'Key Assumptions'!$E$64,0))))))) -> 16561.21205 | O26: 52995.87855 | Q26: =IF(Q25=0,Q25,Q25*(1+costinflation)*(1-IF($B26<='Key Assumptions'!$F$37,0, IF($B26-1='Key Assumptions'!$F$37,'Key Assumptions'!$F$38, IF($B26-1='Key Assumptions'!$F$39,'Key Assumptions'!$F$40, IF($B26-1='Key Assumptions'!$F$41,'Key Assumptions'!$F$42, IF(AND($B26-1>'Key Assumptions'!$F$41,MOD($B26-1,'Key Assumptions'!$F$43)=0),'Key Assumptions'!$F$44,0))))))) -> 22081.61606 | R26: =IF(R25=0,R25,R25*(1+costinflation)*(1-IF($B26<='Key Assumptions'!$F$57,0, IF($B26-1='Key Assumptions'!$F$57,'Key Assumptions'!$F$58, IF($B26-1='Key Assumptions'!$F$59,'Key Assumptions'!$F$60, IF($B26-1='Key Assumptions'!$F$61,'Key Assumptions'!$F$62, IF(AND($B26-1>'Key Assumptions'!$F$61,MOD($B26-1,'Key Assumptions'!$F$63)=0),'Key Assumptions'!$F$64,0))))))) -> 2208.161606 | S26: 24289.77767 | T26: =IF(T25=0,T25,T25*(1+costinflation)*(1-IF($B26<='Key Assumptions'!$F$37,0, IF($B26-1='Key Assumptions'!$F$37,'Key Assumptions'!$F$38, IF($B26-1='Key Assumptions'!$F$39,'Key Assumptions'!$F$40, IF($B26-1='Key Assumptions'!$F$41,'Key Assumptions'!$F$42, IF(AND($B26-1>'Key Assumptions'!$F$41,MOD($B26-1,'Key Assumptions'!$F$43)=0),'Key Assumptions'!$F$44,0))))))) -> 12144.88884 | U26: =IF(U25=0,U25,U25*(1+costinflation)*(1-IF($B26<='Key Assumptions'!$F$57,0, IF($B26-1='Key Assumptions'!$F$57,'Key Assumptions'!$F$58, IF($B26-1='Key Assumptions'!$F$59,'Key Assumptions'!$F$60, IF($B26-1='Key Assumptions'!$F$61,'Key Assumptions'!$F$62, IF(AND($B26-1>'Key Assumptions'!$F$61,MOD($B26-1,'Key Assumptions'!$F$63)=0),'Key Assumptions'!$F$64,0))))))) -> 2760.202008 | V26: 14905.09084 | X26: =IF(X25=0,X25,X25*(1+costinflation)*(1-IF($B26<='Key Assumptions'!$G$37,0, IF($B26-1='Key Assumptions'!$G$37,'Key Assumptions'!$G$38, IF($B26-1='Key Assumptions'!$G$39,'Key Assumptions'!$G$40, IF($B26-1='Key Assumptions'!$G$41,'Key Assumptions'!$G$42, IF(AND($B26-1>'Key Assumptions'!$G$41,MOD($B26-1,'Key Assumptions'!$G$43)=0),'Key Assumptions'!$G$44,0))))))) -> 27602.02008 | Y26: =IF(Y25=0,Y25,Y25*(1+costinflation)*(1-IF($B26<='Key Assumptions'!$G$57,0, IF($B26-1='Key Assumptions'!$G$57,'Key Assumptions'!$G$58, IF($B26-1='Key Assumptions'!$G$59,'Key Assumptions'!$G$60, IF($B26-1='Key Assumptions'!$G$61,'Key Assumptions'!$G$62, IF(AND($B26-1>'Key Assumptions'!$G$61,MOD($B26-1,'Key Assumptions'!$G$63)=0),'Key Assumptions'!$G$64,0))))))) -> 2760.202008 | Z26: 30362.22209 | AA26: =IF(AA25=0,AA25,AA25*(1+costinflation)*(1-IF($B26<='Key Assumptions'!$G$37,0, IF($B26-1='Key Assumptions'!$G$37,'Key Assumptions'!$G$38, IF($B26-1='Key Assumptions'!$G$39,'Key Assumptions'!$G$40, IF($B26-1='Key Assumptions'!$G$41,'Key Assumptions'!$G$42, IF(AND($B26-1>'Key Assumptions'!$G$41,MOD($B26-1,'Key Assumptions'!$G$43)=0),'Key Assumptions'!$G$44,0))))))) -> 24289.77767 | AB26: =IF(AB25=0,AB25,AB25*(1+costinflation)*(1-IF($B26<='Key Assumptions'!$G$57,0, IF($B26-1='Key Assumptions'!$G$57,'Key Assumptions'!$G$58, IF($B26-1='Key Assumptions'!$G$59,'Key Assumptions'!$G$60, IF($B26-1='Key Assumptions'!$G$61,'Key Assumptions'!$G$62, IF(AND($B26-1>'Key Assumptions'!$G$61,MOD($B26-1,'Key Assumptions'!$G$63)=0),'Key Assumptions'!$G$64,0))))))) -> 3312.24241 | AC26: 27602.02008 | AE26: =IF(AE25=0,AE25,AE25*(1+costinflation)*(1-IF($B26<='Key Assumptions'!$H$37,0, IF($B26-1='Key Assumptions'!$H$37,'Key Assumptions'!$H$38, IF($B26-1='Key Assumptions'!$H$39,'Key Assumptions'!$H$40, IF($B26-1='Key Assumptions'!$H$41,'Key Assumptions'!$H$42, IF(AND($B26-1>'Key Assumptions'!$H$41,MOD($B26-1,'Key Assumptions'!$H$43)=0),'Key Assumptions'!$H$44,0))))))) -> 353305.857 | AF26: =IF(AF25=0,AF25,AF25*(1+costinflation)*(1-IF($B26<='Key Assumptions'!$H$57,0, IF($B26-1='Key Assumptions'!$H$57,'Key Assumptions'!$H$58, IF($B26-1='Key Assumptions'!$H$59,'Key Assumptions'!$H$60, IF($B26-1='Key Assumptions'!$H$61,'Key Assumptions'!$H$62, IF(AND($B26-1>'Key Assumptions'!$H$61,MOD($B26-1,'Key Assumptions'!$H$63)=0),'Key Assumptions'!$H$64,0))))))) -> 7728.565622 | AG26: 361034.4226 | AH26: =IF(AH25=0,AH25,AH25*(1+costinflation)*(1-IF($B26<='Key Assumptions'!$H$37,0, IF($B26-1='Key Assumptions'!$H$37,'Key Assumptions'!$H$38, IF($B26-1='Key Assumptions'!$H$39,'Key Assumptions'!$H$40, IF($B26-1='Key Assumptions'!$H$41,'Key Assumptions'!$H$42, IF(AND($B26-1>'Key Assumptions'!$H$41,MOD($B26-1,'Key Assumptions'!$H$43)=0),'Key Assumptions'!$H$44,0))))))) -> 143530.5044 | AI26: =IF(AI25=0,AI25,AI25*(1+costinflation)*(1-IF($B26<='Key Assumptions'!$H$57,0, IF($B26-1='Key Assumptions'!$H$57,'Key Assumptions'!$H$58, IF($B26-1='Key Assumptions'!$H$59,'Key Assumptions'!$H$60, IF($B26-1='Key Assumptions'!$H$61,'Key Assumptions'!$H$62, IF(AND($B26-1>'Key Assumptions'!$H$61,MOD($B26-1,'Key Assumptions'!$H$63)=0),'Key Assumptions'!$H$64,0))))))) -> 99367.27229 | AJ26: 242897.7767 | AL26: =IF(AL25=0,AL25,AL25*(1+costinflation)*(1-IF($B26<='Key Assumptions'!$I$37,0, IF($B26-1='Key Assumptions'!$I$37,'Key Assumptions'!$I$38, IF($B26-1='Key Assumptions'!$I$39,'Key Assumptions'!$I$40, IF($B26-1='Key Assumptions'!$I$41,'Key Assumptions'!$I$42, IF(AND($B26-1>'Key Assumptions'!$I$41,MOD($B26-1,'Key Assumptions'!$I$43)=0),'Key Assumptions'!$I$44,0))))))) -> 110408.0803 | AM26: =IF(AM25=0,AM25,AM25*(1+costinflation)*(1-IF($B26<='Key Assumptions'!$I$57,0, IF($B26-1='Key Assumptions'!$I$57,'Key Assumptions'!$I$58, IF($B26-1='Key Assumptions'!$I$59,'Key Assumptions'!$I$60, IF($B26-1='Key Assumptions'!$I$61,'Key Assumptions'!$I$62, IF(AND($B26-1>'Key Assumptions'!$I$61,MOD($B26-1,'Key Assumptions'!$I$63)=0),'Key Assumptions'!$I$64,0))))))) -> 16561.21205 | AN26: 126969.2924 | AO26: =IF(AO25=0,AO25,AO25*(1+costinflation)*(1-IF($B26<='Key Assumptions'!$I$37,0, IF($B26-1='Key Assumptions'!$I$37,'Key Assumptions'!$I$38, IF($B26-1='Key Assumptions'!$I$39,'Key Assumptions'!$I$40, IF($B26-1='Key Assumptions'!$I$41,'Key Assumptions'!$I$42, IF(AND($B26-1>'Key Assumptions'!$I$41,MOD($B26-1,'Key Assumptions'!$I$43)=0),'Key Assumptions'!$I$44,0))))))) -> 71765.25221 | AP26: =IF(AP25=0,AP25,AP25*(1+costinflation)*(1-IF($B26<='Key Assumptions'!$I$57,0, IF($B26-1='Key Assumptions'!$I$57,'Key Assumptions'!$I$58, IF($B26-1='Key Assumptions'!$I$59,'Key Assumptions'!$I$60, IF($B26-1='Key Assumptions'!$I$61,'Key Assumptions'!$I$62, IF(AND($B26-1>'Key Assumptions'!$I$61,MOD($B26-1,'Key Assumptions'!$I$63)=0),'Key Assumptions'!$I$64,0))))))) -> 44163.23213 | AQ26: 115928.4843 | AS26: =IF(AS25=0,AS25,AS25*(1+costinflation)*(1-IF($B26<='Key Assumptions'!$J$37,0, IF($B26-1='Key Assumptions'!$J$37,'Key Assumptions'!$J$38, IF($B26-1='Key Assumptions'!$J$39,'Key Assumptions'!$J$40, IF($B26-1='Key Assumptions'!$J$41,'Key Assumptions'!$J$42, IF(AND($B26-1>'Key Assumptions'!$J$41,MOD($B26-1,'Key Assumptions'!$J$43)=0),'Key Assumptions'!$J$44,0))))))) -> 110408.0803 | AT26: =IF(AT25=0,AT25,AT25*(1+costinflation)*(1-IF($B26<='Key Assumptions'!$J$57,0, IF($B26-1='Key Assumptions'!$J$57,'Key Assumptions'!$J$58, IF($B26-1='Key Assumptions'!$J$59,'Key Assumptions'!$J$60, IF($B26-1='Key Assumptions'!$J$61,'Key Assumptions'!$J$62, IF(AND($B26-1>'Key Assumptions'!$J$61,MOD($B26-1,'Key Assumptions'!$J$63)=0),'Key Assumptions'!$J$64,0))))))) -> 11040.80803 | AU26: 121448.8884 | AV26: =IF(AV25=0,AV25,AV25*(1+costinflation)*(1-IF($B26<='Key Assumptions'!$J$37,0, IF($B26-1='Key Assumptions'!$J$37,'Key Assumptions'!$J$38, IF($B26-1='Key Assumptions'!$J$39,'Key Assumptions'!$J$40, IF($B26-1='Key Assumptions'!$J$41,'Key Assumptions'!$J$42, IF(AND($B26-1>'Key Assumptions'!$J$41,MOD($B26-1,'Key Assumptions'!$J$43)=0),'Key Assumptions'!$J$44,0))))))) -> 315767.1097 | AW26: =IF(AW25=0,AW25,AW25*(1+costinflation)*(1-IF($B26<='Key Assumptions'!$J$57,0, IF($B26-1='Key Assumptions'!$J$57,'Key Assumptions'!$J$58, IF($B26-1='Key Assumptions'!$J$59,'Key Assumptions'!$J$60, IF($B26-1='Key Assumptions'!$J$61,'Key Assumptions'!$J$62, IF(AND($B26-1>'Key Assumptions'!$J$61,MOD($B26-1,'Key Assumptions'!$J$63)=0),'Key Assumptions'!$J$64,0))))))) -> 44163.23213 | AX26: 359930.3418 | AZ26: =IF(AZ25=0,AZ25,AZ25*(1+costinflation)*(1-IF($B26<='Key Assumptions'!$K$37,0, IF($B26-1='Key Assumptions'!$K$37,'Key Assumptions'!$K$38, IF($B26-1='Key Assumptions'!$K$39,'Key Assumptions'!$K$40, IF($B26-1='Key Assumptions'!$K$41,'Key Assumptions'!$K$42, IF(AND($B26-1>'Key Assumptions'!$K$41,MOD($B26-1,'Key Assumptions'!$K$43)=0),'Key Assumptions'!$K$44,0))))))) -> 33122.4241 | BA26: =IF(BA25=0,BA25,BA25*(1+costinflation)*(1-IF($B26<='Key Assumptions'!$K$57,0, IF($B26-1='Key Assumptions'!$K$57,'Key Assumptions'!$K$58, IF($B26-1='Key Assumptions'!$K$59,'Key Assumptions'!$K$60, IF($B26-1='Key Assumptions'!$K$61,'Key Assumptions'!$K$62, IF(AND($B26-1>'Key Assumptions'!$K$61,MOD($B26-1,'Key Assumptions'!$K$63)=0),'Key Assumptions'!$K$64,0))))))) -> 3312.24241 | BB26: 36434.66651 | BC26: =IF(BC25=0,BC25,BC25*(1+costinflation)*(1-IF($B26<='Key Assumptions'!$K$37,0, IF($B26-1='Key Assumptions'!$K$37,'Key Assumptions'!$K$38, IF($B26-1='Key Assumptions'!$K$39,'Key Assumptions'!$K$40, IF($B26-1='Key Assumptions'!$K$41,'Key Assumptions'!$K$42, IF(AND($B26-1>'Key Assumptions'!$K$41,MOD($B26-1,'Key Assumptions'!$K$43)=0),'Key Assumptions'!$K$44,0))))))) -> 43059.15132 | BD26: =IF(BD25=0,BD25,BD25*(1+costinflation)*(1-IF($B26<='Key Assumptions'!$K$57,0, IF($B26-1='Key Assumptions'!$K$57,'Key Assumptions'!$K$58, IF($B26-1='Key Assumptions'!$K$59,'Key Assumptions'!$K$60, IF($B26-1='Key Assumptions'!$K$61,'Key Assumptions'!$K$62, IF(AND($B26-1>'Key Assumptions'!$K$61,MOD($B26-1,'Key Assumptions'!$K$63)=0),'Key Assumptions'!$K$64,0))))))) -> 16561.21205 | BE26: 59620.36337 | BG26: =IF(BG25=0,BG25,BG25*(1+costinflation)*(1-IF($B26<='Key Assumptions'!$L$37,0, IF($B26-1='Key Assumptions'!$L$37,'Key Assumptions'!$L$38, IF($B26-1='Key Assumptions'!$L$39,'Key Assumptions'!$L$40, IF($B26-1='Key Assumptions'!$L$41,'Key Assumptions'!$L$42, IF(AND($B26-1>'Key Assumptions'!$L$41,MOD($B26-1,'Key Assumptions'!$L$43)=0),'Key Assumptions'!$L$44,0))))))) -> 33122.4241 | BH26: =IF(BH25=0,BH25,BH25*(1+costinflation)*(1-IF($B26<='Key Assumptions'!$L$57,0, IF($B26-1='Key Assumptions'!$L$57,'Key Assumptions'!$L$58, IF($B26-1='Key Assumptions'!$L$59,'Key Assumptions'!$L$60, IF($B26-1='Key Assumptions'!$L$61,'Key Assumptions'!$L$62, IF(AND($B26-1>'Key Assumptions'!$L$61,MOD($B26-1,'Key Assumptions'!$L$63)=0),'Key Assumptions'!$L$64,0))))))) -> 3312.24241 | BI26: 36434.66651 | BJ26: =IF(BJ25=0,BJ25,BJ25*(1+costinflation)*(1-IF($B26<='Key Assumptions'!$L$37,0, IF($B26-1='Key Assumptions'!$L$37,'Key Assumptions'!$L$38, IF($B26-1='Key Assumptions'!$L$39,'Key Assumptions'!$L$40, IF($B26-1='Key Assumptions'!$L$41,'Key Assumptions'!$L$42, IF(AND($B26-1>'Key Assumptions'!$L$41,MOD($B26-1,'Key Assumptions'!$L$43)=0),'Key Assumptions'!$L$44,0))))))) -> 29810.18169 | BK26: =IF(BK25=0,BK25,BK25*(1+costinflation)*(1-IF($B26<='Key Assumptions'!$L$57,0, IF($B26-1='Key Assumptions'!$L$57,'Key Assumptions'!$L$58, IF($B26-1='Key Assumptions'!$L$59,'Key Assumptions'!$L$60, IF($B26-1='Key Assumptions'!$L$61,'Key Assumptions'!$L$62, IF(AND($B26-1>'Key Assumptions'!$L$61,MOD($B26-1,'Key Assumptions'!$L$63)=0),'Key Assumptions'!$L$64,0))))))) -> 16561.21205 | BL26: 46371.39373 | BN26: =IF(BN25=0,BN25,BN25*(1+costinflation)*(1-IF($B26<='Key Assumptions'!$M$37,0, IF($B26-1='Key Assumptions'!$M$37,'Key Assumptions'!$M$38, IF($B26-1='Key Assumptions'!$M$39,'Key Assumptions'!$M$40, IF($B26-1='Key Assumptions'!$M$41,'Key Assumptions'!$M$42, IF(AND($B26-1>'Key Assumptions'!$M$41,MOD($B26-1,'Key Assumptions'!$M$43)=0),'Key Assumptions'!$M$44,0))))))) -> 33122.4241 | BO26: =IF(BO25=0,BO25,BO25*(1+costinflation)*(1-IF($B26<='Key Assumptions'!$M$57,0, IF($B26-1='Key Assumptions'!$M$57,'Key Assumptions'!$M$58, IF($B26-1='Key Assumptions'!$M$59,'Key Assumptions'!$M$60, IF($B26-1='Key Assumptions'!$M$61,'Key Assumptions'!$M$62, IF(AND($B26-1>'Key Assumptions'!$M$61,MOD($B26-1,'Key Assumptions'!$M$63)=0),'Key Assumptions'!$M$64,0))))))) -> 3312.24241 | BP26: 36434.66651 | BQ26: =IF(BQ25=0,BQ25,BQ25*(1+costinflation)*(1-IF($B26<='Key Assumptions'!$M$37,0, IF($B26-1='Key Assumptions'!$M$37,'Key Assumptions'!$M$38, IF($B26-1='Key Assumptions'!$M$39,'Key Assumptions'!$M$40, IF($B26-1='Key Assumptions'!$M$41,'Key Assumptions'!$M$42, IF(AND($B26-1>'Key Assumptions'!$M$41,MOD($B26-1,'Key Assumptions'!$M$43)=0),'Key Assumptions'!$M$44,0))))))) -> 43059.15132 | BR26: =IF(BR25=0,BR25,BR25*(1+costinflation)*(1-IF($B26<='Key Assumptions'!$M$57,0, IF($B26-1='Key Assumptions'!$M$57,'Key Assumptions'!$M$58, IF($B26-1='Key Assumptions'!$M$59,'Key Assumptions'!$M$60, IF($B26-1='Key Assumptions'!$M$61,'Key Assumptions'!$M$62, IF(AND($B26-1>'Key Assumptions'!$M$61,MOD($B26-1,'Key Assumptions'!$M$63)=0),'Key Assumptions'!$M$64,0))))))) -> 16561.21205 | BS26: 59620.36337
B27: 6 | C27: =IF(C26=0,C26,C26*(1+costinflation)*(1-IF($B27<='Key Assumptions'!$D$37,0, IF($B27-1='Key Assumptions'!$D$37,'Key Assumptions'!$D$38, IF($B27-1='Key Assumptions'!$D$39,'Key Assumptions'!$D$40, IF($B27-1='Key Assumptions'!$D$41,'Key Assumptions'!$D$42, IF(AND($B27-1>'Key Assumptions'!$D$41,MOD($B27-1,'Key Assumptions'!$D$43)=0),'Key Assumptions'!$D$44,0))))))) -> 112616.2419 | D27: =IF(D26=0,D26,D26*(1+costinflation)*(1-IF($B27<='Key Assumptions'!$D$57,0, IF($B27-1='Key Assumptions'!$D$57,'Key Assumptions'!$D$58, IF($B27-1='Key Assumptions'!$D$59,'Key Assumptions'!$D$60, IF($B27-1='Key Assumptions'!$D$61,'Key Assumptions'!$D$62, IF(AND($B27-1>'Key Assumptions'!$D$61,MOD($B27-1,'Key Assumptions'!$D$63)=0),'Key Assumptions'!$D$64,0))))))) -> 11261.62419 | E27: 123877.8661 | F27: =IF(F26=0,F26,F26*(1+costinflation)*(1-IF($B27<='Key Assumptions'!$D$37,0, IF($B27-1='Key Assumptions'!$D$37,'Key Assumptions'!$D$38, IF($B27-1='Key Assumptions'!$D$39,'Key Assumptions'!$D$40, IF($B27-1='Key Assumptions'!$D$41,'Key Assumptions'!$D$42, IF(AND($B27-1>'Key Assumptions'!$D$41,MOD($B27-1,'Key Assumptions'!$D$43)=0),'Key Assumptions'!$D$44,0))))))) -> 222980.159 | G27: =IF(G26=0,G26,G26*(1+costinflation)*(1-IF($B27<='Key Assumptions'!$D$57,0, IF($B27-1='Key Assumptions'!$D$57,'Key Assumptions'!$D$58, IF($B27-1='Key Assumptions'!$D$59,'Key Assumptions'!$D$60, IF($B27-1='Key Assumptions'!$D$61,'Key Assumptions'!$D$62, IF(AND($B27-1>'Key Assumptions'!$D$61,MOD($B27-1,'Key Assumptions'!$D$63)=0),'Key Assumptions'!$D$64,0))))))) -> 45046.49677 | H27: 268026.6558 | J27: =IF(J26=0,J26,J26*(1+costinflation)*(1-IF($B27<='Key Assumptions'!$E$37,0, IF($B27-1='Key Assumptions'!$E$37,'Key Assumptions'!$E$38, IF($B27-1='Key Assumptions'!$E$39,'Key Assumptions'!$E$40, IF($B27-1='Key Assumptions'!$E$41,'Key Assumptions'!$E$42, IF(AND($B27-1>'Key Assumptions'!$E$41,MOD($B27-1,'Key Assumptions'!$E$43)=0),'Key Assumptions'!$E$44,0))))))) -> 33784.87258 | K27: =IF(K26=0,K26,K26*(1+costinflation)*(1-IF($B27<='Key Assumptions'!$E$57,0, IF($B27-1='Key Assumptions'!$E$57,'Key Assumptions'!$E$58, IF($B27-1='Key Assumptions'!$E$59,'Key Assumptions'!$E$60, IF($B27-1='Key Assumptions'!$E$61,'Key Assumptions'!$E$62, IF(AND($B27-1>'Key Assumptions'!$E$61,MOD($B27-1,'Key Assumptions'!$E$63)=0),'Key Assumptions'!$E$64,0))))))) -> 3378.487258 | L27: 37163.35984 | M27: =IF(M26=0,M26,M26*(1+costinflation)*(1-IF($B27<='Key Assumptions'!$E$37,0, IF($B27-1='Key Assumptions'!$E$37,'Key Assumptions'!$E$38, IF($B27-1='Key Assumptions'!$E$39,'Key Assumptions'!$E$40, IF($B27-1='Key Assumptions'!$E$41,'Key Assumptions'!$E$42, IF(AND($B27-1>'Key Assumptions'!$E$41,MOD($B27-1,'Key Assumptions'!$E$43)=0),'Key Assumptions'!$E$44,0))))))) -> 37163.35984 | N27: =IF(N26=0,N26,N26*(1+costinflation)*(1-IF($B27<='Key Assumptions'!$E$57,0, IF($B27-1='Key Assumptions'!$E$57,'Key Assumptions'!$E$58, IF($B27-1='Key Assumptions'!$E$59,'Key Assumptions'!$E$60, IF($B27-1='Key Assumptions'!$E$61,'Key Assumptions'!$E$62, IF(AND($B27-1>'Key Assumptions'!$E$61,MOD($B27-1,'Key Assumptions'!$E$63)=0),'Key Assumptions'!$E$64,0))))))) -> 16892.43629 | O27: 54055.79612 | Q27: =IF(Q26=0,Q26,Q26*(1+costinflation)*(1-IF($B27<='Key Assumptions'!$F$37,0, IF($B27-1='Key Assumptions'!$F$37,'Key Assumptions'!$F$38, IF($B27-1='Key Assumptions'!$F$39,'Key Assumptions'!$F$40, IF($B27-1='Key Assumptions'!$F$41,'Key Assumptions'!$F$42, IF(AND($B27-1>'Key Assumptions'!$F$41,MOD($B27-1,'Key Assumptions'!$F$43)=0),'Key Assumptions'!$F$44,0))))))) -> 22523.24839 | R27: =IF(R26=0,R26,R26*(1+costinflation)*(1-IF($B27<='Key Assumptions'!$F$57,0, IF($B27-1='Key Assumptions'!$F$57,'Key Assumptions'!$F$58, IF($B27-1='Key Assumptions'!$F$59,'Key Assumptions'!$F$60, IF($B27-1='Key Assumptions'!$F$61,'Key Assumptions'!$F$62, IF(AND($B27-1>'Key Assumptions'!$F$61,MOD($B27-1,'Key Assumptions'!$F$63)=0),'Key Assumptions'!$F$64,0))))))) -> 2252.324839 | S27: 24775.57322 | T27: =IF(T26=0,T26,T26*(1+costinflation)*(1-IF($B27<='Key Assumptions'!$F$37,0, IF($B27-1='Key Assumptions'!$F$37,'Key Assumptions'!$F$38, IF($B27-1='Key Assumptions'!$F$39,'Key Assumptions'!$F$40, IF($B27-1='Key Assumptions'!$F$41,'Key Assumptions'!$F$42, IF(AND($B27-1>'Key Assumptions'!$F$41,MOD($B27-1,'Key Assumptions'!$F$43)=0),'Key Assumptions'!$F$44,0))))))) -> 12387.78661 | U27: =IF(U26=0,U26,U26*(1+costinflation)*(1-IF($B27<='Key Assumptions'!$F$57,0, IF($B27-1='Key Assumptions'!$F$57,'Key Assumptions'!$F$58, IF($B27-1='Key Assumptions'!$F$59,'Key Assumptions'!$F$60, IF($B27-1='Key Assumptions'!$F$61,'Key Assumptions'!$F$62, IF(AND($B27-1>'Key Assumptions'!$F$61,MOD($B27-1,'Key Assumptions'!$F$63)=0),'Key Assumptions'!$F$64,0))))))) -> 2815.406048 | V27: 15203.19266 | X27: =IF(X26=0,X26,X26*(1+costinflation)*(1-IF($B27<='Key Assumptions'!$G$37,0, IF($B27-1='Key Assumptions'!$G$37,'Key Assumptions'!$G$38, IF($B27-1='Key Assumptions'!$G$39,'Key Assumptions'!$G$40, IF($B27-1='Key Assumptions'!$G$41,'Key Assumptions'!$G$42, IF(AND($B27-1>'Key Assumptions'!$G$41,MOD($B27-1,'Key Assumptions'!$G$43)=0),'Key Assumptions'!$G$44,0))))))) -> 28154.06048 | Y27: =IF(Y26=0,Y26,Y26*(1+costinflation)*(1-IF($B27<='Key Assumptions'!$G$57,0, IF($B27-1='Key Assumptions'!$G$57,'Key Assumptions'!$G$58, IF($B27-1='Key Assumptions'!$G$59,'Key Assumptions'!$G$60, IF($B27-1='Key Assumptions'!$G$61,'Key Assumptions'!$G$62, IF(AND($B27-1>'Key Assumptions'!$G$61,MOD($B27-1,'Key Assumptions'!$G$63)=0),'Key Assumptions'!$G$64,0))))))) -> 2815.406048 | Z27: 30969.46653 | AA27: =IF(AA26=0,AA26,AA26*(1+costinflation)*(1-IF($B27<='Key Assumptions'!$G$37,0, IF($B27-1='Key Assumptions'!$G$37,'Key Assumptions'!$G$38, IF($B27-1='Key Assumptions'!$G$39,'Key Assumptions'!$G$40, IF($B27-1='Key Assumptions'!$G$41,'Key Assumptions'!$G$42, IF(AND($B27-1>'Key Assumptions'!$G$41,MOD($B27-1,'Key Assumptions'!$G$43)=0),'Key Assumptions'!$G$44,0))))))) -> 24775.57322 | AB27: =IF(AB26=0,AB26,AB26*(1+costinflation)*(1-IF($B27<='Key Assumptions'!$G$57,0, IF($B27-1='Key Assumptions'!$G$57,'Key Assumptions'!$G$58, IF($B27-1='Key Assumptions'!$G$59,'Key Assumptions'!$G$60, IF($B27-1='Key Assumptions'!$G$61,'Key Assumptions'!$G$62, IF(AND($B27-1>'Key Assumptions'!$G$61,MOD($B27-1,'Key Assumptions'!$G$63)=0),'Key Assumptions'!$G$64,0))))))) -> 3378.487258 | AC27: 28154.06048 | AE27: =IF(AE26=0,AE26,AE26*(1+costinflation)*(1-IF($B27<='Key Assumptions'!$H$37,0, IF($B27-1='Key Assumptions'!$H$37,'Key Assumptions'!$H$38, IF($B27-1='Key Assumptions'!$H$39,'Key Assumptions'!$H$40, IF($B27-1='Key Assumptions'!$H$41,'Key Assumptions'!$H$42, IF(AND($B27-1>'Key Assumptions'!$H$41,MOD($B27-1,'Key Assumptions'!$H$43)=0),'Key Assumptions'!$H$44,0))))))) -> 360371.9742 | AF27: =IF(AF26=0,AF26,AF26*(1+costinflation)*(1-IF($B27<='Key Assumptions'!$H$57,0, IF($B27-1='Key Assumptions'!$H$57,'Key Assumptions'!$H$58, IF($B27-1='Key Assumptions'!$H$59,'Key Assumptions'!$H$60, IF($B27-1='Key Assumptions'!$H$61,'Key Assumptions'!$H$62, IF(AND($B27-1>'Key Assumptions'!$H$61,MOD($B27-1,'Key Assumptions'!$H$63)=0),'Key Assumptions'!$H$64,0))))))) -> 7883.136935 | AG27: 368255.1111 | AH27: =IF(AH26=0,AH26,AH26*(1+costinflation)*(1-IF($B27<='Key Assumptions'!$H$37,0, IF($B27-1='Key Assumptions'!$H$37,'Key Assumptions'!$H$38, IF($B27-1='Key Assumptions'!$H$39,'Key Assumptions'!$H$40, IF($B27-1='Key Assumptions'!$H$41,'Key Assumptions'!$H$42, IF(AND($B27-1>'Key Assumptions'!$H$41,MOD($B27-1,'Key Assumptions'!$H$43)=0),'Key Assumptions'!$H$44,0))))))) -> 146401.1145 | AI27: =IF(AI26=0,AI26,AI26*(1+costinflation)*(1-IF($B27<='Key Assumptions'!$H$57,0, IF($B27-1='Key Assumptions'!$H$57,'Key Assumptions'!$H$58, IF($B27-1='Key Assumptions'!$H$59,'Key Assumptions'!$H$60, IF($B27-1='Key Assumptions'!$H$61,'Key Assumptions'!$H$62, IF(AND($B27-1>'Key Assumptions'!$H$61,MOD($B27-1,'Key Assumptions'!$H$63)=0),'Key Assumptions'!$H$64,0))))))) -> 101354.6177 | AJ27: 247755.7322 | AL27: =IF(AL26=0,AL26,AL26*(1+costinflation)*(1-IF($B27<='Key Assumptions'!$I$37,0, IF($B27-1='Key Assumptions'!$I$37,'Key Assumptions'!$I$38, IF($B27-1='Key Assumptions'!$I$39,'Key Assumptions'!$I$40, IF($B27-1='Key Assumptions'!$I$41,'Key Assumptions'!$I$42, IF(AND($B27-1>'Key Assumptions'!$I$41,MOD($B27-1,'Key Assumptions'!$I$43)=0),'Key Assumptions'!$I$44,0))))))) -> 112616.2419 | AM27: =IF(AM26=0,AM26,AM26*(1+costinflation)*(1-IF($B27<='Key Assumptions'!$I$57,0, IF($B27-1='Key Assumptions'!$I$57,'Key Assumptions'!$I$58, IF($B27-1='Key Assumptions'!$I$59,'Key Assumptions'!$I$60, IF($B27-1='Key Assumptions'!$I$61,'Key Assumptions'!$I$62, IF(AND($B27-1>'Key Assumptions'!$I$61,MOD($B27-1,'Key Assumptions'!$I$63)=0),'Key Assumptions'!$I$64,0))))))) -> 16892.43629 | AN27: 129508.6782 | AO27: =IF(AO26=0,AO26,AO26*(1+costinflation)*(1-IF($B27<='Key Assumptions'!$I$37,0, IF($B27-1='Key Assumptions'!$I$37,'Key Assumptions'!$I$38, IF($B27-1='Key Assumptions'!$I$39,'Key Assumptions'!$I$40, IF($B27-1='Key Assumptions'!$I$41,'Key Assumptions'!$I$42, IF(AND($B27-1>'Key Assumptions'!$I$41,MOD($B27-1,'Key Assumptions'!$I$43)=0),'Key Assumptions'!$I$44,0))))))) -> 73200.55725 | AP27: =IF(AP26=0,AP26,AP26*(1+costinflation)*(1-IF($B27<='Key Assumptions'!$I$57,0, IF($B27-1='Key Assumptions'!$I$57,'Key Assumptions'!$I$58, IF($B27-1='Key Assumptions'!$I$59,'Key Assumptions'!$I$60, IF($B27-1='Key Assumptions'!$I$61,'Key Assumptions'!$I$62, IF(AND($B27-1>'Key Assumptions'!$I$61,MOD($B27-1,'Key Assumptions'!$I$63)=0),'Key Assumptions'!$I$64,0))))))) -> 45046.49677 | AQ27: 118247.054 | AS27: =IF(AS26=0,AS26,AS26*(1+costinflation)*(1-IF($B27<='Key Assumptions'!$J$37,0, IF($B27-1='Key Assumptions'!$J$37,'Key Assumptions'!$J$38, IF($B27-1='Key Assumptions'!$J$39,'Key Assumptions'!$J$40, IF($B27-1='Key Assumptions'!$J$41,'Key Assumptions'!$J$42, IF(AND($B27-1>'Key Assumptions'!$J$41,MOD($B27-1,'Key Assumptions'!$J$43)=0),'Key Assumptions'!$J$44,0))))))) -> 112616.2419 | AT27: =IF(AT26=0,AT26,AT26*(1+costinflation)*(1-IF($B27<='Key Assumptions'!$J$57,0, IF($B27-1='Key Assumptions'!$J$57,'Key Assumptions'!$J$58, IF($B27-1='Key Assumptions'!$J$59,'Key Assumptions'!$J$60, IF($B27-1='Key Assumptions'!$J$61,'Key Assumptions'!$J$62, IF(AND($B27-1>'Key Assumptions'!$J$61,MOD($B27-1,'Key Assumptions'!$J$63)=0),'Key Assumptions'!$J$64,0))))))) -> 11261.62419 | AU27: 123877.8661 | AV27: =IF(AV26=0,AV26,AV26*(1+costinflation)*(1-IF($B27<='Key Assumptions'!$J$37,0, IF($B27-1='Key Assumptions'!$J$37,'Key Assumptions'!$J$38, IF($B27-1='Key Assumptions'!$J$39,'Key Assumptions'!$J$40, IF($B27-1='Key Assumptions'!$J$41,'Key Assumptions'!$J$42, IF(AND($B27-1>'Key Assumptions'!$J$41,MOD($B27-1,'Key Assumptions'!$J$43)=0),'Key Assumptions'!$J$44,0))))))) -> 322082.4519 | AW27: =IF(AW26=0,AW26,AW26*(1+costinflation)*(1-IF($B27<='Key Assumptions'!$J$57,0, IF($B27-1='Key Assumptions'!$J$57,'Key Assumptions'!$J$58, IF($B27-1='Key Assumptions'!$J$59,'Key Assumptions'!$J$60, IF($B27-1='Key Assumptions'!$J$61,'Key Assumptions'!$J$62, IF(AND($B27-1>'Key Assumptions'!$J$61,MOD($B27-1,'Key Assumptions'!$J$63)=0),'Key Assumptions'!$J$64,0))))))) -> 45046.49677 | AX27: 367128.9487 | AZ27: =IF(AZ26=0,AZ26,AZ26*(1+costinflation)*(1-IF($B27<='Key Assumptions'!$K$37,0, IF($B27-1='Key Assumptions'!$K$37,'Key Assumptions'!$K$38, IF($B27-1='Key Assumptions'!$K$39,'Key Assumptions'!$K$40, IF($B27-1='Key Assumptions'!$K$41,'Key Assumptions'!$K$42, IF(AND($B27-1>'Key Assumptions'!$K$41,MOD($B27-1,'Key Assumptions'!$K$43)=0),'Key Assumptions'!$K$44,0))))))) -> 33784.87258 | BA27: =IF(BA26=0,BA26,BA26*(1+costinflation)*(1-IF($B27<='Key Assumptions'!$K$57,0, IF($B27-1='Key Assumptions'!$K$57,'Key Assumptions'!$K$58, IF($B27-1='Key Assumptions'!$K$59,'Key Assumptions'!$K$60, IF($B27-1='Key Assumptions'!$K$61,'Key Assumptions'!$K$62, IF(AND($B27-1>'Key Assumptions'!$K$61,MOD($B27-1,'Key Assumptions'!$K$63)=0),'Key Assumptions'!$K$64,0))))))) -> 3378.487258 | BB27: 37163.35984 | BC27: =IF(BC26=0,BC26,BC26*(1+costinflation)*(1-IF($B27<='Key Assumptions'!$K$37,0, IF($B27-1='Key Assumptions'!$K$37,'Key Assumptions'!$K$38, IF($B27-1='Key Assumptions'!$K$39,'Key Assumptions'!$K$40, IF($B27-1='Key Assumptions'!$K$41,'Key Assumptions'!$K$42, IF(AND($B27-1>'Key Assumptions'!$K$41,MOD($B27-1,'Key Assumptions'!$K$43)=0),'Key Assumptions'!$K$44,0))))))) -> 43920.33435 | BD27: =IF(BD26=0,BD26,BD26*(1+costinflation)*(1-IF($B27<='Key Assumptions'!$K$57,0, IF($B27-1='Key Assumptions'!$K$57,'Key Assumptions'!$K$58, IF($B27-1='Key Assumptions'!$K$59,'Key Assumptions'!$K$60, IF($B27-1='Key Assumptions'!$K$61,'Key Assumptions'!$K$62, IF(AND($B27-1>'Key Assumptions'!$K$61,MOD($B27-1,'Key Assumptions'!$K$63)=0),'Key Assumptions'!$K$64,0))))))) -> 16892.43629 | BE27: 60812.77064 | BG27: =IF(BG26=0,BG26,BG26*(1+costinflation)*(1-IF($B27<='Key Assumptions'!$L$37,0, IF($B27-1='Key Assumptions'!$L$37,'Key Assumptions'!$L$38, IF($B27-1='Key Assumptions'!$L$39,'Key Assumptions'!$L$40, IF($B27-1='Key Assumptions'!$L$41,'Key Assumptions'!$L$42, IF(AND($B27-1>'Key Assumptions'!$L$41,MOD($B27-1,'Key Assumptions'!$L$43)=0),'Key Assumptions'!$L$44,0))))))) -> 33784.87258 | BH27: =IF(BH26=0,BH26,BH26*(1+costinflation)*(1-IF($B27<='Key Assumptions'!$L$57,0, IF($B27-1='Key Assumptions'!$L$57,'Key Assumptions'!$L$58, IF($B27-1='Key Assumptions'!$L$59,'Key Assumptions'!$L$60, IF($B27-1='Key Assumptions'!$L$61,'Key Assumptions'!$L$62, IF(AND($B27-1>'Key Assumptions'!$L$61,MOD($B27-1,'Key Assumptions'!$L$63)=0),'Key Assumptions'!$L$64,0))))))) -> 3378.487258 | BI27: 37163.35984 | BJ27: =IF(BJ26=0,BJ26,BJ26*(1+costinflation)*(1-IF($B27<='Key Assumptions'!$L$37,0, IF($B27-1='Key Assumptions'!$L$37,'Key Assumptions'!$L$38, IF($B27-1='Key Assumptions'!$L$39,'Key Assumptions'!$L$40, IF($B27-1='Key Assumptions'!$L$41,'Key Assumptions'!$L$42, IF(AND($B27-1>'Key Assumptions'!$L$41,MOD($B27-1,'Key Assumptions'!$L$43)=0),'Key Assumptions'!$L$44,0))))))) -> 30406.38532 | BK27: =IF(BK26=0,BK26,BK26*(1+costinflation)*(1-IF($B27<='Key Assumptions'!$L$57,0, IF($B27-1='Key Assumptions'!$L$57,'Key Assumptions'!$L$58, IF($B27-1='Key Assumptions'!$L$59,'Key Assumptions'!$L$60, IF($B27-1='Key Assumptions'!$L$61,'Key Assumptions'!$L$62, IF(AND($B27-1>'Key Assumptions'!$L$61,MOD($B27-1,'Key Assumptions'!$L$63)=0),'Key Assumptions'!$L$64,0))))))) -> 16892.43629 | BL27: 47298.82161 | BN27: =IF(BN26=0,BN26,BN26*(1+costinflation)*(1-IF($B27<='Key Assumptions'!$M$37,0, IF($B27-1='Key Assumptions'!$M$37,'Key Assumptions'!$M$38, IF($B27-1='Key Assumptions'!$M$39,'Key Assumptions'!$M$40, IF($B27-1='Key Assumptions'!$M$41,'Key Assumptions'!$M$42, IF(AND($B27-1>'Key Assumptions'!$M$41,MOD($B27-1,'Key Assumptions'!$M$43)=0),'Key Assumptions'!$M$44,0))))))) -> 33784.87258 | BO27: =IF(BO26=0,BO26,BO26*(1+costinflation)*(1-IF($B27<='Key Assumptions'!$M$57,0, IF($B27-1='Key Assumptions'!$M$57,'Key Assumptions'!$M$58, IF($B27-1='Key Assumptions'!$M$59,'Key Assumptions'!$M$60, IF($B27-1='Key Assumptions'!$M$61,'Key Assumptions'!$M$62, IF(AND($B27-1>'Key Assumptions'!$M$61,MOD($B27-1,'Key Assumptions'!$M$63)=0),'Key Assumptions'!$M$64,0))))))) -> 3378.487258 | BP27: 37163.35984 | BQ27: =IF(BQ26=0,BQ26,BQ26*(1+costinflation)*(1-IF($B27<='Key Assumptions'!$M$37,0, IF($B27-1='Key Assumptions'!$M$37,'Key Assumptions'!$M$38, IF($B27-1='Key Assumptions'!$M$39,'Key Assumptions'!$M$40, IF($B27-1='Key Assumptions'!$M$41,'Key Assumptions'!$M$42, IF(AND($B27-1>'Key Assumptions'!$M$41,MOD($B27-1,'Key Assumptions'!$M$43)=0),'Key Assumptions'!$M$44,0))))))) -> 43920.33435 | BR27: =IF(BR26=0,BR26,BR26*(1+costinflation)*(1-IF($B27<='Key Assumptions'!$M$57,0, IF($B27-1='Key Assumptions'!$M$57,'Key Assumptions'!$M$58, IF($B27-1='Key Assumptions'!$M$59,'Key Assumptions'!$M$60, IF($B27-1='Key Assumptions'!$M$61,'Key Assumptions'!$M$62, IF(AND($B27-1>'Key Assumptions'!$M$61,MOD($B27-1,'Key Assumptions'!$M$63)=0),'Key Assumptions'!$M$64,0))))))) -> 16892.43629 | BS27: 60812.77064
B28: 7 | C28: =IF(C27=0,C27,C27*(1+costinflation)*(1-IF($B28<='Key Assumptions'!$D$37,0, IF($B28-1='Key Assumptions'!$D$37,'Key Assumptions'!$D$38, IF($B28-1='Key Assumptions'!$D$39,'Key Assumptions'!$D$40, IF($B28-1='Key Assumptions'!$D$41,'Key Assumptions'!$D$42, IF(AND($B28-1>'Key Assumptions'!$D$41,MOD($B28-1,'Key Assumptions'!$D$43)=0),'Key Assumptions'!$D$44,0))))))) -> 114868.5668 | D28: =IF(D27=0,D27,D27*(1+costinflation)*(1-IF($B28<='Key Assumptions'!$D$57,0, IF($B28-1='Key Assumptions'!$D$57,'Key Assumptions'!$D$58, IF($B28-1='Key Assumptions'!$D$59,'Key Assumptions'!$D$60, IF($B28-1='Key Assumptions'!$D$61,'Key Assumptions'!$D$62, IF(AND($B28-1>'Key Assumptions'!$D$61,MOD($B28-1,'Key Assumptions'!$D$63)=0),'Key Assumptions'!$D$64,0))))))) -> 11486.85668 | E28: 126355.4234 | F28: =IF(F27=0,F27,F27*(1+costinflation)*(1-IF($B28<='Key Assumptions'!$D$37,0, IF($B28-1='Key Assumptions'!$D$37,'Key Assumptions'!$D$38, IF($B28-1='Key Assumptions'!$D$39,'Key Assumptions'!$D$40, IF($B28-1='Key Assumptions'!$D$41,'Key Assumptions'!$D$42, IF(AND($B28-1>'Key Assumptions'!$D$41,MOD($B28-1,'Key Assumptions'!$D$43)=0),'Key Assumptions'!$D$44,0))))))) -> 227439.7622 | G28: =IF(G27=0,G27,G27*(1+costinflation)*(1-IF($B28<='Key Assumptions'!$D$57,0, IF($B28-1='Key Assumptions'!$D$57,'Key Assumptions'!$D$58, IF($B28-1='Key Assumptions'!$D$59,'Key Assumptions'!$D$60, IF($B28-1='Key Assumptions'!$D$61,'Key Assumptions'!$D$62, IF(AND($B28-1>'Key Assumptions'!$D$61,MOD($B28-1,'Key Assumptions'!$D$63)=0),'Key Assumptions'!$D$64,0))))))) -> 45947.42671 | H28: 273387.1889 | J28: =IF(J27=0,J27,J27*(1+costinflation)*(1-IF($B28<='Key Assumptions'!$E$37,0, IF($B28-1='Key Assumptions'!$E$37,'Key Assumptions'!$E$38, IF($B28-1='Key Assumptions'!$E$39,'Key Assumptions'!$E$40, IF($B28-1='Key Assumptions'!$E$41,'Key Assumptions'!$E$42, IF(AND($B28-1>'Key Assumptions'!$E$41,MOD($B28-1,'Key Assumptions'!$E$43)=0),'Key Assumptions'!$E$44,0))))))) -> 34460.57003 | K28: =IF(K27=0,K27,K27*(1+costinflation)*(1-IF($B28<='Key Assumptions'!$E$57,0, IF($B28-1='Key Assumptions'!$E$57,'Key Assumptions'!$E$58, IF($B28-1='Key Assumptions'!$E$59,'Key Assumptions'!$E$60, IF($B28-1='Key Assumptions'!$E$61,'Key Assumptions'!$E$62, IF(AND($B28-1>'Key Assumptions'!$E$61,MOD($B28-1,'Key Assumptions'!$E$63)=0),'Key Assumptions'!$E$64,0))))))) -> 3446.057003 | L28: 37906.62703 | M28: =IF(M27=0,M27,M27*(1+costinflation)*(1-IF($B28<='Key Assumptions'!$E$37,0, IF($B28-1='Key Assumptions'!$E$37,'Key Assumptions'!$E$38, IF($B28-1='Key Assumptions'!$E$39,'Key Assumptions'!$E$40, IF($B28-1='Key Assumptions'!$E$41,'Key Assumptions'!$E$42, IF(AND($B28-1>'Key Assumptions'!$E$41,MOD($B28-1,'Key Assumptions'!$E$43)=0),'Key Assumptions'!$E$44,0))))))) -> 37906.62703 | N28: =IF(N27=0,N27,N27*(1+costinflation)*(1-IF($B28<='Key Assumptions'!$E$57,0, IF($B28-1='Key Assumptions'!$E$57,'Key Assumptions'!$E$58, IF($B28-1='Key Assumptions'!$E$59,'Key Assumptions'!$E$60, IF($B28-1='Key Assumptions'!$E$61,'Key Assumptions'!$E$62, IF(AND($B28-1>'Key Assumptions'!$E$61,MOD($B28-1,'Key Assumptions'!$E$63)=0),'Key Assumptions'!$E$64,0))))))) -> 17230.28501 | O28: 55136.91205 | Q28: =IF(Q27=0,Q27,Q27*(1+costinflation)*(1-IF($B28<='Key Assumptions'!$F$37,0, IF($B28-1='Key Assumptions'!$F$37,'Key Assumptions'!$F$38, IF($B28-1='Key Assumptions'!$F$39,'Key Assumptions'!$F$40, IF($B28-1='Key Assumptions'!$F$41,'Key Assumptions'!$F$42, IF(AND($B28-1>'Key Assumptions'!$F$41,MOD($B28-1,'Key Assumptions'!$F$43)=0),'Key Assumptions'!$F$44,0))))))) -> 22973.71335 | R28: =IF(R27=0,R27,R27*(1+costinflation)*(1-IF($B28<='Key Assumptions'!$F$57,0, IF($B28-1='Key Assumptions'!$F$57,'Key Assumptions'!$F$58, IF($B28-1='Key Assumptions'!$F$59,'Key Assumptions'!$F$60, IF($B28-1='Key Assumptions'!$F$61,'Key Assumptions'!$F$62, IF(AND($B28-1>'Key Assumptions'!$F$61,MOD($B28-1,'Key Assumptions'!$F$63)=0),'Key Assumptions'!$F$64,0))))))) -> 2297.371335 | S28: 25271.08469 | T28: =IF(T27=0,T27,T27*(1+costinflation)*(1-IF($B28<='Key Assumptions'!$F$37,0, IF($B28-1='Key Assumptions'!$F$37,'Key Assumptions'!$F$38, IF($B28-1='Key Assumptions'!$F$39,'Key Assumptions'!$F$40, IF($B28-1='Key Assumptions'!$F$41,'Key Assumptions'!$F$42, IF(AND($B28-1>'Key Assumptions'!$F$41,MOD($B28-1,'Key Assumptions'!$F$43)=0),'Key Assumptions'!$F$44,0))))))) -> 12635.54234 | U28: =IF(U27=0,U27,U27*(1+costinflation)*(1-IF($B28<='Key Assumptions'!$F$57,0, IF($B28-1='Key Assumptions'!$F$57,'Key Assumptions'!$F$58, IF($B28-1='Key Assumptions'!$F$59,'Key Assumptions'!$F$60, IF($B28-1='Key Assumptions'!$F$61,'Key Assumptions'!$F$62, IF(AND($B28-1>'Key Assumptions'!$F$61,MOD($B28-1,'Key Assumptions'!$F$63)=0),'Key Assumptions'!$F$64,0))))))) -> 2871.714169 | V28: 15507.25651 | X28: =IF(X27=0,X27,X27*(1+costinflation)*(1-IF($B28<='Key Assumptions'!$G$37,0, IF($B28-1='Key Assumptions'!$G$37,'Key Assumptions'!$G$38, IF($B28-1='Key Assumptions'!$G$39,'Key Assumptions'!$G$40, IF($B28-1='Key Assumptions'!$G$41,'Key Assumptions'!$G$42, IF(AND($B28-1>'Key Assumptions'!$G$41,MOD($B28-1,'Key Assumptions'!$G$43)=0),'Key Assumptions'!$G$44,0))))))) -> 28717.14169 | Y28: =IF(Y27=0,Y27,Y27*(1+costinflation)*(1-IF($B28<='Key Assumptions'!$G$57,0, IF($B28-1='Key Assumptions'!$G$57,'Key Assumptions'!$G$58, IF($B28-1='Key Assumptions'!$G$59,'Key Assumptions'!$G$60, IF($B28-1='Key Assumptions'!$G$61,'Key Assumptions'!$G$62, IF(AND($B28-1>'Key Assumptions'!$G$61,MOD($B28-1,'Key Assumptions'!$G$63)=0),'Key Assumptions'!$G$64,0))))))) -> 2871.714169 | Z28: 31588.85586 | AA28: =IF(AA27=0,AA27,AA27*(1+costinflation)*(1-IF($B28<='Key Assumptions'!$G$37,0, IF($B28-1='Key Assumptions'!$G$37,'Key Assumptions'!$G$38, IF($B28-1='Key Assumptions'!$G$39,'Key Assumptions'!$G$40, IF($B28-1='Key Assumptions'!$G$41,'Key Assumptions'!$G$42, IF(AND($B28-1>'Key Assumptions'!$G$41,MOD($B28-1,'Key Assumptions'!$G$43)=0),'Key Assumptions'!$G$44,0))))))) -> 25271.08469 | AB28: =IF(AB27=0,AB27,AB27*(1+costinflation)*(1-IF($B28<='Key Assumptions'!$G$57,0, IF($B28-1='Key Assumptions'!$G$57,'Key Assumptions'!$G$58, IF($B28-1='Key Assumptions'!$G$59,'Key Assumptions'!$G$60, IF($B28-1='Key Assumptions'!$G$61,'Key Assumptions'!$G$62, IF(AND($B28-1>'Key Assumptions'!$G$61,MOD($B28-1,'Key Assumptions'!$G$63)=0),'Key Assumptions'!$G$64,0))))))) -> 3446.057003 | AC28: 28717.14169 | AE28: =IF(AE27=0,AE27,AE27*(1+costinflation)*(1-IF($B28<='Key Assumptions'!$H$37,0, IF($B28-1='Key Assumptions'!$H$37,'Key Assumptions'!$H$38, IF($B28-1='Key Assumptions'!$H$39,'Key Assumptions'!$H$40, IF($B28-1='Key Assumptions'!$H$41,'Key Assumptions'!$H$42, IF(AND($B28-1>'Key Assumptions'!$H$41,MOD($B28-1,'Key Assumptions'!$H$43)=0),'Key Assumptions'!$H$44,0))))))) -> 367579.4136 | AF28: =IF(AF27=0,AF27,AF27*(1+costinflation)*(1-IF($B28<='Key Assumptions'!$H$57,0, IF($B28-1='Key Assumptions'!$H$57,'Key Assumptions'!$H$58, IF($B28-1='Key Assumptions'!$H$59,'Key Assumptions'!$H$60, IF($B28-1='Key Assumptions'!$H$61,'Key Assumptions'!$H$62, IF(AND($B28-1>'Key Assumptions'!$H$61,MOD($B28-1,'Key Assumptions'!$H$63)=0),'Key Assumptions'!$H$64,0))))))) -> 8040.799674 | AG28: 375620.2133 | AH28: =IF(AH27=0,AH27,AH27*(1+costinflation)*(1-IF($B28<='Key Assumptions'!$H$37,0, IF($B28-1='Key Assumptions'!$H$37,'Key Assumptions'!$H$38, IF($B28-1='Key Assumptions'!$H$39,'Key Assumptions'!$H$40, IF($B28-1='Key Assumptions'!$H$41,'Key Assumptions'!$H$42, IF(AND($B28-1>'Key Assumptions'!$H$41,MOD($B28-1,'Key Assumptions'!$H$43)=0),'Key Assumptions'!$H$44,0))))))) -> 149329.1368 | AI28: =IF(AI27=0,AI27,AI27*(1+costinflation)*(1-IF($B28<='Key Assumptions'!$H$57,0, IF($B28-1='Key Assumptions'!$H$57,'Key Assumptions'!$H$58, IF($B28-1='Key Assumptions'!$H$59,'Key Assumptions'!$H$60, IF($B28-1='Key Assumptions'!$H$61,'Key Assumptions'!$H$62, IF(AND($B28-1>'Key Assumptions'!$H$61,MOD($B28-1,'Key Assumptions'!$H$63)=0),'Key Assumptions'!$H$64,0))))))) -> 103381.7101 | AJ28: 252710.8469 | AL28: =IF(AL27=0,AL27,AL27*(1+costinflation)*(1-IF($B28<='Key Assumptions'!$I$37,0, IF($B28-1='Key Assumptions'!$I$37,'Key Assumptions'!$I$38, IF($B28-1='Key Assumptions'!$I$39,'Key Assumptions'!$I$40, IF($B28-1='Key Assumptions'!$I$41,'Key Assumptions'!$I$42, IF(AND($B28-1>'Key Assumptions'!$I$41,MOD($B28-1,'Key Assumptions'!$I$43)=0),'Key Assumptions'!$I$44,0))))))) -> 114868.5668 | AM28: =IF(AM27=0,AM27,AM27*(1+costinflation)*(1-IF($B28<='Key Assumptions'!$I$57,0, IF($B28-1='Key Assumptions'!$I$57,'Key Assumptions'!$I$58, IF($B28-1='Key Assumptions'!$I$59,'Key Assumptions'!$I$60, IF($B28-1='Key Assumptions'!$I$61,'Key Assumptions'!$I$62, IF(AND($B28-1>'Key Assumptions'!$I$61,MOD($B28-1,'Key Assumptions'!$I$63)=0),'Key Assumptions'!$I$64,0))))))) -> 17230.28501 | AN28: 132098.8518 | AO28: =IF(AO27=0,AO27,AO27*(1+costinflation)*(1-IF($B28<='Key Assumptions'!$I$37,0, IF($B28-1='Key Assumptions'!$I$37,'Key Assumptions'!$I$38, IF($B28-1='Key Assumptions'!$I$39,'Key Assumptions'!$I$40, IF($B28-1='Key Assumptions'!$I$41,'Key Assumptions'!$I$42, IF(AND($B28-1>'Key Assumptions'!$I$41,MOD($B28-1,'Key Assumptions'!$I$43)=0),'Key Assumptions'!$I$44,0))))))) -> 74664.5684 | AP28: =IF(AP27=0,AP27,AP27*(1+costinflation)*(1-IF($B28<='Key Assumptions'!$I$57,0, IF($B28-1='Key Assumptions'!$I$57,'Key Assumptions'!$I$58, IF($B28-1='Key Assumptions'!$I$59,'Key Assumptions'!$I$60, IF($B28-1='Key Assumptions'!$I$61,'Key Assumptions'!$I$62, IF(AND($B28-1>'Key Assumptions'!$I$61,MOD($B28-1,'Key Assumptions'!$I$63)=0),'Key Assumptions'!$I$64,0))))))) -> 45947.42671 | AQ28: 120611.9951 | AS28: =IF(AS27=0,AS27,AS27*(1+costinflation)*(1-IF($B28<='Key Assumptions'!$J$37,0, IF($B28-1='Key Assumptions'!$J$37,'Key Assumptions'!$J$38, IF($B28-1='Key Assumptions'!$J$39,'Key Assumptions'!$J$40, IF($B28-1='Key Assumptions'!$J$41,'Key Assumptions'!$J$42, IF(AND($B28-1>'Key Assumptions'!$J$41,MOD($B28-1,'Key Assumptions'!$J$43)=0),'Key Assumptions'!$J$44,0))))))) -> 114868.5668 | AT28: =IF(AT27=0,AT27,AT27*(1+costinflation)*(1-IF($B28<='Key Assumptions'!$J$57,0, IF($B28-1='Key Assumptions'!$J$57,'Key Assumptions'!$J$58, IF($B28-1='Key Assumptions'!$J$59,'Key Assumptions'!$J$60, IF($B28-1='Key Assumptions'!$J$61,'Key Assumptions'!$J$62, IF(AND($B28-1>'Key Assumptions'!$J$61,MOD($B28-1,'Key Assumptions'!$J$63)=0),'Key Assumptions'!$J$64,0))))))) -> 11486.85668 | AU28: 126355.4234 | AV28: =IF(AV27=0,AV27,AV27*(1+costinflation)*(1-IF($B28<='Key Assumptions'!$J$37,0, IF($B28-1='Key Assumptions'!$J$37,'Key Assumptions'!$J$38, IF($B28-1='Key Assumptions'!$J$39,'Key Assumptions'!$J$40, IF($B28-1='Key Assumptions'!$J$41,'Key Assumptions'!$J$42, IF(AND($B28-1>'Key Assumptions'!$J$41,MOD($B28-1,'Key Assumptions'!$J$43)=0),'Key Assumptions'!$J$44,0))))))) -> 328524.1009 | AW28: =IF(AW27=0,AW27,AW27*(1+costinflation)*(1-IF($B28<='Key Assumptions'!$J$57,0, IF($B28-1='Key Assumptions'!$J$57,'Key Assumptions'!$J$58, IF($B28-1='Key Assumptions'!$J$59,'Key Assumptions'!$J$60, IF($B28-1='Key Assumptions'!$J$61,'Key Assumptions'!$J$62, IF(AND($B28-1>'Key Assumptions'!$J$61,MOD($B28-1,'Key Assumptions'!$J$63)=0),'Key Assumptions'!$J$64,0))))))) -> 45947.42671 | AX28: 374471.5277 | AZ28: =IF(AZ27=0,AZ27,AZ27*(1+costinflation)*(1-IF($B28<='Key Assumptions'!$K$37,0, IF($B28-1='Key Assumptions'!$K$37,'Key Assumptions'!$K$38, IF($B28-1='Key Assumptions'!$K$39,'Key Assumptions'!$K$40, IF($B28-1='Key Assumptions'!$K$41,'Key Assumptions'!$K$42, IF(AND($B28-1>'Key Assumptions'!$K$41,MOD($B28-1,'Key Assumptions'!$K$43)=0),'Key Assumptions'!$K$44,0))))))) -> 34460.57003 | BA28: =IF(BA27=0,BA27,BA27*(1+costinflation)*(1-IF($B28<='Key Assumptions'!$K$57,0, IF($B28-1='Key Assumptions'!$K$57,'Key Assumptions'!$K$58, IF($B28-1='Key Assumptions'!$K$59,'Key Assumptions'!$K$60, IF($B28-1='Key Assumptions'!$K$61,'Key Assumptions'!$K$62, IF(AND($B28-1>'Key Assumptions'!$K$61,MOD($B28-1,'Key Assumptions'!$K$63)=0),'Key Assumptions'!$K$64,0))))))) -> 3446.057003 | BB28: 37906.62703 | BC28: =IF(BC27=0,BC27,BC27*(1+costinflation)*(1-IF($B28<='Key Assumptions'!$K$37,0, IF($B28-1='Key Assumptions'!$K$37,'Key Assumptions'!$K$38, IF($B28-1='Key Assumptions'!$K$39,'Key Assumptions'!$K$40, IF($B28-1='Key Assumptions'!$K$41,'Key Assumptions'!$K$42, IF(AND($B28-1>'Key Assumptions'!$K$41,MOD($B28-1,'Key Assumptions'!$K$43)=0),'Key Assumptions'!$K$44,0))))))) -> 44798.74104 | BD28: =IF(BD27=0,BD27,BD27*(1+costinflation)*(1-IF($B28<='Key Assumptions'!$K$57,0, IF($B28-1='Key Assumptions'!$K$57,'Key Assumptions'!$K$58, IF($B28-1='Key Assumptions'!$K$59,'Key Assumptions'!$K$60, IF($B28-1='Key Assumptions'!$K$61,'Key Assumptions'!$K$62, IF(AND($B28-1>'Key Assumptions'!$K$61,MOD($B28-1,'Key Assumptions'!$K$63)=0),'Key Assumptions'!$K$64,0))))))) -> 17230.28501 | BE28: 62029.02605 | BG28: =IF(BG27=0,BG27,BG27*(1+costinflation)*(1-IF($B28<='Key Assumptions'!$L$37,0, IF($B28-1='Key Assumptions'!$L$37,'Key Assumptions'!$L$38, IF($B28-1='Key Assumptions'!$L$39,'Key Assumptions'!$L$40, IF($B28-1='Key Assumptions'!$L$41,'Key Assumptions'!$L$42, IF(AND($B28-1>'Key Assumptions'!$L$41,MOD($B28-1,'Key Assumptions'!$L$43)=0),'Key Assumptions'!$L$44,0))))))) -> 34460.57003 | BH28: =IF(BH27=0,BH27,BH27*(1+costinflation)*(1-IF($B28<='Key Assumptions'!$L$57,0, IF($B28-1='Key Assumptions'!$L$57,'Key Assumptions'!$L$58, IF($B28-1='Key Assumptions'!$L$59,'Key Assumptions'!$L$60, IF($B28-1='Key Assumptions'!$L$61,'Key Assumptions'!$L$62, IF(AND($B28-1>'Key Assumptions'!$L$61,MOD($B28-1,'Key Assumptions'!$L$63)=0),'Key Assumptions'!$L$64,0))))))) -> 3446.057003 | BI28: 37906.62703 | BJ28: =IF(BJ27=0,BJ27,BJ27*(1+costinflation)*(1-IF($B28<='Key Assumptions'!$L$37,0, IF($B28-1='Key Assumptions'!$L$37,'Key Assumptions'!$L$38, IF($B28-1='Key Assumptions'!$L$39,'Key Assumptions'!$L$40, IF($B28-1='Key Assumptions'!$L$41,'Key Assumptions'!$L$42, IF(AND($B28-1>'Key Assumptions'!$L$41,MOD($B28-1,'Key Assumptions'!$L$43)=0),'Key Assumptions'!$L$44,0))))))) -> 31014.51303 | BK28: =IF(BK27=0,BK27,BK27*(1+costinflation)*(1-IF($B28<='Key Assumptions'!$L$57,0, IF($B28-1='Key Assumptions'!$L$57,'Key Assumptions'!$L$58, IF($B28-1='Key Assumptions'!$L$59,'Key Assumptions'!$L$60, IF($B28-1='Key Assumptions'!$L$61,'Key Assumptions'!$L$62, IF(AND($B28-1>'Key Assumptions'!$L$61,MOD($B28-1,'Key Assumptions'!$L$63)=0),'Key Assumptions'!$L$64,0))))))) -> 17230.28501 | BL28: 48244.79804 | BN28: =IF(BN27=0,BN27,BN27*(1+costinflation)*(1-IF($B28<='Key Assumptions'!$M$37,0, IF($B28-1='Key Assumptions'!$M$37,'Key Assumptions'!$M$38, IF($B28-1='Key Assumptions'!$M$39,'Key Assumptions'!$M$40, IF($B28-1='Key Assumptions'!$M$41,'Key Assumptions'!$M$42, IF(AND($B28-1>'Key Assumptions'!$M$41,MOD($B28-1,'Key Assumptions'!$M$43)=0),'Key Assumptions'!$M$44,0))))))) -> 34460.57003 | BO28: =IF(BO27=0,BO27,BO27*(1+costinflation)*(1-IF($B28<='Key Assumptions'!$M$57,0, IF($B28-1='Key Assumptions'!$M$57,'Key Assumptions'!$M$58, IF($B28-1='Key Assumptions'!$M$59,'Key Assumptions'!$M$60, IF($B28-1='Key Assumptions'!$M$61,'Key Assumptions'!$M$62, IF(AND($B28-1>'Key Assumptions'!$M$61,MOD($B28-1,'Key Assumptions'!$M$63)=0),'Key Assumptions'!$M$64,0))))))) -> 3446.057003 | BP28: 37906.62703 | BQ28: =IF(BQ27=0,BQ27,BQ27*(1+costinflation)*(1-IF($B28<='Key Assumptions'!$M$37,0, IF($B28-1='Key Assumptions'!$M$37,'Key Assumptions'!$M$38, IF($B28-1='Key Assumptions'!$M$39,'Key Assumptions'!$M$40, IF($B28-1='Key Assumptions'!$M$41,'Key Assumptions'!$M$42, IF(AND($B28-1>'Key Assumptions'!$M$41,MOD($B28-1,'Key Assumptions'!$M$43)=0),'Key Assumptions'!$M$44,0))))))) -> 44798.74104 | BR28: =IF(BR27=0,BR27,BR27*(1+costinflation)*(1-IF($B28<='Key Assumptions'!$M$57,0, IF($B28-1='Key Assumptions'!$M$57,'Key Assumptions'!$M$58, IF($B28-1='Key Assumptions'!$M$59,'Key Assumptions'!$M$60, IF($B28-1='Key Assumptions'!$M$61,'Key Assumptions'!$M$62, IF(AND($B28-1>'Key Assumptions'!$M$61,MOD($B28-1,'Key Assumptions'!$M$63)=0),'Key Assumptions'!$M$64,0))))))) -> 17230.28501 | BS28: 62029.02605
B29: 8 | C29: =IF(C28=0,C28,C28*(1+costinflation)*(1-IF($B29<='Key Assumptions'!$D$37,0, IF($B29-1='Key Assumptions'!$D$37,'Key Assumptions'!$D$38, IF($B29-1='Key Assumptions'!$D$39,'Key Assumptions'!$D$40, IF($B29-1='Key Assumptions'!$D$41,'Key Assumptions'!$D$42, IF(AND($B29-1>'Key Assumptions'!$D$41,MOD($B29-1,'Key Assumptions'!$D$43)=0),'Key Assumptions'!$D$44,0))))))) -> 117165.9381 | D29: =IF(D28=0,D28,D28*(1+costinflation)*(1-IF($B29<='Key Assumptions'!$D$57,0, IF($B29-1='Key Assumptions'!$D$57,'Key Assumptions'!$D$58, IF($B29-1='Key Assumptions'!$D$59,'Key Assumptions'!$D$60, IF($B29-1='Key Assumptions'!$D$61,'Key Assumptions'!$D$62, IF(AND($B29-1>'Key Assumptions'!$D$61,MOD($B29-1,'Key Assumptions'!$D$63)=0),'Key Assumptions'!$D$64,0))))))) -> 11716.59381 | E29: 128882.5319 | F29: =IF(F28=0,F28,F28*(1+costinflation)*(1-IF($B29<='Key Assumptions'!$D$37,0, IF($B29-1='Key Assumptions'!$D$37,'Key Assumptions'!$D$38, IF($B29-1='Key Assumptions'!$D$39,'Key Assumptions'!$D$40, IF($B29-1='Key Assumptions'!$D$41,'Key Assumptions'!$D$42, IF(AND($B29-1>'Key Assumptions'!$D$41,MOD($B29-1,'Key Assumptions'!$D$43)=0),'Key Assumptions'!$D$44,0))))))) -> 231988.5574 | G29: =IF(G28=0,G28,G28*(1+costinflation)*(1-IF($B29<='Key Assumptions'!$D$57,0, IF($B29-1='Key Assumptions'!$D$57,'Key Assumptions'!$D$58, IF($B29-1='Key Assumptions'!$D$59,'Key Assumptions'!$D$60, IF($B29-1='Key Assumptions'!$D$61,'Key Assumptions'!$D$62, IF(AND($B29-1>'Key Assumptions'!$D$61,MOD($B29-1,'Key Assumptions'!$D$63)=0),'Key Assumptions'!$D$64,0))))))) -> 46866.37524 | H29: 278854.9327 | J29: =IF(J28=0,J28,J28*(1+costinflation)*(1-IF($B29<='Key Assumptions'!$E$37,0, IF($B29-1='Key Assumptions'!$E$37,'Key Assumptions'!$E$38, IF($B29-1='Key Assumptions'!$E$39,'Key Assumptions'!$E$40, IF($B29-1='Key Assumptions'!$E$41,'Key Assumptions'!$E$42, IF(AND($B29-1>'Key Assumptions'!$E$41,MOD($B29-1,'Key Assumptions'!$E$43)=0),'Key Assumptions'!$E$44,0))))))) -> 35149.78143 | K29: =IF(K28=0,K28,K28*(1+costinflation)*(1-IF($B29<='Key Assumptions'!$E$57,0, IF($B29-1='Key Assumptions'!$E$57,'Key Assumptions'!$E$58, IF($B29-1='Key Assumptions'!$E$59,'Key Assumptions'!$E$60, IF($B29-1='Key Assumptions'!$E$61,'Key Assumptions'!$E$62, IF(AND($B29-1>'Key Assumptions'!$E$61,MOD($B29-1,'Key Assumptions'!$E$63)=0),'Key Assumptions'!$E$64,0))))))) -> 3514.978143 | L29: 38664.75957 | M29: =IF(M28=0,M28,M28*(1+costinflation)*(1-IF($B29<='Key Assumptions'!$E$37,0, IF($B29-1='Key Assumptions'!$E$37,'Key Assumptions'!$E$38, IF($B29-1='Key Assumptions'!$E$39,'Key Assumptions'!$E$40, IF($B29-1='Key Assumptions'!$E$41,'Key Assumptions'!$E$42, IF(AND($B29-1>'Key Assumptions'!$E$41,MOD($B29-1,'Key Assumptions'!$E$43)=0),'Key Assumptions'!$E$44,0))))))) -> 38664.75957 | N29: =IF(N28=0,N28,N28*(1+costinflation)*(1-IF($B29<='Key Assumptions'!$E$57,0, IF($B29-1='Key Assumptions'!$E$57,'Key Assumptions'!$E$58, IF($B29-1='Key Assumptions'!$E$59,'Key Assumptions'!$E$60, IF($B29-1='Key Assumptions'!$E$61,'Key Assumptions'!$E$62, IF(AND($B29-1>'Key Assumptions'!$E$61,MOD($B29-1,'Key Assumptions'!$E$63)=0),'Key Assumptions'!$E$64,0))))))) -> 17574.89072 | O29: 56239.65029 | Q29: =IF(Q28=0,Q28,Q28*(1+costinflation)*(1-IF($B29<='Key Assumptions'!$F$37,0, IF($B29-1='Key Assumptions'!$F$37,'Key Assumptions'!$F$38, IF($B29-1='Key Assumptions'!$F$39,'Key Assumptions'!$F$40, IF($B29-1='Key Assumptions'!$F$41,'Key Assumptions'!$F$42, IF(AND($B29-1>'Key Assumptions'!$F$41,MOD($B29-1,'Key Assumptions'!$F$43)=0),'Key Assumptions'!$F$44,0))))))) -> 23433.18762 | R29: =IF(R28=0,R28,R28*(1+costinflation)*(1-IF($B29<='Key Assumptions'!$F$57,0, IF($B29-1='Key Assumptions'!$F$57,'Key Assumptions'!$F$58, IF($B29-1='Key Assumptions'!$F$59,'Key Assumptions'!$F$60, IF($B29-1='Key Assumptions'!$F$61,'Key Assumptions'!$F$62, IF(AND($B29-1>'Key Assumptions'!$F$61,MOD($B29-1,'Key Assumptions'!$F$63)=0),'Key Assumptions'!$F$64,0))))))) -> 2343.318762 | S29: 25776.50638 | T29: =IF(T28=0,T28,T28*(1+costinflation)*(1-IF($B29<='Key Assumptions'!$F$37,0, IF($B29-1='Key Assumptions'!$F$37,'Key Assumptions'!$F$38, IF($B29-1='Key Assumptions'!$F$39,'Key Assumptions'!$F$40, IF($B29-1='Key Assumptions'!$F$41,'Key Assumptions'!$F$42, IF(AND($B29-1>'Key Assumptions'!$F$41,MOD($B29-1,'Key Assumptions'!$F$43)=0),'Key Assumptions'!$F$44,0))))))) -> 12888.25319 | U29: =IF(U28=0,U28,U28*(1+costinflation)*(1-IF($B29<='Key Assumptions'!$F$57,0, IF($B29-1='Key Assumptions'!$F$57,'Key Assumptions'!$F$58, IF($B29-1='Key Assumptions'!$F$59,'Key Assumptions'!$F$60, IF($B29-1='Key Assumptions'!$F$61,'Key Assumptions'!$F$62, IF(AND($B29-1>'Key Assumptions'!$F$61,MOD($B29-1,'Key Assumptions'!$F$63)=0),'Key Assumptions'!$F$64,0))))))) -> 2929.148453 | V29: 15817.40164 | X29: =IF(X28=0,X28,X28*(1+costinflation)*(1-IF($B29<='Key Assumptions'!$G$37,0, IF($B29-1='Key Assumptions'!$G$37,'Key Assumptions'!$G$38, IF($B29-1='Key Assumptions'!$G$39,'Key Assumptions'!$G$40, IF($B29-1='Key Assumptions'!$G$41,'Key Assumptions'!$G$42, IF(AND($B29-1>'Key Assumptions'!$G$41,MOD($B29-1,'Key Assumptions'!$G$43)=0),'Key Assumptions'!$G$44,0))))))) -> 29291.48453 | Y29: =IF(Y28=0,Y28,Y28*(1+costinflation)*(1-IF($B29<='Key Assumptions'!$G$57,0, IF($B29-1='Key Assumptions'!$G$57,'Key Assumptions'!$G$58, IF($B29-1='Key Assumptions'!$G$59,'Key Assumptions'!$G$60, IF($B29-1='Key Assumptions'!$G$61,'Key Assumptions'!$G$62, IF(AND($B29-1>'Key Assumptions'!$G$61,MOD($B29-1,'Key Assumptions'!$G$63)=0),'Key Assumptions'!$G$64,0))))))) -> 2929.148453 | Z29: 32220.63298 | AA29: =IF(AA28=0,AA28,AA28*(1+costinflation)*(1-IF($B29<='Key Assumptions'!$G$37,0, IF($B29-1='Key Assumptions'!$G$37,'Key Assumptions'!$G$38, IF($B29-1='Key Assumptions'!$G$39,'Key Assumptions'!$G$40, IF($B29-1='Key Assumptions'!$G$41,'Key Assumptions'!$G$42, IF(AND($B29-1>'Key Assumptions'!$G$41,MOD($B29-1,'Key Assumptions'!$G$43)=0),'Key Assumptions'!$G$44,0))))))) -> 25776.50638 | AB29: =IF(AB28=0,AB28,AB28*(1+costinflation)*(1-IF($B29<='Key Assumptions'!$G$57,0, IF($B29-1='Key Assumptions'!$G$57,'Key Assumptions'!$G$58, IF($B29-1='Key Assumptions'!$G$59,'Key Assumptions'!$G$60, IF($B29-1='Key Assumptions'!$G$61,'Key Assumptions'!$G$62, IF(AND($B29-1>'Key Assumptions'!$G$61,MOD($B29-1,'Key Assumptions'!$G$63)=0),'Key Assumptions'!$G$64,0))))))) -> 3514.978143 | AC29: 29291.48453 | AE29: =IF(AE28=0,AE28,AE28*(1+costinflation)*(1-IF($B29<='Key Assumptions'!$H$37,0, IF($B29-1='Key Assumptions'!$H$37,'Key Assumptions'!$H$38, IF($B29-1='Key Assumptions'!$H$39,'Key Assumptions'!$H$40, IF($B29-1='Key Assumptions'!$H$41,'Key Assumptions'!$H$42, IF(AND($B29-1>'Key Assumptions'!$H$41,MOD($B29-1,'Key Assumptions'!$H$43)=0),'Key Assumptions'!$H$44,0))))))) -> 374931.0019 | AF29: =IF(AF28=0,AF28,AF28*(1+costinflation)*(1-IF($B29<='Key Assumptions'!$H$57,0, IF($B29-1='Key Assumptions'!$H$57,'Key Assumptions'!$H$58, IF($B29-1='Key Assumptions'!$H$59,'Key Assumptions'!$H$60, IF($B29-1='Key Assumptions'!$H$61,'Key Assumptions'!$H$62, IF(AND($B29-1>'Key Assumptions'!$H$61,MOD($B29-1,'Key Assumptions'!$H$63)=0),'Key Assumptions'!$H$64,0))))))) -> 8201.615667 | AG29: 383132.6176 | AH29: =IF(AH28=0,AH28,AH28*(1+costinflation)*(1-IF($B29<='Key Assumptions'!$H$37,0, IF($B29-1='Key Assumptions'!$H$37,'Key Assumptions'!$H$38, IF($B29-1='Key Assumptions'!$H$39,'Key Assumptions'!$H$40, IF($B29-1='Key Assumptions'!$H$41,'Key Assumptions'!$H$42, IF(AND($B29-1>'Key Assumptions'!$H$41,MOD($B29-1,'Key Assumptions'!$H$43)=0),'Key Assumptions'!$H$44,0))))))) -> 152315.7195 | AI29: =IF(AI28=0,AI28,AI28*(1+costinflation)*(1-IF($B29<='Key Assumptions'!$H$57,0, IF($B29-1='Key Assumptions'!$H$57,'Key Assumptions'!$H$58, IF($B29-1='Key Assumptions'!$H$59,'Key Assumptions'!$H$60, IF($B29-1='Key Assumptions'!$H$61,'Key Assumptions'!$H$62, IF(AND($B29-1>'Key Assumptions'!$H$61,MOD($B29-1,'Key Assumptions'!$H$63)=0),'Key Assumptions'!$H$64,0))))))) -> 105449.3443 | AJ29: 257765.0638 | AL29: =IF(AL28=0,AL28,AL28*(1+costinflation)*(1-IF($B29<='Key Assumptions'!$I$37,0, IF($B29-1='Key Assumptions'!$I$37,'Key Assumptions'!$I$38, IF($B29-1='Key Assumptions'!$I$39,'Key Assumptions'!$I$40, IF($B29-1='Key Assumptions'!$I$41,'Key Assumptions'!$I$42, IF(AND($B29-1>'Key Assumptions'!$I$41,MOD($B29-1,'Key Assumptions'!$I$43)=0),'Key Assumptions'!$I$44,0))))))) -> 117165.9381 | AM29: =IF(AM28=0,AM28,AM28*(1+costinflation)*(1-IF($B29<='Key Assumptions'!$I$57,0, IF($B29-1='Key Assumptions'!$I$57,'Key Assumptions'!$I$58, IF($B29-1='Key Assumptions'!$I$59,'Key Assumptions'!$I$60, IF($B29-1='Key Assumptions'!$I$61,'Key Assumptions'!$I$62, IF(AND($B29-1>'Key Assumptions'!$I$61,MOD($B29-1,'Key Assumptions'!$I$63)=0),'Key Assumptions'!$I$64,0))))))) -> 17574.89072 | AN29: 134740.8288 | AO29: =IF(AO28=0,AO28,AO28*(1+costinflation)*(1-IF($B29<='Key Assumptions'!$I$37,0, IF($B29-1='Key Assumptions'!$I$37,'Key Assumptions'!$I$38, IF($B29-1='Key Assumptions'!$I$39,'Key Assumptions'!$I$40, IF($B29-1='Key Assumptions'!$I$41,'Key Assumptions'!$I$42, IF(AND($B29-1>'Key Assumptions'!$I$41,MOD($B29-1,'Key Assumptions'!$I$43)=0),'Key Assumptions'!$I$44,0))))))) -> 76157.85977 | AP29: =IF(AP28=0,AP28,AP28*(1+costinflation)*(1-IF($B29<='Key Assumptions'!$I$57,0, IF($B29-1='Key Assumptions'!$I$57,'Key Assumptions'!$I$58, IF($B29-1='Key Assumptions'!$I$59,'Key Assumptions'!$I$60, IF($B29-1='Key Assumptions'!$I$61,'Key Assumptions'!$I$62, IF(AND($B29-1>'Key Assumptions'!$I$61,MOD($B29-1,'Key Assumptions'!$I$63)=0),'Key Assumptions'!$I$64,0))))))) -> 46866.37524 | AQ29: 123024.235 | AS29: =IF(AS28=0,AS28,AS28*(1+costinflation)*(1-IF($B29<='Key Assumptions'!$J$37,0, IF($B29-1='Key Assumptions'!$J$37,'Key Assumptions'!$J$38, IF($B29-1='Key Assumptions'!$J$39,'Key Assumptions'!$J$40, IF($B29-1='Key Assumptions'!$J$41,'Key Assumptions'!$J$42, IF(AND($B29-1>'Key Assumptions'!$J$41,MOD($B29-1,'Key Assumptions'!$J$43)=0),'Key Assumptions'!$J$44,0))))))) -> 117165.9381 | AT29: =IF(AT28=0,AT28,AT28*(1+costinflation)*(1-IF($B29<='Key Assumptions'!$J$57,0, IF($B29-1='Key Assumptions'!$J$57,'Key Assumptions'!$J$58, IF($B29-1='Key Assumptions'!$J$59,'Key Assumptions'!$J$60, IF($B29-1='Key Assumptions'!$J$61,'Key Assumptions'!$J$62, IF(AND($B29-1>'Key Assumptions'!$J$61,MOD($B29-1,'Key Assumptions'!$J$63)=0),'Key Assumptions'!$J$64,0))))))) -> 11716.59381 | AU29: 128882.5319 | AV29: =IF(AV28=0,AV28,AV28*(1+costinflation)*(1-IF($B29<='Key Assumptions'!$J$37,0, IF($B29-1='Key Assumptions'!$J$37,'Key Assumptions'!$J$38, IF($B29-1='Key Assumptions'!$J$39,'Key Assumptions'!$J$40, IF($B29-1='Key Assumptions'!$J$41,'Key Assumptions'!$J$42, IF(AND($B29-1>'Key Assumptions'!$J$41,MOD($B29-1,'Key Assumptions'!$J$43)=0),'Key Assumptions'!$J$44,0))))))) -> 335094.583 | AW29: =IF(AW28=0,AW28,AW28*(1+costinflation)*(1-IF($B29<='Key Assumptions'!$J$57,0, IF($B29-1='Key Assumptions'!$J$57,'Key Assumptions'!$J$58, IF($B29-1='Key Assumptions'!$J$59,'Key Assumptions'!$J$60, IF($B29-1='Key Assumptions'!$J$61,'Key Assumptions'!$J$62, IF(AND($B29-1>'Key Assumptions'!$J$61,MOD($B29-1,'Key Assumptions'!$J$63)=0),'Key Assumptions'!$J$64,0))))))) -> 46866.37524 | AX29: 381960.9582 | AZ29: =IF(AZ28=0,AZ28,AZ28*(1+costinflation)*(1-IF($B29<='Key Assumptions'!$K$37,0, IF($B29-1='Key Assumptions'!$K$37,'Key Assumptions'!$K$38, IF($B29-1='Key Assumptions'!$K$39,'Key Assumptions'!$K$40, IF($B29-1='Key Assumptions'!$K$41,'Key Assumptions'!$K$42, IF(AND($B29-1>'Key Assumptions'!$K$41,MOD($B29-1,'Key Assumptions'!$K$43)=0),'Key Assumptions'!$K$44,0))))))) -> 35149.78143 | BA29: =IF(BA28=0,BA28,BA28*(1+costinflation)*(1-IF($B29<='Key Assumptions'!$K$57,0, IF($B29-1='Key Assumptions'!$K$57,'Key Assumptions'!$K$58, IF($B29-1='Key Assumptions'!$K$59,'Key Assumptions'!$K$60, IF($B29-1='Key Assumptions'!$K$61,'Key Assumptions'!$K$62, IF(AND($B29-1>'Key Assumptions'!$K$61,MOD($B29-1,'Key Assumptions'!$K$63)=0),'Key Assumptions'!$K$64,0))))))) -> 3514.978143 | BB29: 38664.75957 | BC29: =IF(BC28=0,BC28,BC28*(1+costinflation)*(1-IF($B29<='Key Assumptions'!$K$37,0, IF($B29-1='Key Assumptions'!$K$37,'Key Assumptions'!$K$38, IF($B29-1='Key Assumptions'!$K$39,'Key Assumptions'!$K$40, IF($B29-1='Key Assumptions'!$K$41,'Key Assumptions'!$K$42, IF(AND($B29-1>'Key Assumptions'!$K$41,MOD($B29-1,'Key Assumptions'!$K$43)=0),'Key Assumptions'!$K$44,0))))))) -> 45694.71586 | BD29: =IF(BD28=0,BD28,BD28*(1+costinflation)*(1-IF($B29<='Key Assumptions'!$K$57,0, IF($B29-1='Key Assumptions'!$K$57,'Key Assumptions'!$K$58, IF($B29-1='Key Assumptions'!$K$59,'Key Assumptions'!$K$60, IF($B29-1='Key Assumptions'!$K$61,'Key Assumptions'!$K$62, IF(AND($B29-1>'Key Assumptions'!$K$61,MOD($B29-1,'Key Assumptions'!$K$63)=0),'Key Assumptions'!$K$64,0))))))) -> 17574.89072 | BE29: 63269.60657 | BG29: =IF(BG28=0,BG28,BG28*(1+costinflation)*(1-IF($B29<='Key Assumptions'!$L$37,0, IF($B29-1='Key Assumptions'!$L$37,'Key Assumptions'!$L$38, IF($B29-1='Key Assumptions'!$L$39,'Key Assumptions'!$L$40, IF($B29-1='Key Assumptions'!$L$41,'Key Assumptions'!$L$42, IF(AND($B29-1>'Key Assumptions'!$L$41,MOD($B29-1,'Key Assumptions'!$L$43)=0),'Key Assumptions'!$L$44,0))))))) -> 35149.78143 | BH29: =IF(BH28=0,BH28,BH28*(1+costinflation)*(1-IF($B29<='Key Assumptions'!$L$57,0, IF($B29-1='Key Assumptions'!$L$57,'Key Assumptions'!$L$58, IF($B29-1='Key Assumptions'!$L$59,'Key Assumptions'!$L$60, IF($B29-1='Key Assumptions'!$L$61,'Key Assumptions'!$L$62, IF(AND($B29-1>'Key Assumptions'!$L$61,MOD($B29-1,'Key Assumptions'!$L$63)=0),'Key Assumptions'!$L$64,0))))))) -> 3514.978143 | BI29: 38664.75957 | BJ29: =IF(BJ28=0,BJ28,BJ28*(1+costinflation)*(1-IF($B29<='Key Assumptions'!$L$37,0, IF($B29-1='Key Assumptions'!$L$37,'Key Assumptions'!$L$38, IF($B29-1='Key Assumptions'!$L$39,'Key Assumptions'!$L$40, IF($B29-1='Key Assumptions'!$L$41,'Key Assumptions'!$L$42, IF(AND($B29-1>'Key Assumptions'!$L$41,MOD($B29-1,'Key Assumptions'!$L$43)=0),'Key Assumptions'!$L$44,0))))))) -> 31634.80329 | BK29: =IF(BK28=0,BK28,BK28*(1+costinflation)*(1-IF($B29<='Key Assumptions'!$L$57,0, IF($B29-1='Key Assumptions'!$L$57,'Key Assumptions'!$L$58, IF($B29-1='Key Assumptions'!$L$59,'Key Assumptions'!$L$60, IF($B29-1='Key Assumptions'!$L$61,'Key Assumptions'!$L$62, IF(AND($B29-1>'Key Assumptions'!$L$61,MOD($B29-1,'Key Assumptions'!$L$63)=0),'Key Assumptions'!$L$64,0))))))) -> 17574.89072 | BL29: 49209.694 | BN29: =IF(BN28=0,BN28,BN28*(1+costinflation)*(1-IF($B29<='Key Assumptions'!$M$37,0, IF($B29-1='Key Assumptions'!$M$37,'Key Assumptions'!$M$38, IF($B29-1='Key Assumptions'!$M$39,'Key Assumptions'!$M$40, IF($B29-1='Key Assumptions'!$M$41,'Key Assumptions'!$M$42, IF(AND($B29-1>'Key Assumptions'!$M$41,MOD($B29-1,'Key Assumptions'!$M$43)=0),'Key Assumptions'!$M$44,0))))))) -> 35149.78143 | BO29: =IF(BO28=0,BO28,BO28*(1+costinflation)*(1-IF($B29<='Key Assumptions'!$M$57,0, IF($B29-1='Key Assumptions'!$M$57,'Key Assumptions'!$M$58, IF($B29-1='Key Assumptions'!$M$59,'Key Assumptions'!$M$60, IF($B29-1='Key Assumptions'!$M$61,'Key Assumptions'!$M$62, IF(AND($B29-1>'Key Assumptions'!$M$61,MOD($B29-1,'Key Assumptions'!$M$63)=0),'Key Assumptions'!$M$64,0))))))) -> 3514.978143 | BP29: 38664.75957 | BQ29: =IF(BQ28=0,BQ28,BQ28*(1+costinflation)*(1-IF($B29<='Key Assumptions'!$M$37,0, IF($B29-1='Key Assumptions'!$M$37,'Key Assumptions'!$M$38, IF($B29-1='Key Assumptions'!$M$39,'Key Assumptions'!$M$40, IF($B29-1='Key Assumptions'!$M$41,'Key Assumptions'!$M$42, IF(AND($B29-1>'Key Assumptions'!$M$41,MOD($B29-1,'Key Assumptions'!$M$43)=0),'Key Assumptions'!$M$44,0))))))) -> 45694.71586 | BR29: =IF(BR28=0,BR28,BR28*(1+costinflation)*(1-IF($B29<='Key Assumptions'!$M$57,0, IF($B29-1='Key Assumptions'!$M$57,'Key Assumptions'!$M$58, IF($B29-1='Key Assumptions'!$M$59,'Key Assumptions'!$M$60, IF($B29-1='Key Assumptions'!$M$61,'Key Assumptions'!$M$62, IF(AND($B29-1>'Key Assumptions'!$M$61,MOD($B29-1,'Key Assumptions'!$M$63)=0),'Key Assumptions'!$M$64,0))))))) -> 17574.89072 | BS29: 63269.60657
B30: 9 | C30: =IF(C29=0,C29,C29*(1+costinflation)*(1-IF($B30<='Key Assumptions'!$D$37,0, IF($B30-1='Key Assumptions'!$D$37,'Key Assumptions'!$D$38, IF($B30-1='Key Assumptions'!$D$39,'Key Assumptions'!$D$40, IF($B30-1='Key Assumptions'!$D$41,'Key Assumptions'!$D$42, IF(AND($B30-1>'Key Assumptions'!$D$41,MOD($B30-1,'Key Assumptions'!$D$43)=0),'Key Assumptions'!$D$44,0))))))) -> 119509.2569 | D30: =IF(D29=0,D29,D29*(1+costinflation)*(1-IF($B30<='Key Assumptions'!$D$57,0, IF($B30-1='Key Assumptions'!$D$57,'Key Assumptions'!$D$58, IF($B30-1='Key Assumptions'!$D$59,'Key Assumptions'!$D$60, IF($B30-1='Key Assumptions'!$D$61,'Key Assumptions'!$D$62, IF(AND($B30-1>'Key Assumptions'!$D$61,MOD($B30-1,'Key Assumptions'!$D$63)=0),'Key Assumptions'!$D$64,0))))))) -> 11950.92569 | E30: 131460.1825 | F30: =IF(F29=0,F29,F29*(1+costinflation)*(1-IF($B30<='Key Assumptions'!$D$37,0, IF($B30-1='Key Assumptions'!$D$37,'Key Assumptions'!$D$38, IF($B30-1='Key Assumptions'!$D$39,'Key Assumptions'!$D$40, IF($B30-1='Key Assumptions'!$D$41,'Key Assumptions'!$D$42, IF(AND($B30-1>'Key Assumptions'!$D$41,MOD($B30-1,'Key Assumptions'!$D$43)=0),'Key Assumptions'!$D$44,0))))))) -> 236628.3286 | G30: =IF(G29=0,G29,G29*(1+costinflation)*(1-IF($B30<='Key Assumptions'!$D$57,0, IF($B30-1='Key Assumptions'!$D$57,'Key Assumptions'!$D$58, IF($B30-1='Key Assumptions'!$D$59,'Key Assumptions'!$D$60, IF($B30-1='Key Assumptions'!$D$61,'Key Assumptions'!$D$62, IF(AND($B30-1>'Key Assumptions'!$D$61,MOD($B30-1,'Key Assumptions'!$D$63)=0),'Key Assumptions'!$D$64,0))))))) -> 47803.70274 | H30: 284432.0313 | J30: =IF(J29=0,J29,J29*(1+costinflation)*(1-IF($B30<='Key Assumptions'!$E$37,0, IF($B30-1='Key Assumptions'!$E$37,'Key Assumptions'!$E$38, IF($B30-1='Key Assumptions'!$E$39,'Key Assumptions'!$E$40, IF($B30-1='Key Assumptions'!$E$41,'Key Assumptions'!$E$42, IF(AND($B30-1>'Key Assumptions'!$E$41,MOD($B30-1,'Key Assumptions'!$E$43)=0),'Key Assumptions'!$E$44,0))))))) -> 35852.77706 | K30: =IF(K29=0,K29,K29*(1+costinflation)*(1-IF($B30<='Key Assumptions'!$E$57,0, IF($B30-1='Key Assumptions'!$E$57,'Key Assumptions'!$E$58, IF($B30-1='Key Assumptions'!$E$59,'Key Assumptions'!$E$60, IF($B30-1='Key Assumptions'!$E$61,'Key Assumptions'!$E$62, IF(AND($B30-1>'Key Assumptions'!$E$61,MOD($B30-1,'Key Assumptions'!$E$63)=0),'Key Assumptions'!$E$64,0))))))) -> 3585.277706 | L30: 39438.05476 | M30: =IF(M29=0,M29,M29*(1+costinflation)*(1-IF($B30<='Key Assumptions'!$E$37,0, IF($B30-1='Key Assumptions'!$E$37,'Key Assumptions'!$E$38, IF($B30-1='Key Assumptions'!$E$39,'Key Assumptions'!$E$40, IF($B30-1='Key Assumptions'!$E$41,'Key Assumptions'!$E$42, IF(AND($B30-1>'Key Assumptions'!$E$41,MOD($B30-1,'Key Assumptions'!$E$43)=0),'Key Assumptions'!$E$44,0))))))) -> 39438.05476 | N30: =IF(N29=0,N29,N29*(1+costinflation)*(1-IF($B30<='Key Assumptions'!$E$57,0, IF($B30-1='Key Assumptions'!$E$57,'Key Assumptions'!$E$58, IF($B30-1='Key Assumptions'!$E$59,'Key Assumptions'!$E$60, IF($B30-1='Key Assumptions'!$E$61,'Key Assumptions'!$E$62, IF(AND($B30-1>'Key Assumptions'!$E$61,MOD($B30-1,'Key Assumptions'!$E$63)=0),'Key Assumptions'!$E$64,0))))))) -> 17926.38853 | O30: 57364.44329 | Q30: =IF(Q29=0,Q29,Q29*(1+costinflation)*(1-IF($B30<='Key Assumptions'!$F$37,0, IF($B30-1='Key Assumptions'!$F$37,'Key Assumptions'!$F$38, IF($B30-1='Key Assumptions'!$F$39,'Key Assumptions'!$F$40, IF($B30-1='Key Assumptions'!$F$41,'Key Assumptions'!$F$42, IF(AND($B30-1>'Key Assumptions'!$F$41,MOD($B30-1,'Key Assumptions'!$F$43)=0),'Key Assumptions'!$F$44,0))))))) -> 23901.85137 | R30: =IF(R29=0,R29,R29*(1+costinflation)*(1-IF($B30<='Key Assumptions'!$F$57,0, IF($B30-1='Key Assumptions'!$F$57,'Key Assumptions'!$F$58, IF($B30-1='Key Assumptions'!$F$59,'Key Assumptions'!$F$60, IF($B30-1='Key Assumptions'!$F$61,'Key Assumptions'!$F$62, IF(AND($B30-1>'Key Assumptions'!$F$61,MOD($B30-1,'Key Assumptions'!$F$63)=0),'Key Assumptions'!$F$64,0))))))) -> 2390.185137 | S30: 26292.03651 | T30: =IF(T29=0,T29,T29*(1+costinflation)*(1-IF($B30<='Key Assumptions'!$F$37,0, IF($B30-1='Key Assumptions'!$F$37,'Key Assumptions'!$F$38, IF($B30-1='Key Assumptions'!$F$39,'Key Assumptions'!$F$40, IF($B30-1='Key Assumptions'!$F$41,'Key Assumptions'!$F$42, IF(AND($B30-1>'Key Assumptions'!$F$41,MOD($B30-1,'Key Assumptions'!$F$43)=0),'Key Assumptions'!$F$44,0))))))) -> 13146.01825 | U30: =IF(U29=0,U29,U29*(1+costinflation)*(1-IF($B30<='Key Assumptions'!$F$57,0, IF($B30-1='Key Assumptions'!$F$57,'Key Assumptions'!$F$58, IF($B30-1='Key Assumptions'!$F$59,'Key Assumptions'!$F$60, IF($B30-1='Key Assumptions'!$F$61,'Key Assumptions'!$F$62, IF(AND($B30-1>'Key Assumptions'!$F$61,MOD($B30-1,'Key Assumptions'!$F$63)=0),'Key Assumptions'!$F$64,0))))))) -> 2987.731422 | V30: 16133.74968 | X30: =IF(X29=0,X29,X29*(1+costinflation)*(1-IF($B30<='Key Assumptions'!$G$37,0, IF($B30-1='Key Assumptions'!$G$37,'Key Assumptions'!$G$38, IF($B30-1='Key Assumptions'!$G$39,'Key Assumptions'!$G$40, IF($B30-1='Key Assumptions'!$G$41,'Key Assumptions'!$G$42, IF(AND($B30-1>'Key Assumptions'!$G$41,MOD($B30-1,'Key Assumptions'!$G$43)=0),'Key Assumptions'!$G$44,0))))))) -> 29877.31422 | Y30: =IF(Y29=0,Y29,Y29*(1+costinflation)*(1-IF($B30<='Key Assumptions'!$G$57,0, IF($B30-1='Key Assumptions'!$G$57,'Key Assumptions'!$G$58, IF($B30-1='Key Assumptions'!$G$59,'Key Assumptions'!$G$60, IF($B30-1='Key Assumptions'!$G$61,'Key Assumptions'!$G$62, IF(AND($B30-1>'Key Assumptions'!$G$61,MOD($B30-1,'Key Assumptions'!$G$63)=0),'Key Assumptions'!$G$64,0))))))) -> 2987.731422 | Z30: 32865.04564 | AA30: =IF(AA29=0,AA29,AA29*(1+costinflation)*(1-IF($B30<='Key Assumptions'!$G$37,0, IF($B30-1='Key Assumptions'!$G$37,'Key Assumptions'!$G$38, IF($B30-1='Key Assumptions'!$G$39,'Key Assumptions'!$G$40, IF($B30-1='Key Assumptions'!$G$41,'Key Assumptions'!$G$42, IF(AND($B30-1>'Key Assumptions'!$G$41,MOD($B30-1,'Key Assumptions'!$G$43)=0),'Key Assumptions'!$G$44,0))))))) -> 26292.03651 | AB30: =IF(AB29=0,AB29,AB29*(1+costinflation)*(1-IF($B30<='Key Assumptions'!$G$57,0, IF($B30-1='Key Assumptions'!$G$57,'Key Assumptions'!$G$58, IF($B30-1='Key Assumptions'!$G$59,'Key Assumptions'!$G$60, IF($B30-1='Key Assumptions'!$G$61,'Key Assumptions'!$G$62, IF(AND($B30-1>'Key Assumptions'!$G$61,MOD($B30-1,'Key Assumptions'!$G$63)=0),'Key Assumptions'!$G$64,0))))))) -> 3585.277706 | AC30: 29877.31422 | AE30: =IF(AE29=0,AE29,AE29*(1+costinflation)*(1-IF($B30<='Key Assumptions'!$H$37,0, IF($B30-1='Key Assumptions'!$H$37,'Key Assumptions'!$H$38, IF($B30-1='Key Assumptions'!$H$39,'Key Assumptions'!$H$40, IF($B30-1='Key Assumptions'!$H$41,'Key Assumptions'!$H$42, IF(AND($B30-1>'Key Assumptions'!$H$41,MOD($B30-1,'Key Assumptions'!$H$43)=0),'Key Assumptions'!$H$44,0))))))) -> 382429.622 | AF30: =IF(AF29=0,AF29,AF29*(1+costinflation)*(1-IF($B30<='Key Assumptions'!$H$57,0, IF($B30-1='Key Assumptions'!$H$57,'Key Assumptions'!$H$58, IF($B30-1='Key Assumptions'!$H$59,'Key Assumptions'!$H$60, IF($B30-1='Key Assumptions'!$H$61,'Key Assumptions'!$H$62, IF(AND($B30-1>'Key Assumptions'!$H$61,MOD($B30-1,'Key Assumptions'!$H$63)=0),'Key Assumptions'!$H$64,0))))))) -> 8365.64798 | AG30: 390795.2699 | AH30: =IF(AH29=0,AH29,AH29*(1+costinflation)*(1-IF($B30<='Key Assumptions'!$H$37,0, IF($B30-1='Key Assumptions'!$H$37,'Key Assumptions'!$H$38, IF($B30-1='Key Assumptions'!$H$39,'Key Assumptions'!$H$40, IF($B30-1='Key Assumptions'!$H$41,'Key Assumptions'!$H$42, IF(AND($B30-1>'Key Assumptions'!$H$41,MOD($B30-1,'Key Assumptions'!$H$43)=0),'Key Assumptions'!$H$44,0))))))) -> 155362.0339 | AI30: =IF(AI29=0,AI29,AI29*(1+costinflation)*(1-IF($B30<='Key Assumptions'!$H$57,0, IF($B30-1='Key Assumptions'!$H$57,'Key Assumptions'!$H$58, IF($B30-1='Key Assumptions'!$H$59,'Key Assumptions'!$H$60, IF($B30-1='Key Assumptions'!$H$61,'Key Assumptions'!$H$62, IF(AND($B30-1>'Key Assumptions'!$H$61,MOD($B30-1,'Key Assumptions'!$H$63)=0),'Key Assumptions'!$H$64,0))))))) -> 107558.3312 | AJ30: 262920.3651 | AL30: =IF(AL29=0,AL29,AL29*(1+costinflation)*(1-IF($B30<='Key Assumptions'!$I$37,0, IF($B30-1='Key Assumptions'!$I$37,'Key Assumptions'!$I$38, IF($B30-1='Key Assumptions'!$I$39,'Key Assumptions'!$I$40, IF($B30-1='Key Assumptions'!$I$41,'Key Assumptions'!$I$42, IF(AND($B30-1>'Key Assumptions'!$I$41,MOD($B30-1,'Key Assumptions'!$I$43)=0),'Key Assumptions'!$I$44,0))))))) -> 119509.2569 | AM30: =IF(AM29=0,AM29,AM29*(1+costinflation)*(1-IF($B30<='Key Assumptions'!$I$57,0, IF($B30-1='Key Assumptions'!$I$57,'Key Assumptions'!$I$58, IF($B30-1='Key Assumptions'!$I$59,'Key Assumptions'!$I$60, IF($B30-1='Key Assumptions'!$I$61,'Key Assumptions'!$I$62, IF(AND($B30-1>'Key Assumptions'!$I$61,MOD($B30-1,'Key Assumptions'!$I$63)=0),'Key Assumptions'!$I$64,0))))))) -> 17926.38853 | AN30: 137435.6454 | AO30: =IF(AO29=0,AO29,AO29*(1+costinflation)*(1-IF($B30<='Key Assumptions'!$I$37,0, IF($B30-1='Key Assumptions'!$I$37,'Key Assumptions'!$I$38, IF($B30-1='Key Assumptions'!$I$39,'Key Assumptions'!$I$40, IF($B30-1='Key Assumptions'!$I$41,'Key Assumptions'!$I$42, IF(AND($B30-1>'Key Assumptions'!$I$41,MOD($B30-1,'Key Assumptions'!$I$43)=0),'Key Assumptions'!$I$44,0))))))) -> 77681.01696 | AP30: =IF(AP29=0,AP29,AP29*(1+costinflation)*(1-IF($B30<='Key Assumptions'!$I$57,0, IF($B30-1='Key Assumptions'!$I$57,'Key Assumptions'!$I$58, IF($B30-1='Key Assumptions'!$I$59,'Key Assumptions'!$I$60, IF($B30-1='Key Assumptions'!$I$61,'Key Assumptions'!$I$62, IF(AND($B30-1>'Key Assumptions'!$I$61,MOD($B30-1,'Key Assumptions'!$I$63)=0),'Key Assumptions'!$I$64,0))))))) -> 47803.70274 | AQ30: 125484.7197 | AS30: =IF(AS29=0,AS29,AS29*(1+costinflation)*(1-IF($B30<='Key Assumptions'!$J$37,0, IF($B30-1='Key Assumptions'!$J$37,'Key Assumptions'!$J$38, IF($B30-1='Key Assumptions'!$J$39,'Key Assumptions'!$J$40, IF($B30-1='Key Assumptions'!$J$41,'Key Assumptions'!$J$42, IF(AND($B30-1>'Key Assumptions'!$J$41,MOD($B30-1,'Key Assumptions'!$J$43)=0),'Key Assumptions'!$J$44,0))))))) -> 119509.2569 | AT30: =IF(AT29=0,AT29,AT29*(1+costinflation)*(1-IF($B30<='Key Assumptions'!$J$57,0, IF($B30-1='Key Assumptions'!$J$57,'Key Assumptions'!$J$58, IF($B30-1='Key Assumptions'!$J$59,'Key Assumptions'!$J$60, IF($B30-1='Key Assumptions'!$J$61,'Key Assumptions'!$J$62, IF(AND($B30-1>'Key Assumptions'!$J$61,MOD($B30-1,'Key Assumptions'!$J$63)=0),'Key Assumptions'!$J$64,0))))))) -> 11950.92569 | AU30: 131460.1825 | AV30: =IF(AV29=0,AV29,AV29*(1+costinflation)*(1-IF($B30<='Key Assumptions'!$J$37,0, IF($B30-1='Key Assumptions'!$J$37,'Key Assumptions'!$J$38, IF($B30-1='Key Assumptions'!$J$39,'Key Assumptions'!$J$40, IF($B30-1='Key Assumptions'!$J$41,'Key Assumptions'!$J$42, IF(AND($B30-1>'Key Assumptions'!$J$41,MOD($B30-1,'Key Assumptions'!$J$43)=0),'Key Assumptions'!$J$44,0))))))) -> 341796.4746 | AW30: =IF(AW29=0,AW29,AW29*(1+costinflation)*(1-IF($B30<='Key Assumptions'!$J$57,0, IF($B30-1='Key Assumptions'!$J$57,'Key Assumptions'!$J$58, IF($B30-1='Key Assumptions'!$J$59,'Key Assumptions'!$J$60, IF($B30-1='Key Assumptions'!$J$61,'Key Assumptions'!$J$62, IF(AND($B30-1>'Key Assumptions'!$J$61,MOD($B30-1,'Key Assumptions'!$J$63)=0),'Key Assumptions'!$J$64,0))))))) -> 47803.70274 | AX30: 389600.1774 | AZ30: =IF(AZ29=0,AZ29,AZ29*(1+costinflation)*(1-IF($B30<='Key Assumptions'!$K$37,0, IF($B30-1='Key Assumptions'!$K$37,'Key Assumptions'!$K$38, IF($B30-1='Key Assumptions'!$K$39,'Key Assumptions'!$K$40, IF($B30-1='Key Assumptions'!$K$41,'Key Assumptions'!$K$42, IF(AND($B30-1>'Key Assumptions'!$K$41,MOD($B30-1,'Key Assumptions'!$K$43)=0),'Key Assumptions'!$K$44,0))))))) -> 35852.77706 | BA30: =IF(BA29=0,BA29,BA29*(1+costinflation)*(1-IF($B30<='Key Assumptions'!$K$57,0, IF($B30-1='Key Assumptions'!$K$57,'Key Assumptions'!$K$58, IF($B30-1='Key Assumptions'!$K$59,'Key Assumptions'!$K$60, IF($B30-1='Key Assumptions'!$K$61,'Key Assumptions'!$K$62, IF(AND($B30-1>'Key Assumptions'!$K$61,MOD($B30-1,'Key Assumptions'!$K$63)=0),'Key Assumptions'!$K$64,0))))))) -> 3585.277706 | BB30: 39438.05476 | BC30: =IF(BC29=0,BC29,BC29*(1+costinflation)*(1-IF($B30<='Key Assumptions'!$K$37,0, IF($B30-1='Key Assumptions'!$K$37,'Key Assumptions'!$K$38, IF($B30-1='Key Assumptions'!$K$39,'Key Assumptions'!$K$40, IF($B30-1='Key Assumptions'!$K$41,'Key Assumptions'!$K$42, IF(AND($B30-1>'Key Assumptions'!$K$41,MOD($B30-1,'Key Assumptions'!$K$43)=0),'Key Assumptions'!$K$44,0))))))) -> 46608.61018 | BD30: =IF(BD29=0,BD29,BD29*(1+costinflation)*(1-IF($B30<='Key Assumptions'!$K$57,0, IF($B30-1='Key Assumptions'!$K$57,'Key Assumptions'!$K$58, IF($B30-1='Key Assumptions'!$K$59,'Key Assumptions'!$K$60, IF($B30-1='Key Assumptions'!$K$61,'Key Assumptions'!$K$62, IF(AND($B30-1>'Key Assumptions'!$K$61,MOD($B30-1,'Key Assumptions'!$K$63)=0),'Key Assumptions'!$K$64,0))))))) -> 17926.38853 | BE30: 64534.99871 | BG30: =IF(BG29=0,BG29,BG29*(1+costinflation)*(1-IF($B30<='Key Assumptions'!$L$37,0, IF($B30-1='Key Assumptions'!$L$37,'Key Assumptions'!$L$38, IF($B30-1='Key Assumptions'!$L$39,'Key Assumptions'!$L$40, IF($B30-1='Key Assumptions'!$L$41,'Key Assumptions'!$L$42, IF(AND($B30-1>'Key Assumptions'!$L$41,MOD($B30-1,'Key Assumptions'!$L$43)=0),'Key Assumptions'!$L$44,0))))))) -> 35852.77706 | BH30: =IF(BH29=0,BH29,BH29*(1+costinflation)*(1-IF($B30<='Key Assumptions'!$L$57,0, IF($B30-1='Key Assumptions'!$L$57,'Key Assumptions'!$L$58, IF($B30-1='Key Assumptions'!$L$59,'Key Assumptions'!$L$60, IF($B30-1='Key Assumptions'!$L$61,'Key Assumptions'!$L$62, IF(AND($B30-1>'Key Assumptions'!$L$61,MOD($B30-1,'Key Assumptions'!$L$63)=0),'Key Assumptions'!$L$64,0))))))) -> 3585.277706 | BI30: 39438.05476 | BJ30: =IF(BJ29=0,BJ29,BJ29*(1+costinflation)*(1-IF($B30<='Key Assumptions'!$L$37,0, IF($B30-1='Key Assumptions'!$L$37,'Key Assumptions'!$L$38, IF($B30-1='Key Assumptions'!$L$39,'Key Assumptions'!$L$40, IF($B30-1='Key Assumptions'!$L$41,'Key Assumptions'!$L$42, IF(AND($B30-1>'Key Assumptions'!$L$41,MOD($B30-1,'Key Assumptions'!$L$43)=0),'Key Assumptions'!$L$44,0))))))) -> 32267.49935 | BK30: =IF(BK29=0,BK29,BK29*(1+costinflation)*(1-IF($B30<='Key Assumptions'!$L$57,0, IF($B30-1='Key Assumptions'!$L$57,'Key Assumptions'!$L$58, IF($B30-1='Key Assumptions'!$L$59,'Key Assumptions'!$L$60, IF($B30-1='Key Assumptions'!$L$61,'Key Assumptions'!$L$62, IF(AND($B30-1>'Key Assumptions'!$L$61,MOD($B30-1,'Key Assumptions'!$L$63)=0),'Key Assumptions'!$L$64,0))))))) -> 17926.38853 | BL30: 50193.88788 | BN30: =IF(BN29=0,BN29,BN29*(1+costinflation)*(1-IF($B30<='Key Assumptions'!$M$37,0, IF($B30-1='Key Assumptions'!$M$37,'Key Assumptions'!$M$38, IF($B30-1='Key Assumptions'!$M$39,'Key Assumptions'!$M$40, IF($B30-1='Key Assumptions'!$M$41,'Key Assumptions'!$M$42, IF(AND($B30-1>'Key Assumptions'!$M$41,MOD($B30-1,'Key Assumptions'!$M$43)=0),'Key Assumptions'!$M$44,0))))))) -> 35852.77706 | BO30: =IF(BO29=0,BO29,BO29*(1+costinflation)*(1-IF($B30<='Key Assumptions'!$M$57,0, IF($B30-1='Key Assumptions'!$M$57,'Key Assumptions'!$M$58, IF($B30-1='Key Assumptions'!$M$59,'Key Assumptions'!$M$60, IF($B30-1='Key Assumptions'!$M$61,'Key Assumptions'!$M$62, IF(AND($B30-1>'Key Assumptions'!$M$61,MOD($B30-1,'Key Assumptions'!$M$63)=0),'Key Assumptions'!$M$64,0))))))) -> 3585.277706 | BP30: 39438.05476 | BQ30: =IF(BQ29=0,BQ29,BQ29*(1+costinflation)*(1-IF($B30<='Key Assumptions'!$M$37,0, IF($B30-1='Key Assumptions'!$M$37,'Key Assumptions'!$M$38, IF($B30-1='Key Assumptions'!$M$39,'Key Assumptions'!$M$40, IF($B30-1='Key Assumptions'!$M$41,'Key Assumptions'!$M$42, IF(AND($B30-1>'Key Assumptions'!$M$41,MOD($B30-1,'Key Assumptions'!$M$43)=0),'Key Assumptions'!$M$44,0))))))) -> 46608.61018 | BR30: =IF(BR29=0,BR29,BR29*(1+costinflation)*(1-IF($B30<='Key Assumptions'!$M$57,0, IF($B30-1='Key Assumptions'!$M$57,'Key Assumptions'!$M$58, IF($B30-1='Key Assumptions'!$M$59,'Key Assumptions'!$M$60, IF($B30-1='Key Assumptions'!$M$61,'Key Assumptions'!$M$62, IF(AND($B30-1>'Key Assumptions'!$M$61,MOD($B30-1,'Key Assumptions'!$M$63)=0),'Key Assumptions'!$M$64,0))))))) -> 17926.38853 | BS30: 64534.99871
B31: 10 | C31: =IF(C30=0,C30,C30*(1+costinflation)*(1-IF($B31<='Key Assumptions'!$D$37,0, IF($B31-1='Key Assumptions'!$D$37,'Key Assumptions'!$D$38, IF($B31-1='Key Assumptions'!$D$39,'Key Assumptions'!$D$40, IF($B31-1='Key Assumptions'!$D$41,'Key Assumptions'!$D$42, IF(AND($B31-1>'Key Assumptions'!$D$41,MOD($B31-1,'Key Assumptions'!$D$43)=0),'Key Assumptions'!$D$44,0))))))) -> 121899.442 | D31: =IF(D30=0,D30,D30*(1+costinflation)*(1-IF($B31<='Key Assumptions'!$D$57,0, IF($B31-1='Key Assumptions'!$D$57,'Key Assumptions'!$D$58, IF($B31-1='Key Assumptions'!$D$59,'Key Assumptions'!$D$60, IF($B31-1='Key Assumptions'!$D$61,'Key Assumptions'!$D$62, IF(AND($B31-1>'Key Assumptions'!$D$61,MOD($B31-1,'Key Assumptions'!$D$63)=0),'Key Assumptions'!$D$64,0))))))) -> 12189.9442 | E31: 134089.3862 | F31: =IF(F30=0,F30,F30*(1+costinflation)*(1-IF($B31<='Key Assumptions'!$D$37,0, IF($B31-1='Key Assumptions'!$D$37,'Key Assumptions'!$D$38, IF($B31-1='Key Assumptions'!$D$39,'Key Assumptions'!$D$40, IF($B31-1='Key Assumptions'!$D$41,'Key Assumptions'!$D$42, IF(AND($B31-1>'Key Assumptions'!$D$41,MOD($B31-1,'Key Assumptions'!$D$43)=0),'Key Assumptions'!$D$44,0))))))) -> 241360.8952 | G31: =IF(G30=0,G30,G30*(1+costinflation)*(1-IF($B31<='Key Assumptions'!$D$57,0, IF($B31-1='Key Assumptions'!$D$57,'Key Assumptions'!$D$58, IF($B31-1='Key Assumptions'!$D$59,'Key Assumptions'!$D$60, IF($B31-1='Key Assumptions'!$D$61,'Key Assumptions'!$D$62, IF(AND($B31-1>'Key Assumptions'!$D$61,MOD($B31-1,'Key Assumptions'!$D$63)=0),'Key Assumptions'!$D$64,0))))))) -> 48759.7768 | H31: 290120.672 | J31: =IF(J30=0,J30,J30*(1+costinflation)*(1-IF($B31<='Key Assumptions'!$E$37,0, IF($B31-1='Key Assumptions'!$E$37,'Key Assumptions'!$E$38, IF($B31-1='Key Assumptions'!$E$39,'Key Assumptions'!$E$40, IF($B31-1='Key Assumptions'!$E$41,'Key Assumptions'!$E$42, IF(AND($B31-1>'Key Assumptions'!$E$41,MOD($B31-1,'Key Assumptions'!$E$43)=0),'Key Assumptions'!$E$44,0))))))) -> 36569.8326 | K31: =IF(K30=0,K30,K30*(1+costinflation)*(1-IF($B31<='Key Assumptions'!$E$57,0, IF($B31-1='Key Assumptions'!$E$57,'Key Assumptions'!$E$58, IF($B31-1='Key Assumptions'!$E$59,'Key Assumptions'!$E$60, IF($B31-1='Key Assumptions'!$E$61,'Key Assumptions'!$E$62, IF(AND($B31-1>'Key Assumptions'!$E$61,MOD($B31-1,'Key Assumptions'!$E$63)=0),'Key Assumptions'!$E$64,0))))))) -> 3656.98326 | L31: 40226.81586 | M31: =IF(M30=0,M30,M30*(1+costinflation)*(1-IF($B31<='Key Assumptions'!$E$37,0, IF($B31-1='Key Assumptions'!$E$37,'Key Assumptions'!$E$38, IF($B31-1='Key Assumptions'!$E$39,'Key Assumptions'!$E$40, IF($B31-1='Key Assumptions'!$E$41,'Key Assumptions'!$E$42, IF(AND($B31-1>'Key Assumptions'!$E$41,MOD($B31-1,'Key Assumptions'!$E$43)=0),'Key Assumptions'!$E$44,0))))))) -> 40226.81586 | N31: =IF(N30=0,N30,N30*(1+costinflation)*(1-IF($B31<='Key Assumptions'!$E$57,0, IF($B31-1='Key Assumptions'!$E$57,'Key Assumptions'!$E$58, IF($B31-1='Key Assumptions'!$E$59,'Key Assumptions'!$E$60, IF($B31-1='Key Assumptions'!$E$61,'Key Assumptions'!$E$62, IF(AND($B31-1>'Key Assumptions'!$E$61,MOD($B31-1,'Key Assumptions'!$E$63)=0),'Key Assumptions'!$E$64,0))))))) -> 18284.9163 | O31: 58511.73216 | Q31: =IF(Q30=0,Q30,Q30*(1+costinflation)*(1-IF($B31<='Key Assumptions'!$F$37,0, IF($B31-1='Key Assumptions'!$F$37,'Key Assumptions'!$F$38, IF($B31-1='Key Assumptions'!$F$39,'Key Assumptions'!$F$40, IF($B31-1='Key Assumptions'!$F$41,'Key Assumptions'!$F$42, IF(AND($B31-1>'Key Assumptions'!$F$41,MOD($B31-1,'Key Assumptions'!$F$43)=0),'Key Assumptions'!$F$44,0))))))) -> 24379.8884 | R31: =IF(R30=0,R30,R30*(1+costinflation)*(1-IF($B31<='Key Assumptions'!$F$57,0, IF($B31-1='Key Assumptions'!$F$57,'Key Assumptions'!$F$58, IF($B31-1='Key Assumptions'!$F$59,'Key Assumptions'!$F$60, IF($B31-1='Key Assumptions'!$F$61,'Key Assumptions'!$F$62, IF(AND($B31-1>'Key Assumptions'!$F$61,MOD($B31-1,'Key Assumptions'!$F$63)=0),'Key Assumptions'!$F$64,0))))))) -> 2437.98884 | S31: 26817.87724 | T31: =IF(T30=0,T30,T30*(1+costinflation)*(1-IF($B31<='Key Assumptions'!$F$37,0, IF($B31-1='Key Assumptions'!$F$37,'Key Assumptions'!$F$38, IF($B31-1='Key Assumptions'!$F$39,'Key Assumptions'!$F$40, IF($B31-1='Key Assumptions'!$F$41,'Key Assumptions'!$F$42, IF(AND($B31-1>'Key Assumptions'!$F$41,MOD($B31-1,'Key Assumptions'!$F$43)=0),'Key Assumptions'!$F$44,0))))))) -> 13408.93862 | U31: =IF(U30=0,U30,U30*(1+costinflation)*(1-IF($B31<='Key Assumptions'!$F$57,0, IF($B31-1='Key Assumptions'!$F$57,'Key Assumptions'!$F$58, IF($B31-1='Key Assumptions'!$F$59,'Key Assumptions'!$F$60, IF($B31-1='Key Assumptions'!$F$61,'Key Assumptions'!$F$62, IF(AND($B31-1>'Key Assumptions'!$F$61,MOD($B31-1,'Key Assumptions'!$F$63)=0),'Key Assumptions'!$F$64,0))))))) -> 3047.48605 | V31: 16456.42467 | X31: =IF(X30=0,X30,X30*(1+costinflation)*(1-IF($B31<='Key Assumptions'!$G$37,0, IF($B31-1='Key Assumptions'!$G$37,'Key Assumptions'!$G$38, IF($B31-1='Key Assumptions'!$G$39,'Key Assumptions'!$G$40, IF($B31-1='Key Assumptions'!$G$41,'Key Assumptions'!$G$42, IF(AND($B31-1>'Key Assumptions'!$G$41,MOD($B31-1,'Key Assumptions'!$G$43)=0),'Key Assumptions'!$G$44,0))))))) -> 30474.8605 | Y31: =IF(Y30=0,Y30,Y30*(1+costinflation)*(1-IF($B31<='Key Assumptions'!$G$57,0, IF($B31-1='Key Assumptions'!$G$57,'Key Assumptions'!$G$58, IF($B31-1='Key Assumptions'!$G$59,'Key Assumptions'!$G$60, IF($B31-1='Key Assumptions'!$G$61,'Key Assumptions'!$G$62, IF(AND($B31-1>'Key Assumptions'!$G$61,MOD($B31-1,'Key Assumptions'!$G$63)=0),'Key Assumptions'!$G$64,0))))))) -> 3047.48605 | Z31: 33522.34655 | AA31: =IF(AA30=0,AA30,AA30*(1+costinflation)*(1-IF($B31<='Key Assumptions'!$G$37,0, IF($B31-1='Key Assumptions'!$G$37,'Key Assumptions'!$G$38, IF($B31-1='Key Assumptions'!$G$39,'Key Assumptions'!$G$40, IF($B31-1='Key Assumptions'!$G$41,'Key Assumptions'!$G$42, IF(AND($B31-1>'Key Assumptions'!$G$41,MOD($B31-1,'Key Assumptions'!$G$43)=0),'Key Assumptions'!$G$44,0))))))) -> 26817.87724 | AB31: =IF(AB30=0,AB30,AB30*(1+costinflation)*(1-IF($B31<='Key Assumptions'!$G$57,0, IF($B31-1='Key Assumptions'!$G$57,'Key Assumptions'!$G$58, IF($B31-1='Key Assumptions'!$G$59,'Key Assumptions'!$G$60, IF($B31-1='Key Assumptions'!$G$61,'Key Assumptions'!$G$62, IF(AND($B31-1>'Key Assumptions'!$G$61,MOD($B31-1,'Key Assumptions'!$G$63)=0),'Key Assumptions'!$G$64,0))))))) -> 3656.98326 | AC31: 30474.8605 | AE31: =IF(AE30=0,AE30,AE30*(1+costinflation)*(1-IF($B31<='Key Assumptions'!$H$37,0, IF($B31-1='Key Assumptions'!$H$37,'Key Assumptions'!$H$38, IF($B31-1='Key Assumptions'!$H$39,'Key Assumptions'!$H$40, IF($B31-1='Key Assumptions'!$H$41,'Key Assumptions'!$H$42, IF(AND($B31-1>'Key Assumptions'!$H$41,MOD($B31-1,'Key Assumptions'!$H$43)=0),'Key Assumptions'!$H$44,0))))))) -> 390078.2144 | AF31: =IF(AF30=0,AF30,AF30*(1+costinflation)*(1-IF($B31<='Key Assumptions'!$H$57,0, IF($B31-1='Key Assumptions'!$H$57,'Key Assumptions'!$H$58, IF($B31-1='Key Assumptions'!$H$59,'Key Assumptions'!$H$60, IF($B31-1='Key Assumptions'!$H$61,'Key Assumptions'!$H$62, IF(AND($B31-1>'Key Assumptions'!$H$61,MOD($B31-1,'Key Assumptions'!$H$63)=0),'Key Assumptions'!$H$64,0))))))) -> 8532.96094 | AG31: 398611.1753 | AH31: =IF(AH30=0,AH30,AH30*(1+costinflation)*(1-IF($B31<='Key Assumptions'!$H$37,0, IF($B31-1='Key Assumptions'!$H$37,'Key Assumptions'!$H$38, IF($B31-1='Key Assumptions'!$H$39,'Key Assumptions'!$H$40, IF($B31-1='Key Assumptions'!$H$41,'Key Assumptions'!$H$42, IF(AND($B31-1>'Key Assumptions'!$H$41,MOD($B31-1,'Key Assumptions'!$H$43)=0),'Key Assumptions'!$H$44,0))))))) -> 158469.2746 | AI31: =IF(AI30=0,AI30,AI30*(1+costinflation)*(1-IF($B31<='Key Assumptions'!$H$57,0, IF($B31-1='Key Assumptions'!$H$57,'Key Assumptions'!$H$58, IF($B31-1='Key Assumptions'!$H$59,'Key Assumptions'!$H$60, IF($B31-1='Key Assumptions'!$H$61,'Key Assumptions'!$H$62, IF(AND($B31-1>'Key Assumptions'!$H$61,MOD($B31-1,'Key Assumptions'!$H$63)=0),'Key Assumptions'!$H$64,0))))))) -> 109709.4978 | AJ31: 268178.7724 | AL31: =IF(AL30=0,AL30,AL30*(1+costinflation)*(1-IF($B31<='Key Assumptions'!$I$37,0, IF($B31-1='Key Assumptions'!$I$37,'Key Assumptions'!$I$38, IF($B31-1='Key Assumptions'!$I$39,'Key Assumptions'!$I$40, IF($B31-1='Key Assumptions'!$I$41,'Key Assumptions'!$I$42, IF(AND($B31-1>'Key Assumptions'!$I$41,MOD($B31-1,'Key Assumptions'!$I$43)=0),'Key Assumptions'!$I$44,0))))))) -> 121899.442 | AM31: =IF(AM30=0,AM30,AM30*(1+costinflation)*(1-IF($B31<='Key Assumptions'!$I$57,0, IF($B31-1='Key Assumptions'!$I$57,'Key Assumptions'!$I$58, IF($B31-1='Key Assumptions'!$I$59,'Key Assumptions'!$I$60, IF($B31-1='Key Assumptions'!$I$61,'Key Assumptions'!$I$62, IF(AND($B31-1>'Key Assumptions'!$I$61,MOD($B31-1,'Key Assumptions'!$I$63)=0),'Key Assumptions'!$I$64,0))))))) -> 18284.9163 | AN31: 140184.3583 | AO31: =IF(AO30=0,AO30,AO30*(1+costinflation)*(1-IF($B31<='Key Assumptions'!$I$37,0, IF($B31-1='Key Assumptions'!$I$37,'Key Assumptions'!$I$38, IF($B31-1='Key Assumptions'!$I$39,'Key Assumptions'!$I$40, IF($B31-1='Key Assumptions'!$I$41,'Key Assumptions'!$I$42, IF(AND($B31-1>'Key Assumptions'!$I$41,MOD($B31-1,'Key Assumptions'!$I$43)=0),'Key Assumptions'!$I$44,0))))))) -> 79234.6373 | AP31: =IF(AP30=0,AP30,AP30*(1+costinflation)*(1-IF($B31<='Key Assumptions'!$I$57,0, IF($B31-1='Key Assumptions'!$I$57,'Key Assumptions'!$I$58, IF($B31-1='Key Assumptions'!$I$59,'Key Assumptions'!$I$60, IF($B31-1='Key Assumptions'!$I$61,'Key Assumptions'!$I$62, IF(AND($B31-1>'Key Assumptions'!$I$61,MOD($B31-1,'Key Assumptions'!$I$63)=0),'Key Assumptions'!$I$64,0))))))) -> 48759.7768 | AQ31: 127994.4141 | AS31: =IF(AS30=0,AS30,AS30*(1+costinflation)*(1-IF($B31<='Key Assumptions'!$J$37,0, IF($B31-1='Key Assumptions'!$J$37,'Key Assumptions'!$J$38, IF($B31-1='Key Assumptions'!$J$39,'Key Assumptions'!$J$40, IF($B31-1='Key Assumptions'!$J$41,'Key Assumptions'!$J$42, IF(AND($B31-1>'Key Assumptions'!$J$41,MOD($B31-1,'Key Assumptions'!$J$43)=0),'Key Assumptions'!$J$44,0))))))) -> 121899.442 | AT31: =IF(AT30=0,AT30,AT30*(1+costinflation)*(1-IF($B31<='Key Assumptions'!$J$57,0, IF($B31-1='Key Assumptions'!$J$57,'Key Assumptions'!$J$58, IF($B31-1='Key Assumptions'!$J$59,'Key Assumptions'!$J$60, IF($B31-1='Key Assumptions'!$J$61,'Key Assumptions'!$J$62, IF(AND($B31-1>'Key Assumptions'!$J$61,MOD($B31-1,'Key Assumptions'!$J$63)=0),'Key Assumptions'!$J$64,0))))))) -> 12189.9442 | AU31: 134089.3862 | AV31: =IF(AV30=0,AV30,AV30*(1+costinflation)*(1-IF($B31<='Key Assumptions'!$J$37,0, IF($B31-1='Key Assumptions'!$J$37,'Key Assumptions'!$J$38, IF($B31-1='Key Assumptions'!$J$39,'Key Assumptions'!$J$40, IF($B31-1='Key Assumptions'!$J$41,'Key Assumptions'!$J$42, IF(AND($B31-1>'Key Assumptions'!$J$41,MOD($B31-1,'Key Assumptions'!$J$43)=0),'Key Assumptions'!$J$44,0))))))) -> 348632.4041 | AW31: =IF(AW30=0,AW30,AW30*(1+costinflation)*(1-IF($B31<='Key Assumptions'!$J$57,0, IF($B31-1='Key Assumptions'!$J$57,'Key Assumptions'!$J$58, IF($B31-1='Key Assumptions'!$J$59,'Key Assumptions'!$J$60, IF($B31-1='Key Assumptions'!$J$61,'Key Assumptions'!$J$62, IF(AND($B31-1>'Key Assumptions'!$J$61,MOD($B31-1,'Key Assumptions'!$J$63)=0),'Key Assumptions'!$J$64,0))))))) -> 48759.7768 | AX31: 397392.1809 | AZ31: =IF(AZ30=0,AZ30,AZ30*(1+costinflation)*(1-IF($B31<='Key Assumptions'!$K$37,0, IF($B31-1='Key Assumptions'!$K$37,'Key Assumptions'!$K$38, IF($B31-1='Key Assumptions'!$K$39,'Key Assumptions'!$K$40, IF($B31-1='Key Assumptions'!$K$41,'Key Assumptions'!$K$42, IF(AND($B31-1>'Key Assumptions'!$K$41,MOD($B31-1,'Key Assumptions'!$K$43)=0),'Key Assumptions'!$K$44,0))))))) -> 36569.8326 | BA31: =IF(BA30=0,BA30,BA30*(1+costinflation)*(1-IF($B31<='Key Assumptions'!$K$57,0, IF($B31-1='Key Assumptions'!$K$57,'Key Assumptions'!$K$58, IF($B31-1='Key Assumptions'!$K$59,'Key Assumptions'!$K$60, IF($B31-1='Key Assumptions'!$K$61,'Key Assumptions'!$K$62, IF(AND($B31-1>'Key Assumptions'!$K$61,MOD($B31-1,'Key Assumptions'!$K$63)=0),'Key Assumptions'!$K$64,0))))))) -> 3656.98326 | BB31: 40226.81586 | BC31: =IF(BC30=0,BC30,BC30*(1+costinflation)*(1-IF($B31<='Key Assumptions'!$K$37,0, IF($B31-1='Key Assumptions'!$K$37,'Key Assumptions'!$K$38, IF($B31-1='Key Assumptions'!$K$39,'Key Assumptions'!$K$40, IF($B31-1='Key Assumptions'!$K$41,'Key Assumptions'!$K$42, IF(AND($B31-1>'Key Assumptions'!$K$41,MOD($B31-1,'Key Assumptions'!$K$43)=0),'Key Assumptions'!$K$44,0))))))) -> 47540.78238 | BD31: =IF(BD30=0,BD30,BD30*(1+costinflation)*(1-IF($B31<='Key Assumptions'!$K$57,0, IF($B31-1='Key Assumptions'!$K$57,'Key Assumptions'!$K$58, IF($B31-1='Key Assumptions'!$K$59,'Key Assumptions'!$K$60, IF($B31-1='Key Assumptions'!$K$61,'Key Assumptions'!$K$62, IF(AND($B31-1>'Key Assumptions'!$K$61,MOD($B31-1,'Key Assumptions'!$K$63)=0),'Key Assumptions'!$K$64,0))))))) -> 18284.9163 | BE31: 65825.69868 | BG31: =IF(BG30=0,BG30,BG30*(1+costinflation)*(1-IF($B31<='Key Assumptions'!$L$37,0, IF($B31-1='Key Assumptions'!$L$37,'Key Assumptions'!$L$38, IF($B31-1='Key Assumptions'!$L$39,'Key Assumptions'!$L$40, IF($B31-1='Key Assumptions'!$L$41,'Key Assumptions'!$L$42, IF(AND($B31-1>'Key Assumptions'!$L$41,MOD($B31-1,'Key Assumptions'!$L$43)=0),'Key Assumptions'!$L$44,0))))))) -> 36569.8326 | BH31: =IF(BH30=0,BH30,BH30*(1+costinflation)*(1-IF($B31<='Key Assumptions'!$L$57,0, IF($B31-1='Key Assumptions'!$L$57,'Key Assumptions'!$L$58, IF($B31-1='Key Assumptions'!$L$59,'Key Assumptions'!$L$60, IF($B31-1='Key Assumptions'!$L$61,'Key Assumptions'!$L$62, IF(AND($B31-1>'Key Assumptions'!$L$61,MOD($B31-1,'Key Assumptions'!$L$63)=0),'Key Assumptions'!$L$64,0))))))) -> 3656.98326 | BI31: 40226.81586 | BJ31: =IF(BJ30=0,BJ30,BJ30*(1+costinflation)*(1-IF($B31<='Key Assumptions'!$L$37,0, IF($B31-1='Key Assumptions'!$L$37,'Key Assumptions'!$L$38, IF($B31-1='Key Assumptions'!$L$39,'Key Assumptions'!$L$40, IF($B31-1='Key Assumptions'!$L$41,'Key Assumptions'!$L$42, IF(AND($B31-1>'Key Assumptions'!$L$41,MOD($B31-1,'Key Assumptions'!$L$43)=0),'Key Assumptions'!$L$44,0))))))) -> 32912.84934 | BK31: =IF(BK30=0,BK30,BK30*(1+costinflation)*(1-IF($B31<='Key Assumptions'!$L$57,0, IF($B31-1='Key Assumptions'!$L$57,'Key Assumptions'!$L$58, IF($B31-1='Key Assumptions'!$L$59,'Key Assumptions'!$L$60, IF($B31-1='Key Assumptions'!$L$61,'Key Assumptions'!$L$62, IF(AND($B31-1>'Key Assumptions'!$L$61,MOD($B31-1,'Key Assumptions'!$L$63)=0),'Key Assumptions'!$L$64,0))))))) -> 18284.9163 | BL31: 51197.76564 | BN31: =IF(BN30=0,BN30,BN30*(1+costinflation)*(1-IF($B31<='Key Assumptions'!$M$37,0, IF($B31-1='Key Assumptions'!$M$37,'Key Assumptions'!$M$38, IF($B31-1='Key Assumptions'!$M$39,'Key Assumptions'!$M$40, IF($B31-1='Key Assumptions'!$M$41,'Key Assumptions'!$M$42, IF(AND($B31-1>'Key Assumptions'!$M$41,MOD($B31-1,'Key Assumptions'!$M$43)=0),'Key Assumptions'!$M$44,0))))))) -> 36569.8326 | BO31: =IF(BO30=0,BO30,BO30*(1+costinflation)*(1-IF($B31<='Key Assumptions'!$M$57,0, IF($B31-1='Key Assumptions'!$M$57,'Key Assumptions'!$M$58, IF($B31-1='Key Assumptions'!$M$59,'Key Assumptions'!$M$60, IF($B31-1='Key Assumptions'!$M$61,'Key Assumptions'!$M$62, IF(AND($B31-1>'Key Assumptions'!$M$61,MOD($B31-1,'Key Assumptions'!$M$63)=0),'Key Assumptions'!$M$64,0))))))) -> 3656.98326 | BP31: 40226.81586 | BQ31: =IF(BQ30=0,BQ30,BQ30*(1+costinflation)*(1-IF($B31<='Key Assumptions'!$M$37,0, IF($B31-1='Key Assumptions'!$M$37,'Key Assumptions'!$M$38, IF($B31-1='Key Assumptions'!$M$39,'Key Assumptions'!$M$40, IF($B31-1='Key Assumptions'!$M$41,'Key Assumptions'!$M$42, IF(AND($B31-1>'Key Assumptions'!$M$41,MOD($B31-1,'Key Assumptions'!$M$43)=0),'Key Assumptions'!$M$44,0))))))) -> 47540.78238 | BR31: =IF(BR30=0,BR30,BR30*(1+costinflation)*(1-IF($B31<='Key Assumptions'!$M$57,0, IF($B31-1='Key Assumptions'!$M$57,'Key Assumptions'!$M$58, IF($B31-1='Key Assumptions'!$M$59,'Key Assumptions'!$M$60, IF($B31-1='Key Assumptions'!$M$61,'Key Assumptions'!$M$62, IF(AND($B31-1>'Key Assumptions'!$M$61,MOD($B31-1,'Key Assumptions'!$M$63)=0),'Key Assumptions'!$M$64,0))))))) -> 18284.9163 | BS31: 65825.69868
B32: 11 | C32: =IF(C31=0,C31,C31*(1+costinflation)*(1-IF($B32<='Key Assumptions'!$D$37,0, IF($B32-1='Key Assumptions'!$D$37,'Key Assumptions'!$D$38, IF($B32-1='Key Assumptions'!$D$39,'Key Assumptions'!$D$40, IF($B32-1='Key Assumptions'!$D$41,'Key Assumptions'!$D$42, IF(AND($B32-1>'Key Assumptions'!$D$41,MOD($B32-1,'Key Assumptions'!$D$43)=0),'Key Assumptions'!$D$44,0))))))) -> 124337.4308 | D32: =IF(D31=0,D31,D31*(1+costinflation)*(1-IF($B32<='Key Assumptions'!$D$57,0, IF($B32-1='Key Assumptions'!$D$57,'Key Assumptions'!$D$58, IF($B32-1='Key Assumptions'!$D$59,'Key Assumptions'!$D$60, IF($B32-1='Key Assumptions'!$D$61,'Key Assumptions'!$D$62, IF(AND($B32-1>'Key Assumptions'!$D$61,MOD($B32-1,'Key Assumptions'!$D$63)=0),'Key Assumptions'!$D$64,0))))))) -> 12433.74308 | E32: 136771.1739 | F32: =IF(F31=0,F31,F31*(1+costinflation)*(1-IF($B32<='Key Assumptions'!$D$37,0, IF($B32-1='Key Assumptions'!$D$37,'Key Assumptions'!$D$38, IF($B32-1='Key Assumptions'!$D$39,'Key Assumptions'!$D$40, IF($B32-1='Key Assumptions'!$D$41,'Key Assumptions'!$D$42, IF(AND($B32-1>'Key Assumptions'!$D$41,MOD($B32-1,'Key Assumptions'!$D$43)=0),'Key Assumptions'!$D$44,0))))))) -> 246188.1131 | G32: =IF(G31=0,G31,G31*(1+costinflation)*(1-IF($B32<='Key Assumptions'!$D$57,0, IF($B32-1='Key Assumptions'!$D$57,'Key Assumptions'!$D$58, IF($B32-1='Key Assumptions'!$D$59,'Key Assumptions'!$D$60, IF($B32-1='Key Assumptions'!$D$61,'Key Assumptions'!$D$62, IF(AND($B32-1>'Key Assumptions'!$D$61,MOD($B32-1,'Key Assumptions'!$D$63)=0),'Key Assumptions'!$D$64,0))))))) -> 49734.97234 | H32: 295923.0854 | J32: =IF(J31=0,J31,J31*(1+costinflation)*(1-IF($B32<='Key Assumptions'!$E$37,0, IF($B32-1='Key Assumptions'!$E$37,'Key Assumptions'!$E$38, IF($B32-1='Key Assumptions'!$E$39,'Key Assumptions'!$E$40, IF($B32-1='Key Assumptions'!$E$41,'Key Assumptions'!$E$42, IF(AND($B32-1>'Key Assumptions'!$E$41,MOD($B32-1,'Key Assumptions'!$E$43)=0),'Key Assumptions'!$E$44,0))))))) -> 37301.22925 | K32: =IF(K31=0,K31,K31*(1+costinflation)*(1-IF($B32<='Key Assumptions'!$E$57,0, IF($B32-1='Key Assumptions'!$E$57,'Key Assumptions'!$E$58, IF($B32-1='Key Assumptions'!$E$59,'Key Assumptions'!$E$60, IF($B32-1='Key Assumptions'!$E$61,'Key Assumptions'!$E$62, IF(AND($B32-1>'Key Assumptions'!$E$61,MOD($B32-1,'Key Assumptions'!$E$63)=0),'Key Assumptions'!$E$64,0))))))) -> 3730.122925 | L32: 41031.35218 | M32: =IF(M31=0,M31,M31*(1+costinflation)*(1-IF($B32<='Key Assumptions'!$E$37,0, IF($B32-1='Key Assumptions'!$E$37,'Key Assumptions'!$E$38, IF($B32-1='Key Assumptions'!$E$39,'Key Assumptions'!$E$40, IF($B32-1='Key Assumptions'!$E$41,'Key Assumptions'!$E$42, IF(AND($B32-1>'Key Assumptions'!$E$41,MOD($B32-1,'Key Assumptions'!$E$43)=0),'Key Assumptions'!$E$44,0))))))) -> 41031.35218 | N32: =IF(N31=0,N31,N31*(1+costinflation)*(1-IF($B32<='Key Assumptions'!$E$57,0, IF($B32-1='Key Assumptions'!$E$57,'Key Assumptions'!$E$58, IF($B32-1='Key Assumptions'!$E$59,'Key Assumptions'!$E$60, IF($B32-1='Key Assumptions'!$E$61,'Key Assumptions'!$E$62, IF(AND($B32-1>'Key Assumptions'!$E$61,MOD($B32-1,'Key Assumptions'!$E$63)=0),'Key Assumptions'!$E$64,0))))))) -> 18650.61463 | O32: 59681.9668 | Q32: =IF(Q31=0,Q31,Q31*(1+costinflation)*(1-IF($B32<='Key Assumptions'!$F$37,0, IF($B32-1='Key Assumptions'!$F$37,'Key Assumptions'!$F$38, IF($B32-1='Key Assumptions'!$F$39,'Key Assumptions'!$F$40, IF($B32-1='Key Assumptions'!$F$41,'Key Assumptions'!$F$42, IF(AND($B32-1>'Key Assumptions'!$F$41,MOD($B32-1,'Key Assumptions'!$F$43)=0),'Key Assumptions'!$F$44,0))))))) -> 24867.48617 | R32: =IF(R31=0,R31,R31*(1+costinflation)*(1-IF($B32<='Key Assumptions'!$F$57,0, IF($B32-1='Key Assumptions'!$F$57,'Key Assumptions'!$F$58, IF($B32-1='Key Assumptions'!$F$59,'Key Assumptions'!$F$60, IF($B32-1='Key Assumptions'!$F$61,'Key Assumptions'!$F$62, IF(AND($B32-1>'Key Assumptions'!$F$61,MOD($B32-1,'Key Assumptions'!$F$63)=0),'Key Assumptions'!$F$64,0))))))) -> 2486.748617 | S32: 27354.23478 | T32: =IF(T31=0,T31,T31*(1+costinflation)*(1-IF($B32<='Key Assumptions'!$F$37,0, IF($B32-1='Key Assumptions'!$F$37,'Key Assumptions'!$F$38, IF($B32-1='Key Assumptions'!$F$39,'Key Assumptions'!$F$40, IF($B32-1='Key Assumptions'!$F$41,'Key Assumptions'!$F$42, IF(AND($B32-1>'Key Assumptions'!$F$41,MOD($B32-1,'Key Assumptions'!$F$43)=0),'Key Assumptions'!$F$44,0))))))) -> 13677.11739 | U32: =IF(U31=0,U31,U31*(1+costinflation)*(1-IF($B32<='Key Assumptions'!$F$57,0, IF($B32-1='Key Assumptions'!$F$57,'Key Assumptions'!$F$58, IF($B32-1='Key Assumptions'!$F$59,'Key Assumptions'!$F$60, IF($B32-1='Key Assumptions'!$F$61,'Key Assumptions'!$F$62, IF(AND($B32-1>'Key Assumptions'!$F$61,MOD($B32-1,'Key Assumptions'!$F$63)=0),'Key Assumptions'!$F$64,0))))))) -> 3108.435771 | V32: 16785.55316 | X32: =IF(X31=0,X31,X31*(1+costinflation)*(1-IF($B32<='Key Assumptions'!$G$37,0, IF($B32-1='Key Assumptions'!$G$37,'Key Assumptions'!$G$38, IF($B32-1='Key Assumptions'!$G$39,'Key Assumptions'!$G$40, IF($B32-1='Key Assumptions'!$G$41,'Key Assumptions'!$G$42, IF(AND($B32-1>'Key Assumptions'!$G$41,MOD($B32-1,'Key Assumptions'!$G$43)=0),'Key Assumptions'!$G$44,0))))))) -> 31084.35771 | Y32: =IF(Y31=0,Y31,Y31*(1+costinflation)*(1-IF($B32<='Key Assumptions'!$G$57,0, IF($B32-1='Key Assumptions'!$G$57,'Key Assumptions'!$G$58, IF($B32-1='Key Assumptions'!$G$59,'Key Assumptions'!$G$60, IF($B32-1='Key Assumptions'!$G$61,'Key Assumptions'!$G$62, IF(AND($B32-1>'Key Assumptions'!$G$61,MOD($B32-1,'Key Assumptions'!$G$63)=0),'Key Assumptions'!$G$64,0))))))) -> 3108.435771 | Z32: 34192.79348 | AA32: =IF(AA31=0,AA31,AA31*(1+costinflation)*(1-IF($B32<='Key Assumptions'!$G$37,0, IF($B32-1='Key Assumptions'!$G$37,'Key Assumptions'!$G$38, IF($B32-1='Key Assumptions'!$G$39,'Key Assumptions'!$G$40, IF($B32-1='Key Assumptions'!$G$41,'Key Assumptions'!$G$42, IF(AND($B32-1>'Key Assumptions'!$G$41,MOD($B32-1,'Key Assumptions'!$G$43)=0),'Key Assumptions'!$G$44,0))))))) -> 27354.23478 | AB32: =IF(AB31=0,AB31,AB31*(1+costinflation)*(1-IF($B32<='Key Assumptions'!$G$57,0, IF($B32-1='Key Assumptions'!$G$57,'Key Assumptions'!$G$58, IF($B32-1='Key Assumptions'!$G$59,'Key Assumptions'!$G$60, IF($B32-1='Key Assumptions'!$G$61,'Key Assumptions'!$G$62, IF(AND($B32-1>'Key Assumptions'!$G$61,MOD($B32-1,'Key Assumptions'!$G$63)=0),'Key Assumptions'!$G$64,0))))))) -> 3730.122925 | AC32: 31084.35771 | AE32: =IF(AE31=0,AE31,AE31*(1+costinflation)*(1-IF($B32<='Key Assumptions'!$H$37,0, IF($B32-1='Key Assumptions'!$H$37,'Key Assumptions'!$H$38, IF($B32-1='Key Assumptions'!$H$39,'Key Assumptions'!$H$40, IF($B32-1='Key Assumptions'!$H$41,'Key Assumptions'!$H$42, IF(AND($B32-1>'Key Assumptions'!$H$41,MOD($B32-1,'Key Assumptions'!$H$43)=0),'Key Assumptions'!$H$44,0))))))) -> 397879.7787 | AF32: =IF(AF31=0,AF31,AF31*(1+costinflation)*(1-IF($B32<='Key Assumptions'!$H$57,0, IF($B32-1='Key Assumptions'!$H$57,'Key Assumptions'!$H$58, IF($B32-1='Key Assumptions'!$H$59,'Key Assumptions'!$H$60, IF($B32-1='Key Assumptions'!$H$61,'Key Assumptions'!$H$62, IF(AND($B32-1>'Key Assumptions'!$H$61,MOD($B32-1,'Key Assumptions'!$H$63)=0),'Key Assumptions'!$H$64,0))))))) -> 8703.620159 | AG32: 406583.3988 | AH32: =IF(AH31=0,AH31,AH31*(1+costinflation)*(1-IF($B32<='Key Assumptions'!$H$37,0, IF($B32-1='Key Assumptions'!$H$37,'Key Assumptions'!$H$38, IF($B32-1='Key Assumptions'!$H$39,'Key Assumptions'!$H$40, IF($B32-1='Key Assumptions'!$H$41,'Key Assumptions'!$H$42, IF(AND($B32-1>'Key Assumptions'!$H$41,MOD($B32-1,'Key Assumptions'!$H$43)=0),'Key Assumptions'!$H$44,0))))))) -> 161638.6601 | AI32: =IF(AI31=0,AI31,AI31*(1+costinflation)*(1-IF($B32<='Key Assumptions'!$H$57,0, IF($B32-1='Key Assumptions'!$H$57,'Key Assumptions'!$H$58, IF($B32-1='Key Assumptions'!$H$59,'Key Assumptions'!$H$60, IF($B32-1='Key Assumptions'!$H$61,'Key Assumptions'!$H$62, IF(AND($B32-1>'Key Assumptions'!$H$61,MOD($B32-1,'Key Assumptions'!$H$63)=0),'Key Assumptions'!$H$64,0))))))) -> 111903.6878 | AJ32: 273542.3478 | AL32: =IF(AL31=0,AL31,AL31*(1+costinflation)*(1-IF($B32<='Key Assumptions'!$I$37,0, IF($B32-1='Key Assumptions'!$I$37,'Key Assumptions'!$I$38, IF($B32-1='Key Assumptions'!$I$39,'Key Assumptions'!$I$40, IF($B32-1='Key Assumptions'!$I$41,'Key Assumptions'!$I$42, IF(AND($B32-1>'Key Assumptions'!$I$41,MOD($B32-1,'Key Assumptions'!$I$43)=0),'Key Assumptions'!$I$44,0))))))) -> 124337.4308 | AM32: =IF(AM31=0,AM31,AM31*(1+costinflation)*(1-IF($B32<='Key Assumptions'!$I$57,0, IF($B32-1='Key Assumptions'!$I$57,'Key Assumptions'!$I$58, IF($B32-1='Key Assumptions'!$I$59,'Key Assumptions'!$I$60, IF($B32-1='Key Assumptions'!$I$61,'Key Assumptions'!$I$62, IF(AND($B32-1>'Key Assumptions'!$I$61,MOD($B32-1,'Key Assumptions'!$I$63)=0),'Key Assumptions'!$I$64,0))))))) -> 18650.61463 | AN32: 142988.0455 | AO32: =IF(AO31=0,AO31,AO31*(1+costinflation)*(1-IF($B32<='Key Assumptions'!$I$37,0, IF($B32-1='Key Assumptions'!$I$37,'Key Assumptions'!$I$38, IF($B32-1='Key Assumptions'!$I$39,'Key Assumptions'!$I$40, IF($B32-1='Key Assumptions'!$I$41,'Key Assumptions'!$I$42, IF(AND($B32-1>'Key Assumptions'!$I$41,MOD($B32-1,'Key Assumptions'!$I$43)=0),'Key Assumptions'!$I$44,0))))))) -> 80819.33005 | AP32: =IF(AP31=0,AP31,AP31*(1+costinflation)*(1-IF($B32<='Key Assumptions'!$I$57,0, IF($B32-1='Key Assumptions'!$I$57,'Key Assumptions'!$I$58, IF($B32-1='Key Assumptions'!$I$59,'Key Assumptions'!$I$60, IF($B32-1='Key Assumptions'!$I$61,'Key Assumptions'!$I$62, IF(AND($B32-1>'Key Assumptions'!$I$61,MOD($B32-1,'Key Assumptions'!$I$63)=0),'Key Assumptions'!$I$64,0))))))) -> 49734.97234 | AQ32: 130554.3024 | AS32: =IF(AS31=0,AS31,AS31*(1+costinflation)*(1-IF($B32<='Key Assumptions'!$J$37,0, IF($B32-1='Key Assumptions'!$J$37,'Key Assumptions'!$J$38, IF($B32-1='Key Assumptions'!$J$39,'Key Assumptions'!$J$40, IF($B32-1='Key Assumptions'!$J$41,'Key Assumptions'!$J$42, IF(AND($B32-1>'Key Assumptions'!$J$41,MOD($B32-1,'Key Assumptions'!$J$43)=0),'Key Assumptions'!$J$44,0))))))) -> 124337.4308 | AT32: =IF(AT31=0,AT31,AT31*(1+costinflation)*(1-IF($B32<='Key Assumptions'!$J$57,0, IF($B32-1='Key Assumptions'!$J$57,'Key Assumptions'!$J$58, IF($B32-1='Key Assumptions'!$J$59,'Key Assumptions'!$J$60, IF($B32-1='Key Assumptions'!$J$61,'Key Assumptions'!$J$62, IF(AND($B32-1>'Key Assumptions'!$J$61,MOD($B32-1,'Key Assumptions'!$J$63)=0),'Key Assumptions'!$J$64,0))))))) -> 12433.74308 | AU32: 136771.1739 | AV32: =IF(AV31=0,AV31,AV31*(1+costinflation)*(1-IF($B32<='Key Assumptions'!$J$37,0, IF($B32-1='Key Assumptions'!$J$37,'Key Assumptions'!$J$38, IF($B32-1='Key Assumptions'!$J$39,'Key Assumptions'!$J$40, IF($B32-1='Key Assumptions'!$J$41,'Key Assumptions'!$J$42, IF(AND($B32-1>'Key Assumptions'!$J$41,MOD($B32-1,'Key Assumptions'!$J$43)=0),'Key Assumptions'!$J$44,0))))))) -> 355605.0522 | AW32: =IF(AW31=0,AW31,AW31*(1+costinflation)*(1-IF($B32<='Key Assumptions'!$J$57,0, IF($B32-1='Key Assumptions'!$J$57,'Key Assumptions'!$J$58, IF($B32-1='Key Assumptions'!$J$59,'Key Assumptions'!$J$60, IF($B32-1='Key Assumptions'!$J$61,'Key Assumptions'!$J$62, IF(AND($B32-1>'Key Assumptions'!$J$61,MOD($B32-1,'Key Assumptions'!$J$63)=0),'Key Assumptions'!$J$64,0))))))) -> 49734.97234 | AX32: 405340.0245 | AZ32: =IF(AZ31=0,AZ31,AZ31*(1+costinflation)*(1-IF($B32<='Key Assumptions'!$K$37,0, IF($B32-1='Key Assumptions'!$K$37,'Key Assumptions'!$K$38, IF($B32-1='Key Assumptions'!$K$39,'Key Assumptions'!$K$40, IF($B32-1='Key Assumptions'!$K$41,'Key Assumptions'!$K$42, IF(AND($B32-1>'Key Assumptions'!$K$41,MOD($B32-1,'Key Assumptions'!$K$43)=0),'Key Assumptions'!$K$44,0))))))) -> 37301.22925 | BA32: =IF(BA31=0,BA31,BA31*(1+costinflation)*(1-IF($B32<='Key Assumptions'!$K$57,0, IF($B32-1='Key Assumptions'!$K$57,'Key Assumptions'!$K$58, IF($B32-1='Key Assumptions'!$K$59,'Key Assumptions'!$K$60, IF($B32-1='Key Assumptions'!$K$61,'Key Assumptions'!$K$62, IF(AND($B32-1>'Key Assumptions'!$K$61,MOD($B32-1,'Key Assumptions'!$K$63)=0),'Key Assumptions'!$K$64,0))))))) -> 3730.122925 | BB32: 41031.35218 | BC32: =IF(BC31=0,BC31,BC31*(1+costinflation)*(1-IF($B32<='Key Assumptions'!$K$37,0, IF($B32-1='Key Assumptions'!$K$37,'Key Assumptions'!$K$38, IF($B32-1='Key Assumptions'!$K$39,'Key Assumptions'!$K$40, IF($B32-1='Key Assumptions'!$K$41,'Key Assumptions'!$K$42, IF(AND($B32-1>'Key Assumptions'!$K$41,MOD($B32-1,'Key Assumptions'!$K$43)=0),'Key Assumptions'!$K$44,0))))))) -> 48491.59803 | BD32: =IF(BD31=0,BD31,BD31*(1+costinflation)*(1-IF($B32<='Key Assumptions'!$K$57,0, IF($B32-1='Key Assumptions'!$K$57,'Key Assumptions'!$K$58, IF($B32-1='Key Assumptions'!$K$59,'Key Assumptions'!$K$60, IF($B32-1='Key Assumptions'!$K$61,'Key Assumptions'!$K$62, IF(AND($B32-1>'Key Assumptions'!$K$61,MOD($B32-1,'Key Assumptions'!$K$63)=0),'Key Assumptions'!$K$64,0))))))) -> 18650.61463 | BE32: 67142.21265 | BG32: =IF(BG31=0,BG31,BG31*(1+costinflation)*(1-IF($B32<='Key Assumptions'!$L$37,0, IF($B32-1='Key Assumptions'!$L$37,'Key Assumptions'!$L$38, IF($B32-1='Key Assumptions'!$L$39,'Key Assumptions'!$L$40, IF($B32-1='Key Assumptions'!$L$41,'Key Assumptions'!$L$42, IF(AND($B32-1>'Key Assumptions'!$L$41,MOD($B32-1,'Key Assumptions'!$L$43)=0),'Key Assumptions'!$L$44,0))))))) -> 37301.22925 | BH32: =IF(BH31=0,BH31,BH31*(1+costinflation)*(1-IF($B32<='Key Assumptions'!$L$57,0, IF($B32-1='Key Assumptions'!$L$57,'Key Assumptions'!$L$58, IF($B32-1='Key Assumptions'!$L$59,'Key Assumptions'!$L$60, IF($B32-1='Key Assumptions'!$L$61,'Key Assumptions'!$L$62, IF(AND($B32-1>'Key Assumptions'!$L$61,MOD($B32-1,'Key Assumptions'!$L$63)=0),'Key Assumptions'!$L$64,0))))))) -> 3730.122925 | BI32: 41031.35218 | BJ32: =IF(BJ31=0,BJ31,BJ31*(1+costinflation)*(1-IF($B32<='Key Assumptions'!$L$37,0, IF($B32-1='Key Assumptions'!$L$37,'Key Assumptions'!$L$38, IF($B32-1='Key Assumptions'!$L$39,'Key Assumptions'!$L$40, IF($B32-1='Key Assumptions'!$L$41,'Key Assumptions'!$L$42, IF(AND($B32-1>'Key Assumptions'!$L$41,MOD($B32-1,'Key Assumptions'!$L$43)=0),'Key Assumptions'!$L$44,0))))))) -> 33571.10633 | BK32: =IF(BK31=0,BK31,BK31*(1+costinflation)*(1-IF($B32<='Key Assumptions'!$L$57,0, IF($B32-1='Key Assumptions'!$L$57,'Key Assumptions'!$L$58, IF($B32-1='Key Assumptions'!$L$59,'Key Assumptions'!$L$60, IF($B32-1='Key Assumptions'!$L$61,'Key Assumptions'!$L$62, IF(AND($B32-1>'Key Assumptions'!$L$61,MOD($B32-1,'Key Assumptions'!$L$63)=0),'Key Assumptions'!$L$64,0))))))) -> 18650.61463 | BL32: 52221.72095 | BN32: =IF(BN31=0,BN31,BN31*(1+costinflation)*(1-IF($B32<='Key Assumptions'!$M$37,0, IF($B32-1='Key Assumptions'!$M$37,'Key Assumptions'!$M$38, IF($B32-1='Key Assumptions'!$M$39,'Key Assumptions'!$M$40, IF($B32-1='Key Assumptions'!$M$41,'Key Assumptions'!$M$42, IF(AND($B32-1>'Key Assumptions'!$M$41,MOD($B32-1,'Key Assumptions'!$M$43)=0),'Key Assumptions'!$M$44,0))))))) -> 37301.22925 | BO32: =IF(BO31=0,BO31,BO31*(1+costinflation)*(1-IF($B32<='Key Assumptions'!$M$57,0, IF($B32-1='Key Assumptions'!$M$57,'Key Assumptions'!$M$58, IF($B32-1='Key Assumptions'!$M$59,'Key Assumptions'!$M$60, IF($B32-1='Key Assumptions'!$M$61,'Key Assumptions'!$M$62, IF(AND($B32-1>'Key Assumptions'!$M$61,MOD($B32-1,'Key Assumptions'!$M$63)=0),'Key Assumptions'!$M$64,0))))))) -> 3730.122925 | BP32: 41031.35218 | BQ32: =IF(BQ31=0,BQ31,BQ31*(1+costinflation)*(1-IF($B32<='Key Assumptions'!$M$37,0, IF($B32-1='Key Assumptions'!$M$37,'Key Assumptions'!$M$38, IF($B32-1='Key Assumptions'!$M$39,'Key Assumptions'!$M$40, IF($B32-1='Key Assumptions'!$M$41,'Key Assumptions'!$M$42, IF(AND($B32-1>'Key Assumptions'!$M$41,MOD($B32-1,'Key Assumptions'!$M$43)=0),'Key Assumptions'!$M$44,0))))))) -> 48491.59803 | BR32: =IF(BR31=0,BR31,BR31*(1+costinflation)*(1-IF($B32<='Key Assumptions'!$M$57,0, IF($B32-1='Key Assumptions'!$M$57,'Key Assumptions'!$M$58, IF($B32-1='Key Assumptions'!$M$59,'Key Assumptions'!$M$60, IF($B32-1='Key Assumptions'!$M$61,'Key Assumptions'!$M$62, IF(AND($B32-1>'Key Assumptions'!$M$61,MOD($B32-1,'Key Assumptions'!$M$63)=0),'Key Assumptions'!$M$64,0))))))) -> 18650.61463 | BS32: 67142.21265
B33: 12 | C33: =IF(C32=0,C32,C32*(1+costinflation)*(1-IF($B33<='Key Assumptions'!$D$37,0, IF($B33-1='Key Assumptions'!$D$37,'Key Assumptions'!$D$38, IF($B33-1='Key Assumptions'!$D$39,'Key Assumptions'!$D$40, IF($B33-1='Key Assumptions'!$D$41,'Key Assumptions'!$D$42, IF(AND($B33-1>'Key Assumptions'!$D$41,MOD($B33-1,'Key Assumptions'!$D$43)=0),'Key Assumptions'!$D$44,0))))))) -> 126824.1795 | D33: =IF(D32=0,D32,D32*(1+costinflation)*(1-IF($B33<='Key Assumptions'!$D$57,0, IF($B33-1='Key Assumptions'!$D$57,'Key Assumptions'!$D$58, IF($B33-1='Key Assumptions'!$D$59,'Key Assumptions'!$D$60, IF($B33-1='Key Assumptions'!$D$61,'Key Assumptions'!$D$62, IF(AND($B33-1>'Key Assumptions'!$D$61,MOD($B33-1,'Key Assumptions'!$D$63)=0),'Key Assumptions'!$D$64,0))))))) -> 12682.41795 | E33: 139506.5974 | F33: =IF(F32=0,F32,F32*(1+costinflation)*(1-IF($B33<='Key Assumptions'!$D$37,0, IF($B33-1='Key Assumptions'!$D$37,'Key Assumptions'!$D$38, IF($B33-1='Key Assumptions'!$D$39,'Key Assumptions'!$D$40, IF($B33-1='Key Assumptions'!$D$41,'Key Assumptions'!$D$42, IF(AND($B33-1>'Key Assumptions'!$D$41,MOD($B33-1,'Key Assumptions'!$D$43)=0),'Key Assumptions'!$D$44,0))))))) -> 251111.8753 | G33: =IF(G32=0,G32,G32*(1+costinflation)*(1-IF($B33<='Key Assumptions'!$D$57,0, IF($B33-1='Key Assumptions'!$D$57,'Key Assumptions'!$D$58, IF($B33-1='Key Assumptions'!$D$59,'Key Assumptions'!$D$60, IF($B33-1='Key Assumptions'!$D$61,'Key Assumptions'!$D$62, IF(AND($B33-1>'Key Assumptions'!$D$61,MOD($B33-1,'Key Assumptions'!$D$63)=0),'Key Assumptions'!$D$64,0))))))) -> 50729.67178 | H33: 301841.5471 | J33: =IF(J32=0,J32,J32*(1+costinflation)*(1-IF($B33<='Key Assumptions'!$E$37,0, IF($B33-1='Key Assumptions'!$E$37,'Key Assumptions'!$E$38, IF($B33-1='Key Assumptions'!$E$39,'Key Assumptions'!$E$40, IF($B33-1='Key Assumptions'!$E$41,'Key Assumptions'!$E$42, IF(AND($B33-1>'Key Assumptions'!$E$41,MOD($B33-1,'Key Assumptions'!$E$43)=0),'Key Assumptions'!$E$44,0))))))) -> 38047.25384 | K33: =IF(K32=0,K32,K32*(1+costinflation)*(1-IF($B33<='Key Assumptions'!$E$57,0, IF($B33-1='Key Assumptions'!$E$57,'Key Assumptions'!$E$58, IF($B33-1='Key Assumptions'!$E$59,'Key Assumptions'!$E$60, IF($B33-1='Key Assumptions'!$E$61,'Key Assumptions'!$E$62, IF(AND($B33-1>'Key Assumptions'!$E$61,MOD($B33-1,'Key Assumptions'!$E$63)=0),'Key Assumptions'!$E$64,0))))))) -> 3804.725384 | L33: 41851.97922 | M33: =IF(M32=0,M32,M32*(1+costinflation)*(1-IF($B33<='Key Assumptions'!$E$37,0, IF($B33-1='Key Assumptions'!$E$37,'Key Assumptions'!$E$38, IF($B33-1='Key Assumptions'!$E$39,'Key Assumptions'!$E$40, IF($B33-1='Key Assumptions'!$E$41,'Key Assumptions'!$E$42, IF(AND($B33-1>'Key Assumptions'!$E$41,MOD($B33-1,'Key Assumptions'!$E$43)=0),'Key Assumptions'!$E$44,0))))))) -> 41851.97922 | N33: =IF(N32=0,N32,N32*(1+costinflation)*(1-IF($B33<='Key Assumptions'!$E$57,0, IF($B33-1='Key Assumptions'!$E$57,'Key Assumptions'!$E$58, IF($B33-1='Key Assumptions'!$E$59,'Key Assumptions'!$E$60, IF($B33-1='Key Assumptions'!$E$61,'Key Assumptions'!$E$62, IF(AND($B33-1>'Key Assumptions'!$E$61,MOD($B33-1,'Key Assumptions'!$E$63)=0),'Key Assumptions'!$E$64,0))))))) -> 19023.62692 | O33: 60875.60614 | Q33: =IF(Q32=0,Q32,Q32*(1+costinflation)*(1-IF($B33<='Key Assumptions'!$F$37,0, IF($B33-1='Key Assumptions'!$F$37,'Key Assumptions'!$F$38, IF($B33-1='Key Assumptions'!$F$39,'Key Assumptions'!$F$40, IF($B33-1='Key Assumptions'!$F$41,'Key Assumptions'!$F$42, IF(AND($B33-1>'Key Assumptions'!$F$41,MOD($B33-1,'Key Assumptions'!$F$43)=0),'Key Assumptions'!$F$44,0))))))) -> 25364.83589 | R33: =IF(R32=0,R32,R32*(1+costinflation)*(1-IF($B33<='Key Assumptions'!$F$57,0, IF($B33-1='Key Assumptions'!$F$57,'Key Assumptions'!$F$58, IF($B33-1='Key Assumptions'!$F$59,'Key Assumptions'!$F$60, IF($B33-1='Key Assumptions'!$F$61,'Key Assumptions'!$F$62, IF(AND($B33-1>'Key Assumptions'!$F$61,MOD($B33-1,'Key Assumptions'!$F$63)=0),'Key Assumptions'!$F$64,0))))))) -> 2536.483589 | S33: 27901.31948 | T33: =IF(T32=0,T32,T32*(1+costinflation)*(1-IF($B33<='Key Assumptions'!$F$37,0, IF($B33-1='Key Assumptions'!$F$37,'Key Assumptions'!$F$38, IF($B33-1='Key Assumptions'!$F$39,'Key Assumptions'!$F$40, IF($B33-1='Key Assumptions'!$F$41,'Key Assumptions'!$F$42, IF(AND($B33-1>'Key Assumptions'!$F$41,MOD($B33-1,'Key Assumptions'!$F$43)=0),'Key Assumptions'!$F$44,0))))))) -> 13950.65974 | U33: =IF(U32=0,U32,U32*(1+costinflation)*(1-IF($B33<='Key Assumptions'!$F$57,0, IF($B33-1='Key Assumptions'!$F$57,'Key Assumptions'!$F$58, IF($B33-1='Key Assumptions'!$F$59,'Key Assumptions'!$F$60, IF($B33-1='Key Assumptions'!$F$61,'Key Assumptions'!$F$62, IF(AND($B33-1>'Key Assumptions'!$F$61,MOD($B33-1,'Key Assumptions'!$F$63)=0),'Key Assumptions'!$F$64,0))))))) -> 3170.604486 | V33: 17121.26423 | X33: =IF(X32=0,X32,X32*(1+costinflation)*(1-IF($B33<='Key Assumptions'!$G$37,0, IF($B33-1='Key Assumptions'!$G$37,'Key Assumptions'!$G$38, IF($B33-1='Key Assumptions'!$G$39,'Key Assumptions'!$G$40, IF($B33-1='Key Assumptions'!$G$41,'Key Assumptions'!$G$42, IF(AND($B33-1>'Key Assumptions'!$G$41,MOD($B33-1,'Key Assumptions'!$G$43)=0),'Key Assumptions'!$G$44,0))))))) -> 31706.04486 | Y33: =IF(Y32=0,Y32,Y32*(1+costinflation)*(1-IF($B33<='Key Assumptions'!$G$57,0, IF($B33-1='Key Assumptions'!$G$57,'Key Assumptions'!$G$58, IF($B33-1='Key Assumptions'!$G$59,'Key Assumptions'!$G$60, IF($B33-1='Key Assumptions'!$G$61,'Key Assumptions'!$G$62, IF(AND($B33-1>'Key Assumptions'!$G$61,MOD($B33-1,'Key Assumptions'!$G$63)=0),'Key Assumptions'!$G$64,0))))))) -> 3170.604486 | Z33: 34876.64935 | AA33: =IF(AA32=0,AA32,AA32*(1+costinflation)*(1-IF($B33<='Key Assumptions'!$G$37,0, IF($B33-1='Key Assumptions'!$G$37,'Key Assumptions'!$G$38, IF($B33-1='Key Assumptions'!$G$39,'Key Assumptions'!$G$40, IF($B33-1='Key Assumptions'!$G$41,'Key Assumptions'!$G$42, IF(AND($B33-1>'Key Assumptions'!$G$41,MOD($B33-1,'Key Assumptions'!$G$43)=0),'Key Assumptions'!$G$44,0))))))) -> 27901.31948 | AB33: =IF(AB32=0,AB32,AB32*(1+costinflation)*(1-IF($B33<='Key Assumptions'!$G$57,0, IF($B33-1='Key Assumptions'!$G$57,'Key Assumptions'!$G$58, IF($B33-1='Key Assumptions'!$G$59,'Key Assumptions'!$G$60, IF($B33-1='Key Assumptions'!$G$61,'Key Assumptions'!$G$62, IF(AND($B33-1>'Key Assumptions'!$G$61,MOD($B33-1,'Key Assumptions'!$G$63)=0),'Key Assumptions'!$G$64,0))))))) -> 3804.725384 | AC33: 31706.04486 | AE33: =IF(AE32=0,AE32,AE32*(1+costinflation)*(1-IF($B33<='Key Assumptions'!$H$37,0, IF($B33-1='Key Assumptions'!$H$37,'Key Assumptions'!$H$38, IF($B33-1='Key Assumptions'!$H$39,'Key Assumptions'!$H$40, IF($B33-1='Key Assumptions'!$H$41,'Key Assumptions'!$H$42, IF(AND($B33-1>'Key Assumptions'!$H$41,MOD($B33-1,'Key Assumptions'!$H$43)=0),'Key Assumptions'!$H$44,0))))))) -> 405837.3743 | AF33: =IF(AF32=0,AF32,AF32*(1+costinflation)*(1-IF($B33<='Key Assumptions'!$H$57,0, IF($B33-1='Key Assumptions'!$H$57,'Key Assumptions'!$H$58, IF($B33-1='Key Assumptions'!$H$59,'Key Assumptions'!$H$60, IF($B33-1='Key Assumptions'!$H$61,'Key Assumptions'!$H$62, IF(AND($B33-1>'Key Assumptions'!$H$61,MOD($B33-1,'Key Assumptions'!$H$63)=0),'Key Assumptions'!$H$64,0))))))) -> 8877.692562 | AG33: 414715.0668 | AH33: =IF(AH32=0,AH32,AH32*(1+costinflation)*(1-IF($B33<='Key Assumptions'!$H$37,0, IF($B33-1='Key Assumptions'!$H$37,'Key Assumptions'!$H$38, IF($B33-1='Key Assumptions'!$H$39,'Key Assumptions'!$H$40, IF($B33-1='Key Assumptions'!$H$41,'Key Assumptions'!$H$42, IF(AND($B33-1>'Key Assumptions'!$H$41,MOD($B33-1,'Key Assumptions'!$H$43)=0),'Key Assumptions'!$H$44,0))))))) -> 164871.4333 | AI33: =IF(AI32=0,AI32,AI32*(1+costinflation)*(1-IF($B33<='Key Assumptions'!$H$57,0, IF($B33-1='Key Assumptions'!$H$57,'Key Assumptions'!$H$58, IF($B33-1='Key Assumptions'!$H$59,'Key Assumptions'!$H$60, IF($B33-1='Key Assumptions'!$H$61,'Key Assumptions'!$H$62, IF(AND($B33-1>'Key Assumptions'!$H$61,MOD($B33-1,'Key Assumptions'!$H$63)=0),'Key Assumptions'!$H$64,0))))))) -> 114141.7615 | AJ33: 279013.1948 | AL33: =IF(AL32=0,AL32,AL32*(1+costinflation)*(1-IF($B33<='Key Assumptions'!$I$37,0, IF($B33-1='Key Assumptions'!$I$37,'Key Assumptions'!$I$38, IF($B33-1='Key Assumptions'!$I$39,'Key Assumptions'!$I$40, IF($B33-1='Key Assumptions'!$I$41,'Key Assumptions'!$I$42, IF(AND($B33-1>'Key Assumptions'!$I$41,MOD($B33-1,'Key Assumptions'!$I$43)=0),'Key Assumptions'!$I$44,0))))))) -> 126824.1795 | AM33: =IF(AM32=0,AM32,AM32*(1+costinflation)*(1-IF($B33<='Key Assumptions'!$I$57,0, IF($B33-1='Key Assumptions'!$I$57,'Key Assumptions'!$I$58, IF($B33-1='Key Assumptions'!$I$59,'Key Assumptions'!$I$60, IF($B33-1='Key Assumptions'!$I$61,'Key Assumptions'!$I$62, IF(AND($B33-1>'Key Assumptions'!$I$61,MOD($B33-1,'Key Assumptions'!$I$63)=0),'Key Assumptions'!$I$64,0))))))) -> 19023.62692 | AN33: 145847.8064 | AO33: =IF(AO32=0,AO32,AO32*(1+costinflation)*(1-IF($B33<='Key Assumptions'!$I$37,0, IF($B33-1='Key Assumptions'!$I$37,'Key Assumptions'!$I$38, IF($B33-1='Key Assumptions'!$I$39,'Key Assumptions'!$I$40, IF($B33-1='Key Assumptions'!$I$41,'Key Assumptions'!$I$42, IF(AND($B33-1>'Key Assumptions'!$I$41,MOD($B33-1,'Key Assumptions'!$I$43)=0),'Key Assumptions'!$I$44,0))))))) -> 82435.71665 | AP33: =IF(AP32=0,AP32,AP32*(1+costinflation)*(1-IF($B33<='Key Assumptions'!$I$57,0, IF($B33-1='Key Assumptions'!$I$57,'Key Assumptions'!$I$58, IF($B33-1='Key Assumptions'!$I$59,'Key Assumptions'!$I$60, IF($B33-1='Key Assumptions'!$I$61,'Key Assumptions'!$I$62, IF(AND($B33-1>'Key Assumptions'!$I$61,MOD($B33-1,'Key Assumptions'!$I$63)=0),'Key Assumptions'!$I$64,0))))))) -> 50729.67178 | AQ33: 133165.3884 | AS33: =IF(AS32=0,AS32,AS32*(1+costinflation)*(1-IF($B33<='Key Assumptions'!$J$37,0, IF($B33-1='Key Assumptions'!$J$37,'Key Assumptions'!$J$38, IF($B33-1='Key Assumptions'!$J$39,'Key Assumptions'!$J$40, IF($B33-1='Key Assumptions'!$J$41,'Key Assumptions'!$J$42, IF(AND($B33-1>'Key Assumptions'!$J$41,MOD($B33-1,'Key Assumptions'!$J$43)=0),'Key Assumptions'!$J$44,0))))))) -> 126824.1795 | AT33: =IF(AT32=0,AT32,AT32*(1+costinflation)*(1-IF($B33<='Key Assumptions'!$J$57,0, IF($B33-1='Key Assumptions'!$J$57,'Key Assumptions'!$J$58, IF($B33-1='Key Assumptions'!$J$59,'Key Assumptions'!$J$60, IF($B33-1='Key Assumptions'!$J$61,'Key Assumptions'!$J$62, IF(AND($B33-1>'Key Assumptions'!$J$61,MOD($B33-1,'Key Assumptions'!$J$63)=0),'Key Assumptions'!$J$64,0))))))) -> 12682.41795 | AU33: 139506.5974 | AV33: =IF(AV32=0,AV32,AV32*(1+costinflation)*(1-IF($B33<='Key Assumptions'!$J$37,0, IF($B33-1='Key Assumptions'!$J$37,'Key Assumptions'!$J$38, IF($B33-1='Key Assumptions'!$J$39,'Key Assumptions'!$J$40, IF($B33-1='Key Assumptions'!$J$41,'Key Assumptions'!$J$42, IF(AND($B33-1>'Key Assumptions'!$J$41,MOD($B33-1,'Key Assumptions'!$J$43)=0),'Key Assumptions'!$J$44,0))))))) -> 362717.1532 | AW33: =IF(AW32=0,AW32,AW32*(1+costinflation)*(1-IF($B33<='Key Assumptions'!$J$57,0, IF($B33-1='Key Assumptions'!$J$57,'Key Assumptions'!$J$58, IF($B33-1='Key Assumptions'!$J$59,'Key Assumptions'!$J$60, IF($B33-1='Key Assumptions'!$J$61,'Key Assumptions'!$J$62, IF(AND($B33-1>'Key Assumptions'!$J$61,MOD($B33-1,'Key Assumptions'!$J$63)=0),'Key Assumptions'!$J$64,0))))))) -> 50729.67178 | AX33: 413446.825 | AZ33: =IF(AZ32=0,AZ32,AZ32*(1+costinflation)*(1-IF($B33<='Key Assumptions'!$K$37,0, IF($B33-1='Key Assumptions'!$K$37,'Key Assumptions'!$K$38, IF($B33-1='Key Assumptions'!$K$39,'Key Assumptions'!$K$40, IF($B33-1='Key Assumptions'!$K$41,'Key Assumptions'!$K$42, IF(AND($B33-1>'Key Assumptions'!$K$41,MOD($B33-1,'Key Assumptions'!$K$43)=0),'Key Assumptions'!$K$44,0))))))) -> 38047.25384 | BA33: =IF(BA32=0,BA32,BA32*(1+costinflation)*(1-IF($B33<='Key Assumptions'!$K$57,0, IF($B33-1='Key Assumptions'!$K$57,'Key Assumptions'!$K$58, IF($B33-1='Key Assumptions'!$K$59,'Key Assumptions'!$K$60, IF($B33-1='Key Assumptions'!$K$61,'Key Assumptions'!$K$62, IF(AND($B33-1>'Key Assumptions'!$K$61,MOD($B33-1,'Key Assumptions'!$K$63)=0),'Key Assumptions'!$K$64,0))))))) -> 3804.725384 | BB33: 41851.97922 | BC33: =IF(BC32=0,BC32,BC32*(1+costinflation)*(1-IF($B33<='Key Assumptions'!$K$37,0, IF($B33-1='Key Assumptions'!$K$37,'Key Assumptions'!$K$38, IF($B33-1='Key Assumptions'!$K$39,'Key Assumptions'!$K$40, IF($B33-1='Key Assumptions'!$K$41,'Key Assumptions'!$K$42, IF(AND($B33-1>'Key Assumptions'!$K$41,MOD($B33-1,'Key Assumptions'!$K$43)=0),'Key Assumptions'!$K$44,0))))))) -> 49461.42999 | BD33: =IF(BD32=0,BD32,BD32*(1+costinflation)*(1-IF($B33<='Key Assumptions'!$K$57,0, IF($B33-1='Key Assumptions'!$K$57,'Key Assumptions'!$K$58, IF($B33-1='Key Assumptions'!$K$59,'Key Assumptions'!$K$60, IF($B33-1='Key Assumptions'!$K$61,'Key Assumptions'!$K$62, IF(AND($B33-1>'Key Assumptions'!$K$61,MOD($B33-1,'Key Assumptions'!$K$63)=0),'Key Assumptions'!$K$64,0))))))) -> 19023.62692 | BE33: 68485.05691 | BG33: =IF(BG32=0,BG32,BG32*(1+costinflation)*(1-IF($B33<='Key Assumptions'!$L$37,0, IF($B33-1='Key Assumptions'!$L$37,'Key Assumptions'!$L$38, IF($B33-1='Key Assumptions'!$L$39,'Key Assumptions'!$L$40, IF($B33-1='Key Assumptions'!$L$41,'Key Assumptions'!$L$42, IF(AND($B33-1>'Key Assumptions'!$L$41,MOD($B33-1,'Key Assumptions'!$L$43)=0),'Key Assumptions'!$L$44,0))))))) -> 38047.25384 | BH33: =IF(BH32=0,BH32,BH32*(1+costinflation)*(1-IF($B33<='Key Assumptions'!$L$57,0, IF($B33-1='Key Assumptions'!$L$57,'Key Assumptions'!$L$58, IF($B33-1='Key Assumptions'!$L$59,'Key Assumptions'!$L$60, IF($B33-1='Key Assumptions'!$L$61,'Key Assumptions'!$L$62, IF(AND($B33-1>'Key Assumptions'!$L$61,MOD($B33-1,'Key Assumptions'!$L$63)=0),'Key Assumptions'!$L$64,0))))))) -> 3804.725384 | BI33: 41851.97922 | BJ33: =IF(BJ32=0,BJ32,BJ32*(1+costinflation)*(1-IF($B33<='Key Assumptions'!$L$37,0, IF($B33-1='Key Assumptions'!$L$37,'Key Assumptions'!$L$38, IF($B33-1='Key Assumptions'!$L$39,'Key Assumptions'!$L$40, IF($B33-1='Key Assumptions'!$L$41,'Key Assumptions'!$L$42, IF(AND($B33-1>'Key Assumptions'!$L$41,MOD($B33-1,'Key Assumptions'!$L$43)=0),'Key Assumptions'!$L$44,0))))))) -> 34242.52845 | BK33: =IF(BK32=0,BK32,BK32*(1+costinflation)*(1-IF($B33<='Key Assumptions'!$L$57,0, IF($B33-1='Key Assumptions'!$L$57,'Key Assumptions'!$L$58, IF($B33-1='Key Assumptions'!$L$59,'Key Assumptions'!$L$60, IF($B33-1='Key Assumptions'!$L$61,'Key Assumptions'!$L$62, IF(AND($B33-1>'Key Assumptions'!$L$61,MOD($B33-1,'Key Assumptions'!$L$63)=0),'Key Assumptions'!$L$64,0))))))) -> 19023.62692 | BL33: 53266.15537 | BN33: =IF(BN32=0,BN32,BN32*(1+costinflation)*(1-IF($B33<='Key Assumptions'!$M$37,0, IF($B33-1='Key Assumptions'!$M$37,'Key Assumptions'!$M$38, IF($B33-1='Key Assumptions'!$M$39,'Key Assumptions'!$M$40, IF($B33-1='Key Assumptions'!$M$41,'Key Assumptions'!$M$42, IF(AND($B33-1>'Key Assumptions'!$M$41,MOD($B33-1,'Key Assumptions'!$M$43)=0),'Key Assumptions'!$M$44,0))))))) -> 38047.25384 | BO33: =IF(BO32=0,BO32,BO32*(1+costinflation)*(1-IF($B33<='Key Assumptions'!$M$57,0, IF($B33-1='Key Assumptions'!$M$57,'Key Assumptions'!$M$58, IF($B33-1='Key Assumptions'!$M$59,'Key Assumptions'!$M$60, IF($B33-1='Key Assumptions'!$M$61,'Key Assumptions'!$M$62, IF(AND($B33-1>'Key Assumptions'!$M$61,MOD($B33-1,'Key Assumptions'!$M$63)=0),'Key Assumptions'!$M$64,0))))))) -> 3804.725384 | BP33: 41851.97922 | BQ33: =IF(BQ32=0,BQ32,BQ32*(1+costinflation)*(1-IF($B33<='Key Assumptions'!$M$37,0, IF($B33-1='Key Assumptions'!$M$37,'Key Assumptions'!$M$38, IF($B33-1='Key Assumptions'!$M$39,'Key Assumptions'!$M$40, IF($B33-1='Key Assumptions'!$M$41,'Key Assumptions'!$M$42, IF(AND($B33-1>'Key Assumptions'!$M$41,MOD($B33-1,'Key Assumptions'!$M$43)=0),'Key Assumptions'!$M$44,0))))))) -> 49461.42999 | BR33: =IF(BR32=0,BR32,BR32*(1+costinflation)*(1-IF($B33<='Key Assumptions'!$M$57,0, IF($B33-1='Key Assumptions'!$M$57,'Key Assumptions'!$M$58, IF($B33-1='Key Assumptions'!$M$59,'Key Assumptions'!$M$60, IF($B33-1='Key Assumptions'!$M$61,'Key Assumptions'!$M$62, IF(AND($B33-1>'Key Assumptions'!$M$61,MOD($B33-1,'Key Assumptions'!$M$63)=0),'Key Assumptions'!$M$64,0))))))) -> 19023.62692 | BS33: 68485.05691
B34: 13 | C34: =IF(C33=0,C33,C33*(1+costinflation)*(1-IF($B34<='Key Assumptions'!$D$37,0, IF($B34-1='Key Assumptions'!$D$37,'Key Assumptions'!$D$38, IF($B34-1='Key Assumptions'!$D$39,'Key Assumptions'!$D$40, IF($B34-1='Key Assumptions'!$D$41,'Key Assumptions'!$D$42, IF(AND($B34-1>'Key Assumptions'!$D$41,MOD($B34-1,'Key Assumptions'!$D$43)=0),'Key Assumptions'!$D$44,0))))))) -> 129360.663 | D34: =IF(D33=0,D33,D33*(1+costinflation)*(1-IF($B34<='Key Assumptions'!$D$57,0, IF($B34-1='Key Assumptions'!$D$57,'Key Assumptions'!$D$58, IF($B34-1='Key Assumptions'!$D$59,'Key Assumptions'!$D$60, IF($B34-1='Key Assumptions'!$D$61,'Key Assumptions'!$D$62, IF(AND($B34-1>'Key Assumptions'!$D$61,MOD($B34-1,'Key Assumptions'!$D$63)=0),'Key Assumptions'!$D$64,0))))))) -> 12936.0663 | E34: 142296.7293 | F34: =IF(F33=0,F33,F33*(1+costinflation)*(1-IF($B34<='Key Assumptions'!$D$37,0, IF($B34-1='Key Assumptions'!$D$37,'Key Assumptions'!$D$38, IF($B34-1='Key Assumptions'!$D$39,'Key Assumptions'!$D$40, IF($B34-1='Key Assumptions'!$D$41,'Key Assumptions'!$D$42, IF(AND($B34-1>'Key Assumptions'!$D$41,MOD($B34-1,'Key Assumptions'!$D$43)=0),'Key Assumptions'!$D$44,0))))))) -> 256134.1128 | G34: =IF(G33=0,G33,G33*(1+costinflation)*(1-IF($B34<='Key Assumptions'!$D$57,0, IF($B34-1='Key Assumptions'!$D$57,'Key Assumptions'!$D$58, IF($B34-1='Key Assumptions'!$D$59,'Key Assumptions'!$D$60, IF($B34-1='Key Assumptions'!$D$61,'Key Assumptions'!$D$62, IF(AND($B34-1>'Key Assumptions'!$D$61,MOD($B34-1,'Key Assumptions'!$D$63)=0),'Key Assumptions'!$D$64,0))))))) -> 51744.26522 | H34: 307878.378 | J34: =IF(J33=0,J33,J33*(1+costinflation)*(1-IF($B34<='Key Assumptions'!$E$37,0, IF($B34-1='Key Assumptions'!$E$37,'Key Assumptions'!$E$38, IF($B34-1='Key Assumptions'!$E$39,'Key Assumptions'!$E$40, IF($B34-1='Key Assumptions'!$E$41,'Key Assumptions'!$E$42, IF(AND($B34-1>'Key Assumptions'!$E$41,MOD($B34-1,'Key Assumptions'!$E$43)=0),'Key Assumptions'!$E$44,0))))))) -> 38808.19891 | K34: =IF(K33=0,K33,K33*(1+costinflation)*(1-IF($B34<='Key Assumptions'!$E$57,0, IF($B34-1='Key Assumptions'!$E$57,'Key Assumptions'!$E$58, IF($B34-1='Key Assumptions'!$E$59,'Key Assumptions'!$E$60, IF($B34-1='Key Assumptions'!$E$61,'Key Assumptions'!$E$62, IF(AND($B34-1>'Key Assumptions'!$E$61,MOD($B34-1,'Key Assumptions'!$E$63)=0),'Key Assumptions'!$E$64,0))))))) -> 3880.819891 | L34: 42689.0188 | M34: =IF(M33=0,M33,M33*(1+costinflation)*(1-IF($B34<='Key Assumptions'!$E$37,0, IF($B34-1='Key Assumptions'!$E$37,'Key Assumptions'!$E$38, IF($B34-1='Key Assumptions'!$E$39,'Key Assumptions'!$E$40, IF($B34-1='Key Assumptions'!$E$41,'Key Assumptions'!$E$42, IF(AND($B34-1>'Key Assumptions'!$E$41,MOD($B34-1,'Key Assumptions'!$E$43)=0),'Key Assumptions'!$E$44,0))))))) -> 42689.0188 | N34: =IF(N33=0,N33,N33*(1+costinflation)*(1-IF($B34<='Key Assumptions'!$E$57,0, IF($B34-1='Key Assumptions'!$E$57,'Key Assumptions'!$E$58, IF($B34-1='Key Assumptions'!$E$59,'Key Assumptions'!$E$60, IF($B34-1='Key Assumptions'!$E$61,'Key Assumptions'!$E$62, IF(AND($B34-1>'Key Assumptions'!$E$61,MOD($B34-1,'Key Assumptions'!$E$63)=0),'Key Assumptions'!$E$64,0))))))) -> 19404.09946 | O34: 62093.11826 | Q34: =IF(Q33=0,Q33,Q33*(1+costinflation)*(1-IF($B34<='Key Assumptions'!$F$37,0, IF($B34-1='Key Assumptions'!$F$37,'Key Assumptions'!$F$38, IF($B34-1='Key Assumptions'!$F$39,'Key Assumptions'!$F$40, IF($B34-1='Key Assumptions'!$F$41,'Key Assumptions'!$F$42, IF(AND($B34-1>'Key Assumptions'!$F$41,MOD($B34-1,'Key Assumptions'!$F$43)=0),'Key Assumptions'!$F$44,0))))))) -> 25872.13261 | R34: =IF(R33=0,R33,R33*(1+costinflation)*(1-IF($B34<='Key Assumptions'!$F$57,0, IF($B34-1='Key Assumptions'!$F$57,'Key Assumptions'!$F$58, IF($B34-1='Key Assumptions'!$F$59,'Key Assumptions'!$F$60, IF($B34-1='Key Assumptions'!$F$61,'Key Assumptions'!$F$62, IF(AND($B34-1>'Key Assumptions'!$F$61,MOD($B34-1,'Key Assumptions'!$F$63)=0),'Key Assumptions'!$F$64,0))))))) -> 2587.213261 | S34: 28459.34587 | T34: =IF(T33=0,T33,T33*(1+costinflation)*(1-IF($B34<='Key Assumptions'!$F$37,0, IF($B34-1='Key Assumptions'!$F$37,'Key Assumptions'!$F$38, IF($B34-1='Key Assumptions'!$F$39,'Key Assumptions'!$F$40, IF($B34-1='Key Assumptions'!$F$41,'Key Assumptions'!$F$42, IF(AND($B34-1>'Key Assumptions'!$F$41,MOD($B34-1,'Key Assumptions'!$F$43)=0),'Key Assumptions'!$F$44,0))))))) -> 14229.67293 | U34: =IF(U33=0,U33,U33*(1+costinflation)*(1-IF($B34<='Key Assumptions'!$F$57,0, IF($B34-1='Key Assumptions'!$F$57,'Key Assumptions'!$F$58, IF($B34-1='Key Assumptions'!$F$59,'Key Assumptions'!$F$60, IF($B34-1='Key Assumptions'!$F$61,'Key Assumptions'!$F$62, IF(AND($B34-1>'Key Assumptions'!$F$61,MOD($B34-1,'Key Assumptions'!$F$63)=0),'Key Assumptions'!$F$64,0))))))) -> 3234.016576 | V34: 17463.68951 | X34: =IF(X33=0,X33,X33*(1+costinflation)*(1-IF($B34<='Key Assumptions'!$G$37,0, IF($B34-1='Key Assumptions'!$G$37,'Key Assumptions'!$G$38, IF($B34-1='Key Assumptions'!$G$39,'Key Assumptions'!$G$40, IF($B34-1='Key Assumptions'!$G$41,'Key Assumptions'!$G$42, IF(AND($B34-1>'Key Assumptions'!$G$41,MOD($B34-1,'Key Assumptions'!$G$43)=0),'Key Assumptions'!$G$44,0))))))) -> 32340.16576 | Y34: =IF(Y33=0,Y33,Y33*(1+costinflation)*(1-IF($B34<='Key Assumptions'!$G$57,0, IF($B34-1='Key Assumptions'!$G$57,'Key Assumptions'!$G$58, IF($B34-1='Key Assumptions'!$G$59,'Key Assumptions'!$G$60, IF($B34-1='Key Assumptions'!$G$61,'Key Assumptions'!$G$62, IF(AND($B34-1>'Key Assumptions'!$G$61,MOD($B34-1,'Key Assumptions'!$G$63)=0),'Key Assumptions'!$G$64,0))))))) -> 3234.016576 | Z34: 35574.18234 | AA34: =IF(AA33=0,AA33,AA33*(1+costinflation)*(1-IF($B34<='Key Assumptions'!$G$37,0, IF($B34-1='Key Assumptions'!$G$37,'Key Assumptions'!$G$38, IF($B34-1='Key Assumptions'!$G$39,'Key Assumptions'!$G$40, IF($B34-1='Key Assumptions'!$G$41,'Key Assumptions'!$G$42, IF(AND($B34-1>'Key Assumptions'!$G$41,MOD($B34-1,'Key Assumptions'!$G$43)=0),'Key Assumptions'!$G$44,0))))))) -> 28459.34587 | AB34: =IF(AB33=0,AB33,AB33*(1+costinflation)*(1-IF($B34<='Key Assumptions'!$G$57,0, IF($B34-1='Key Assumptions'!$G$57,'Key Assumptions'!$G$58, IF($B34-1='Key Assumptions'!$G$59,'Key Assumptions'!$G$60, IF($B34-1='Key Assumptions'!$G$61,'Key Assumptions'!$G$62, IF(AND($B34-1>'Key Assumptions'!$G$61,MOD($B34-1,'Key Assumptions'!$G$63)=0),'Key Assumptions'!$G$64,0))))))) -> 3880.819891 | AC34: 32340.16576 | AE34: =IF(AE33=0,AE33,AE33*(1+costinflation)*(1-IF($B34<='Key Assumptions'!$H$37,0, IF($B34-1='Key Assumptions'!$H$37,'Key Assumptions'!$H$38, IF($B34-1='Key Assumptions'!$H$39,'Key Assumptions'!$H$40, IF($B34-1='Key Assumptions'!$H$41,'Key Assumptions'!$H$42, IF(AND($B34-1>'Key Assumptions'!$H$41,MOD($B34-1,'Key Assumptions'!$H$43)=0),'Key Assumptions'!$H$44,0))))))) -> 413954.1217 | AF34: =IF(AF33=0,AF33,AF33*(1+costinflation)*(1-IF($B34<='Key Assumptions'!$H$57,0, IF($B34-1='Key Assumptions'!$H$57,'Key Assumptions'!$H$58, IF($B34-1='Key Assumptions'!$H$59,'Key Assumptions'!$H$60, IF($B34-1='Key Assumptions'!$H$61,'Key Assumptions'!$H$62, IF(AND($B34-1>'Key Assumptions'!$H$61,MOD($B34-1,'Key Assumptions'!$H$63)=0),'Key Assumptions'!$H$64,0))))))) -> 9055.246413 | AG34: 423009.3682 | AH34: =IF(AH33=0,AH33,AH33*(1+costinflation)*(1-IF($B34<='Key Assumptions'!$H$37,0, IF($B34-1='Key Assumptions'!$H$37,'Key Assumptions'!$H$38, IF($B34-1='Key Assumptions'!$H$39,'Key Assumptions'!$H$40, IF($B34-1='Key Assumptions'!$H$41,'Key Assumptions'!$H$42, IF(AND($B34-1>'Key Assumptions'!$H$41,MOD($B34-1,'Key Assumptions'!$H$43)=0),'Key Assumptions'!$H$44,0))))))) -> 168168.862 | AI34: =IF(AI33=0,AI33,AI33*(1+costinflation)*(1-IF($B34<='Key Assumptions'!$H$57,0, IF($B34-1='Key Assumptions'!$H$57,'Key Assumptions'!$H$58, IF($B34-1='Key Assumptions'!$H$59,'Key Assumptions'!$H$60, IF($B34-1='Key Assumptions'!$H$61,'Key Assumptions'!$H$62, IF(AND($B34-1>'Key Assumptions'!$H$61,MOD($B34-1,'Key Assumptions'!$H$63)=0),'Key Assumptions'!$H$64,0))))))) -> 116424.5967 | AJ34: 284593.4587 | AL34: =IF(AL33=0,AL33,AL33*(1+costinflation)*(1-IF($B34<='Key Assumptions'!$I$37,0, IF($B34-1='Key Assumptions'!$I$37,'Key Assumptions'!$I$38, IF($B34-1='Key Assumptions'!$I$39,'Key Assumptions'!$I$40, IF($B34-1='Key Assumptions'!$I$41,'Key Assumptions'!$I$42, IF(AND($B34-1>'Key Assumptions'!$I$41,MOD($B34-1,'Key Assumptions'!$I$43)=0),'Key Assumptions'!$I$44,0))))))) -> 129360.663 | AM34: =IF(AM33=0,AM33,AM33*(1+costinflation)*(1-IF($B34<='Key Assumptions'!$I$57,0, IF($B34-1='Key Assumptions'!$I$57,'Key Assumptions'!$I$58, IF($B34-1='Key Assumptions'!$I$59,'Key Assumptions'!$I$60, IF($B34-1='Key Assumptions'!$I$61,'Key Assumptions'!$I$62, IF(AND($B34-1>'Key Assumptions'!$I$61,MOD($B34-1,'Key Assumptions'!$I$63)=0),'Key Assumptions'!$I$64,0))))))) -> 19404.09946 | AN34: 148764.7625 | AO34: =IF(AO33=0,AO33,AO33*(1+costinflation)*(1-IF($B34<='Key Assumptions'!$I$37,0, IF($B34-1='Key Assumptions'!$I$37,'Key Assumptions'!$I$38, IF($B34-1='Key Assumptions'!$I$39,'Key Assumptions'!$I$40, IF($B34-1='Key Assumptions'!$I$41,'Key Assumptions'!$I$42, IF(AND($B34-1>'Key Assumptions'!$I$41,MOD($B34-1,'Key Assumptions'!$I$43)=0),'Key Assumptions'!$I$44,0))))))) -> 84084.43098 | AP34: =IF(AP33=0,AP33,AP33*(1+costinflation)*(1-IF($B34<='Key Assumptions'!$I$57,0, IF($B34-1='Key Assumptions'!$I$57,'Key Assumptions'!$I$58, IF($B34-1='Key Assumptions'!$I$59,'Key Assumptions'!$I$60, IF($B34-1='Key Assumptions'!$I$61,'Key Assumptions'!$I$62, IF(AND($B34-1>'Key Assumptions'!$I$61,MOD($B34-1,'Key Assumptions'!$I$63)=0),'Key Assumptions'!$I$64,0))))))) -> 51744.26522 | AQ34: 135828.6962 | AS34: =IF(AS33=0,AS33,AS33*(1+costinflation)*(1-IF($B34<='Key Assumptions'!$J$37,0, IF($B34-1='Key Assumptions'!$J$37,'Key Assumptions'!$J$38, IF($B34-1='Key Assumptions'!$J$39,'Key Assumptions'!$J$40, IF($B34-1='Key Assumptions'!$J$41,'Key Assumptions'!$J$42, IF(AND($B34-1>'Key Assumptions'!$J$41,MOD($B34-1,'Key Assumptions'!$J$43)=0),'Key Assumptions'!$J$44,0))))))) -> 129360.663 | AT34: =IF(AT33=0,AT33,AT33*(1+costinflation)*(1-IF($B34<='Key Assumptions'!$J$57,0, IF($B34-1='Key Assumptions'!$J$57,'Key Assumptions'!$J$58, IF($B34-1='Key Assumptions'!$J$59,'Key Assumptions'!$J$60, IF($B34-1='Key Assumptions'!$J$61,'Key Assumptions'!$J$62, IF(AND($B34-1>'Key Assumptions'!$J$61,MOD($B34-1,'Key Assumptions'!$J$63)=0),'Key Assumptions'!$J$64,0))))))) -> 12936.0663 | AU34: 142296.7293 | AV34: =IF(AV33=0,AV33,AV33*(1+costinflation)*(1-IF($B34<='Key Assumptions'!$J$37,0, IF($B34-1='Key Assumptions'!$J$37,'Key Assumptions'!$J$38, IF($B34-1='Key Assumptions'!$J$39,'Key Assumptions'!$J$40, IF($B34-1='Key Assumptions'!$J$41,'Key Assumptions'!$J$42, IF(AND($B34-1>'Key Assumptions'!$J$41,MOD($B34-1,'Key Assumptions'!$J$43)=0),'Key Assumptions'!$J$44,0))))))) -> 369971.4963 | AW34: =IF(AW33=0,AW33,AW33*(1+costinflation)*(1-IF($B34<='Key Assumptions'!$J$57,0, IF($B34-1='Key Assumptions'!$J$57,'Key Assumptions'!$J$58, IF($B34-1='Key Assumptions'!$J$59,'Key Assumptions'!$J$60, IF($B34-1='Key Assumptions'!$J$61,'Key Assumptions'!$J$62, IF(AND($B34-1>'Key Assumptions'!$J$61,MOD($B34-1,'Key Assumptions'!$J$63)=0),'Key Assumptions'!$J$64,0))))))) -> 51744.26522 | AX34: 421715.7615 | AZ34: =IF(AZ33=0,AZ33,AZ33*(1+costinflation)*(1-IF($B34<='Key Assumptions'!$K$37,0, IF($B34-1='Key Assumptions'!$K$37,'Key Assumptions'!$K$38, IF($B34-1='Key Assumptions'!$K$39,'Key Assumptions'!$K$40, IF($B34-1='Key Assumptions'!$K$41,'Key Assumptions'!$K$42, IF(AND($B34-1>'Key Assumptions'!$K$41,MOD($B34-1,'Key Assumptions'!$K$43)=0),'Key Assumptions'!$K$44,0))))))) -> 38808.19891 | BA34: =IF(BA33=0,BA33,BA33*(1+costinflation)*(1-IF($B34<='Key Assumptions'!$K$57,0, IF($B34-1='Key Assumptions'!$K$57,'Key Assumptions'!$K$58, IF($B34-1='Key Assumptions'!$K$59,'Key Assumptions'!$K$60, IF($B34-1='Key Assumptions'!$K$61,'Key Assumptions'!$K$62, IF(AND($B34-1>'Key Assumptions'!$K$61,MOD($B34-1,'Key Assumptions'!$K$63)=0),'Key Assumptions'!$K$64,0))))))) -> 3880.819891 | BB34: 42689.0188 | BC34: =IF(BC33=0,BC33,BC33*(1+costinflation)*(1-IF($B34<='Key Assumptions'!$K$37,0, IF($B34-1='Key Assumptions'!$K$37,'Key Assumptions'!$K$38, IF($B34-1='Key Assumptions'!$K$39,'Key Assumptions'!$K$40, IF($B34-1='Key Assumptions'!$K$41,'Key Assumptions'!$K$42, IF(AND($B34-1>'Key Assumptions'!$K$41,MOD($B34-1,'Key Assumptions'!$K$43)=0),'Key Assumptions'!$K$44,0))))))) -> 50450.65859 | BD34: =IF(BD33=0,BD33,BD33*(1+costinflation)*(1-IF($B34<='Key Assumptions'!$K$57,0, IF($B34-1='Key Assumptions'!$K$57,'Key Assumptions'!$K$58, IF($B34-1='Key Assumptions'!$K$59,'Key Assumptions'!$K$60, IF($B34-1='Key Assumptions'!$K$61,'Key Assumptions'!$K$62, IF(AND($B34-1>'Key Assumptions'!$K$61,MOD($B34-1,'Key Assumptions'!$K$63)=0),'Key Assumptions'!$K$64,0))))))) -> 19404.09946 | BE34: 69854.75804 | BG34: =IF(BG33=0,BG33,BG33*(1+costinflation)*(1-IF($B34<='Key Assumptions'!$L$37,0, IF($B34-1='Key Assumptions'!$L$37,'Key Assumptions'!$L$38, IF($B34-1='Key Assumptions'!$L$39,'Key Assumptions'!$L$40, IF($B34-1='Key Assumptions'!$L$41,'Key Assumptions'!$L$42, IF(AND($B34-1>'Key Assumptions'!$L$41,MOD($B34-1,'Key Assumptions'!$L$43)=0),'Key Assumptions'!$L$44,0))))))) -> 38808.19891 | BH34: =IF(BH33=0,BH33,BH33*(1+costinflation)*(1-IF($B34<='Key Assumptions'!$L$57,0, IF($B34-1='Key Assumptions'!$L$57,'Key Assumptions'!$L$58, IF($B34-1='Key Assumptions'!$L$59,'Key Assumptions'!$L$60, IF($B34-1='Key Assumptions'!$L$61,'Key Assumptions'!$L$62, IF(AND($B34-1>'Key Assumptions'!$L$61,MOD($B34-1,'Key Assumptions'!$L$63)=0),'Key Assumptions'!$L$64,0))))))) -> 3880.819891 | BI34: 42689.0188 | BJ34: =IF(BJ33=0,BJ33,BJ33*(1+costinflation)*(1-IF($B34<='Key Assumptions'!$L$37,0, IF($B34-1='Key Assumptions'!$L$37,'Key Assumptions'!$L$38, IF($B34-1='Key Assumptions'!$L$39,'Key Assumptions'!$L$40, IF($B34-1='Key Assumptions'!$L$41,'Key Assumptions'!$L$42, IF(AND($B34-1>'Key Assumptions'!$L$41,MOD($B34-1,'Key Assumptions'!$L$43)=0),'Key Assumptions'!$L$44,0))))))) -> 34927.37902 | BK34: =IF(BK33=0,BK33,BK33*(1+costinflation)*(1-IF($B34<='Key Assumptions'!$L$57,0, IF($B34-1='Key Assumptions'!$L$57,'Key Assumptions'!$L$58, IF($B34-1='Key Assumptions'!$L$59,'Key Assumptions'!$L$60, IF($B34-1='Key Assumptions'!$L$61,'Key Assumptions'!$L$62, IF(AND($B34-1>'Key Assumptions'!$L$61,MOD($B34-1,'Key Assumptions'!$L$63)=0),'Key Assumptions'!$L$64,0))))))) -> 19404.09946 | BL34: 54331.47848 | BN34: =IF(BN33=0,BN33,BN33*(1+costinflation)*(1-IF($B34<='Key Assumptions'!$M$37,0, IF($B34-1='Key Assumptions'!$M$37,'Key Assumptions'!$M$38, IF($B34-1='Key Assumptions'!$M$39,'Key Assumptions'!$M$40, IF($B34-1='Key Assumptions'!$M$41,'Key Assumptions'!$M$42, IF(AND($B34-1>'Key Assumptions'!$M$41,MOD($B34-1,'Key Assumptions'!$M$43)=0),'Key Assumptions'!$M$44,0))))))) -> 38808.19891 | BO34: =IF(BO33=0,BO33,BO33*(1+costinflation)*(1-IF($B34<='Key Assumptions'!$M$57,0, IF($B34-1='Key Assumptions'!$M$57,'Key Assumptions'!$M$58, IF($B34-1='Key Assumptions'!$M$59,'Key Assumptions'!$M$60, IF($B34-1='Key Assumptions'!$M$61,'Key Assumptions'!$M$62, IF(AND($B34-1>'Key Assumptions'!$M$61,MOD($B34-1,'Key Assumptions'!$M$63)=0),'Key Assumptions'!$M$64,0))))))) -> 3880.819891 | BP34: 42689.0188 | BQ34: =IF(BQ33=0,BQ33,BQ33*(1+costinflation)*(1-IF($B34<='Key Assumptions'!$M$37,0, IF($B34-1='Key Assumptions'!$M$37,'Key Assumptions'!$M$38, IF($B34-1='Key Assumptions'!$M$39,'Key Assumptions'!$M$40, IF($B34-1='Key Assumptions'!$M$41,'Key Assumptions'!$M$42, IF(AND($B34-1>'Key Assumptions'!$M$41,MOD($B34-1,'Key Assumptions'!$M$43)=0),'Key Assumptions'!$M$44,0))))))) -> 50450.65859 | BR34: =IF(BR33=0,BR33,BR33*(1+costinflation)*(1-IF($B34<='Key Assumptions'!$M$57,0, IF($B34-1='Key Assumptions'!$M$57,'Key Assumptions'!$M$58, IF($B34-1='Key Assumptions'!$M$59,'Key Assumptions'!$M$60, IF($B34-1='Key Assumptions'!$M$61,'Key Assumptions'!$M$62, IF(AND($B34-1>'Key Assumptions'!$M$61,MOD($B34-1,'Key Assumptions'!$M$63)=0),'Key Assumptions'!$M$64,0))))))) -> 19404.09946 | BS34: 69854.75804
B35: 14 | C35: =IF(C34=0,C34,C34*(1+costinflation)*(1-IF($B35<='Key Assumptions'!$D$37,0, IF($B35-1='Key Assumptions'!$D$37,'Key Assumptions'!$D$38, IF($B35-1='Key Assumptions'!$D$39,'Key Assumptions'!$D$40, IF($B35-1='Key Assumptions'!$D$41,'Key Assumptions'!$D$42, IF(AND($B35-1>'Key Assumptions'!$D$41,MOD($B35-1,'Key Assumptions'!$D$43)=0),'Key Assumptions'!$D$44,0))))))) -> 131947.8763 | D35: =IF(D34=0,D34,D34*(1+costinflation)*(1-IF($B35<='Key Assumptions'!$D$57,0, IF($B35-1='Key Assumptions'!$D$57,'Key Assumptions'!$D$58, IF($B35-1='Key Assumptions'!$D$59,'Key Assumptions'!$D$60, IF($B35-1='Key Assumptions'!$D$61,'Key Assumptions'!$D$62, IF(AND($B35-1>'Key Assumptions'!$D$61,MOD($B35-1,'Key Assumptions'!$D$63)=0),'Key Assumptions'!$D$64,0))))))) -> 13194.78763 | E35: 145142.6639 | F35: =IF(F34=0,F34,F34*(1+costinflation)*(1-IF($B35<='Key Assumptions'!$D$37,0, IF($B35-1='Key Assumptions'!$D$37,'Key Assumptions'!$D$38, IF($B35-1='Key Assumptions'!$D$39,'Key Assumptions'!$D$40, IF($B35-1='Key Assumptions'!$D$41,'Key Assumptions'!$D$42, IF(AND($B35-1>'Key Assumptions'!$D$41,MOD($B35-1,'Key Assumptions'!$D$43)=0),'Key Assumptions'!$D$44,0))))))) -> 261256.7951 | G35: =IF(G34=0,G34,G34*(1+costinflation)*(1-IF($B35<='Key Assumptions'!$D$57,0, IF($B35-1='Key Assumptions'!$D$57,'Key Assumptions'!$D$58, IF($B35-1='Key Assumptions'!$D$59,'Key Assumptions'!$D$60, IF($B35-1='Key Assumptions'!$D$61,'Key Assumptions'!$D$62, IF(AND($B35-1>'Key Assumptions'!$D$61,MOD($B35-1,'Key Assumptions'!$D$63)=0),'Key Assumptions'!$D$64,0))))))) -> 52779.15052 | H35: 314035.9456 | J35: =IF(J34=0,J34,J34*(1+costinflation)*(1-IF($B35<='Key Assumptions'!$E$37,0, IF($B35-1='Key Assumptions'!$E$37,'Key Assumptions'!$E$38, IF($B35-1='Key Assumptions'!$E$39,'Key Assumptions'!$E$40, IF($B35-1='Key Assumptions'!$E$41,'Key Assumptions'!$E$42, IF(AND($B35-1>'Key Assumptions'!$E$41,MOD($B35-1,'Key Assumptions'!$E$43)=0),'Key Assumptions'!$E$44,0))))))) -> 39584.36289 | K35: =IF(K34=0,K34,K34*(1+costinflation)*(1-IF($B35<='Key Assumptions'!$E$57,0, IF($B35-1='Key Assumptions'!$E$57,'Key Assumptions'!$E$58, IF($B35-1='Key Assumptions'!$E$59,'Key Assumptions'!$E$60, IF($B35-1='Key Assumptions'!$E$61,'Key Assumptions'!$E$62, IF(AND($B35-1>'Key Assumptions'!$E$61,MOD($B35-1,'Key Assumptions'!$E$63)=0),'Key Assumptions'!$E$64,0))))))) -> 3958.436289 | L35: 43542.79918 | M35: =IF(M34=0,M34,M34*(1+costinflation)*(1-IF($B35<='Key Assumptions'!$E$37,0, IF($B35-1='Key Assumptions'!$E$37,'Key Assumptions'!$E$38, IF($B35-1='Key Assumptions'!$E$39,'Key Assumptions'!$E$40, IF($B35-1='Key Assumptions'!$E$41,'Key Assumptions'!$E$42, IF(AND($B35-1>'Key Assumptions'!$E$41,MOD($B35-1,'Key Assumptions'!$E$43)=0),'Key Assumptions'!$E$44,0))))))) -> 43542.79918 | N35: =IF(N34=0,N34,N34*(1+costinflation)*(1-IF($B35<='Key Assumptions'!$E$57,0, IF($B35-1='Key Assumptions'!$E$57,'Key Assumptions'!$E$58, IF($B35-1='Key Assumptions'!$E$59,'Key Assumptions'!$E$60, IF($B35-1='Key Assumptions'!$E$61,'Key Assumptions'!$E$62, IF(AND($B35-1>'Key Assumptions'!$E$61,MOD($B35-1,'Key Assumptions'!$E$63)=0),'Key Assumptions'!$E$64,0))))))) -> 19792.18145 | O35: 63334.98063 | Q35: =IF(Q34=0,Q34,Q34*(1+costinflation)*(1-IF($B35<='Key Assumptions'!$F$37,0, IF($B35-1='Key Assumptions'!$F$37,'Key Assumptions'!$F$38, IF($B35-1='Key Assumptions'!$F$39,'Key Assumptions'!$F$40, IF($B35-1='Key Assumptions'!$F$41,'Key Assumptions'!$F$42, IF(AND($B35-1>'Key Assumptions'!$F$41,MOD($B35-1,'Key Assumptions'!$F$43)=0),'Key Assumptions'!$F$44,0))))))) -> 26389.57526 | R35: =IF(R34=0,R34,R34*(1+costinflation)*(1-IF($B35<='Key Assumptions'!$F$57,0, IF($B35-1='Key Assumptions'!$F$57,'Key Assumptions'!$F$58, IF($B35-1='Key Assumptions'!$F$59,'Key Assumptions'!$F$60, IF($B35-1='Key Assumptions'!$F$61,'Key Assumptions'!$F$62, IF(AND($B35-1>'Key Assumptions'!$F$61,MOD($B35-1,'Key Assumptions'!$F$63)=0),'Key Assumptions'!$F$64,0))))))) -> 2638.957526 | S35: 29028.53279 | T35: =IF(T34=0,T34,T34*(1+costinflation)*(1-IF($B35<='Key Assumptions'!$F$37,0, IF($B35-1='Key Assumptions'!$F$37,'Key Assumptions'!$F$38, IF($B35-1='Key Assumptions'!$F$39,'Key Assumptions'!$F$40, IF($B35-1='Key Assumptions'!$F$41,'Key Assumptions'!$F$42, IF(AND($B35-1>'Key Assumptions'!$F$41,MOD($B35-1,'Key Assumptions'!$F$43)=0),'Key Assumptions'!$F$44,0))))))) -> 14514.26639 | U35: =IF(U34=0,U34,U34*(1+costinflation)*(1-IF($B35<='Key Assumptions'!$F$57,0, IF($B35-1='Key Assumptions'!$F$57,'Key Assumptions'!$F$58, IF($B35-1='Key Assumptions'!$F$59,'Key Assumptions'!$F$60, IF($B35-1='Key Assumptions'!$F$61,'Key Assumptions'!$F$62, IF(AND($B35-1>'Key Assumptions'!$F$61,MOD($B35-1,'Key Assumptions'!$F$63)=0),'Key Assumptions'!$F$64,0))))))) -> 3298.696908 | V35: 17812.9633 | X35: =IF(X34=0,X34,X34*(1+costinflation)*(1-IF($B35<='Key Assumptions'!$G$37,0, IF($B35-1='Key Assumptions'!$G$37,'Key Assumptions'!$G$38, IF($B35-1='Key Assumptions'!$G$39,'Key Assumptions'!$G$40, IF($B35-1='Key Assumptions'!$G$41,'Key Assumptions'!$G$42, IF(AND($B35-1>'Key Assumptions'!$G$41,MOD($B35-1,'Key Assumptions'!$G$43)=0),'Key Assumptions'!$G$44,0))))))) -> 32986.96908 | Y35: =IF(Y34=0,Y34,Y34*(1+costinflation)*(1-IF($B35<='Key Assumptions'!$G$57,0, IF($B35-1='Key Assumptions'!$G$57,'Key Assumptions'!$G$58, IF($B35-1='Key Assumptions'!$G$59,'Key Assumptions'!$G$60, IF($B35-1='Key Assumptions'!$G$61,'Key Assumptions'!$G$62, IF(AND($B35-1>'Key Assumptions'!$G$61,MOD($B35-1,'Key Assumptions'!$G$63)=0),'Key Assumptions'!$G$64,0))))))) -> 3298.696908 | Z35: 36285.66598 | AA35: =IF(AA34=0,AA34,AA34*(1+costinflation)*(1-IF($B35<='Key Assumptions'!$G$37,0, IF($B35-1='Key Assumptions'!$G$37,'Key Assumptions'!$G$38, IF($B35-1='Key Assumptions'!$G$39,'Key Assumptions'!$G$40, IF($B35-1='Key Assumptions'!$G$41,'Key Assumptions'!$G$42, IF(AND($B35-1>'Key Assumptions'!$G$41,MOD($B35-1,'Key Assumptions'!$G$43)=0),'Key Assumptions'!$G$44,0))))))) -> 29028.53279 | AB35: =IF(AB34=0,AB34,AB34*(1+costinflation)*(1-IF($B35<='Key Assumptions'!$G$57,0, IF($B35-1='Key Assumptions'!$G$57,'Key Assumptions'!$G$58, IF($B35-1='Key Assumptions'!$G$59,'Key Assumptions'!$G$60, IF($B35-1='Key Assumptions'!$G$61,'Key Assumptions'!$G$62, IF(AND($B35-1>'Key Assumptions'!$G$61,MOD($B35-1,'Key Assumptions'!$G$63)=0),'Key Assumptions'!$G$64,0))))))) -> 3958.436289 | AC35: 32986.96908 | AE35: =IF(AE34=0,AE34,AE34*(1+costinflation)*(1-IF($B35<='Key Assumptions'!$H$37,0, IF($B35-1='Key Assumptions'!$H$37,'Key Assumptions'!$H$38, IF($B35-1='Key Assumptions'!$H$39,'Key Assumptions'!$H$40, IF($B35-1='Key Assumptions'!$H$41,'Key Assumptions'!$H$42, IF(AND($B35-1>'Key Assumptions'!$H$41,MOD($B35-1,'Key Assumptions'!$H$43)=0),'Key Assumptions'!$H$44,0))))))) -> 422233.2042 | AF35: =IF(AF34=0,AF34,AF34*(1+costinflation)*(1-IF($B35<='Key Assumptions'!$H$57,0, IF($B35-1='Key Assumptions'!$H$57,'Key Assumptions'!$H$58, IF($B35-1='Key Assumptions'!$H$59,'Key Assumptions'!$H$60, IF($B35-1='Key Assumptions'!$H$61,'Key Assumptions'!$H$62, IF(AND($B35-1>'Key Assumptions'!$H$61,MOD($B35-1,'Key Assumptions'!$H$63)=0),'Key Assumptions'!$H$64,0))))))) -> 9236.351341 | AG35: 431469.5555 | AH35: =IF(AH34=0,AH34,AH34*(1+costinflation)*(1-IF($B35<='Key Assumptions'!$H$37,0, IF($B35-1='Key Assumptions'!$H$37,'Key Assumptions'!$H$38, IF($B35-1='Key Assumptions'!$H$39,'Key Assumptions'!$H$40, IF($B35-1='Key Assumptions'!$H$41,'Key Assumptions'!$H$42, IF(AND($B35-1>'Key Assumptions'!$H$41,MOD($B35-1,'Key Assumptions'!$H$43)=0),'Key Assumptions'!$H$44,0))))))) -> 171532.2392 | AI35: =IF(AI34=0,AI34,AI34*(1+costinflation)*(1-IF($B35<='Key Assumptions'!$H$57,0, IF($B35-1='Key Assumptions'!$H$57,'Key Assumptions'!$H$58, IF($B35-1='Key Assumptions'!$H$59,'Key Assumptions'!$H$60, IF($B35-1='Key Assumptions'!$H$61,'Key Assumptions'!$H$62, IF(AND($B35-1>'Key Assumptions'!$H$61,MOD($B35-1,'Key Assumptions'!$H$63)=0),'Key Assumptions'!$H$64,0))))))) -> 118753.0887 | AJ35: 290285.3279 | AL35: =IF(AL34=0,AL34,AL34*(1+costinflation)*(1-IF($B35<='Key Assumptions'!$I$37,0, IF($B35-1='Key Assumptions'!$I$37,'Key Assumptions'!$I$38, IF($B35-1='Key Assumptions'!$I$39,'Key Assumptions'!$I$40, IF($B35-1='Key Assumptions'!$I$41,'Key Assumptions'!$I$42, IF(AND($B35-1>'Key Assumptions'!$I$41,MOD($B35-1,'Key Assumptions'!$I$43)=0),'Key Assumptions'!$I$44,0))))))) -> 131947.8763 | AM35: =IF(AM34=0,AM34,AM34*(1+costinflation)*(1-IF($B35<='Key Assumptions'!$I$57,0, IF($B35-1='Key Assumptions'!$I$57,'Key Assumptions'!$I$58, IF($B35-1='Key Assumptions'!$I$59,'Key Assumptions'!$I$60, IF($B35-1='Key Assumptions'!$I$61,'Key Assumptions'!$I$62, IF(AND($B35-1>'Key Assumptions'!$I$61,MOD($B35-1,'Key Assumptions'!$I$63)=0),'Key Assumptions'!$I$64,0))))))) -> 19792.18145 | AN35: 151740.0578 | AO35: =IF(AO34=0,AO34,AO34*(1+costinflation)*(1-IF($B35<='Key Assumptions'!$I$37,0, IF($B35-1='Key Assumptions'!$I$37,'Key Assumptions'!$I$38, IF($B35-1='Key Assumptions'!$I$39,'Key Assumptions'!$I$40, IF($B35-1='Key Assumptions'!$I$41,'Key Assumptions'!$I$42, IF(AND($B35-1>'Key Assumptions'!$I$41,MOD($B35-1,'Key Assumptions'!$I$43)=0),'Key Assumptions'!$I$44,0))))))) -> 85766.1196 | AP35: =IF(AP34=0,AP34,AP34*(1+costinflation)*(1-IF($B35<='Key Assumptions'!$I$57,0, IF($B35-1='Key Assumptions'!$I$57,'Key Assumptions'!$I$58, IF($B35-1='Key Assumptions'!$I$59,'Key Assumptions'!$I$60, IF($B35-1='Key Assumptions'!$I$61,'Key Assumptions'!$I$62, IF(AND($B35-1>'Key Assumptions'!$I$61,MOD($B35-1,'Key Assumptions'!$I$63)=0),'Key Assumptions'!$I$64,0))))))) -> 52779.15052 | AQ35: 138545.2701 | AS35: =IF(AS34=0,AS34,AS34*(1+costinflation)*(1-IF($B35<='Key Assumptions'!$J$37,0, IF($B35-1='Key Assumptions'!$J$37,'Key Assumptions'!$J$38, IF($B35-1='Key Assumptions'!$J$39,'Key Assumptions'!$J$40, IF($B35-1='Key Assumptions'!$J$41,'Key Assumptions'!$J$42, IF(AND($B35-1>'Key Assumptions'!$J$41,MOD($B35-1,'Key Assumptions'!$J$43)=0),'Key Assumptions'!$J$44,0))))))) -> 131947.8763 | AT35: =IF(AT34=0,AT34,AT34*(1+costinflation)*(1-IF($B35<='Key Assumptions'!$J$57,0, IF($B35-1='Key Assumptions'!$J$57,'Key Assumptions'!$J$58, IF($B35-1='Key Assumptions'!$J$59,'Key Assumptions'!$J$60, IF($B35-1='Key Assumptions'!$J$61,'Key Assumptions'!$J$62, IF(AND($B35-1>'Key Assumptions'!$J$61,MOD($B35-1,'Key Assumptions'!$J$63)=0),'Key Assumptions'!$J$64,0))))))) -> 13194.78763 | AU35: 145142.6639 | AV35: =IF(AV34=0,AV34,AV34*(1+costinflation)*(1-IF($B35<='Key Assumptions'!$J$37,0, IF($B35-1='Key Assumptions'!$J$37,'Key Assumptions'!$J$38, IF($B35-1='Key Assumptions'!$J$39,'Key Assumptions'!$J$40, IF($B35-1='Key Assumptions'!$J$41,'Key Assumptions'!$J$42, IF(AND($B35-1>'Key Assumptions'!$J$41,MOD($B35-1,'Key Assumptions'!$J$43)=0),'Key Assumptions'!$J$44,0))))))) -> 377370.9262 | AW35: =IF(AW34=0,AW34,AW34*(1+costinflation)*(1-IF($B35<='Key Assumptions'!$J$57,0, IF($B35-1='Key Assumptions'!$J$57,'Key Assumptions'!$J$58, IF($B35-1='Key Assumptions'!$J$59,'Key Assumptions'!$J$60, IF($B35-1='Key Assumptions'!$J$61,'Key Assumptions'!$J$62, IF(AND($B35-1>'Key Assumptions'!$J$61,MOD($B35-1,'Key Assumptions'!$J$63)=0),'Key Assumptions'!$J$64,0))))))) -> 52779.15052 | AX35: 430150.0768 | AZ35: =IF(AZ34=0,AZ34,AZ34*(1+costinflation)*(1-IF($B35<='Key Assumptions'!$K$37,0, IF($B35-1='Key Assumptions'!$K$37,'Key Assumptions'!$K$38, IF($B35-1='Key Assumptions'!$K$39,'Key Assumptions'!$K$40, IF($B35-1='Key Assumptions'!$K$41,'Key Assumptions'!$K$42, IF(AND($B35-1>'Key Assumptions'!$K$41,MOD($B35-1,'Key Assumptions'!$K$43)=0),'Key Assumptions'!$K$44,0))))))) -> 39584.36289 | BA35: =IF(BA34=0,BA34,BA34*(1+costinflation)*(1-IF($B35<='Key Assumptions'!$K$57,0, IF($B35-1='Key Assumptions'!$K$57,'Key Assumptions'!$K$58, IF($B35-1='Key Assumptions'!$K$59,'Key Assumptions'!$K$60, IF($B35-1='Key Assumptions'!$K$61,'Key Assumptions'!$K$62, IF(AND($B35-1>'Key Assumptions'!$K$61,MOD($B35-1,'Key Assumptions'!$K$63)=0),'Key Assumptions'!$K$64,0))))))) -> 3958.436289 | BB35: 43542.79918 | BC35: =IF(BC34=0,BC34,BC34*(1+costinflation)*(1-IF($B35<='Key Assumptions'!$K$37,0, IF($B35-1='Key Assumptions'!$K$37,'Key Assumptions'!$K$38, IF($B35-1='Key Assumptions'!$K$39,'Key Assumptions'!$K$40, IF($B35-1='Key Assumptions'!$K$41,'Key Assumptions'!$K$42, IF(AND($B35-1>'Key Assumptions'!$K$41,MOD($B35-1,'Key Assumptions'!$K$43)=0),'Key Assumptions'!$K$44,0))))))) -> 51459.67176 | BD35: =IF(BD34=0,BD34,BD34*(1+costinflation)*(1-IF($B35<='Key Assumptions'!$K$57,0, IF($B35-1='Key Assumptions'!$K$57,'Key Assumptions'!$K$58, IF($B35-1='Key Assumptions'!$K$59,'Key Assumptions'!$K$60, IF($B35-1='Key Assumptions'!$K$61,'Key Assumptions'!$K$62, IF(AND($B35-1>'Key Assumptions'!$K$61,MOD($B35-1,'Key Assumptions'!$K$63)=0),'Key Assumptions'!$K$64,0))))))) -> 19792.18145 | BE35: 71251.85321 | BG35: =IF(BG34=0,BG34,BG34*(1+costinflation)*(1-IF($B35<='Key Assumptions'!$L$37,0, IF($B35-1='Key Assumptions'!$L$37,'Key Assumptions'!$L$38, IF($B35-1='Key Assumptions'!$L$39,'Key Assumptions'!$L$40, IF($B35-1='Key Assumptions'!$L$41,'Key Assumptions'!$L$42, IF(AND($B35-1>'Key Assumptions'!$L$41,MOD($B35-1,'Key Assumptions'!$L$43)=0),'Key Assumptions'!$L$44,0))))))) -> 39584.36289 | BH35: =IF(BH34=0,BH34,BH34*(1+costinflation)*(1-IF($B35<='Key Assumptions'!$L$57,0, IF($B35-1='Key Assumptions'!$L$57,'Key Assumptions'!$L$58, IF($B35-1='Key Assumptions'!$L$59,'Key Assumptions'!$L$60, IF($B35-1='Key Assumptions'!$L$61,'Key Assumptions'!$L$62, IF(AND($B35-1>'Key Assumptions'!$L$61,MOD($B35-1,'Key Assumptions'!$L$63)=0),'Key Assumptions'!$L$64,0))))))) -> 3958.436289 | BI35: 43542.79918 | BJ35: =IF(BJ34=0,BJ34,BJ34*(1+costinflation)*(1-IF($B35<='Key Assumptions'!$L$37,0, IF($B35-1='Key Assumptions'!$L$37,'Key Assumptions'!$L$38, IF($B35-1='Key Assumptions'!$L$39,'Key Assumptions'!$L$40, IF($B35-1='Key Assumptions'!$L$41,'Key Assumptions'!$L$42, IF(AND($B35-1>'Key Assumptions'!$L$41,MOD($B35-1,'Key Assumptions'!$L$43)=0),'Key Assumptions'!$L$44,0))))))) -> 35625.9266 | BK35: =IF(BK34=0,BK34,BK34*(1+costinflation)*(1-IF($B35<='Key Assumptions'!$L$57,0, IF($B35-1='Key Assumptions'!$L$57,'Key Assumptions'!$L$58, IF($B35-1='Key Assumptions'!$L$59,'Key Assumptions'!$L$60, IF($B35-1='Key Assumptions'!$L$61,'Key Assumptions'!$L$62, IF(AND($B35-1>'Key Assumptions'!$L$61,MOD($B35-1,'Key Assumptions'!$L$63)=0),'Key Assumptions'!$L$64,0))))))) -> 19792.18145 | BL35: 55418.10805 | BN35: =IF(BN34=0,BN34,BN34*(1+costinflation)*(1-IF($B35<='Key Assumptions'!$M$37,0, IF($B35-1='Key Assumptions'!$M$37,'Key Assumptions'!$M$38, IF($B35-1='Key Assumptions'!$M$39,'Key Assumptions'!$M$40, IF($B35-1='Key Assumptions'!$M$41,'Key Assumptions'!$M$42, IF(AND($B35-1>'Key Assumptions'!$M$41,MOD($B35-1,'Key Assumptions'!$M$43)=0),'Key Assumptions'!$M$44,0))))))) -> 39584.36289 | BO35: =IF(BO34=0,BO34,BO34*(1+costinflation)*(1-IF($B35<='Key Assumptions'!$M$57,0, IF($B35-1='Key Assumptions'!$M$57,'Key Assumptions'!$M$58, IF($B35-1='Key Assumptions'!$M$59,'Key Assumptions'!$M$60, IF($B35-1='Key Assumptions'!$M$61,'Key Assumptions'!$M$62, IF(AND($B35-1>'Key Assumptions'!$M$61,MOD($B35-1,'Key Assumptions'!$M$63)=0),'Key Assumptions'!$M$64,0))))))) -> 3958.436289 | BP35: 43542.79918 | BQ35: =IF(BQ34=0,BQ34,BQ34*(1+costinflation)*(1-IF($B35<='Key Assumptions'!$M$37,0, IF($B35-1='Key Assumptions'!$M$37,'Key Assumptions'!$M$38, IF($B35-1='Key Assumptions'!$M$39,'Key Assumptions'!$M$40, IF($B35-1='Key Assumptions'!$M$41,'Key Assumptions'!$M$42, IF(AND($B35-1>'Key Assumptions'!$M$41,MOD($B35-1,'Key Assumptions'!$M$43)=0),'Key Assumptions'!$M$44,0))))))) -> 51459.67176 | BR35: =IF(BR34=0,BR34,BR34*(1+costinflation)*(1-IF($B35<='Key Assumptions'!$M$57,0, IF($B35-1='Key Assumptions'!$M$57,'Key Assumptions'!$M$58, IF($B35-1='Key Assumptions'!$M$59,'Key Assumptions'!$M$60, IF($B35-1='Key Assumptions'!$M$61,'Key Assumptions'!$M$62, IF(AND($B35-1>'Key Assumptions'!$M$61,MOD($B35-1,'Key Assumptions'!$M$63)=0),'Key Assumptions'!$M$64,0))))))) -> 19792.18145 | BS35: 71251.85321
B36: 15 | C36: =IF(C35=0,C35,C35*(1+costinflation)*(1-IF($B36<='Key Assumptions'!$D$37,0, IF($B36-1='Key Assumptions'!$D$37,'Key Assumptions'!$D$38, IF($B36-1='Key Assumptions'!$D$39,'Key Assumptions'!$D$40, IF($B36-1='Key Assumptions'!$D$41,'Key Assumptions'!$D$42, IF(AND($B36-1>'Key Assumptions'!$D$41,MOD($B36-1,'Key Assumptions'!$D$43)=0),'Key Assumptions'!$D$44,0))))))) -> 134586.8338 | D36: =IF(D35=0,D35,D35*(1+costinflation)*(1-IF($B36<='Key Assumptions'!$D$57,0, IF($B36-1='Key Assumptions'!$D$57,'Key Assumptions'!$D$58, IF($B36-1='Key Assumptions'!$D$59,'Key Assumptions'!$D$60, IF($B36-1='Key Assumptions'!$D$61,'Key Assumptions'!$D$62, IF(AND($B36-1>'Key Assumptions'!$D$61,MOD($B36-1,'Key Assumptions'!$D$63)=0),'Key Assumptions'!$D$64,0))))))) -> 13458.68338 | E36: 148045.5172 | F36: =IF(F35=0,F35,F35*(1+costinflation)*(1-IF($B36<='Key Assumptions'!$D$37,0, IF($B36-1='Key Assumptions'!$D$37,'Key Assumptions'!$D$38, IF($B36-1='Key Assumptions'!$D$39,'Key Assumptions'!$D$40, IF($B36-1='Key Assumptions'!$D$41,'Key Assumptions'!$D$42, IF(AND($B36-1>'Key Assumptions'!$D$41,MOD($B36-1,'Key Assumptions'!$D$43)=0),'Key Assumptions'!$D$44,0))))))) -> 266481.931 | G36: =IF(G35=0,G35,G35*(1+costinflation)*(1-IF($B36<='Key Assumptions'!$D$57,0, IF($B36-1='Key Assumptions'!$D$57,'Key Assumptions'!$D$58, IF($B36-1='Key Assumptions'!$D$59,'Key Assumptions'!$D$60, IF($B36-1='Key Assumptions'!$D$61,'Key Assumptions'!$D$62, IF(AND($B36-1>'Key Assumptions'!$D$61,MOD($B36-1,'Key Assumptions'!$D$63)=0),'Key Assumptions'!$D$64,0))))))) -> 53834.73353 | H36: 320316.6645 | J36: =IF(J35=0,J35,J35*(1+costinflation)*(1-IF($B36<='Key Assumptions'!$E$37,0, IF($B36-1='Key Assumptions'!$E$37,'Key Assumptions'!$E$38, IF($B36-1='Key Assumptions'!$E$39,'Key Assumptions'!$E$40, IF($B36-1='Key Assumptions'!$E$41,'Key Assumptions'!$E$42, IF(AND($B36-1>'Key Assumptions'!$E$41,MOD($B36-1,'Key Assumptions'!$E$43)=0),'Key Assumptions'!$E$44,0))))))) -> 40376.05015 | K36: =IF(K35=0,K35,K35*(1+costinflation)*(1-IF($B36<='Key Assumptions'!$E$57,0, IF($B36-1='Key Assumptions'!$E$57,'Key Assumptions'!$E$58, IF($B36-1='Key Assumptions'!$E$59,'Key Assumptions'!$E$60, IF($B36-1='Key Assumptions'!$E$61,'Key Assumptions'!$E$62, IF(AND($B36-1>'Key Assumptions'!$E$61,MOD($B36-1,'Key Assumptions'!$E$63)=0),'Key Assumptions'!$E$64,0))))))) -> 4037.605015 | L36: 44413.65516 | M36: =IF(M35=0,M35,M35*(1+costinflation)*(1-IF($B36<='Key Assumptions'!$E$37,0, IF($B36-1='Key Assumptions'!$E$37,'Key Assumptions'!$E$38, IF($B36-1='Key Assumptions'!$E$39,'Key Assumptions'!$E$40, IF($B36-1='Key Assumptions'!$E$41,'Key Assumptions'!$E$42, IF(AND($B36-1>'Key Assumptions'!$E$41,MOD($B36-1,'Key Assumptions'!$E$43)=0),'Key Assumptions'!$E$44,0))))))) -> 44413.65516 | N36: =IF(N35=0,N35,N35*(1+costinflation)*(1-IF($B36<='Key Assumptions'!$E$57,0, IF($B36-1='Key Assumptions'!$E$57,'Key Assumptions'!$E$58, IF($B36-1='Key Assumptions'!$E$59,'Key Assumptions'!$E$60, IF($B36-1='Key Assumptions'!$E$61,'Key Assumptions'!$E$62, IF(AND($B36-1>'Key Assumptions'!$E$61,MOD($B36-1,'Key Assumptions'!$E$63)=0),'Key Assumptions'!$E$64,0))))))) -> 20188.02507 | O36: 64601.68024 | Q36: =IF(Q35=0,Q35,Q35*(1+costinflation)*(1-IF($B36<='Key Assumptions'!$F$37,0, IF($B36-1='Key Assumptions'!$F$37,'Key Assumptions'!$F$38, IF($B36-1='Key Assumptions'!$F$39,'Key Assumptions'!$F$40, IF($B36-1='Key Assumptions'!$F$41,'Key Assumptions'!$F$42, IF(AND($B36-1>'Key Assumptions'!$F$41,MOD($B36-1,'Key Assumptions'!$F$43)=0),'Key Assumptions'!$F$44,0))))))) -> 26917.36677 | R36: =IF(R35=0,R35,R35*(1+costinflation)*(1-IF($B36<='Key Assumptions'!$F$57,0, IF($B36-1='Key Assumptions'!$F$57,'Key Assumptions'!$F$58, IF($B36-1='Key Assumptions'!$F$59,'Key Assumptions'!$F$60, IF($B36-1='Key Assumptions'!$F$61,'Key Assumptions'!$F$62, IF(AND($B36-1>'Key Assumptions'!$F$61,MOD($B36-1,'Key Assumptions'!$F$63)=0),'Key Assumptions'!$F$64,0))))))) -> 2691.736677 | S36: 29609.10344 | T36: =IF(T35=0,T35,T35*(1+costinflation)*(1-IF($B36<='Key Assumptions'!$F$37,0, IF($B36-1='Key Assumptions'!$F$37,'Key Assumptions'!$F$38, IF($B36-1='Key Assumptions'!$F$39,'Key Assumptions'!$F$40, IF($B36-1='Key Assumptions'!$F$41,'Key Assumptions'!$F$42, IF(AND($B36-1>'Key Assumptions'!$F$41,MOD($B36-1,'Key Assumptions'!$F$43)=0),'Key Assumptions'!$F$44,0))))))) -> 14804.55172 | U36: =IF(U35=0,U35,U35*(1+costinflation)*(1-IF($B36<='Key Assumptions'!$F$57,0, IF($B36-1='Key Assumptions'!$F$57,'Key Assumptions'!$F$58, IF($B36-1='Key Assumptions'!$F$59,'Key Assumptions'!$F$60, IF($B36-1='Key Assumptions'!$F$61,'Key Assumptions'!$F$62, IF(AND($B36-1>'Key Assumptions'!$F$61,MOD($B36-1,'Key Assumptions'!$F$63)=0),'Key Assumptions'!$F$64,0))))))) -> 3364.670846 | V36: 18169.22257 | X36: =IF(X35=0,X35,X35*(1+costinflation)*(1-IF($B36<='Key Assumptions'!$G$37,0, IF($B36-1='Key Assumptions'!$G$37,'Key Assumptions'!$G$38, IF($B36-1='Key Assumptions'!$G$39,'Key Assumptions'!$G$40, IF($B36-1='Key Assumptions'!$G$41,'Key Assumptions'!$G$42, IF(AND($B36-1>'Key Assumptions'!$G$41,MOD($B36-1,'Key Assumptions'!$G$43)=0),'Key Assumptions'!$G$44,0))))))) -> 33646.70846 | Y36: =IF(Y35=0,Y35,Y35*(1+costinflation)*(1-IF($B36<='Key Assumptions'!$G$57,0, IF($B36-1='Key Assumptions'!$G$57,'Key Assumptions'!$G$58, IF($B36-1='Key Assumptions'!$G$59,'Key Assumptions'!$G$60, IF($B36-1='Key Assumptions'!$G$61,'Key Assumptions'!$G$62, IF(AND($B36-1>'Key Assumptions'!$G$61,MOD($B36-1,'Key Assumptions'!$G$63)=0),'Key Assumptions'!$G$64,0))))))) -> 3364.670846 | Z36: 37011.3793 | AA36: =IF(AA35=0,AA35,AA35*(1+costinflation)*(1-IF($B36<='Key Assumptions'!$G$37,0, IF($B36-1='Key Assumptions'!$G$37,'Key Assumptions'!$G$38, IF($B36-1='Key Assumptions'!$G$39,'Key Assumptions'!$G$40, IF($B36-1='Key Assumptions'!$G$41,'Key Assumptions'!$G$42, IF(AND($B36-1>'Key Assumptions'!$G$41,MOD($B36-1,'Key Assumptions'!$G$43)=0),'Key Assumptions'!$G$44,0))))))) -> 29609.10344 | AB36: =IF(AB35=0,AB35,AB35*(1+costinflation)*(1-IF($B36<='Key Assumptions'!$G$57,0, IF($B36-1='Key Assumptions'!$G$57,'Key Assumptions'!$G$58, IF($B36-1='Key Assumptions'!$G$59,'Key Assumptions'!$G$60, IF($B36-1='Key Assumptions'!$G$61,'Key Assumptions'!$G$62, IF(AND($B36-1>'Key Assumptions'!$G$61,MOD($B36-1,'Key Assumptions'!$G$63)=0),'Key Assumptions'!$G$64,0))))))) -> 4037.605015 | AC36: 33646.70846 | AE36: =IF(AE35=0,AE35,AE35*(1+costinflation)*(1-IF($B36<='Key Assumptions'!$H$37,0, IF($B36-1='Key Assumptions'!$H$37,'Key Assumptions'!$H$38, IF($B36-1='Key Assumptions'!$H$39,'Key Assumptions'!$H$40, IF($B36-1='Key Assumptions'!$H$41,'Key Assumptions'!$H$42, IF(AND($B36-1>'Key Assumptions'!$H$41,MOD($B36-1,'Key Assumptions'!$H$43)=0),'Key Assumptions'!$H$44,0))))))) -> 430677.8683 | AF36: =IF(AF35=0,AF35,AF35*(1+costinflation)*(1-IF($B36<='Key Assumptions'!$H$57,0, IF($B36-1='Key Assumptions'!$H$57,'Key Assumptions'!$H$58, IF($B36-1='Key Assumptions'!$H$59,'Key Assumptions'!$H$60, IF($B36-1='Key Assumptions'!$H$61,'Key Assumptions'!$H$62, IF(AND($B36-1>'Key Assumptions'!$H$61,MOD($B36-1,'Key Assumptions'!$H$63)=0),'Key Assumptions'!$H$64,0))))))) -> 9421.078368 | AG36: 440098.9466 | AH36: =IF(AH35=0,AH35,AH35*(1+costinflation)*(1-IF($B36<='Key Assumptions'!$H$37,0, IF($B36-1='Key Assumptions'!$H$37,'Key Assumptions'!$H$38, IF($B36-1='Key Assumptions'!$H$39,'Key Assumptions'!$H$40, IF($B36-1='Key Assumptions'!$H$41,'Key Assumptions'!$H$42, IF(AND($B36-1>'Key Assumptions'!$H$41,MOD($B36-1,'Key Assumptions'!$H$43)=0),'Key Assumptions'!$H$44,0))))))) -> 174962.884 | AI36: =IF(AI35=0,AI35,AI35*(1+costinflation)*(1-IF($B36<='Key Assumptions'!$H$57,0, IF($B36-1='Key Assumptions'!$H$57,'Key Assumptions'!$H$58, IF($B36-1='Key Assumptions'!$H$59,'Key Assumptions'!$H$60, IF($B36-1='Key Assumptions'!$H$61,'Key Assumptions'!$H$62, IF(AND($B36-1>'Key Assumptions'!$H$61,MOD($B36-1,'Key Assumptions'!$H$63)=0),'Key Assumptions'!$H$64,0))))))) -> 121128.1504 | AJ36: 296091.0344 | AL36: =IF(AL35=0,AL35,AL35*(1+costinflation)*(1-IF($B36<='Key Assumptions'!$I$37,0, IF($B36-1='Key Assumptions'!$I$37,'Key Assumptions'!$I$38, IF($B36-1='Key Assumptions'!$I$39,'Key Assumptions'!$I$40, IF($B36-1='Key Assumptions'!$I$41,'Key Assumptions'!$I$42, IF(AND($B36-1>'Key Assumptions'!$I$41,MOD($B36-1,'Key Assumptions'!$I$43)=0),'Key Assumptions'!$I$44,0))))))) -> 134586.8338 | AM36: =IF(AM35=0,AM35,AM35*(1+costinflation)*(1-IF($B36<='Key Assumptions'!$I$57,0, IF($B36-1='Key Assumptions'!$I$57,'Key Assumptions'!$I$58, IF($B36-1='Key Assumptions'!$I$59,'Key Assumptions'!$I$60, IF($B36-1='Key Assumptions'!$I$61,'Key Assumptions'!$I$62, IF(AND($B36-1>'Key Assumptions'!$I$61,MOD($B36-1,'Key Assumptions'!$I$63)=0),'Key Assumptions'!$I$64,0))))))) -> 20188.02507 | AN36: 154774.8589 | AO36: =IF(AO35=0,AO35,AO35*(1+costinflation)*(1-IF($B36<='Key Assumptions'!$I$37,0, IF($B36-1='Key Assumptions'!$I$37,'Key Assumptions'!$I$38, IF($B36-1='Key Assumptions'!$I$39,'Key Assumptions'!$I$40, IF($B36-1='Key Assumptions'!$I$41,'Key Assumptions'!$I$42, IF(AND($B36-1>'Key Assumptions'!$I$41,MOD($B36-1,'Key Assumptions'!$I$43)=0),'Key Assumptions'!$I$44,0))))))) -> 87481.44199 | AP36: =IF(AP35=0,AP35,AP35*(1+costinflation)*(1-IF($B36<='Key Assumptions'!$I$57,0, IF($B36-1='Key Assumptions'!$I$57,'Key Assumptions'!$I$58, IF($B36-1='Key Assumptions'!$I$59,'Key Assumptions'!$I$60, IF($B36-1='Key Assumptions'!$I$61,'Key Assumptions'!$I$62, IF(AND($B36-1>'Key Assumptions'!$I$61,MOD($B36-1,'Key Assumptions'!$I$63)=0),'Key Assumptions'!$I$64,0))))))) -> 53834.73353 | AQ36: 141316.1755 | AS36: =IF(AS35=0,AS35,AS35*(1+costinflation)*(1-IF($B36<='Key Assumptions'!$J$37,0, IF($B36-1='Key Assumptions'!$J$37,'Key Assumptions'!$J$38, IF($B36-1='Key Assumptions'!$J$39,'Key Assumptions'!$J$40, IF($B36-1='Key Assumptions'!$J$41,'Key Assumptions'!$J$42, IF(AND($B36-1>'Key Assumptions'!$J$41,MOD($B36-1,'Key Assumptions'!$J$43)=0),'Key Assumptions'!$J$44,0))))))) -> 134586.8338 | AT36: =IF(AT35=0,AT35,AT35*(1+costinflation)*(1-IF($B36<='Key Assumptions'!$J$57,0, IF($B36-1='Key Assumptions'!$J$57,'Key Assumptions'!$J$58, IF($B36-1='Key Assumptions'!$J$59,'Key Assumptions'!$J$60, IF($B36-1='Key Assumptions'!$J$61,'Key Assumptions'!$J$62, IF(AND($B36-1>'Key Assumptions'!$J$61,MOD($B36-1,'Key Assumptions'!$J$63)=0),'Key Assumptions'!$J$64,0))))))) -> 13458.68338 | AU36: 148045.5172 | AV36: =IF(AV35=0,AV35,AV35*(1+costinflation)*(1-IF($B36<='Key Assumptions'!$J$37,0, IF($B36-1='Key Assumptions'!$J$37,'Key Assumptions'!$J$38, IF($B36-1='Key Assumptions'!$J$39,'Key Assumptions'!$J$40, IF($B36-1='Key Assumptions'!$J$41,'Key Assumptions'!$J$42, IF(AND($B36-1>'Key Assumptions'!$J$41,MOD($B36-1,'Key Assumptions'!$J$43)=0),'Key Assumptions'!$J$44,0))))))) -> 384918.3448 | AW36: =IF(AW35=0,AW35,AW35*(1+costinflation)*(1-IF($B36<='Key Assumptions'!$J$57,0, IF($B36-1='Key Assumptions'!$J$57,'Key Assumptions'!$J$58, IF($B36-1='Key Assumptions'!$J$59,'Key Assumptions'!$J$60, IF($B36-1='Key Assumptions'!$J$61,'Key Assumptions'!$J$62, IF(AND($B36-1>'Key Assumptions'!$J$61,MOD($B36-1,'Key Assumptions'!$J$63)=0),'Key Assumptions'!$J$64,0))))))) -> 53834.73353 | AX36: 438753.0783 | AZ36: =IF(AZ35=0,AZ35,AZ35*(1+costinflation)*(1-IF($B36<='Key Assumptions'!$K$37,0, IF($B36-1='Key Assumptions'!$K$37,'Key Assumptions'!$K$38, IF($B36-1='Key Assumptions'!$K$39,'Key Assumptions'!$K$40, IF($B36-1='Key Assumptions'!$K$41,'Key Assumptions'!$K$42, IF(AND($B36-1>'Key Assumptions'!$K$41,MOD($B36-1,'Key Assumptions'!$K$43)=0),'Key Assumptions'!$K$44,0))))))) -> 40376.05015 | BA36: =IF(BA35=0,BA35,BA35*(1+costinflation)*(1-IF($B36<='Key Assumptions'!$K$57,0, IF($B36-1='Key Assumptions'!$K$57,'Key Assumptions'!$K$58, IF($B36-1='Key Assumptions'!$K$59,'Key Assumptions'!$K$60, IF($B36-1='Key Assumptions'!$K$61,'Key Assumptions'!$K$62, IF(AND($B36-1>'Key Assumptions'!$K$61,MOD($B36-1,'Key Assumptions'!$K$63)=0),'Key Assumptions'!$K$64,0))))))) -> 4037.605015 | BB36: 44413.65516 | BC36: =IF(BC35=0,BC35,BC35*(1+costinflation)*(1-IF($B36<='Key Assumptions'!$K$37,0, IF($B36-1='Key Assumptions'!$K$37,'Key Assumptions'!$K$38, IF($B36-1='Key Assumptions'!$K$39,'Key Assumptions'!$K$40, IF($B36-1='Key Assumptions'!$K$41,'Key Assumptions'!$K$42, IF(AND($B36-1>'Key Assumptions'!$K$41,MOD($B36-1,'Key Assumptions'!$K$43)=0),'Key Assumptions'!$K$44,0))))))) -> 52488.86519 | BD36: =IF(BD35=0,BD35,BD35*(1+costinflation)*(1-IF($B36<='Key Assumptions'!$K$57,0, IF($B36-1='Key Assumptions'!$K$57,'Key Assumptions'!$K$58, IF($B36-1='Key Assumptions'!$K$59,'Key Assumptions'!$K$60, IF($B36-1='Key Assumptions'!$K$61,'Key Assumptions'!$K$62, IF(AND($B36-1>'Key Assumptions'!$K$61,MOD($B36-1,'Key Assumptions'!$K$63)=0),'Key Assumptions'!$K$64,0))))))) -> 20188.02507 | BE36: 72676.89027 | BG36: =IF(BG35=0,BG35,BG35*(1+costinflation)*(1-IF($B36<='Key Assumptions'!$L$37,0, IF($B36-1='Key Assumptions'!$L$37,'Key Assumptions'!$L$38, IF($B36-1='Key Assumptions'!$L$39,'Key Assumptions'!$L$40, IF($B36-1='Key Assumptions'!$L$41,'Key Assumptions'!$L$42, IF(AND($B36-1>'Key Assumptions'!$L$41,MOD($B36-1,'Key Assumptions'!$L$43)=0),'Key Assumptions'!$L$44,0))))))) -> 40376.05015 | BH36: =IF(BH35=0,BH35,BH35*(1+costinflation)*(1-IF($B36<='Key Assumptions'!$L$57,0, IF($B36-1='Key Assumptions'!$L$57,'Key Assumptions'!$L$58, IF($B36-1='Key Assumptions'!$L$59,'Key Assumptions'!$L$60, IF($B36-1='Key Assumptions'!$L$61,'Key Assumptions'!$L$62, IF(AND($B36-1>'Key Assumptions'!$L$61,MOD($B36-1,'Key Assumptions'!$L$63)=0),'Key Assumptions'!$L$64,0))))))) -> 4037.605015 | BI36: 44413.65516 | BJ36: =IF(BJ35=0,BJ35,BJ35*(1+costinflation)*(1-IF($B36<='Key Assumptions'!$L$37,0, IF($B36-1='Key Assumptions'!$L$37,'Key Assumptions'!$L$38, IF($B36-1='Key Assumptions'!$L$39,'Key Assumptions'!$L$40, IF($B36-1='Key Assumptions'!$L$41,'Key Assumptions'!$L$42, IF(AND($B36-1>'Key Assumptions'!$L$41,MOD($B36-1,'Key Assumptions'!$L$43)=0),'Key Assumptions'!$L$44,0))))))) -> 36338.44513 | BK36: =IF(BK35=0,BK35,BK35*(1+costinflation)*(1-IF($B36<='Key Assumptions'!$L$57,0, IF($B36-1='Key Assumptions'!$L$57,'Key Assumptions'!$L$58, IF($B36-1='Key Assumptions'!$L$59,'Key Assumptions'!$L$60, IF($B36-1='Key Assumptions'!$L$61,'Key Assumptions'!$L$62, IF(AND($B36-1>'Key Assumptions'!$L$61,MOD($B36-1,'Key Assumptions'!$L$63)=0),'Key Assumptions'!$L$64,0))))))) -> 20188.02507 | BL36: 56526.47021 | BN36: =IF(BN35=0,BN35,BN35*(1+costinflation)*(1-IF($B36<='Key Assumptions'!$M$37,0, IF($B36-1='Key Assumptions'!$M$37,'Key Assumptions'!$M$38, IF($B36-1='Key Assumptions'!$M$39,'Key Assumptions'!$M$40, IF($B36-1='Key Assumptions'!$M$41,'Key Assumptions'!$M$42, IF(AND($B36-1>'Key Assumptions'!$M$41,MOD($B36-1,'Key Assumptions'!$M$43)=0),'Key Assumptions'!$M$44,0))))))) -> 40376.05015 | BO36: =IF(BO35=0,BO35,BO35*(1+costinflation)*(1-IF($B36<='Key Assumptions'!$M$57,0, IF($B36-1='Key Assumptions'!$M$57,'Key Assumptions'!$M$58, IF($B36-1='Key Assumptions'!$M$59,'Key Assumptions'!$M$60, IF($B36-1='Key Assumptions'!$M$61,'Key Assumptions'!$M$62, IF(AND($B36-1>'Key Assumptions'!$M$61,MOD($B36-1,'Key Assumptions'!$M$63)=0),'Key Assumptions'!$M$64,0))))))) -> 4037.605015 | BP36: 44413.65516 | BQ36: =IF(BQ35=0,BQ35,BQ35*(1+costinflation)*(1-IF($B36<='Key Assumptions'!$M$37,0, IF($B36-1='Key Assumptions'!$M$37,'Key Assumptions'!$M$38, IF($B36-1='Key Assumptions'!$M$39,'Key Assumptions'!$M$40, IF($B36-1='Key Assumptions'!$M$41,'Key Assumptions'!$M$42, IF(AND($B36-1>'Key Assumptions'!$M$41,MOD($B36-1,'Key Assumptions'!$M$43)=0),'Key Assumptions'!$M$44,0))))))) -> 52488.86519 | BR36: =IF(BR35=0,BR35,BR35*(1+costinflation)*(1-IF($B36<='Key Assumptions'!$M$57,0, IF($B36-1='Key Assumptions'!$M$57,'Key Assumptions'!$M$58, IF($B36-1='Key Assumptions'!$M$59,'Key Assumptions'!$M$60, IF($B36-1='Key Assumptions'!$M$61,'Key Assumptions'!$M$62, IF(AND($B36-1>'Key Assumptions'!$M$61,MOD($B36-1,'Key Assumptions'!$M$63)=0),'Key Assumptions'!$M$64,0))))))) -> 20188.02507 | BS36: 72676.89027
B37: 16 | C37: =IF(C36=0,C36,C36*(1+costinflation)*(1-IF($B37<='Key Assumptions'!$D$37,0, IF($B37-1='Key Assumptions'!$D$37,'Key Assumptions'!$D$38, IF($B37-1='Key Assumptions'!$D$39,'Key Assumptions'!$D$40, IF($B37-1='Key Assumptions'!$D$41,'Key Assumptions'!$D$42, IF(AND($B37-1>'Key Assumptions'!$D$41,MOD($B37-1,'Key Assumptions'!$D$43)=0),'Key Assumptions'!$D$44,0))))))) -> 137278.5705 | D37: =IF(D36=0,D36,D36*(1+costinflation)*(1-IF($B37<='Key Assumptions'!$D$57,0, IF($B37-1='Key Assumptions'!$D$57,'Key Assumptions'!$D$58, IF($B37-1='Key Assumptions'!$D$59,'Key Assumptions'!$D$60, IF($B37-1='Key Assumptions'!$D$61,'Key Assumptions'!$D$62, IF(AND($B37-1>'Key Assumptions'!$D$61,MOD($B37-1,'Key Assumptions'!$D$63)=0),'Key Assumptions'!$D$64,0))))))) -> 13727.85705 | E37: 151006.4276 | F37: =IF(F36=0,F36,F36*(1+costinflation)*(1-IF($B37<='Key Assumptions'!$D$37,0, IF($B37-1='Key Assumptions'!$D$37,'Key Assumptions'!$D$38, IF($B37-1='Key Assumptions'!$D$39,'Key Assumptions'!$D$40, IF($B37-1='Key Assumptions'!$D$41,'Key Assumptions'!$D$42, IF(AND($B37-1>'Key Assumptions'!$D$41,MOD($B37-1,'Key Assumptions'!$D$43)=0),'Key Assumptions'!$D$44,0))))))) -> 271811.5696 | G37: =IF(G36=0,G36,G36*(1+costinflation)*(1-IF($B37<='Key Assumptions'!$D$57,0, IF($B37-1='Key Assumptions'!$D$57,'Key Assumptions'!$D$58, IF($B37-1='Key Assumptions'!$D$59,'Key Assumptions'!$D$60, IF($B37-1='Key Assumptions'!$D$61,'Key Assumptions'!$D$62, IF(AND($B37-1>'Key Assumptions'!$D$61,MOD($B37-1,'Key Assumptions'!$D$63)=0),'Key Assumptions'!$D$64,0))))))) -> 54911.4282 | H37: 326722.9978 | J37: =IF(J36=0,J36,J36*(1+costinflation)*(1-IF($B37<='Key Assumptions'!$E$37,0, IF($B37-1='Key Assumptions'!$E$37,'Key Assumptions'!$E$38, IF($B37-1='Key Assumptions'!$E$39,'Key Assumptions'!$E$40, IF($B37-1='Key Assumptions'!$E$41,'Key Assumptions'!$E$42, IF(AND($B37-1>'Key Assumptions'!$E$41,MOD($B37-1,'Key Assumptions'!$E$43)=0),'Key Assumptions'!$E$44,0))))))) -> 41183.57115 | K37: =IF(K36=0,K36,K36*(1+costinflation)*(1-IF($B37<='Key Assumptions'!$E$57,0, IF($B37-1='Key Assumptions'!$E$57,'Key Assumptions'!$E$58, IF($B37-1='Key Assumptions'!$E$59,'Key Assumptions'!$E$60, IF($B37-1='Key Assumptions'!$E$61,'Key Assumptions'!$E$62, IF(AND($B37-1>'Key Assumptions'!$E$61,MOD($B37-1,'Key Assumptions'!$E$63)=0),'Key Assumptions'!$E$64,0))))))) -> 4118.357115 | L37: 45301.92827 | M37: =IF(M36=0,M36,M36*(1+costinflation)*(1-IF($B37<='Key Assumptions'!$E$37,0, IF($B37-1='Key Assumptions'!$E$37,'Key Assumptions'!$E$38, IF($B37-1='Key Assumptions'!$E$39,'Key Assumptions'!$E$40, IF($B37-1='Key Assumptions'!$E$41,'Key Assumptions'!$E$42, IF(AND($B37-1>'Key Assumptions'!$E$41,MOD($B37-1,'Key Assumptions'!$E$43)=0),'Key Assumptions'!$E$44,0))))))) -> 45301.92827 | N37: =IF(N36=0,N36,N36*(1+costinflation)*(1-IF($B37<='Key Assumptions'!$E$57,0, IF($B37-1='Key Assumptions'!$E$57,'Key Assumptions'!$E$58, IF($B37-1='Key Assumptions'!$E$59,'Key Assumptions'!$E$60, IF($B37-1='Key Assumptions'!$E$61,'Key Assumptions'!$E$62, IF(AND($B37-1>'Key Assumptions'!$E$61,MOD($B37-1,'Key Assumptions'!$E$63)=0),'Key Assumptions'!$E$64,0))))))) -> 20591.78558 | O37: 65893.71384 | Q37: =IF(Q36=0,Q36,Q36*(1+costinflation)*(1-IF($B37<='Key Assumptions'!$F$37,0, IF($B37-1='Key Assumptions'!$F$37,'Key Assumptions'!$F$38, IF($B37-1='Key Assumptions'!$F$39,'Key Assumptions'!$F$40, IF($B37-1='Key Assumptions'!$F$41,'Key Assumptions'!$F$42, IF(AND($B37-1>'Key Assumptions'!$F$41,MOD($B37-1,'Key Assumptions'!$F$43)=0),'Key Assumptions'!$F$44,0))))))) -> 27455.7141 | R37: =IF(R36=0,R36,R36*(1+costinflation)*(1-IF($B37<='Key Assumptions'!$F$57,0, IF($B37-1='Key Assumptions'!$F$57,'Key Assumptions'!$F$58, IF($B37-1='Key Assumptions'!$F$59,'Key Assumptions'!$F$60, IF($B37-1='Key Assumptions'!$F$61,'Key Assumptions'!$F$62, IF(AND($B37-1>'Key Assumptions'!$F$61,MOD($B37-1,'Key Assumptions'!$F$63)=0),'Key Assumptions'!$F$64,0))))))) -> 2745.57141 | S37: 30201.28551 | T37: =IF(T36=0,T36,T36*(1+costinflation)*(1-IF($B37<='Key Assumptions'!$F$37,0, IF($B37-1='Key Assumptions'!$F$37,'Key Assumptions'!$F$38, IF($B37-1='Key Assumptions'!$F$39,'Key Assumptions'!$F$40, IF($B37-1='Key Assumptions'!$F$41,'Key Assumptions'!$F$42, IF(AND($B37-1>'Key Assumptions'!$F$41,MOD($B37-1,'Key Assumptions'!$F$43)=0),'Key Assumptions'!$F$44,0))))))) -> 15100.64276 | U37: =IF(U36=0,U36,U36*(1+costinflation)*(1-IF($B37<='Key Assumptions'!$F$57,0, IF($B37-1='Key Assumptions'!$F$57,'Key Assumptions'!$F$58, IF($B37-1='Key Assumptions'!$F$59,'Key Assumptions'!$F$60, IF($B37-1='Key Assumptions'!$F$61,'Key Assumptions'!$F$62, IF(AND($B37-1>'Key Assumptions'!$F$61,MOD($B37-1,'Key Assumptions'!$F$63)=0),'Key Assumptions'!$F$64,0))))))) -> 3431.964263 | V37: 18532.60702 | X37: =IF(X36=0,X36,X36*(1+costinflation)*(1-IF($B37<='Key Assumptions'!$G$37,0, IF($B37-1='Key Assumptions'!$G$37,'Key Assumptions'!$G$38, IF($B37-1='Key Assumptions'!$G$39,'Key Assumptions'!$G$40, IF($B37-1='Key Assumptions'!$G$41,'Key Assumptions'!$G$42, IF(AND($B37-1>'Key Assumptions'!$G$41,MOD($B37-1,'Key Assumptions'!$G$43)=0),'Key Assumptions'!$G$44,0))))))) -> 34319.64263 | Y37: =IF(Y36=0,Y36,Y36*(1+costinflation)*(1-IF($B37<='Key Assumptions'!$G$57,0, IF($B37-1='Key Assumptions'!$G$57,'Key Assumptions'!$G$58, IF($B37-1='Key Assumptions'!$G$59,'Key Assumptions'!$G$60, IF($B37-1='Key Assumptions'!$G$61,'Key Assumptions'!$G$62, IF(AND($B37-1>'Key Assumptions'!$G$61,MOD($B37-1,'Key Assumptions'!$G$63)=0),'Key Assumptions'!$G$64,0))))))) -> 3431.964263 | Z37: 37751.60689 | AA37: =IF(AA36=0,AA36,AA36*(1+costinflation)*(1-IF($B37<='Key Assumptions'!$G$37,0, IF($B37-1='Key Assumptions'!$G$37,'Key Assumptions'!$G$38, IF($B37-1='Key Assumptions'!$G$39,'Key Assumptions'!$G$40, IF($B37-1='Key Assumptions'!$G$41,'Key Assumptions'!$G$42, IF(AND($B37-1>'Key Assumptions'!$G$41,MOD($B37-1,'Key Assumptions'!$G$43)=0),'Key Assumptions'!$G$44,0))))))) -> 30201.28551 | AB37: =IF(AB36=0,AB36,AB36*(1+costinflation)*(1-IF($B37<='Key Assumptions'!$G$57,0, IF($B37-1='Key Assumptions'!$G$57,'Key Assumptions'!$G$58, IF($B37-1='Key Assumptions'!$G$59,'Key Assumptions'!$G$60, IF($B37-1='Key Assumptions'!$G$61,'Key Assumptions'!$G$62, IF(AND($B37-1>'Key Assumptions'!$G$61,MOD($B37-1,'Key Assumptions'!$G$63)=0),'Key Assumptions'!$G$64,0))))))) -> 4118.357115 | AC37: 34319.64263 | AE37: =IF(AE36=0,AE36,AE36*(1+costinflation)*(1-IF($B37<='Key Assumptions'!$H$37,0, IF($B37-1='Key Assumptions'!$H$37,'Key Assumptions'!$H$38, IF($B37-1='Key Assumptions'!$H$39,'Key Assumptions'!$H$40, IF($B37-1='Key Assumptions'!$H$41,'Key Assumptions'!$H$42, IF(AND($B37-1>'Key Assumptions'!$H$41,MOD($B37-1,'Key Assumptions'!$H$43)=0),'Key Assumptions'!$H$44,0))))))) -> 439291.4256 | AF37: =IF(AF36=0,AF36,AF36*(1+costinflation)*(1-IF($B37<='Key Assumptions'!$H$57,0, IF($B37-1='Key Assumptions'!$H$57,'Key Assumptions'!$H$58, IF($B37-1='Key Assumptions'!$H$59,'Key Assumptions'!$H$60, IF($B37-1='Key Assumptions'!$H$61,'Key Assumptions'!$H$62, IF(AND($B37-1>'Key Assumptions'!$H$61,MOD($B37-1,'Key Assumptions'!$H$63)=0),'Key Assumptions'!$H$64,0))))))) -> 9609.499936 | AG37: 448900.9256 | AH37: =IF(AH36=0,AH36,AH36*(1+costinflation)*(1-IF($B37<='Key Assumptions'!$H$37,0, IF($B37-1='Key Assumptions'!$H$37,'Key Assumptions'!$H$38, IF($B37-1='Key Assumptions'!$H$39,'Key Assumptions'!$H$40, IF($B37-1='Key Assumptions'!$H$41,'Key Assumptions'!$H$42, IF(AND($B37-1>'Key Assumptions'!$H$41,MOD($B37-1,'Key Assumptions'!$H$43)=0),'Key Assumptions'!$H$44,0))))))) -> 178462.1417 | AI37: =IF(AI36=0,AI36,AI36*(1+costinflation)*(1-IF($B37<='Key Assumptions'!$H$57,0, IF($B37-1='Key Assumptions'!$H$57,'Key Assumptions'!$H$58, IF($B37-1='Key Assumptions'!$H$59,'Key Assumptions'!$H$60, IF($B37-1='Key Assumptions'!$H$61,'Key Assumptions'!$H$62, IF(AND($B37-1>'Key Assumptions'!$H$61,MOD($B37-1,'Key Assumptions'!$H$63)=0),'Key Assumptions'!$H$64,0))))))) -> 123550.7135 | AJ37: 302012.8551 | AL37: =IF(AL36=0,AL36,AL36*(1+costinflation)*(1-IF($B37<='Key Assumptions'!$I$37,0, IF($B37-1='Key Assumptions'!$I$37,'Key Assumptions'!$I$38, IF($B37-1='Key Assumptions'!$I$39,'Key Assumptions'!$I$40, IF($B37-1='Key Assumptions'!$I$41,'Key Assumptions'!$I$42, IF(AND($B37-1>'Key Assumptions'!$I$41,MOD($B37-1,'Key Assumptions'!$I$43)=0),'Key Assumptions'!$I$44,0))))))) -> 137278.5705 | AM37: =IF(AM36=0,AM36,AM36*(1+costinflation)*(1-IF($B37<='Key Assumptions'!$I$57,0, IF($B37-1='Key Assumptions'!$I$57,'Key Assumptions'!$I$58, IF($B37-1='Key Assumptions'!$I$59,'Key Assumptions'!$I$60, IF($B37-1='Key Assumptions'!$I$61,'Key Assumptions'!$I$62, IF(AND($B37-1>'Key Assumptions'!$I$61,MOD($B37-1,'Key Assumptions'!$I$63)=0),'Key Assumptions'!$I$64,0))))))) -> 20591.78558 | AN37: 157870.3561 | AO37: =IF(AO36=0,AO36,AO36*(1+costinflation)*(1-IF($B37<='Key Assumptions'!$I$37,0, IF($B37-1='Key Assumptions'!$I$37,'Key Assumptions'!$I$38, IF($B37-1='Key Assumptions'!$I$39,'Key Assumptions'!$I$40, IF($B37-1='Key Assumptions'!$I$41,'Key Assumptions'!$I$42, IF(AND($B37-1>'Key Assumptions'!$I$41,MOD($B37-1,'Key Assumptions'!$I$43)=0),'Key Assumptions'!$I$44,0))))))) -> 89231.07083 | AP37: =IF(AP36=0,AP36,AP36*(1+costinflation)*(1-IF($B37<='Key Assumptions'!$I$57,0, IF($B37-1='Key Assumptions'!$I$57,'Key Assumptions'!$I$58, IF($B37-1='Key Assumptions'!$I$59,'Key Assumptions'!$I$60, IF($B37-1='Key Assumptions'!$I$61,'Key Assumptions'!$I$62, IF(AND($B37-1>'Key Assumptions'!$I$61,MOD($B37-1,'Key Assumptions'!$I$63)=0),'Key Assumptions'!$I$64,0))))))) -> 54911.4282 | AQ37: 144142.499 | AS37: =IF(AS36=0,AS36,AS36*(1+costinflation)*(1-IF($B37<='Key Assumptions'!$J$37,0, IF($B37-1='Key Assumptions'!$J$37,'Key Assumptions'!$J$38, IF($B37-1='Key Assumptions'!$J$39,'Key Assumptions'!$J$40, IF($B37-1='Key Assumptions'!$J$41,'Key Assumptions'!$J$42, IF(AND($B37-1>'Key Assumptions'!$J$41,MOD($B37-1,'Key Assumptions'!$J$43)=0),'Key Assumptions'!$J$44,0))))))) -> 137278.5705 | AT37: =IF(AT36=0,AT36,AT36*(1+costinflation)*(1-IF($B37<='Key Assumptions'!$J$57,0, IF($B37-1='Key Assumptions'!$J$57,'Key Assumptions'!$J$58, IF($B37-1='Key Assumptions'!$J$59,'Key Assumptions'!$J$60, IF($B37-1='Key Assumptions'!$J$61,'Key Assumptions'!$J$62, IF(AND($B37-1>'Key Assumptions'!$J$61,MOD($B37-1,'Key Assumptions'!$J$63)=0),'Key Assumptions'!$J$64,0))))))) -> 13727.85705 | AU37: 151006.4276 | AV37: =IF(AV36=0,AV36,AV36*(1+costinflation)*(1-IF($B37<='Key Assumptions'!$J$37,0, IF($B37-1='Key Assumptions'!$J$37,'Key Assumptions'!$J$38, IF($B37-1='Key Assumptions'!$J$39,'Key Assumptions'!$J$40, IF($B37-1='Key Assumptions'!$J$41,'Key Assumptions'!$J$42, IF(AND($B37-1>'Key Assumptions'!$J$41,MOD($B37-1,'Key Assumptions'!$J$43)=0),'Key Assumptions'!$J$44,0))))))) -> 392616.7117 | AW37: =IF(AW36=0,AW36,AW36*(1+costinflation)*(1-IF($B37<='Key Assumptions'!$J$57,0, IF($B37-1='Key Assumptions'!$J$57,'Key Assumptions'!$J$58, IF($B37-1='Key Assumptions'!$J$59,'Key Assumptions'!$J$60, IF($B37-1='Key Assumptions'!$J$61,'Key Assumptions'!$J$62, IF(AND($B37-1>'Key Assumptions'!$J$61,MOD($B37-1,'Key Assumptions'!$J$63)=0),'Key Assumptions'!$J$64,0))))))) -> 54911.4282 | AX37: 447528.1399 | AZ37: =IF(AZ36=0,AZ36,AZ36*(1+costinflation)*(1-IF($B37<='Key Assumptions'!$K$37,0, IF($B37-1='Key Assumptions'!$K$37,'Key Assumptions'!$K$38, IF($B37-1='Key Assumptions'!$K$39,'Key Assumptions'!$K$40, IF($B37-1='Key Assumptions'!$K$41,'Key Assumptions'!$K$42, IF(AND($B37-1>'Key Assumptions'!$K$41,MOD($B37-1,'Key Assumptions'!$K$43)=0),'Key Assumptions'!$K$44,0))))))) -> 41183.57115 | BA37: =IF(BA36=0,BA36,BA36*(1+costinflation)*(1-IF($B37<='Key Assumptions'!$K$57,0, IF($B37-1='Key Assumptions'!$K$57,'Key Assumptions'!$K$58, IF($B37-1='Key Assumptions'!$K$59,'Key Assumptions'!$K$60, IF($B37-1='Key Assumptions'!$K$61,'Key Assumptions'!$K$62, IF(AND($B37-1>'Key Assumptions'!$K$61,MOD($B37-1,'Key Assumptions'!$K$63)=0),'Key Assumptions'!$K$64,0))))))) -> 4118.357115 | BB37: 45301.92827 | BC37: =IF(BC36=0,BC36,BC36*(1+costinflation)*(1-IF($B37<='Key Assumptions'!$K$37,0, IF($B37-1='Key Assumptions'!$K$37,'Key Assumptions'!$K$38, IF($B37-1='Key Assumptions'!$K$39,'Key Assumptions'!$K$40, IF($B37-1='Key Assumptions'!$K$41,'Key Assumptions'!$K$42, IF(AND($B37-1>'Key Assumptions'!$K$41,MOD($B37-1,'Key Assumptions'!$K$43)=0),'Key Assumptions'!$K$44,0))))))) -> 53538.6425 | BD37: =IF(BD36=0,BD36,BD36*(1+costinflation)*(1-IF($B37<='Key Assumptions'!$K$57,0, IF($B37-1='Key Assumptions'!$K$57,'Key Assumptions'!$K$58, IF($B37-1='Key Assumptions'!$K$59,'Key Assumptions'!$K$60, IF($B37-1='Key Assumptions'!$K$61,'Key Assumptions'!$K$62, IF(AND($B37-1>'Key Assumptions'!$K$61,MOD($B37-1,'Key Assumptions'!$K$63)=0),'Key Assumptions'!$K$64,0))))))) -> 20591.78558 | BE37: 74130.42807 | BG37: =IF(BG36=0,BG36,BG36*(1+costinflation)*(1-IF($B37<='Key Assumptions'!$L$37,0, IF($B37-1='Key Assumptions'!$L$37,'Key Assumptions'!$L$38, IF($B37-1='Key Assumptions'!$L$39,'Key Assumptions'!$L$40, IF($B37-1='Key Assumptions'!$L$41,'Key Assumptions'!$L$42, IF(AND($B37-1>'Key Assumptions'!$L$41,MOD($B37-1,'Key Assumptions'!$L$43)=0),'Key Assumptions'!$L$44,0))))))) -> 41183.57115 | BH37: =IF(BH36=0,BH36,BH36*(1+costinflation)*(1-IF($B37<='Key Assumptions'!$L$57,0, IF($B37-1='Key Assumptions'!$L$57,'Key Assumptions'!$L$58, IF($B37-1='Key Assumptions'!$L$59,'Key Assumptions'!$L$60, IF($B37-1='Key Assumptions'!$L$61,'Key Assumptions'!$L$62, IF(AND($B37-1>'Key Assumptions'!$L$61,MOD($B37-1,'Key Assumptions'!$L$63)=0),'Key Assumptions'!$L$64,0))))))) -> 4118.357115 | BI37: 45301.92827 | BJ37: =IF(BJ36=0,BJ36,BJ36*(1+costinflation)*(1-IF($B37<='Key Assumptions'!$L$37,0, IF($B37-1='Key Assumptions'!$L$37,'Key Assumptions'!$L$38, IF($B37-1='Key Assumptions'!$L$39,'Key Assumptions'!$L$40, IF($B37-1='Key Assumptions'!$L$41,'Key Assumptions'!$L$42, IF(AND($B37-1>'Key Assumptions'!$L$41,MOD($B37-1,'Key Assumptions'!$L$43)=0),'Key Assumptions'!$L$44,0))))))) -> 37065.21404 | BK37: =IF(BK36=0,BK36,BK36*(1+costinflation)*(1-IF($B37<='Key Assumptions'!$L$57,0, IF($B37-1='Key Assumptions'!$L$57,'Key Assumptions'!$L$58, IF($B37-1='Key Assumptions'!$L$59,'Key Assumptions'!$L$60, IF($B37-1='Key Assumptions'!$L$61,'Key Assumptions'!$L$62, IF(AND($B37-1>'Key Assumptions'!$L$61,MOD($B37-1,'Key Assumptions'!$L$63)=0),'Key Assumptions'!$L$64,0))))))) -> 20591.78558 | BL37: 57656.99961 | BN37: =IF(BN36=0,BN36,BN36*(1+costinflation)*(1-IF($B37<='Key Assumptions'!$M$37,0, IF($B37-1='Key Assumptions'!$M$37,'Key Assumptions'!$M$38, IF($B37-1='Key Assumptions'!$M$39,'Key Assumptions'!$M$40, IF($B37-1='Key Assumptions'!$M$41,'Key Assumptions'!$M$42, IF(AND($B37-1>'Key Assumptions'!$M$41,MOD($B37-1,'Key Assumptions'!$M$43)=0),'Key Assumptions'!$M$44,0))))))) -> 41183.57115 | BO37: =IF(BO36=0,BO36,BO36*(1+costinflation)*(1-IF($B37<='Key Assumptions'!$M$57,0, IF($B37-1='Key Assumptions'!$M$57,'Key Assumptions'!$M$58, IF($B37-1='Key Assumptions'!$M$59,'Key Assumptions'!$M$60, IF($B37-1='Key Assumptions'!$M$61,'Key Assumptions'!$M$62, IF(AND($B37-1>'Key Assumptions'!$M$61,MOD($B37-1,'Key Assumptions'!$M$63)=0),'Key Assumptions'!$M$64,0))))))) -> 4118.357115 | BP37: 45301.92827 | BQ37: =IF(BQ36=0,BQ36,BQ36*(1+costinflation)*(1-IF($B37<='Key Assumptions'!$M$37,0, IF($B37-1='Key Assumptions'!$M$37,'Key Assumptions'!$M$38, IF($B37-1='Key Assumptions'!$M$39,'Key Assumptions'!$M$40, IF($B37-1='Key Assumptions'!$M$41,'Key Assumptions'!$M$42, IF(AND($B37-1>'Key Assumptions'!$M$41,MOD($B37-1,'Key Assumptions'!$M$43)=0),'Key Assumptions'!$M$44,0))))))) -> 53538.6425 | BR37: =IF(BR36=0,BR36,BR36*(1+costinflation)*(1-IF($B37<='Key Assumptions'!$M$57,0, IF($B37-1='Key Assumptions'!$M$57,'Key Assumptions'!$M$58, IF($B37-1='Key Assumptions'!$M$59,'Key Assumptions'!$M$60, IF($B37-1='Key Assumptions'!$M$61,'Key Assumptions'!$M$62, IF(AND($B37-1>'Key Assumptions'!$M$61,MOD($B37-1,'Key Assumptions'!$M$63)=0),'Key Assumptions'!$M$64,0))))))) -> 20591.78558 | BS37: 74130.42807
